{"text_format":"3","workbook":"xlsx","n_sheets":15,"sheets":["Ficha","MIR GENERL DEL PMDyG","Pp1 MIR  EDSP","Listas","Base","SUSTENTO INDICADOR","Hoja1","Hoja2","Hoja3","Hoja4","Hoja6","Hoja7","Hoja8","Hoja9","Hoja5"],"not_rendered":{"charts":1,"images":12,"macros":1,"external_links":2,"defined_names":76},"read":"whole","date_system":"1900"}

{"sheet":"Ficha","index":0,"n_rows":20,"n_cols":8,"rows_kept":20}
[]
[]
[]
[]
[{"$nulls":3},"Información para la evaluación del desempeño"]
[]
[{"$nulls":3},"Municipio:"]
[{"$nulls":3},"Ixtlahuacán de los Membrillos"]
[]
[{"$nulls":3},"Registre por favor los programas que fueron capturados en la pestaña MIR",{"$nulls":3},"Registre por favor los programas que fueron capturados en la pestaña SinMatriz"]
[null,null,1,"Estado de Derecho y Seguridad",null,null,1]
[null,null,2,"Desarrollo Social",null,null,2]
[null,null,3,"Desarrollo Económico",null,null,3]
[null,null,4,"Gestión del Territorio",null,null,4]
[null,null,5,{"$nulls":3},5]
[null,null,6,{"$nulls":3},6]
[]
[{"$nulls":3},"Número de programas con MIR (programas que fueron capturados en la pestaña MIR)",null,4,null,"Número de programas sin matriz (programas que fueron capturados en la pestaña SinMatriz)"]
[]
[{"$nulls":3},"TOTAL",null,{"$f":"F18+J18","v":4}]

{"sheet":"MIR GENERL DEL PMDyG","index":1,"n_rows":213,"n_cols":27,"rows_kept":213,"merged":[[1,1,1,26],[3,1,3,26],[5,1,5,26],[8,1,9,1],[8,3,8,15],[8,16,8,24],[8,25,9,25],[8,26,9,26],[15,1,21,1],[22,1,23,1],[24,1,26,1],[27,1,32,1],[33,1,37,1],[38,1,42,1],[43,1,49,1],[50,1,51,1],[52,1,54,1],[55,1,58,1],[59,1,62,1],[63,1,66,1],[67,1,70,1],[71,1,73,1],[74,1,77,1],[78,1,80,1],[81,1,84,1],[86,1,94,1],[95,1,98,1],[99,1,100,1],[101,1,104,1],[105,1,108,1],[109,1,112,1],[113,1,117,1],[118,1,120,1],[121,1,124,1],[125,1,127,1],[128,1,131,1],[132,1,136,1],[137,1,138,1],[139,1,141,1],[142,1,146,1],[147,1,148,1],[149,1,150,1],[151,1,153,1],[155,1,160,1],[161,1,165,1],[166,1,172,1],[173,1,175,1],[176,1,179,1],[180,1,183,1],[184,1,187,1],[189,1,196,1],[197,1,204,1],[205,1,208,1],[209,1,212,1]]}
[]
[null,"Municipio de Ixtlahuacán de los Membrillos, Jal."]
[]
[null,"Presupuesto base para Resultados (PbR) / Sistema de Evaluación del Desempeño (SED)"]
[]
[null,"MIR - Matriz de Indicadores para Resultados Municipal 2020"]
[]
[]
[null,"Unidad Administrativa Municipal",null,"I N D I C A D O R E S",{"$nulls":12},"P R E S U P U E S T O",{"$nulls":8},"Presupuesto","Porcentaje y Ponderación"]
[{"$nulls":3},"Resumen Narrativo","Nombre del indicador","Definición","Dimensión","Tipo","Método de cálculo","Valor programado 1 (Numerador)","Valor programado 2 (Denominador)","Frecuencia de medición","Unidad de medida","Metas","Medios de verificación","Supuestos","Capítulo 1000","Capítulo 2000","Capítulo 3000","Capítulo 4000","Capítulo 5000","Capítulo 6000","Capítulo 7000","Capítulo 8000","Capítulo 9000"]
[null,{"v":1,"d":"100%"},"Fin","La población que reside en Ixtlhuacán de los Membreillos disponen de un estado de bienestar en cuatro dimensiónes; Estado de Derecho, Desarrollo Social, Desarrollo Económico y Gestión del Territorio.","INDICE Integral de Cumplimiento del Plan Municipal de Desarrollo y Gobernanza 2018-2021 (IICPMDG 1821)","Mide en el cumplimiento en cada uno de los programas presupuestarios establecidos en cada eje del PMDyG para su segumiento al cumplimiento de las metas definidas para cada unidad administrativa municipal","Eficiencia","Estratégico","(IICPMDG 1821) = [(IIEDSmt + IIDSmt + IIDEmt + IAGTmt) /4]",2.21,4,"Anual","Índice",0.55," Portal Web del Municipio página de transparencia","Se dispone de personal y recursos",{"v":21838923,"d":"21,838,923.0"},{"v":7417188,"d":"7,417,188.0"},{"v":21957996,"d":"21,957,996.0"},{"v":100000,"d":"100,000.0"},{"v":1515000,"d":"1,515,000.0"},{"v":0,"d":"0.0"},{"v":0,"d":"0.0"},{"v":0,"d":"0.0"},{"v":6593052,"d":"6,593,052.0"},{"v":145101531,"d":"145,101,531.0"},{"v":1,"d":"100%"}]
[null,{"v":0.4095,"d":"40.95%"},"1    Propósito","Fortalecer el estado de derecho, la seguridad pública y la proteccion civil mediante la modernizacion y eficacia de la administracion pública.","INDICE de Desarrollo Municipal (IDM)","Mide el progreso de un municipio en cuatro dimensiones del desarrollo: social, económica, ambiental e institucional","Eficiencia","Estratégico","(valor resultante de sumar los valores individuales  de  los cosientes entre sus denominadores por su ponderacion asignada, que miden las  variables de:  percepción  inseguridad, ampliación señaletica,  confianza Juzgado Municipal, riesgos desastres, administración municipal,  eficiencia municipal, eficiencia gasto público, contribuyetes incumplidos, cumplimiento servidores públicos, confianza cuerpo seguridad pública, ordenamientos actualizados,  cumplimiento normatividad, eficiencia Registro Civil, eficiencia Catastro,mantenimiento parque vehicular, satisfacción Gubernamental,  transparencia con su correspondientes ponderaciones de .1, .05, .05, .05, .1, .05, .1, .05, .05, .05, .05, .05, .05, .05, .05, .05 y .05)",1415.5900000000001,2133.9,"Semestral","Índice",0.66," Portal Web del Municipio página de transparencia","Se dispone de personal y recursos ",{"v":21838923,"d":"21,838,923.0"},{"v":7417188,"d":"7,417,188.0"},{"v":21957996,"d":"21,957,996.0"},{"v":100000,"d":"100,000.0"},{"v":1515000,"d":"1,515,000.0"},{"v":0,"d":"0.0"},{"v":0,"d":"0.0"},{"v":0,"d":"0.0"},{"v":6593052,"d":"6,593,052.0"},{"v":59422159,"d":"59,422,159.0"},{"v":0.4095,"d":"40.95%"}]
[null,"37.7%","2    Propósito","Continuar mejorando las condiciones y la calidad de vida de los habitantes de Ixtlahuacán de los Membrillos","Índice de avance en el combate a la marginación municipal (IMNM)","Mide el progreso del municipio en la dimensiones del desarrollo: social","Eficiencia","Estratégico","(valor resultante de sumar los valores individuales  de  los cosientes entre sus denominadores por su ponderacion asignada, que miden las  variables de:  cobertura agua potable, eficiencia alumbrado público, cobertura áreas verdes, cobertura servicio limpia,  reducción situación de pobreza, maltrato desigualdad de género, actividad física deportiva, Cobertura Educativa, participación actividades culturales, urbanización, servicios de cementerios, atención DIF, atención ciudadana, participación ciudadana, calidad servicios de salud,  atención Agencias, atención Delegaciones, cobertura comunicación social, con su correspondientes ponderaciones de .1, .06, .04, .07, .08, .05, .05, .06, .05, .06, .04, .06, .04, .05, .07, .04, .04 y .04)",{"v":1442.9850000000004,"d":"1442.99"},{"v":6400.682999999999,"d":"6400.68"},"Semestral","Índice",0.23," Portal Web del Municipio página de transparencia","Se dispone de personal y recursos",{"v":17052117,"d":"$17,052,117.0"},{"v":6679493,"d":"$6,679,493.0"},{"v":15959645,"d":"$15,959,645.0"},{"v":9000000,"d":"$9,000,000.0"},{"v":0,"d":"$0.0"},{"v":0,"d":"$0.0"},{"v":0,"d":"$0.0"},{"v":0,"d":"$0.0"},{"v":6000000,"d":"$6,000,000.0"},{"v":54691255,"d":"$54,691,255.0"},"37.7%"]
[null,"1.21%","3   Propósito","Impulsar la producción, producción agropecuaria, trabajadores asegurados, y población ocupada, ","índice de desarrollo municipal del aspecto económico (IDM-E)","Mide el progreso del municipio en la dimension del desarrollo económico ","Eficiencia","Estratégico","(valor resultante de sumar los valores individuales  de  los cosientes entre sus denominadores por su ponderacion asignada, que miden las  variables de: recaudación por licencias, incremento de turistas, productividad agropecuaria, sacrificio e inspeccion de ganado, proveduria de carne, incremento en promocion economica  con su correspondientes ponderaciones de .2, .2, .2, .1, 0.15, .1  y .05)",387.43999999999994,480.87,"Semestral","Índice",0.8," Portal Web del Municipio página de transparencia","Se dispone de personal y recursos",{"v":1528229,"d":"$1,528,229.0"},{"v":169000,"d":"$169,000.0"},{"v":62000,"d":"$62,000.0"},{"v":0,"d":"$0.0"},{"v":0,"d":"$0.0"},{"v":0,"d":"$0.0"},{"v":0,"d":"$0.0"},{"v":0,"d":"$0.0"},{"v":0,"d":"$0.0"},{"v":1759229,"d":"$1,759,229.0"},"1.21%"]
[null,{"v":0.2014,"d":"20.14%"},"4   Propósito","Valorar y cuidar la generación de residuos sólidos, la deforestación, la explotación de acuíferos, la cobertura forestal, las áreas naturales protegidas.","Índice Municipal de Medio Ambiente","Mide el progreso del municipio en tener un indice de desarrollo medioambiental alto en comparación con los municipios de Jalisco","Eficiencia","Estratégico","(valor resultante de sumar los valores individuales  de  los cosientes entre sus denominadores por su ponderacion asignada, que miden las  variables de: ordenamiento, instrumentos, obra pública y condiciones  con su correspondientes ponderaciones de .3 .2, .2, y .3)",401.28,766.66,"Semestral","Índice",0.52," Portal Web del Municipio página de transparencia","Se dispone de personal y recursos ",{"v":4017143,"d":"$4,017,143.00"},{"v":4016000,"d":"$4,016,000.00"},{"v":2041000,"d":"$2,041,000.00"},{"v":0,"d":"$0.00"},{"v":0,"d":"$0.00"},{"v":0,"d":"$0.00"},{"v":0,"d":"$0.00"},{"v":0,"d":"$0.00"},{"v":0,"d":"$0.00"},{"v":29228888,"d":"$29,228,888.00"},{"v":0.2014,"d":"20.14%"}]
[null,"Seguridad pública","Componente 1","Percepción de Seguridad Pública Incrementada","INDICE de percepción de inseguridad por parte de la población (IPS)","Mide el cambio de percepción por la ciudadania en la seguridad personal y de sus cosas ","Eficacia","Gestión","(valor resultante de sumar los valores individuales  de  los cosientes entre sus denominadores por su ponderacion asignada, que miden las  variables de: prevalencia delictiva, elementos integrados, evaluados,  capacitados, vinculacion de delitos, derechos humanos,  con sus correspondientes ponderaciones de .2, .1, .2, .2, .2 y .1 / la suma de los valores del denominador de las mismas variables)",57,106.6,"Bimestral","Índice",0.53," Portal Web del Municipio página de transparencia","Se dispone de personal y recursos ",{"v":9569478,"d":"9,569,478.0"},{"v":5973004,"d":"5,973,004.0"},{"v":15992996,"d":"15,992,996.0"},{"v":0,"d":"0.0"},{"v":1500000,"d":"1,500,000.0"},{"v":0,"d":"0.0"},{"v":0,"d":"0.0"},{"v":0,"d":"0.0"},{"v":3216300,"d":"3,216,300.0"},{"v":36251778,"d":"36,251,778.0"}]
[null,null,"Actividad 1.1","Trabajar con la ciudadanía en la prevención social","Tasa de prevalencia delictiva por cada diez habitantes denunciados por la ciudadania y resueltos. (P1-DDCR)","Mide la tasa de delitos que fueron denunciados por la ciudadania y resueltos como producto de trabajar conjuntamente","Eficacia","Gestión","(Tasa de delitos denunciados por la ciudadania y resueltos como resultado del trabajo conjunto entre el cuerpo de seguridad pública y la ciudadania  por cada 10 habitantes    ",2,10,"Mensual","Tasa",{"v":0.2,"d":"0.20"}," Portal Web del Municipio página de transparencia","Se dispone de personal y recursos ",{"v":1913895.6,"d":"1,913,895.6"},{"v":1194600.8,"d":"1,194,600.8"},{"v":3198599.2,"d":"3,198,599.2"},{"v":0,"d":"0.0"},{"v":300000,"d":"300,000.0"},{"v":0,"d":"0.0"},{"v":0,"d":"0.0"},{"v":0,"d":"0.0"},{"v":643260,"d":"643,260.0"},{"v":7250355.6,"d":"$7,250,355.60"},20]
[null,null,"Actividad 1.2","Integrar, orientar y capacitar a los actuales y nuevos elementos de seguridad pública.","PORCENTAJE de elementos integrados y capacitados a Cuerpo de Seguridad Pública. (P2-EICCSP)","Mide el porcentaje de elementos del cuerpo de seguridad pública que transitaron por un proceso de integración, orientación y capacitacion y entonces salieron a atender a la ciudadania","Eficacia","Gestión","(Cantidad de ciudadanos (8) que se incorporan al cuerpo de seguridad pública y transitan por un proceso de integración, orientación y capacitacion antes de salir  a dar atención a la ciudadania al año / Total de  ciudadanos que se incorporan al cuerpo de seguridad pública y transitan por un proceso de integración al año (10))*100",8,10,"Mensual","Porcentaje",{"v":0.8,"d":"80%"}," Portal Web del Municipio página de transparencia","Se dispone de personal y recursos ",{"v":1913895.6,"d":"1,913,895.6"},{"v":1194600.8,"d":"1,194,600.8"},{"v":3198599.2,"d":"3,198,599.2"},{"v":0,"d":"0.0"},{"v":300000,"d":"300,000.0"},{"v":0,"d":"0.0"},{"v":0,"d":"0.0"},{"v":0,"d":"0.0"},{"v":643260,"d":"643,260.0"},{"v":7250355.6,"d":"$7,250,355.60"},20]
[null,null,"Actividad 1.3","Definir en el corto plazo y capacitar a los integrantes del grupo especializado en reacción para atender las localidades más vulnerables del municipio.","PORCENTAJE de elementos evaluados y capacitados en cuerpo de reacción. (P3-EECCR)","Mide el tiempo transcurrido para que los elementos de seguridad se encuentren capacitados para participar en el grupo especializado","Eficacia","Gestión","(Cantidad de tiempo (6 meses) necesario para que los elementos de seguridad pública se encuentren capacitados para integrarse a cuerpos epecializados / Total de tiempo disponible en el año para que los elementos de seguridad pública se encuentren capacitados para integrarse a cuerpos epecializados)*100",6,12,"Mensual","Porcentaje",{"v":0.5,"d":"0.50"}," Portal Web del Municipio página de transparencia","Se dispone de personal y recursos ",{"v":1435421.7,"d":"1,435,421.7"},{"v":895950.6,"d":"895,950.6"},{"v":2398949.4,"d":"2,398,949.4"},{"v":0,"d":"0.0"},{"v":225000,"d":"225,000.0"},{"v":0,"d":"0.0"},{"v":0,"d":"0.0"},{"v":0,"d":"0.0"},{"v":482445,"d":"482,445.0"},{"v":5437766.7,"d":"$5,437,766.70"},15]
[null,null,"Actividad 1.4","Concientizar y capacitar a los choferes de las patrullas de seguridad publica en un mejor manejo del parque vehicular.","PORCENTAJE de elementos capacitados como choferes de patrulla y manejo de equipo. (P4-ECCPME)","Mide los beneficios de capacitar en el manejo de patrullas a los choferes en meyor tiempo en funcionamiento cada unidad","Eficacia","Gestión","(Cantidad de elementos de seguridad pública (25) capacitados como choferes de patrulla  y manejo de radio y videocamara / Total de elementos de seguridad pública (50) )*100",10,50,"Mensual","Porcentaje",{"v":0.5,"d":"50%"}," Portal Web del Municipio página de transparencia","Se dispone de personal y recursos ",{"v":478473.9,"d":"478,473.9"},{"v":298650.2,"d":"298,650.2"},{"v":799649.8,"d":"799,649.8"},{"v":0,"d":"0.0"},{"v":75000,"d":"75,000.0"},{"v":0,"d":"0.0"},{"v":0,"d":"0.0"},{"v":0,"d":"0.0"},{"v":160815,"d":"160,815.0"},{"v":1812588.9,"d":"$1,812,588.90"},5]
[null,null,"Actividad 1.5","Instalación de cámaras de video vigilancia así como una base de datos sobre los registros de denuncias.  Establecer una instancia en el municipio que dé seguimiento a los asuntos ante la fiscalía","PORCENTAJE de vinculación de delitos entre denuncias, fiscalia y videocamaras. (T1-VDDFV)","Mide la vinculación de delitos denucnciados y registrados en medios electronicos y el tiempo de solucion por la fiscalia","Eficacia","Gestión","(Cantidad de delitos denunciados y registrados en videocamaras (26) durante el año  / Total de  delitos denunciados (156) durante el año)*100",109,156,"Mensual","Porcentaje",{"v":0.7,"d":"0.70"}," Portal Web del Municipio página de transparencia","Se dispone de personal y recursos ",{"v":2870843.4,"d":"2,870,843.4"},{"v":1791901.2,"d":"1,791,901.2"},{"v":4797898.8,"d":"4,797,898.8"},{"v":0,"d":"0.0"},{"v":450000,"d":"450,000.0"},{"v":0,"d":"0.0"},{"v":0,"d":"0.0"},{"v":0,"d":"0.0"},{"v":964890,"d":"964,890.0"},{"v":10875533.4,"d":"$10,875,533.40"},30]
[null,null,"Actividad 1.6","Conjuntamente con asuntos internos y oficialía mayor administrativa gestionar capacitaciones constantes y diversas sobre los derechos humanos.","PORCENTAJE de empledos municipales que se capacitan en derechos humanos. (P5-EMCDH)","Mide la participación y sencibilización de los empleados municipales al cuidado y respeto de los derechos humanos","Eficacia","Gestión","(Cantidad de emplados municipales (300) que reciben capacitacion sobre derechos humanos  / Total de emplados municipales (600) )*100",300,600,"Mensual","Porcentaje",{"v":0.5,"d":"50%"}," Portal Web del Municipio página de transparencia","Se dispone de personal y recursos ",{"v":956947.8,"d":"956,947.8"},{"v":597300.4,"d":"597,300.4"},{"v":1599299.6,"d":"1,599,299.6"},{"v":0,"d":"0.0"},{"v":150000,"d":"150,000.0"},{"v":0,"d":"0.0"},{"v":0,"d":"0.0"},{"v":0,"d":"0.0"},{"v":321630,"d":"321,630.0"},{"v":3625177.8,"d":"$3,625,177.80"},10]
[null,"Vialidad","Componente 2","Señalética vial ampliada ","TASA de ampliación de la señaletica vial (TAS)","Mide la relación de señalamiento vial en buen estado","Eficacia","Gestión","Relacion de señaletica y vialidades con necesidad de mantenimiento o rehabilitacion por cada 24 vialidades con señaletica en buen estado",5,24,"Bimestral","Tasa",0.2," Portal Web del Municipio página de transparencia","Se dispone de personal y recursos ",{"v":116245,"d":"116,245.0"},{"v":10000,"d":"10,000.0"},{"v":8000,"d":"8,000.0"},{"v":0,"d":"0.0"},{"v":0,"d":"0.0"},{"v":0,"d":"0.0"},{"v":0,"d":"0.0"},{"v":0,"d":"0.0"},{"v":0,"d":"0.0"},{"v":134245,"d":"134,245.0"}]
[null,null,"Actividad 2.1","Evaluación y reporte mensual sobre el deterioro vial y señalética, así como de la aplicación del reglamento","PORCENTAJE de vialidades y señaletica con deterioro. (P6-VSD)","Mide el porcentaje de vialidades con señaletica de apoyo al ciudadano y su nivel de deterioro","Eficacia","Gestión","(Cantidad de vialidades (6) municipales con señaletica de apoyo para el ciudadano que presentan algun tipo de deterioro de acuerdo al reglamento  / Total (24) de  vialidades municipales con señaletica de apoyo para el ciudadano de acuerdo al reglamento)*100",6,24,"Mensual","Porcentaje",0.25," Portal Web del Municipio página de transparencia","Se dispone de personal y recursos ",{"v":116245,"d":"116,245.0"},{"v":10000,"d":"10,000.0"},{"v":8000,"d":"8,000.0"},{"v":0,"d":"0.0"},{"v":0,"d":"0.0"},{"v":0,"d":"0.0"},{"v":0,"d":"0.0"},{"v":0,"d":"0.0"},{"v":0,"d":"0.0"},{"v":134245,"d":"134,245.0"},{"v":100,"d":"100.0"}]
[null,"Juzgado Municipal","Componente 3","Confianza en el juzgado municipal incrementada","INDICE de confianza en el Juzgado Municipal (V1-CJM)","Mide el nivel de confianza de la ciudadania en el trabajo de la Oficina del Juez Municipal","Eficacia","Gestión","(valor resultante de sumar los valores individuales  de  los cosientes entre sus denominadores por su ponderacion asignada, que miden las  variables de: mediación y reinsidencia,  con sus correspondientes ponderaciones de .4 y .6 / la suma de los valores del denominador de las mismas variables)",72.4,156,"Bimestral","Índice",0.46," Portal Web del Municipio página de transparencia","Se dispone de personal y recursos ",{"v":244593,"d":"244,593.0"},{"v":16000,"d":"16,000.0"},{"v":46000,"d":"46,000.0"},{"v":0,"d":"0.0"},{"v":0,"d":"0.0"},{"v":0,"d":"0.0"},{"v":0,"d":"0.0"},{"v":0,"d":"0.0"},{"v":0,"d":"0.0"},{"v":306593,"d":"306,593.0"}]
[null,null,"Actividad 3.1","Certificación del personal en mediación y conciliaciones a través del juzgado municipal.","PORCENTAJE de conflictos resueltos en Juzgado Municipal por justicia alternativa. (P7-CRJMJA)","Mide el buen desempeño del personal especializado en mediacion y conciliación","Eficacia","Gestión","(Cantidad de delitos (106) resueltos aplicando la justicia alternativa por los Jueces Municipales durante el año  / Total de  delitos  (156) resuletos por los Jueces Municipales durante el año)*100",106,156,"Mensual","Porcentaje",{"v":0.6794,"d":"0.68"}," Portal Web del Municipio página de transparencia","Se dispone de personal y recursos ",{"v":48918.6,"d":"48,918.6"},{"v":3200,"d":"3,200.0"},{"v":9200,"d":"9,200.0"},{"v":0,"d":"0.0"},{"v":0,"d":"0.0"},{"v":0,"d":"0.0"},{"v":0,"d":"0.0"},{"v":0,"d":"0.0"},{"v":0,"d":"0.0"},{"v":61318.6,"d":"61,318.6"},{"v":20,"d":"20.0"}]
[null,null,"Actividad 3.2","Equipo interdisciplinario para mejorar el acercamiento a la población y reducir problemas sociales.","TASA de delitos calificados como administrativas y del fuero común. (T2-DCAFC)","Mide el desempeño de los inegrantes del equipo calificador para resolver problemas sociales reduciendo la reinsidencia","Eficacia","Gestión","(Cantidad de ciudadanos (50) infractores reinsidentes al cometer delitos administrativos o del fuero común durante el año  / Total de  ciudadanos (156) infractores al cometer delitos administrativos o del fuero común durante el año)*100",50,156,"Mensual","Tasa",{"v":0.3205,"d":"32%"}," Portal Web del Municipio página de transparencia","Se dispone de personal y recursos ",{"v":195674.4,"d":"195,674.4"},{"v":12800,"d":"12,800.0"},{"v":36800,"d":"36,800.0"},{"v":0,"d":"0.0"},{"v":0,"d":"0.0"},{"v":0,"d":"0.0"},{"v":0,"d":"0.0"},{"v":0,"d":"0.0"},{"v":0,"d":"0.0"},{"v":245274.4,"d":"245,274.4"},{"v":80,"d":"80.0"}]
[null,"Protección Civil","Componente 4","Riesgos geológicos, hidrológicos, químicos, sanitarios, organizativos, astrológicos, por incendios y antropogénicos reducidos","Índice de reducción de riesgos por desastres geológicos, hirdrológicos, químicos, sanitario, organizativos, astro lógicos, por incendios y antropogénicos. (TRR)","Mide la reduccion en la relación de siniestros materiales y personales en eventos geologicos-administrativos-hidrológicos-sanitarios-quimicos-organizativos","Eficacia","Gestión","(valor resultante de sumar los valores individuales  de  los cosientes entre sus denominadores por su ponderacion asignada, que miden las  variables de:  ciudadanos capacitados, riezgos evitados, ejidatarios capacitados, denuncia de riezgos y actualizacion del atlas,  con sus correspondientes ponderaciones de .1, .2 .1, .2, y .3 / la suma de los valores del denominador de las mismas variables)",306.8,307.4,"Bimestral","Índice",0.99," Portal Web del Municipio página de transparencia","Se dispone de personal y recursos ",{"v":1131439,"d":"1,131,439.0"},{"v":163000,"d":"163,000.0"},{"v":48000,"d":"48,000.0"},{"v":0,"d":"0.0"},{"v":15000,"d":"15,000.0"},{"v":0,"d":"0.0"},{"v":0,"d":"0.0"},{"v":0,"d":"0.0"},{"v":0,"d":"0.0"},{"v":1357439,"d":"1,357,439.0"}]
[null,null,"Actividad 4.1","Programa de capacitación ciudadana sobre Protección Civil y mejorar la prevención.","PORCENTAJE de ciudadanos capacitados en Proteccion Civil. (P8-CCPC)","Mide la participación de la ciudadania en temas de protección civil respecto a la poblacion total del municipio","Eficacia","Gestión","(Cantidad de ciudadanos (1200) que participan en el programa de capacitacion bimestrales sobre los diferentes riezgos y mecanismos de prevencion que se ofrece durante el año  / Total de ciudadanos en el municipio)*100",1200,59435,"Mensual","Porcentaje",{"v":0.0201,"d":"0.02"}," Portal Web del Municipio página de transparencia","Se dispone de personal y recursos ",{"v":113143.9,"d":"113,143.9"},{"v":16300,"d":"16,300.0"},{"v":4800,"d":"4,800.0"},{"v":0,"d":"0.0"},{"v":1500,"d":"1,500.0"},{"v":0,"d":"0.0"},{"v":0,"d":"0.0"},{"v":0,"d":"0.0"},{"v":0,"d":"0.0"},{"v":135743.9,"d":"135,743.9"},10]
[null,null,"Actividad 4.2","Instalación de dos unidades fijas de seguridad pública y protección civil que realicen evaluaciones trimestrales a los entes establecidos","PORCENTAJE de riesgos evitados por inspeccion preventiva. (T3-REIP)","Mide la reducción de riesgos en entes establecidos, moviles y transeuntes por inspeccion preventiva","Eficacia","Gestión","(Cantidad de eventos de emergencia y riezgo reducidos  o evitados  (25%) en entes establecidos, moviles y transeuntes por inspeccion preventiva / Total  de inspecciónes realizadas en los diferentes espacios de actividad social registradas en el atlas de riezgo municipal  (100))",25,100,"Mensual","Porcentaje",{"v":0.25,"d":"25%"}," Portal Web del Municipio página de transparencia","Se dispone de personal y recursos ",{"v":226287.8,"d":"226,287.8"},{"v":32600,"d":"32,600.0"},{"v":9600,"d":"9,600.0"},{"v":0,"d":"0.0"},{"v":3000,"d":"3,000.0"},{"v":0,"d":"0.0"},{"v":0,"d":"0.0"},{"v":0,"d":"0.0"},{"v":0,"d":"0.0"},{"v":271487.8,"d":"271,487.8"},20]
[null,null,"Actividad 4.3","Revisar el reglamentos que incorpore la capacitación por parte de los cuerpos de seguridad pública y protección civil a los integrantes de los ejidos municipales y pequeña propiedad","PORCENTAJE de ejidatarios capacitados sobre reglamento municipal de proteccion civil. (P9-ECRM)","Mide la participación de los integrantes de los ejidos municipales y pequeños propietarios en temas de protección civil en consecuencia reduccion de fenomenos antropogénicos.","Eficacia","Gestión","(Cantidad de ejidatarios y pequeños propiestarios (600) que participan en las capacitaciones bimestrales sobre los diferentes riezgos y mecanismos de prevencion que se ofrezcan durante el año  / Total capacitaciones (6) sobre riezgos y mecanismos de prevencion)*100",600,6,"Mensual","Porcentaje",{"v":1,"d":"1.00"}," Portal Web del Municipio página de transparencia","Se dispone de personal y recursos ",{"v":169715.85,"d":"169,715.9"},{"v":24450,"d":"24,450.0"},{"v":7200,"d":"7,200.0"},{"v":0,"d":"0.0"},{"v":2250,"d":"2,250.0"},{"v":0,"d":"0.0"},{"v":0,"d":"0.0"},{"v":0,"d":"0.0"},{"v":0,"d":"0.0"},{"v":203615.85,"d":"203,615.9"},15]
[null,null,"Actividad 4.4","Establecer capacitación para protección civil y población en general sobre mecanismos de prevención y control de emergencias por fenomenos antropogénicos en el reglamentos.","PORCENTAJE de ciudadanos capacitados en emergencias causadas  por fenomenos antropogénicos. (P10-CCIF)","Mide la particpacion de la ciudadania en la reducción y denuncia de riezgos  antropogénicos  y sus causas","Eficacia","Gestión","(Cantidad de ciudadanos (600) que participan en las capacitaciones bimestrales sobre los diferentes riezgos y mecanismos de prevencion que se ofrezcan durante el año  / Total capacitaciones (6) sobre riezgos y mecanismos de prevencion)*100",600,6,"Mensual","Porcentaje",{"v":1,"d":"1.00"}," Portal Web del Municipio página de transparencia","Se dispone de personal y recursos ",{"v":226287.8,"d":"226,287.8"},{"v":32600,"d":"32,600.0"},{"v":9600,"d":"9,600.0"},{"v":0,"d":"0.0"},{"v":3000,"d":"3,000.0"},{"v":0,"d":"0.0"},{"v":0,"d":"0.0"},{"v":0,"d":"0.0"},{"v":0,"d":"0.0"},{"v":271487.8,"d":"271,487.8"},20]
[null,null,"Actividad 4.5","Actualizar el atlas de riesgo municipal y los mecanismos de vigilancia y prevención ","PORCENTAJE la cantidad de riezgos incluidos en los programas de prevencion y mecanismos de vigilancia en el atlas de riesgos actualizado. (P11-RIPAR)","Mide la cantidad de riezgos y mecanismos de emergencias actualizados en el atlas de riesgos municipal y difundidos a la ciudadania","Eficacia","Gestión","(Cantidad de riezgos y mecanismos de prevencion (6) actualizados  / Total de riezgos y mecanismos de prevencion (8))*100",6,8,"Mensual","Porcentaje",0.75," Portal Web del Municipio página de transparencia","Se dispone de personal y recursos ",{"v":396003.65,"d":"396,003.7"},{"v":57050,"d":"57,050.0"},{"v":16800,"d":"16,800.0"},{"v":0,"d":"0.0"},{"v":5250,"d":"5,250.0"},{"v":0,"d":"0.0"},{"v":0,"d":"0.0"},{"v":0,"d":"0.0"},{"v":0,"d":"0.0"},{"v":475103.65,"d":"475,103.7"},35]
[null,"H Ayuntamiento (Regidores)","Componente 5","Confianza en la administración municipal incrementada","ÍNDICE de confianza en la administración municipal. (V2-CAM )","Mide el nivel de confianza de la ciudadania en el trabajo de las diferentes comisiónes del ayuntamiento municipal","Eficacia","Gestión","(valor resultante de sumar los valores individuales  de  los cosientes entre sus denominadores por su ponderacion asignada, que miden las  variables de:  aplicacion de normatividad, contar con normatividad, comisiónes instaladas y asuntos dictaminados,  con sus correspondientes ponderaciones de .2, .4, .1, y .3 / la suma de los valores del denominador de las mismas variables)",297.9,260.7,"Bimestral","Índice",1.14," Portal Web del Municipio página de transparencia","Se dispone de personal y recursos ",{"v":3231045,"d":"3,231,045.0"},{"v":39000,"d":"39,000.0"},{"v":3000,"d":"3,000.0"},{"v":0,"d":"0.0"},{"v":0,"d":"0.0"},{"v":0,"d":"0.0"},{"v":0,"d":"0.0"},{"v":0,"d":"0.0"},{"v":0,"d":"0.0"},{"v":3273045,"d":"3,273,045.0"}]
[null,null,"Actividad 5.1","Seguimiento a la aplicación y funcionamiento de la legislación local por comisiones, así como el desahogo de los asuntos propios del Ayuntamiento.","PORCENTAJE de actividades de las direcciones de la administracion municipal en seguimiento por comisiones para verificar su apego a la normatividad local. (P12-ADAMSCVA)","Mide el porcentaje de la aplicación de la normatividad local por las direcciones de la administracion municipal por las comisiones del ayuntamiento  ","Eficacia","Gestión","(Cantidad de actividades 25 realizadas durante el año en las 46  direcciónes apegadas a su reglamento municipal / Total de artciulos 1150 que integran las atribuciones y responsabilidades de las dirección de la administracion municipal en sus reglamentos locales)*100",1150,1150,"Mensual","Porcentaje",{"v":1,"d":"1.00"}," Portal Web del Municipio página de transparencia","Se dispone de personal y recursos ",{"v":807761.25,"d":"807,761.3"},{"v":9750,"d":"9,750.0"},{"v":750,"d":"750.0"},{"v":0,"d":"0.0"},{"v":0,"d":"0.0"},{"v":0,"d":"0.0"},{"v":0,"d":"0.0"},{"v":0,"d":"0.0"},{"v":0,"d":"0.0"},{"v":818261.25,"d":"818,261.3"},{"v":25,"d":"25.0"}]
[null,null,"Actividad 5.2","Actualizar y proponer los ordenamientos necesarios para las dependencias del Ayuntamiento que brindan servicios públicos.","PORCENTAJE de dependencias municipales con ordenamiento. (P13-DMO)","Mide el porcentaje de direcciones de la administración municipal que cuentan con una normatividad local","Eficacia","Gestión","(Cantidad de direcciones 46 que cuentan con su reglamento municipal / Total de direcciones 46 que tienen normada  en su reglamento sus atribuciones y responsabilidades)*100",46,46,"Mensual","Porcentaje",{"v":1,"d":"100%"}," Portal Web del Municipio página de transparencia","Se dispone de personal y recursos ",{"v":807761.25,"d":"807,761.3"},{"v":9750,"d":"9,750.0"},{"v":750,"d":"750.0"},{"v":0,"d":"0.0"},{"v":0,"d":"0.0"},{"v":0,"d":"0.0"},{"v":0,"d":"0.0"},{"v":0,"d":"0.0"},{"v":0,"d":"0.0"},{"v":818261.25,"d":"818,261.3"},{"v":25,"d":"25.0"}]
[null,null,"Actividad 5.3","Presentar los dictámenes correspondientes para su análisis y en su caso solicitar su aprobación, y aplicación en el municipio.","PORCENTAJE de instalacion y operación de comisiones. (P14-IOC)","Mide el porcentaje de comisiones instaladas y en fucnionamiento para revisar los temas desahogados en Ayuntamiento","Eficacia","Gestión","(Cantidad de 30 comisiones que deberan ser instaladas para la dicatminación de los asuntos del ayuntamiento y  publicados en transparencia / Total  de 30 comisiones instaladas y en funcionamiento)*100",30,30,"Mensual","Porcentaje",{"v":1,"d":"1.00"}," Portal Web del Municipio página de transparencia","Se dispone de personal y recursos ",{"v":807761.25,"d":"807,761.3"},{"v":9750,"d":"9,750.0"},{"v":750,"d":"750.0"},{"v":0,"d":"0.0"},{"v":0,"d":"0.0"},{"v":0,"d":"0.0"},{"v":0,"d":"0.0"},{"v":0,"d":"0.0"},{"v":0,"d":"0.0"},{"v":818261.25,"d":"818,261.3"},{"v":25,"d":"25.0"}]
[null,null,"Actividad 5.4","Seguimiento y resguardo de expedientes de asuntos encomendados y propios de las comisiones y su incorporación en las páginas de transparencia del municipio.","TASA de dictaminación por cada 5 asuntos asignados a comisiones su seguimiento y resguardo. (P15-EDSR)","Mide la Tasa de asuntos dictaminados por comisiones y posteriormente en ayuntamiento y publicados en transparencia","Eficacia","Gestión","(Cantidad de asuntos dictaminados de los 155 asuntos asignados por cada una de las 31 comisiones mismos que deberan ser posteriormente dicatminados en reunion de ayuntamiento y publicados en transparencia / Total  de comisiones instaladas y en funcionamiento (31))",155,31,"Mensual","Tasa ","5:31"," Portal Web del Municipio página de transparencia","Se dispone de personal y recursos ",{"v":807761.25,"d":"807,761.3"},{"v":9750,"d":"9,750.0"},{"v":750,"d":"750.0"},{"v":0,"d":"0.0"},{"v":0,"d":"0.0"},{"v":0,"d":"0.0"},{"v":0,"d":"0.0"},{"v":0,"d":"0.0"},{"v":0,"d":"0.0"},{"v":818261.25,"d":"818,261.3"},{"v":25,"d":"25.0"}]
[null,"Presidencia Municipal","Componente 6","Eficiencia municipal incrementada","INDICE de eficiencia municipal. (V3-EM )","Mide los niveles de eficacia del titular de la administracion para desahogar los temas municipales y ciudadanos","Eficacia","Gestión","(valor resultante de sumar los valores individuales  de  los cosientes entre sus denominadores por su ponderacion asignada, que miden las  variables de sesiones de cabildo, eventos civicos, Ley de ingresos y gestion de recursos con las correspondientes ponderaciones de .3, .2, .2, y .3 / la suma de los valores del denominador de las mismas variables)",19.8,40.5,"Bimestral","Índice",0.48," Portal Web del Municipio página de transparencia","Se dispone de personal y recursos ",{"v":996009,"d":"996,009.0"},{"v":138000,"d":"138,000.0"},{"v":202000,"d":"202,000.0"},{"v":0,"d":"0.0"},{"v":0,"d":"0.0"},{"v":0,"d":"0.0"},{"v":0,"d":"0.0"},{"v":0,"d":"0.0"},{"v":0,"d":"0.0"},{"v":1336009,"d":"1,336,009.0"}]
[null,null,"Actividad 6.1","Revisar y actualizar el reglamentos de sesiones en el que se incorpore la clasificación de los puntos de acuerdo así como el formato para su desahogo y publicación.","PORCENTAJE  desarrollo y aplicación del reglamento de sesiones de cabildo. (P16-DARSC)","Mide el porcentaje de sesiones realizadas con apego al reglamento municipal de sesiones","Eficacia","Gestión","(Cantidad de 15 sesiones de cabildo llevadas a cabo con apego al reglamento municipal aplicado con eficiencia dentro del programa 2020 de sesiones de cabildo ordinarias, especiales y plenarias/ Total  15 sesiones de cabildo llevadas a cabo con apego al reglamento municipal aplicado con eficiencia dentro del programa 2020 de sesiones de cabildo ordinarias, especiales y plenarias)*100",15,15,"Mensual","Porcentaje",{"v":1,"d":"1.00"}," Portal Web del Municipio página de transparencia","Se dispone de personal y recursos ",{"v":249002.25,"d":"249,002.3"},{"v":34500,"d":"34,500.0"},{"v":50500,"d":"50,500.0"},{"v":0,"d":"0.0"},{"v":0,"d":"0.0"},{"v":0,"d":"0.0"},{"v":0,"d":"0.0"},{"v":0,"d":"0.0"},{"v":0,"d":"0.0"},{"v":334002.25,"d":"334,002.3"},{"v":25,"d":"25.0"}]
[null,null,"Actividad 6.2","Programa de actividades Cívicas obligatorias en el año, día de la bandera, 5 de mayo batalla de puebla, grito de independencia y desfile del 16 de septiembre","PORCENTAJE  de reglamentacion y participación en eventos civicos y especiales. (P17-RPECE)","Mide el porcentaje de eficacia para desarrollar y aplicar el reglamento y programa de actividades civicas","Eficacia","Gestión","(Cantidad de 20 artículos del reglamento aplicados con eficiencia al organizar el programa 2020 de eventos civicos y especiales / Total  de 20 artículos del reglamento necesarios de revisar para organizar con eficiencia al organizar el programa 2020 de eventos civicos y especiales)*100",20,20,"Mensual","Porcentaje",{"v":1,"d":"100%"}," Portal Web del Municipio página de transparencia","Se dispone de personal y recursos ",{"v":149401.35,"d":"149,401.4"},{"v":20700,"d":"20,700.0"},{"v":30300,"d":"30,300.0"},{"v":0,"d":"0.0"},{"v":0,"d":"0.0"},{"v":0,"d":"0.0"},{"v":0,"d":"0.0"},{"v":0,"d":"0.0"},{"v":0,"d":"0.0"},{"v":200401.35,"d":"200,401.4"},{"v":15,"d":"15.0"}]
[null,null,"Actividad 6.3","Programa de revisión, actualización y propuesta para su aprobación de ley de ingresos y egresos antes del 15 de diciembre ante cabildo","PORCENTAJE de aplicación de normatividad para elaborar Ley de ingresos y egresos. (P18-ANELIE)","Mide el porcentaje de aplicación de la normatividad estatal y federal para elaborar la ley de ingresos y egresos","Eficacia","Gestión","(Cantidad de leyes federales (1), estatales (1) y municipales (2) que se aplican en la elaboracion de la Ley de Ingresos Municipal 2020  / Total de (10)  leyes federales (5), estatales (3) y municipales (2) que se aplican en la elaboracion de la Ley de Ingresos Municipal 2020)*100",4,10,"Mensual","Porcentaje",{"v":0.4,"d":"0.40"}," Portal Web del Municipio página de transparencia","Se dispone de personal y recursos ",{"v":298802.7,"d":"298,802.7"},{"v":41400,"d":"41,400.0"},{"v":60600,"d":"60,600.0"},{"v":0,"d":"0.0"},{"v":0,"d":"0.0"},{"v":0,"d":"0.0"},{"v":0,"d":"0.0"},{"v":0,"d":"0.0"},{"v":0,"d":"0.0"},{"v":400802.7,"d":"400,802.7"},{"v":30,"d":"30.0"}]
[null,null,"Actividad 6.4","Programa de gestión de recursos ante el Estado como la Federación para el logro del programa de obra municipal.","PORCENTAJE de aplicación de proceso de gestion de recursos federales y estatales. (P19-APGRFE)","Mide el porcentaje de incremento de recursos gestionados ante el estado y la federación","Eficacia","Gestión","(Cantidad de recursos economicos gestionados 35% adicionalmente a lo programado en el presupuesto de egresos municipal 2020  / Total de recursos economicos programados en el presupuesto de egresos municipal 2020 (100%))*100",35,100,"Mensual","Porcentaje",{"v":0.35,"d":"35%"}," Portal Web del Municipio página de transparencia","Se dispone de personal y recursos ",{"v":298802.7,"d":"298,802.7"},{"v":41400,"d":"41,400.0"},{"v":60600,"d":"60,600.0"},{"v":0,"d":"0.0"},{"v":0,"d":"0.0"},{"v":0,"d":"0.0"},{"v":0,"d":"0.0"},{"v":0,"d":"0.0"},{"v":0,"d":"0.0"},{"v":400802.7,"d":"400,802.7"},{"v":30,"d":"30.0"}]
[null,"Hacienda Municipal (Tesorería)","Componente 7","Gasto público eficientado","ÍNDICE de eficiencia del gasto público. (V4-EGM)","Mide el nivel de gasto programado en el municipio de acuerdo al ciclo presupuestrio para la implementacion del PbR/SED desde su asignacion por capitulo respecto a los años anteriores","Eficacia","Gestión","(valor resultante de sumar los valores individuales  de  los cosientes entre sus denominadores por su ponderacion asignada, que miden las  variables de sistemas de cobro, ampliacion de horario, morosidad en pagos, reduccion del gasto, modernizacion de equipos y cumplimiento de atribuciones con las correspondientes ponderaciones de .2, .2, .2, .2, .1 y .1 / la suma de los valores del denominador de las mismas variables)",155.9,151,"Bimestral","Índice",1.03," Portal Web del Municipio página de transparencia","Se dispone de personal y recursos ",{"v":1238434,"d":"1,238,434.0"},{"v":221000,"d":"221,000.0"},{"v":400000,"d":"400,000.0"},{"v":0,"d":"0.0"},{"v":0,"d":"0.0"},{"v":0,"d":"0.0"},{"v":0,"d":"0.0"},{"v":0,"d":"0.0"},{"v":3376752,"d":"3,376,752.0"},{"v":5236186,"d":"5,236,186.0"}]
[null,null,"Actividad 7.1","Modernizar y actualizar los sistemas de cobro, asi como de capacitación constante del personal de caja","PORCENTAJE de sistemas de cobro actualizado y personal capacitado. (P20-SCAPC)","Mide el porcentaje de modernizacion de las computadoras, sistemas operativos y paqueteria especializada","Eficacia","Gestión","(Cantidad de equipos de computo 15 (50%) del total de las diferentes direcciones que son modernizados en sistemas operativos y paqueteria especializada / Total de 30 (100%) equipos de computo en las diferentes direcciones municipales)*100",15,30,"Mensual","Porcentaje",{"v":0.5,"d":"0.50"}," Portal Web del Municipio página de transparencia","Se dispone de personal y recursos ",{"v":371530.2,"d":"371,530.2"},{"v":66300,"d":"66,300.0"},{"v":120000,"d":"120,000.0"},{"v":0,"d":"0.0"},{"v":0,"d":"0.0"},{"v":0,"d":"0.0"},{"v":0,"d":"0.0"},{"v":0,"d":"0.0"},{"v":1013025.6,"d":"1,013,025.6"},{"v":1570855.8,"d":"1,570,855.8"},30]
[null,null,"Actividad 7.2","Programa de ampliación de horario de Servicio en los tres primeros meses del Ejercicio fiscal y tener red común con los demás departamentos.","PORCENTAJE de ampliación de horario de servicio en el año y de departamentos en red. (P21-AHSADR)","Mide el porcentaje de horas adicionales que se ofrecio el servicio y se mantuvo en red","Eficacia","Gestión","(Cantidad de horas adicionales (152 hrs mensuales) de servicio a las 160 normales para la atencion ciudadana para reducir en 50% el tiempo en realizar sus trámites en las oficinas del ayuntamiento / Total historico de horas disponibles para la atencion de la ciudadania por mes (160))*100",312,160,"Mensual","Porcentaje",{"v":1.95,"d":"195%"}," Portal Web del Municipio página de transparencia","Se dispone de personal y recursos ",{"v":61921.7,"d":"61,921.7"},{"v":11050,"d":"11,050.0"},{"v":20000,"d":"20,000.0"},{"v":0,"d":"0.0"},{"v":0,"d":"0.0"},{"v":0,"d":"0.0"},{"v":0,"d":"0.0"},{"v":0,"d":"0.0"},{"v":168837.6,"d":"168,837.6"},{"v":261809.3,"d":"261,809.3"},{"v":5,"d":"5.0"}]
[null,null,"Actividad 7.3","Aprovechar las herramientas del Catastro Municipal y los padrones actualizados por dirección para elaborar el programa de apremios por vertiente ","PORCENTAJE de morosidad de contribuyentes en programa de apremios con las herramientas de catastro y padrones. (P22-MCPACP)","Mide el porcentaje de reduccion de contibuyentes morosos incluidos en los programas de apremio","Eficacia","Gestión","(Cantidad de aumento (20%) en los ingresos municipales que provienen de captacion directa al reducir en (20%) el porcentaje de contribuyentes en morosidad del 2019 / Total historico 2019 (100%) de ingresos municipales que provienen de captacion directa ))*100",120,100,"Mensual","Porcentaje",{"v":1.2,"d":"1.20"}," Portal Web del Municipio página de transparencia","Se dispone de personal y recursos ",{"v":185765.1,"d":"185,765.1"},{"v":33150,"d":"33,150.0"},{"v":60000,"d":"60,000.0"},{"v":0,"d":"0.0"},{"v":0,"d":"0.0"},{"v":0,"d":"0.0"},{"v":0,"d":"0.0"},{"v":0,"d":"0.0"},{"v":506512.8,"d":"506,512.8"},{"v":785427.9,"d":"785,427.9"},15]
[null,null,"Actividad 7.4","Establecer control individualizado por cada unidad de transporte para la gasolina, Cancelar todas la líneas telefónicas para funcionarios públicos, Se otorgaran los gastos para viáticos organizados y planeados bajo reglas estrictas con eventualidad solamente en caso necesario.","PORCENTAJE de reducción del gasto en gasolina, telefonía y viáticos. (P23-RGGTV)","Mide el porcentaje de reduccion de gasto por los conceptos señalados","Eficacia","Gestión","(Cantidad de gasto reducido en gasolina (20%), gasto reducido en telefonía (90%) y gasto reducido en víaticos (95%) / Total historico de gasto mensual en gasolina (100%), gasto mensual en telefonía (100%) y gasto mensual en víaticos (100%))*100",205,300,"Mensual","Porcentaje",{"v":0.6833,"d":"68.33%"}," Portal Web del Municipio página de transparencia","Se dispone de personal y recursos ",{"v":185765.1,"d":"185,765.1"},{"v":33150,"d":"33,150.0"},{"v":60000,"d":"60,000.0"},{"v":0,"d":"0.0"},{"v":0,"d":"0.0"},{"v":0,"d":"0.0"},{"v":0,"d":"0.0"},{"v":0,"d":"0.0"},{"v":506512.8,"d":"506,512.8"},{"v":785427.9,"d":"785,427.9"},{"v":15,"d":"15.0"}]
[null,null,"Actividad 7.5","Adquisición de equipos de cómputos modernos y adecuados a las necesidades de las direcciones y departamentos.","PORCENTAJE de modernización del equipamiento de computo. (P24-MEC)","Mide el porcentaje de direcciones de la administracion municipal que fueron sujetas de renovacion de sus equipos de computo","Eficacia","Gestión","(Cantidad de equipos de computo (5) de las diferentes direcciones que son modernizados / Total de 30 equipos de computo en las diferentes direcciones municipales)*100",5,30,"Mensual","Porcentaje",{"v":0.166,"d":"0.17"}," Portal Web del Municipio página de transparencia","Se dispone de personal y recursos ",{"v":247686.8,"d":"247,686.8"},{"v":44200,"d":"44,200.0"},{"v":80000,"d":"80,000.0"},{"v":0,"d":"0.0"},{"v":0,"d":"0.0"},{"v":0,"d":"0.0"},{"v":0,"d":"0.0"},{"v":0,"d":"0.0"},{"v":675350.4,"d":"675,350.4"},{"v":1047237.2,"d":"1,047,237.2"},20]
[null,null,"Actividad 7.6","Programa de revisión y cumplimiento de las atribuciones y obligaciones del personal de cada dirección,  conjuntamente con la dirección de Oficialía Mayor Administrativa.","PORCENTAJE de cumplimiento de atribuciones y obligaciones en normatividad aplicable. (P25-CAONA)","Mide el porcentaje de actividades individuales de cada direccion apegadas al manual de organización","Eficacia","Gestión","(Cantidad de actividades 250 individuales ejecutadas como suma de las 46 direcciones de la administracion municipal / Total de actividades realizadas y evaluadas por las 46 direcciones municipales )*100",250,300,"Mensual","Porcentaje",{"v":0.8333,"d":"83.33%"}," Portal Web del Municipio página de transparencia","Se dispone de personal y recursos ",{"v":185765.1,"d":"185,765.1"},{"v":33150,"d":"33,150.0"},{"v":60000,"d":"60,000.0"},{"v":0,"d":"0.0"},{"v":0,"d":"0.0"},{"v":0,"d":"0.0"},{"v":0,"d":"0.0"},{"v":0,"d":"0.0"},{"v":506512.8,"d":"506,512.8"},{"v":785427.9,"d":"785,427.9"},15]
[null,"Apremios","Componente 8","Tasa de contribuyentes incumplidos disminuida","TASA de contribuyetes incumplidos. (T1-CI )","Mide la reduccion de la relacion de contribuyentes incumplidos","Eficacia","Gestión","Tasa de contribuyentes  cumplidos por cada 990 licencias, permisos, concesiones o dictamenes municipales otorgados",750,990,"Bimestral","Tasa",{"v":75.75,"d":"76"}," Portal Web del Municipio página de transparencia","Se dispone de personal y recursos ",{"v":310712,"d":"310,712.0"},{"v":48000,"d":"48,000.0"},{"v":6000,"d":"6,000.0"},{"v":0,"d":"0.0"},{"v":0,"d":"0.0"},{"v":0,"d":"0.0"},{"v":0,"d":"0.0"},{"v":0,"d":"0.0"},{"v":0,"d":"0.0"},{"v":364712,"d":"364,712.0"}]
[null,null,"Actividad 8.1","Programa de visitas y cumplimiento de las obligaciones ciudadanas con la hacienda municipal por tipo de permiso, licencia, concesión o servicios del ayuntamiento por padrón  y dirección.","PORCENTAJE de cumplimiento de obligaciones hacendarias por la ciudadania. (P26-COHC)","Mide el porcentaje de licencias vigentes y al corriente en su contribución","Eficacia","Gestión","(Cantidad de licencias 800, permisos 50, concesiones 40, y dictamenes 100 municipales renovados (990) / Total de  licencias 800, permisos 50, concesiones 40, y dictamenes 100 municipales renovados (990))*100",990,990,"Mensual","Porcentaje",{"v":1,"d":"1.00"}," Portal Web del Municipio página de transparencia","Se dispone de personal y recursos ",{"v":310712,"d":"310,712.0"},{"v":48000,"d":"48,000.0"},{"v":6000,"d":"6,000.0"},{"v":0,"d":"0.0"},{"v":0,"d":"0.0"},{"v":0,"d":"0.0"},{"v":0,"d":"0.0"},{"v":0,"d":"0.0"},{"v":0,"d":"0.0"},{"v":364712,"d":"364,712.0"},{"v":100,"d":"100.0"}]
[null,"Oficial Mayor","Componente 9","Cumplimiento de servidores públicos incrementado","RAZÓN de cumplimiento de servidores públicos. (T2-CSP)","Mide la relacion de cumplimiento de las obligaciones y atribuciones de cada direccion de acuerdo al manual de organización y su reglamento","Eficacia","Gestión","(Razón de 450 de los 600 empleados en las 46 direcciones municipales agrupadas en 4 programas presupuestarios para dar cumplimiento al Plan Municipal de Desarrollo y Gobernanza que han actualizado su reglamento y cumplen con sus obligaciones y atribuciones de acuerdo al manual de organización y reglamento)",450,600,"Bimestral","Razón",75," Portal Web del Municipio página de transparencia","Se dispone de personal y recursos ",{"v":1118484,"d":"1,118,484.0"},{"v":216334,"d":"216,334.0"},{"v":5095000,"d":"5,095,000.0"},{"v":100000,"d":"100,000.0"},{"v":0,"d":"0.0"},{"v":0,"d":"0.0"},{"v":0,"d":"0.0"},{"v":0,"d":"0.0"},{"v":0,"d":"0.0"},{"v":6529818,"d":"6,529,818.0"}]
[null,null,"Actividad 9.1","Diagnóstico de necesidades y programa anual de capacitación por dirección.","PORCENTAJE de cumplimiento del programa municipal de capacitacion. (P27-CPMC)","Mide el porcentaje de servidores públicos que participan en el programa anual de capacitacion apegado al diagnostico de necesidades de las 46 direcciones de la administracion municipal","Eficacia","Gestión","(Cantidad de servidores públicos 300 que participan en el programa anual de capacitacion apegado al diagnostico de necesidades de las 46 direcciones de la administracion municipal / Total de servidores públicos 600 que integran las 46 direcciones de la administracion pública municipal)*100",300,600,"Mensual","Porcentaje",{"v":0.5,"d":"0.50"}," Portal Web del Municipio página de transparencia","Se dispone de personal y recursos ",{"v":447393.6000000001,"d":"447,393.6"},{"v":86533.60000000002,"d":"86,533.6"},{"v":2038000.0000000002,"d":"2,038,000.0"},{"v":40000.00000000001,"d":"40,000.0"},{"v":0,"d":"0.0"},{"v":0,"d":"0.0"},{"v":0,"d":"0.0"},{"v":0,"d":"0.0"},{"v":0,"d":"0.0"},{"v":2611927.2000000007,"d":"2,611,927.2"},{"v":40.00000000000001,"d":"40.0"}]
[null,null,"Actividad 9.2","Actualización del reglamento interno de trabajo para los empleados del ayuntamiento incorporando las adecuaciones a los reglamentos individuales de los servicios municipales","PORCENTAJE de actualización del reglamento interno por dirección. (P28-ARID)","Mide el porcentaje de actualizacion del reglamento interno cruzado con los reglamentos por direccion y vinculados al manual de organización","Eficacia","Gestión","(Cantidad de articulos del reglamento interior de trabajo de la administracion municipal actualizados 46 vinculados a las diferentes direcciones / Total de direcciones 46 con reglamento actualizado para vincular al reglamento interior de trabajo de la administracion pública municipal)*100",46,46,"Mensual","Porcentaje",{"v":1,"d":"100%"}," Portal Web del Municipio página de transparencia","Se dispone de personal y recursos ",{"v":671090.4,"d":"671,090.4"},{"v":129800.4,"d":"129,800.4"},{"v":3057000,"d":"3,057,000.0"},{"v":60000,"d":"60,000.0"},{"v":0,"d":"0.0"},{"v":0,"d":"0.0"},{"v":0,"d":"0.0"},{"v":0,"d":"0.0"},{"v":0,"d":"0.0"},{"v":3917890.8,"d":"3,917,890.8"},{"v":60,"d":"60.0"}]
[null,"Asuntos Internos","Componente 10","Confianza en el cuerpo de seguridad pública incrementada","INDICE de confianza en el cuerpo de seguridad pública. (ICCSP)","Mide el nivel de confianza de la ciudadania en el actuar de los cuerpos de seguridad y sus integrantes","Eficacia","Gestión","(valor resultante de sumar los valores individuales  de  los cosientes entre sus denominadores por su ponderacion asignada, que miden las  variables de corrupción, practicas y capacitación con las correspondientes ponderaciones de .5, .2 y .3 / la suma de los valores del denominador de las mismas variables)",20.4,22.4,"Bimestral","Índice",0.91," Portal Web del Municipio página de transparencia","Se dispone de personal y recursos ",{"v":138877,"d":"138,877.0"},{"v":23000,"d":"23,000.0"},{"v":4000,"d":"4,000.0"},{"v":0,"d":"0.0"},{"v":0,"d":"0.0"},{"v":0,"d":"0.0"},{"v":0,"d":"0.0"},{"v":0,"d":"0.0"},{"v":0,"d":"0.0"},{"v":165877,"d":"165,877.0"}]
[null,null,"Actividad 10.1","Exámenes de detección de actos de Corrupción.            ","PORCENTAJE de examenes y encuestas aplicados para prevenir actos y la percepción de corrupción. (P29-EAPAC)","Mide el porcentaje de examenes a que son sometidos los inetgrantes del cuerpo de seguridad pública municipal y encuestas que se aplican a la ciudadania sobre la percepción de ministerios públicos y procuradurias como corruptas.","Eficacia","Gestión","(Cantidad de 10 examenes de integridad para detectar actos de corrupción y 4 encuestas de percepción de corrupción de ministerios públicos y procuraduria, aplicados a la ciudadania / Total de examenes y encuestas aplicados)*100",14,14,"Mensual","Porcentaje",{"v":1,"d":"1.00"}," Portal Web del Municipio página de transparencia","Se dispone de personal y recursos ",{"v":48606.95,"d":"48,607.0"},{"v":8050,"d":"8,050.0"},{"v":1400,"d":"1,400.0"},{"v":0,"d":"0.0"},{"v":0,"d":"0.0"},{"v":0,"d":"0.0"},{"v":0,"d":"0.0"},{"v":0,"d":"0.0"},{"v":0,"d":"0.0"},{"v":58056.95,"d":"58,057.0"},{"v":35,"d":"35.0"}]
[null,null,"Actividad 10.2","Exámenes de detección de Malas Prácticas.","PORCENTAJE de examenes para prevenir malas prácticas. (P30-EPMP)","Mide el porcentaje de examenes realizados para detectar malas prácticas por los integrantes del cuerpo de seguridad","Eficacia","Gestión","(Cantidad de 10 examenes para detectar malas prácticas aplicados a los integrantes del cuerpo de seguridad / Total de integrantes 20 del cuerpo de seguridad)*100",10,20,"Mensual","Porcentaje",{"v":1,"d":"1.00"}," Portal Web del Municipio página de transparencia","Se dispone de personal y recursos ",{"v":34719.25,"d":"34,719.3"},{"v":5750,"d":"5,750.0"},{"v":1000,"d":"1,000.0"},{"v":0,"d":"0.0"},{"v":0,"d":"0.0"},{"v":0,"d":"0.0"},{"v":0,"d":"0.0"},{"v":0,"d":"0.0"},{"v":0,"d":"0.0"},{"v":41469.25,"d":"41,469.3"},{"v":25,"d":"25.0"}]
[null,null,"Actividad 10.3","Programa anual de capacitación en temas relacionados a la función como derechos humanos, llenado de IPH. faltas administrativas y delitos cometidos por policías municipales.","PORCENTAJE de cumplimieto del programa de capacitacion sobre derechos humanos. (P31-CPCDH)","Mide el porcentaje de participacion y cumplimiento del programa anual de capacitacion en respeto a derechos humanos por los integrantes de seguridad pública","Eficacia","Gestión","(Cantidad de criterios 4 (derechos humanos, llenado de IPH. faltas administrativas y delitos cometidos por  20 policías municipales) a verificar y capacitar en su aplicacion correcta / Total de criterios verificados con correcta aplicación)*100",38,38,"Mensual","Porcentaje",{"v":1,"d":"1.00"}," Portal Web del Municipio página de transparencia","Se dispone de personal y recursos ",{"v":55550.8,"d":"55,550.8"},{"v":9200,"d":"9,200.0"},{"v":1600,"d":"1,600.0"},{"v":0,"d":"0.0"},{"v":0,"d":"0.0"},{"v":0,"d":"0.0"},{"v":0,"d":"0.0"},{"v":0,"d":"0.0"},{"v":0,"d":"0.0"},{"v":66350.8,"d":"66,350.8"},{"v":40,"d":"40.0"}]
[null,"Sindicatura","Componente 11","Ordenamientos y lineamientos actualizados","RAZÓN de ordenamientos y lineamientos actualizados. (T3-OLA)","Mide la relacion de actualizacion de la normatividad local respecto a la estatal y federal incluyendo la imcorporación del PbR/SED","Eficacia","Gestión","(Razón de las 16 de 46 direcciones municipales agrupadas en 4 programas presupuestarios para dar cumplimiento al Plan Municipal de Desarrollo y Gobernanza que cuentan con su  reglamento actualizado incorporando el PbR/SED )",16,46,"Bimestral","Razón",0.34," Portal Web del Municipio página de transparencia","Se dispone de personal y recursos ",{"v":946129,"d":"946,129.0"},{"v":38000,"d":"38,000.0"},{"v":8000,"d":"8,000.0"},{"v":0,"d":"0.0"},{"v":0,"d":"0.0"},{"v":0,"d":"0.0"},{"v":0,"d":"0.0"},{"v":0,"d":"0.0"},{"v":0,"d":"0.0"},{"v":992129,"d":"992,129.0"}]
[null,null,"Actividad 11.1","Programa de actualización de la normatividad local, encaminado a mejorar y regular la función administrativa; dando cumplimiento a las leyes estatales y federales","PORCENTAJE de actualización de la normatividad local a la federal y estatal. (P32-PANLFE)","Mide el porcentaje de apego de las actualizaciones de la normatividad local a las disposiciones federales y estatales","Eficacia","Gestión","(Cantidad de reglamentos por actualizar 46 el correspondiente a cada dirección / Total de direcciones 46)*100",30,46,"Mensual","Porcentaje",{"v":1,"d":"1.00"}," Portal Web del Municipio página de transparencia","Se dispone de personal y recursos ",{"v":283838.7,"d":"283,838.7"},{"v":11400,"d":"11,400.0"},{"v":2400,"d":"2,400.0"},{"v":0,"d":"0.0"},{"v":0,"d":"0.0"},{"v":0,"d":"0.0"},{"v":0,"d":"0.0"},{"v":0,"d":"0.0"},{"v":0,"d":"0.0"},{"v":297638.7,"d":"297,638.7"},{"v":30,"d":"30.0"}]
[null,null,"Actividad 11.2","Programa de revisión,  aplicación y capacitación sobre la reglamentación municipal que le aplica en la responsabilidad de cada dirección.","PORCENTAJE de revision y capacitacion sobre aplicación de reglamentos municipales. (P33-RCARM)","Mide el porcentaje de entendimiento y aplicación correcta de la normatividad local en cada direccion municipal","Eficacia","Gestión","(Cantidad de criterios 4 (conocimiento del reglamento, correcta aplicación, actualizacion y resultados en la dirección e incorporacion del PbR/SED en su reglamento de la dirección) a verificar y capacitar en su aplicacion correcta / Total de criterios verificados con correcta aplicación)*100",4,4,"Mensual","Porcentaje",{"v":1,"d":"100%"}," Portal Web del Municipio página de transparencia","Se dispone de personal y recursos ",{"v":236532.25,"d":"236,532.3"},{"v":9500,"d":"9,500.0"},{"v":2000,"d":"2,000.0"},{"v":0,"d":"0.0"},{"v":0,"d":"0.0"},{"v":0,"d":"0.0"},{"v":0,"d":"0.0"},{"v":0,"d":"0.0"},{"v":0,"d":"0.0"},{"v":248032.25,"d":"248,032.3"},{"v":25,"d":"25.0"}]
[null,null,"Actividad 11.3","Programa de evaluación y seguimiento al desempeño de las direcciones para el cumplimiento del presupuesto base resultados, asi como de la hacienda municipal. ","PORCENTAJE de cumplimiento de actividades para la incorporacion del PbR/SED a las actividades de cada dirección municipal. (P34-CAPbR)","Mide el porcentaje de cumplimiento de actualizacion de datos, indicadores y metas para cumplir con el PbR/SED","Eficacia","Gestión","(Cantidad de actividades  desarrolladas (4 POA, PAC, Indicadores y Actualizar reglamento) para incorporar el PbR/SED a la evaluación y seguimiento de resultados de la dirección / total de  actividades  desarrolladas (4 POA, PAC, Indicadores y Actualizar reglamento) para incorporar el PbR/SED a la evaluación y seguimiento de resultados de la dirección)*100",4,4,"Mensual","Porcentaje",{"v":1,"d":"1.00"}," Portal Web del Municipio página de transparencia","Se dispone de personal y recursos ",{"v":425758.05,"d":"425,758.1"},{"v":17100,"d":"17,100.0"},{"v":3600,"d":"3,600.0"},{"v":0,"d":"0.0"},{"v":0,"d":"0.0"},{"v":0,"d":"0.0"},{"v":0,"d":"0.0"},{"v":0,"d":"0.0"},{"v":0,"d":"0.0"},{"v":446458.05,"d":"446,458.1"},{"v":45,"d":"45.0"}]
[null,"Contraloria","Componente 12","Apego a la normatividad para el ejercicio de recursos públicos","ÍNDICE de cumplimiento a la normatividad para el ejercicio de recursos públicos municipales. (T4-ANERP)","Mide la relación de recursos programados y ejercidos evitando la reasignación de recursos de una actividad a otra","Eficacia","Gestión","(valor resultante de sumar los valores individuales  de  los cosientes entre sus denominadores por su ponderacion asignada, que miden las  variables de auditorias, inspecciones y seguimiento con su respectivas ponderaciones de .6, .3 y .1 / la suma de los valores del denominador de las mismas variables)",12.7,23.5,"Bimestral","Índice",0.54," Portal Web del Municipio página de transparencia","Se dispone de personal y recursos ",{"v":446303,"d":"446,303.0"},{"v":16000,"d":"16,000.0"},{"v":4000,"d":"4,000.0"},{"v":0,"d":"0.0"},{"v":0,"d":"0.0"},{"v":0,"d":"0.0"},{"v":0,"d":"0.0"},{"v":0,"d":"0.0"},{"v":0,"d":"0.0"},{"v":466303,"d":"466,303.0"}]
[null,null,"Actividad 12.1","Programa para auditar la cuenta pública de hacienda municipal en tiempo y forma","PORCENTAJE de cumplimiento del programa de auditoria a cuenta pública municipal. (P35-CPACP)","Mide el porcentaje de cumplimiento del programa de auditorias internas a cuenta publica municipal","Eficacia","Gestión","(Cantidad de revisiones a cuenta publica ejecutadas de las 12 programadas dentro del Programa de auditoria interna a la cuenta pública municipal / total de auditorias 12 ejecutadas y programadas dentro de auditoria interna municipal)*100",12,12,"Mensual","Porcentaje",{"v":1,"d":"1.00"}," Portal Web del Municipio página de transparencia","Se dispone de personal y recursos ",{"v":133890.9,"d":"133,890.9"},{"v":4800,"d":"4,800.0"},{"v":1200,"d":"1,200.0"},{"v":0,"d":"0.0"},{"v":0,"d":"0.0"},{"v":0,"d":"0.0"},{"v":0,"d":"0.0"},{"v":0,"d":"0.0"},{"v":0,"d":"0.0"},{"v":139890.9,"d":"139,890.9"},{"v":30,"d":"30.0"}]
[null,null,"Actividad 12.2","Programa de visitas de inspección a las diferentes dependencias del ayuntamiento","PORCENTAJE de cumplimiento del programa de visitas e inspección. (P36-CPVI)","Mide el porcentaje de cumplimiento del programa de visitas para verificar el cumplimiento de sus actividades","Eficacia","Gestión","(Cantidad de visitas 10 programadas dentro del Programa de inspección a las diferentes dependencias del ayuntamiento / total de visitas 10 programadas dentro del Programa de inspección a las 46 diferentes dependencias del ayuntamiento)*100",10,46,"Mensual","Porcentaje",{"v":0.2173,"d":"21.73%"}," Portal Web del Municipio página de transparencia","Se dispone de personal y recursos ",{"v":200836.35,"d":"200,836.4"},{"v":7200,"d":"7,200.0"},{"v":1800,"d":"1,800.0"},{"v":0,"d":"0.0"},{"v":0,"d":"0.0"},{"v":0,"d":"0.0"},{"v":0,"d":"0.0"},{"v":0,"d":"0.0"},{"v":0,"d":"0.0"},{"v":209836.35,"d":"209,836.4"},{"v":45,"d":"45.0"}]
[null,null,"Actividad 12.3","Programa de seguimiento al manual de organización y obligaciones con el Estado.","PORCENTAJE de cumplimiento al manual de organización y obligaciones con el estado. (P37-CMOOE)","Mide el porcentaje de cumplimiento del manual de organización y que este apegado a la normatividad estatal","Eficacia","Gestión","(Cantidad de 25 articulos del manual de organización y obligaciones con el estado  a los que es obligatorio dar seguimiento  y cumplimiento por parte de la direccion municipal de contraloria/ total de 25 articulos del manual de organización y obligaciones con el estado  a los que es obligatorio dar seguimiento  y cumplimiento por parte de la direccion municipal de contraloria)*100",25,25,"Mensual","Porcentaje",{"v":1,"d":"1.00"}," Portal Web del Municipio página de transparencia","Se dispone de personal y recursos ",{"v":111575.75,"d":"111,575.8"},{"v":4000,"d":"4,000.0"},{"v":1000,"d":"1,000.0"},{"v":0,"d":"0.0"},{"v":0,"d":"0.0"},{"v":0,"d":"0.0"},{"v":0,"d":"0.0"},{"v":0,"d":"0.0"},{"v":0,"d":"0.0"},{"v":116575.75,"d":"116,575.8"},{"v":25,"d":"25.0"}]
[null,"Registro Civil","Componente 13","Registro civil eficientado","ÍNDICE de eficiencia en Registro Civil. (V5-ERC)","Mide el nivel de cumplimiento y satisfacción de la ciudadania","Eficacia","Gestión","(valor resultante de sumar los valores individuales  de  los cosientes entre sus denominadores por su ponderacion asignada, que miden las  variables de informes, apoyos y capacitación con sus respectivas ponderaciones de .4, .4 y .2 / la suma de los valores del denominador de las mismas variables)",17.2,17.6,"Bimestral","Índice",0.97," Portal Web del Municipio página de transparencia","Se dispone de personal y recursos ",{"v":318146,"d":"318,146.0"},{"v":93000,"d":"93,000.0"},{"v":5000,"d":"5,000.0"},{"v":0,"d":"0.0"},{"v":0,"d":"0.0"},{"v":0,"d":"0.0"},{"v":0,"d":"0.0"},{"v":0,"d":"0.0"},{"v":0,"d":"0.0"},{"v":416146,"d":"416,146.0"}]
[null,null,"Actividad 13.1","Informe digital mensual  a la Dirección General del Registro Civil del Estado y al Sistema Nacional de Registro.","PORCENTAJE de cumplimiento de informes a DGRCE. (P38-CIRCE)","Mide el porcentaje de cumplimiento de los informes mensuales ","Eficacia","Gestión","(Cantidad de informes acumulados enviados a la direccion general del registro civil del estado 12 y al sistema nacional de registros  12 responsabilidad delRegistro Civil/total acumulado mensual de informes enviados a la DGRCE  12 y al SNR 12 responsabilidad del registro Civil)*100",24,24,"Mensual","Porcentaje",{"v":1,"d":"1.00"}," Portal Web del Municipio página de transparencia","Se dispone de personal y recursos ",{"v":111351.1,"d":"111,351.1"},{"v":32550,"d":"32,550.0"},{"v":1750,"d":"1,750.0"},{"v":0,"d":"0.0"},{"v":0,"d":"0.0"},{"v":0,"d":"0.0"},{"v":0,"d":"0.0"},{"v":0,"d":"0.0"},{"v":0,"d":"0.0"},{"v":145651.1,"d":"145,651.1"},{"v":35,"d":"35.0"}]
[null,null,"Actividad 13.2","Programa de registro y seguimiento de solicitudes de actos para el apoyo de la población de inicio a la culminación del caso.","PORCENTAJE de conclusion de solicitudes de apoyo. (P39-CSA)","Mide el porcentaje de conclusion de las solicitudes de apoyo de la ciudadania ","Eficacia","Gestión","(Cantidad de solicitudes de apoyo 15 para resolver actos relativos al Registro Civil/total de solicitudes recibidas 15 registradas y dado seguimiento hasta su solucion en registro Civil)*100",15,15,"Mensual","Porcentaje",{"v":1,"d":"100%"}," Portal Web del Municipio página de transparencia","Se dispone de personal y recursos ",{"v":127258.4,"d":"127,258.4"},{"v":37200,"d":"37,200.0"},{"v":2000,"d":"2,000.0"},{"v":0,"d":"0.0"},{"v":0,"d":"0.0"},{"v":0,"d":"0.0"},{"v":0,"d":"0.0"},{"v":0,"d":"0.0"},{"v":0,"d":"0.0"},{"v":166458.4,"d":"166,458.4"},{"v":40,"d":"40.0"}]
[null,null,"Actividad 13.3","Programa cuatrimestral de capacitación o actualización al personal","PORCENTAJE de cumplimiento del programa de capacitación y actualización. (P40-CPCA)","Mide el porcentaje de cumplimiento y registro de asistentes al programa de capacitación","Eficacia","Gestión","(Cantidad de personal inscrito 8 para participar en el programa de capacitacion sobre Registro Civil/total de personal 10 de registro Civil)*100",8,10,"Mensual","Porcentaje",{"v":0.8,"d":"0.80"}," Portal Web del Municipio página de transparencia","Se dispone de personal y recursos ",{"v":79536.5,"d":"79,536.5"},{"v":23250,"d":"23,250.0"},{"v":1250,"d":"1,250.0"},{"v":0,"d":"0.0"},{"v":0,"d":"0.0"},{"v":0,"d":"0.0"},{"v":0,"d":"0.0"},{"v":0,"d":"0.0"},{"v":0,"d":"0.0"},{"v":104036.5,"d":"104,036.5"},{"v":25,"d":"25.0"}]
[null,"Catastro","Componente 14","Catastro eficientado","ÍNDICE de eficiencia en Catastro. (V6-EC)","Mide el nivel de eficiencia del personal del catastro en el cobro del impuesto predial apoyados en todas sus actividades buscando su incremento sostenido anual","Eficacia","Gestión","(valor resultante de sumar los valores individuales  de  los cosientes entre sus denominadores por su ponderacion asignada, que miden las  variables dedigitalización y emplados capacitados  con la correspondiente ponderacion de .4 y .6)",12004.2,36004.2,"Bimestral","Índice",0.33," Portal Web del Municipio página de transparencia","Se dispone de personal y recursos ",{"v":672388,"d":"672,388.0"},{"v":138000,"d":"138,000.0"},{"v":88000,"d":"88,000.0"},{"v":0,"d":"0.0"},{"v":0,"d":"0.0"},{"v":0,"d":"0.0"},{"v":0,"d":"0.0"},{"v":0,"d":"0.0"},{"v":0,"d":"0.0"},{"v":898388,"d":"898,388.0"}]
[null,null,"Actividad 14.1","Programa de digitalización de actas y capacitación del personal 4 empleados.","PORCENTAJE de digitalización y programa de capacitación. (P41-DPC)","Mide el porcentaje de digitalización de actas apartir del programa de capacitación","Eficacia","Gestión","(Cantidad de actas de catastro digitalizadas (30000) / total de actas por digitalizar en direccion de Catastro (90000) )*100",30000,90000,"Mensual","Porcentaje",33.33," Portal Web del Municipio página de transparencia","Se dispone de personal y recursos ",{"v":437052.19999999995,"d":"437,052.2"},{"v":89699.99999999999,"d":"89,700.0"},{"v":57199.99999999999,"d":"57,200.0"},{"v":0,"d":"0.0"},{"v":0,"d":"0.0"},{"v":0,"d":"0.0"},{"v":0,"d":"0.0"},{"v":0,"d":"0.0"},{"v":0,"d":"0.0"},{"v":583952.1999999998,"d":"583,952.2"},{"v":64.99999999999999,"d":"65.0"}]
[null,null,"Actividad 14.2","Atención y mejora continua en los servicios al ciudadano, manteniendo la capacitación a 7 empleados del catastro.","PORCENTAJE de servicios mejorados en atención y capacitación. (P42-SMAC)","Mide el porcentaje de emplados capacitados de los diferentes servicios de catastro","Eficacia","Gestión","(Cantidad de personal inscrito para participar en el programa de capacitacion sobre servicios en catastro 7 / total de personal en direccion de Catastro 7 )*100",7,7,"Mensual","Porcentaje",100," Portal Web del Municipio página de transparencia","Se dispone de personal y recursos ",{"v":111351.1,"d":"111,351.1"},{"v":32550,"d":"32,550.0"},{"v":1750,"d":"1,750.0"},{"v":0,"d":"0.0"},{"v":0,"d":"0.0"},{"v":0,"d":"0.0"},{"v":0,"d":"0.0"},{"v":0,"d":"0.0"},{"v":0,"d":"0.0"},{"v":145651.1,"d":"145,651.1"},{"v":35,"d":"35.0"}]
[null,"Parque Vehícular","Componente 15","Vehículos en operación incrementados","ÍNDICE de eficiencia del mantenimiento preventivo al parque vehicular. (T5-IEMPV)","Mide la reduccion del monto de inverion en mantenimiento preventivo por vehiculo que se mantiene en operación","Eficacia","Gestión","(valor resultante de sumar los valores individuales  de  los cosientes entre sus denominadores por su ponderacion asignada, que miden las  variables de kilometros por litro, inversion por vehiculo con mantenimiento y vehiculos con mantenimiento preventivo en operación  con la correspondiente ponderacion de .2, .5 y .3)",13324,2961.4,"Bimestral","Índice",4.49," Portal Web del Municipio página de transparencia","Se dispone de personal y recursos ",{"v":222359,"d":"222,359.0"},{"v":163850,"d":"163,850.0"},{"v":33000,"d":"33,000.0"},{"v":0,"d":"0.0"},{"v":0,"d":"0.0"},{"v":0,"d":"0.0"},{"v":0,"d":"0.0"},{"v":0,"d":"0.0"},{"v":0,"d":"0.0"},{"v":419209,"d":"419,209.0"}]
[null,null,"Actividad 15.1","Programa de revisión diaria a los vehículos en operación asignados a diferentes direcciones del ayuntamiento.","PORCENTAJE de vehiculos en operación revisados. (P43-VOR)","Mide el porcentaje de vehiculos revisados y en operación por semana","Eficacia","Gestión","(Cantidad de vehiculos con mantenimiento preventivo por semana y en operación (10)) / Total de vehiculos con mantenimiento preventivo por semana (12))*100",10,12,"Mensual","Porcentaje",0.83," Portal Web del Municipio página de transparencia","Se dispone de personal y recursos ",{"v":133415.4,"d":"133,415.4"},{"v":98310,"d":"98,310.0"},{"v":19800,"d":"19,800.0"},{"v":0,"d":"0.0"},{"v":0,"d":"0.0"},{"v":0,"d":"0.0"},{"v":0,"d":"0.0"},{"v":0,"d":"0.0"},{"v":0,"d":"0.0"},{"v":251525.4,"d":"251,525.4"},{"v":60,"d":"60.0"}]
[null,null,"Actividad 15.2","Generar programa de mantenimiento preventivo con bitácora  de gastos por vehículo","TASA de inversión al programa de mantenimiento. (P44-TIPM)","Mide la Tasa de inversion mensual por vehiculo incorporado al programa de mantenimiento preventivo orientado a reducir el monto mensual","Eficacia","Gestión","(Monto de recursos economicos en pesos  invertido mensualmente en el programa de mantenimiento preventivo al parque vehicular municipal (10000 pesos) por el total de vehiculos del servicio municipal incorporados al programa de mantenimiento preventivo (14) )",10000,14,"Mensual","Tasa",714," Portal Web del Municipio página de transparencia","Se dispone de personal y recursos ",{"v":33353.85,"d":"33,353.9"},{"v":24577.5,"d":"24,577.5"},{"v":4950,"d":"4,950.0"},{"v":0,"d":"0.0"},{"v":0,"d":"0.0"},{"v":0,"d":"0.0"},{"v":0,"d":"0.0"},{"v":0,"d":"0.0"},{"v":0,"d":"0.0"},{"v":62881.35,"d":"62,881.4"},{"v":25,"d":"25.0"}]
[null,null,"Actividad 15.3","Elaborar una bitácora de seguimiento paralelo al consumo de gasolina y kilometraje por vehículo","TASA de registro en bitacoras por vehiculo, de kilometros recorrdios por litro de Gasolina y/o diesel cargado (P45-RBV)","Mide la tasa de kilometros recorridos por litro de gasolina o diesel consumido ","Eficacia","Gestión","( Total de kilometros recorridos por los vehiculos oficiales (2800), camiones de basura (2240) y patrullas ( 22400) a las que se les cargo gasolina y diesel)) por  la (Cantidad de litros de gasolina y disel cargados  a los vehiculos (4 camiones de basura  2240 litros disesel por mes) y patrullas municipales (5 patrullas 5600 litros de gasolina por mes) (5 vehiculos oficiales  2000 litros gasolina al mes)",27740,9840,"Mensual","Tasa",2.81," Portal Web del Municipio página de transparencia","Se dispone de personal y recursos ",{"v":20012.31,"d":"20,012.3"},{"v":14746.5,"d":"14,746.5"},{"v":2970,"d":"2,970.0"},{"v":0,"d":"0.0"},{"v":0,"d":"0.0"},{"v":0,"d":"0.0"},{"v":0,"d":"0.0"},{"v":0,"d":"0.0"},{"v":0,"d":"0.0"},{"v":37728.81,"d":"37,728.8"},{"v":15,"d":"15.0"}]
[null,"Secretaría General","Componente 16","Satisfacción gubernamental incrementada","INDICE de satisfacción Gubernamental. (V7-SG)","Mide el nivel de satisfaccion de la ciudadania por la atencion recibida","Eficacia","Gestión","(valor resultante de sumar los valores individuales  de  los cosientes entre sus denominadores por su ponderacion asignada, que miden las  variables de instrucciones cumplidas y colaboraciones legales  correspondientes ponderaciones de .7  y .3)",65.1,95.4,"Bimestral","Índice",0.68," Portal Web del Municipio página de transparencia","Se dispone de personal y recursos ",{"v":724675,"d":"724,675.0"},{"v":80000,"d":"80,000.0"},{"v":8000,"d":"8,000.0"},{"v":0,"d":"0.0"},{"v":0,"d":"0.0"},{"v":0,"d":"0.0"},{"v":0,"d":"0.0"},{"v":0,"d":"0.0"},{"v":0,"d":"0.0"},{"v":812675,"d":"812,675.0"}]
[null,null,"Actividad 16.1","Coordinar, supervisar y evaluar a las direcciones y dependencias del Ayuntamiento, para garantizar el adecuado servicio a la ciudadanía","PORCENTAJE de instrucciones cumplidas para mejorar  el servicio a la ciudadania. (P46-ICMSC)","Mide el porcentaje de cumplimiento de las instrucciones de coordinación,  supervision y evaluación","Eficacia","Gestión","(Cantidad de instrucciones dadas a las diferentes direcciones municipales 48 / Total de quejas, solicitudes recibidas en atencion ciudadana y participacion social y seguimiento a actividades propias de las direcciones 72 ) * 100",48,72,"Mensual","Porcentaje",0.67," Portal Web del Municipio página de transparencia","Se dispone de personal y recursos ",{"v":507272.5,"d":"507,272.5"},{"v":56000,"d":"56,000.0"},{"v":5600,"d":"5,600.0"},{"v":0,"d":"0.0"},{"v":0,"d":"0.0"},{"v":0,"d":"0.0"},{"v":0,"d":"0.0"},{"v":0,"d":"0.0"},{"v":0,"d":"0.0"},{"v":568872.5,"d":"568,872.5"},{"v":70,"d":"70.0"}]
[null,null,"Actividad 16.2","Colaborar en las acciones y funciones relativas al aspecto legal y jurídico del municipio.","PORCENTAJE de colaboraciones legales y juridicas. (P47-CLJ)","Mide el porcentaje de colaboraciones para resolver temas legales y juridicos","Eficacia","Gestión","(Cantidad de convenios 15, obras 40 y solicitudes 50 necesarias de respaldar con el aspecto legal y juridico / total de documentos firmados con la fe publica del secretario general ) * 100",105,150,"Mensual","Porcentaje",{"v":0.7,"d":"70%"}," Portal Web del Municipio página de transparencia","Se dispone de personal y recursos ",{"v":217402.5,"d":"217,402.5"},{"v":24000,"d":"24,000.0"},{"v":2400,"d":"2,400.0"},{"v":0,"d":"0.0"},{"v":0,"d":"0.0"},{"v":0,"d":"0.0"},{"v":0,"d":"0.0"},{"v":0,"d":"0.0"},{"v":0,"d":"0.0"},{"v":243802.5,"d":"243,802.5"},{"v":30,"d":"30.0"}]
[null,"Transparencia ","Componente 17","Transparencia municipal incrementada","ÍNDICE de transparencia. (T6-TT)","Mide la relación de participacion, atencion y cumplimiento de los involucrados en atender las obligaciones de transparencia ","Eficacia","Gestión","(valor resultante de sumar los valores individuales  de  los cosientes entre sus denominadores por su ponderacion asignada, que miden las  variables de servidores públicos, recurrencia y participacion con las correspondientes ponderaciones de .5, .3 y .2)",226.6,353,"Bimestral","Índice",0.65," Portal Web del Municipio página de transparencia","Se dispone de personal y recursos ",{"v":413607,"d":"413,607.0"},{"v":41000,"d":"41,000.0"},{"v":7000,"d":"7,000.0"},{"v":0,"d":"0.0"},{"v":0,"d":"0.0"},{"v":0,"d":"0.0"},{"v":0,"d":"0.0"},{"v":0,"d":"0.0"},{"v":0,"d":"0.0"},{"v":461607,"d":"461,607.0"}]
[null,null,"Actividad 17.1","Programa de actualización, seguimiento y verificación de información pública disponible en los formatos de PNT. Y en la LTAIPJ en los art. 8 y 15","PORCENTAJE de servidores públicos que cumplen con sus obligaciones de rendición de cuentas en tiempo y forma, cumplimiento a la PNT y LTAIPEJ. (P48-CTNE)","Mide el porcentaje de cumplimiento de las obligaciones de publicar información en la PNT y LTAIPEJM","Eficacia","Gestión","(Cantidad de incisos con informacion actualizada en los articulos 8 y 15 de la LTAIPEJ mas los formatos de la PNT asignados y actualizados subidos a las plataformas/Total de insicios que solicitan informacion en los articulos 8 y 15 de la LTAIPJ mas el total de formatos de la PNT asignados)*100        (98 de LTAIPEJ + 270 Fts de la PNT = 368)  (102 de LTAIPEJ + 319 Fts de la PNT = 421)",368,421,"Mensual","Porcentaje",0.87," Portal Web del Municipio página de transparencia","Se dispone de personal y recursos ",{"v":206803.5,"d":"206,803.5"},{"v":20500,"d":"20,500.0"},{"v":3500,"d":"3,500.0"},{"v":0,"d":"0.0"},{"v":0,"d":"0.0"},{"v":0,"d":"0.0"},{"v":0,"d":"0.0"},{"v":0,"d":"0.0"},{"v":0,"d":"0.0"},{"v":230803.5,"d":"230,803.5"},{"v":50,"d":"50.0"}]
[null,null,"Actividad 17.2","Revisar la plataforma INFOMEX y el correo municipal de transparencia para atender solicitudes que recibe el ayuntamiento, darles respuesta y con ello mantener actualizado el portal del SIRES.","PORCENTAJE de recurrencia  en materia de acceso a la información del poder Ejecutivo Municipal. (P49-RMAIEM)","Mide el porcentaje de atención y respuesta positiva a las solicitudes de información recibidas por los diferentes medios de solicitud","Eficacia","Gestión","(Cantidad de solicitudes de informacion recibidas y atendidas positivamente/ Total de solicitudes recibidas)*100",50,75,"Mensual","Porcentaje",{"v":0.8,"d":"80%"}," Portal Web del Municipio página de transparencia","Se dispone de personal y recursos ",{"v":82721.4,"d":"82,721.4"},{"v":8200,"d":"8,200.0"},{"v":1400,"d":"1,400.0"},{"v":0,"d":"0.0"},{"v":0,"d":"0.0"},{"v":0,"d":"0.0"},{"v":0,"d":"0.0"},{"v":0,"d":"0.0"},{"v":0,"d":"0.0"},{"v":92321.4,"d":"92,321.4"},{"v":20,"d":"20.0"}]
[null,null,"Actividad 17.3","Programa de capacitación en materia de transparencia, formatos y reportes de actividades.","PORCENTAJE de participación en el cumplimiento del programa de capacitacion en transparencia. (P50-CPCT)","Mide el porcentaje de participación en el cumplimiento del programa de capacitacion en transparencia","Eficacia","Gestión","(Cantidad de personal inscrito para participar en el programa de capacitacion sobre transparencia/total de personal en el ayutamiento)*100",138,600,"Mensual","Porcentaje",0.25," Portal Web del Municipio página de transparencia","Se dispone de personal y recursos ",{"v":124082.1,"d":"124,082.1"},{"v":12300,"d":"12,300.0"},{"v":2100,"d":"2,100.0"},{"v":0,"d":"0.0"},{"v":0,"d":"0.0"},{"v":0,"d":"0.0"},{"v":0,"d":"0.0"},{"v":0,"d":"0.0"},{"v":0,"d":"0.0"},{"v":138482.1,"d":"138,482.1"},{"v":30,"d":"30.0"}]
[]
[null,"Sistema de Agua Potable y Alcantarillado (SAMAPA)","Componente 1","Cobertura de Agua Potable y Alcantarillado Ampliada","ÍNDICE de cobertura agua potable y alcantarillado (T1-CAPyA)","Mide la ampliacion en la cobertura de suministro de agua potable y alcantarillado ","Eficacia","Gestión","(valor resultante de sumar los valores individuales  de  los cosientes entre sus denominadores por su ponderacion asignada, que miden las  variables de: aguas subterraneas, macromedidores, cultura agua, colector principal, construccion pozos, desazolve carcamos, construccion humedal y rahabilitacion plantas con su correspondientes ponderaciones de .1, .2, .1, .1, .2, .1, .1, y .1)",12.7,15.9,"Bimestral","Índice","0.798"," Portal Web del Municipio página de transparencia","Se dispone de personal y recursos",{"v":0,"d":"$0.0"},{"v":0,"d":"$0.0"},{"v":0,"d":"$0.0"},{"v":2000000,"d":"$2,000,000.0"},{"v":0,"d":"$0.0"},{"v":0,"d":"$0.0"},{"v":0,"d":"$0.0"},{"v":0,"d":"$0.0"},{"v":0,"d":"$0.0"},{"v":2000000,"d":"$2,000,000.0"}]
[null,null,"Actividad 1.1","Gestionar un estudio de aguas subterráneas","PORCENTAJE de avance del estudio de aguas subterráneas (P51-AEAS)","Mide los avances en tener un estudio ","Eficacia","Gestión","(Cantidad de  actividades (10) desarrolladas para la gestion de un estudio de aguas subterráneas / Total de  actividades (15) a desarrollar para la gestion de un estudio de aguas subterráneas)*100",10,15,"Mensual","Porcentaje",{"v":0.66,"d":"66%"}," Portal Web del Municipio página de transparencia","Se dispone de personal y recursos",{"v":0,"d":"0.0"},{"v":0,"d":"0.0"},{"v":0,"d":"0.0"},{"v":100000,"d":"100,000.0"},{"v":0,"d":"0.0"},{"v":0,"d":"0.0"},{"v":0,"d":"0.0"},{"v":0,"d":"0.0"},{"v":0,"d":"0.0"},{"v":100000,"d":"$100,000.0"},{"v":5,"d":"$5.0"}]
[null,null,"Actividad 1.2","Instalación de macro medidores en pozos municipales","PORCENTAJE de pozos municipales con macro medidores (P52-PMMM)","Mide los avances en poner macromedidores en los pozos municipales","Eficacia","Gestión","(Cantidad de  actividades (20) desarrolladas para  colocar 5 macro medidores en las lineas de conducción del agua / Total de actividades (25) desarrolladas para  colocar 5 macro medidores en las lineas de conducción del agua de los pozos municipales a la red de agua potable )*100",20,25,"Mensual","Porcentaje",{"v":0.8,"d":"80%"}," Portal Web del Municipio página de transparencia","Se dispone de personal y recursos",{"v":0,"d":"0.0"},{"v":0,"d":"0.0"},{"v":0,"d":"0.0"},{"v":400000,"d":"400,000.0"},{"v":0,"d":"0.0"},{"v":0,"d":"0.0"},{"v":0,"d":"0.0"},{"v":0,"d":"0.0"},{"v":0,"d":"0.0"},{"v":400000,"d":"$400,000.0"},{"v":20,"d":"$20.0"}]
[null,null,"Actividad 1.3","Programa de cultura del agua","PORCENTAJE de cumplimiento del programa de cultura del agua (P53-CPCA)","Mide el avance en el cumplimiento del programa ","Eficacia","Gestión","(Cantidad de  actividades (20) desarrolladas dentro del programa de cultura del agua / Total de  actividades (20) a desarrollar dentro del programa de cultura del agua)*100",20,20,"Mensual","Porcentaje",{"v":1,"d":"100%"}," Portal Web del Municipio página de transparencia","Se dispone de personal y recursos",{"v":0,"d":"0.0"},{"v":0,"d":"0.0"},{"v":0,"d":"0.0"},{"v":300000,"d":"300,000.0"},{"v":0,"d":"0.0"},{"v":0,"d":"0.0"},{"v":0,"d":"0.0"},{"v":0,"d":"0.0"},{"v":0,"d":"0.0"},{"v":300000,"d":"$300,000.0"},{"v":15,"d":"$15.0"}]
[null,null,"Actividad 1.4","Reemplazar el colector principal de la línea de drenaje ","PORCENTAJE colector principal remplazado (P54-CPR)","Mide los avances en el reemplazo del colector principal","Eficacia","Gestión","(Cantidad de  actividades (10) desarrolladas para  reemplazar 100 ml del colector principal de la línea de drenaje  en cabecera municipal / Total de actividades (10) programadas para  reemplazar 100 ml del colector principal de la línea de drenaje de la cabecera municipal )*100",10,10,"Mensual","Porcentaje",{"v":1,"d":"100%"}," Portal Web del Municipio página de transparencia","Se dispone de personal y recursos",{"v":0,"d":"0.0"},{"v":0,"d":"0.0"},{"v":0,"d":"0.0"},{"v":400000,"d":"400,000.0"},{"v":0,"d":"0.0"},{"v":0,"d":"0.0"},{"v":0,"d":"0.0"},{"v":0,"d":"0.0"},{"v":0,"d":"0.0"},{"v":400000,"d":"$400,000.0"},{"v":20,"d":"$20.0"}]
[null,null,"Actividad 1.5","Construcción de 2 pozos profundos","PORCENTAJE de avance en perforación de pozos (P55-AP2P)","Mide los avances en la perforación de dos nuevos pozos profundos","Eficacia","Gestión","(Cantidad de  actividades (10) desarrolladas para la construcción de 2 nuevos pozos profundos / Total de  actividades (15) a desarrollar para la construcción de 2 nuevos pozos profundos en el territorio municipal)*100",10,15,"Mensual","Porcentaje",{"v":0.66,"d":"66%"}," Portal Web del Municipio página de transparencia","Se dispone de personal y recursos",{"v":0,"d":"0.0"},{"v":0,"d":"0.0"},{"v":0,"d":"0.0"},{"v":500000,"d":"500,000.0"},{"v":0,"d":"0.0"},{"v":0,"d":"0.0"},{"v":0,"d":"0.0"},{"v":0,"d":"0.0"},{"v":0,"d":"0.0"},{"v":500000,"d":"$500,000.0"},{"v":25,"d":"$25.0"}]
[null,null,"Actividad 1.6","Desazolve de cárcamos","PORCENTAJE de cárcamos con desazolve (P56-CCD)","Mide el avance en el desasolve de carcamos","Eficacia","Gestión","(Cantidad de  actividades (8) desarrolladas para  el desazolve  de 100 cárcamos construidos en el territorio municipal / Total de actividades (8) programas a desarrollar para  el desazolve  de 100 cárcamos construidos en el territorio municipal )*100",8,8,"Mensual","Porcentaje",{"v":1,"d":"100%"}," Portal Web del Municipio página de transparencia","Se dispone de personal y recursos",{"v":0,"d":"0.0"},{"v":0,"d":"0.0"},{"v":0,"d":"0.0"},{"v":300000,"d":"300,000.0"},{"v":0,"d":"0.0"},{"v":0,"d":"0.0"},{"v":0,"d":"0.0"},{"v":0,"d":"0.0"},{"v":0,"d":"0.0"},{"v":300000,"d":"$300,000.0"},{"v":15,"d":"$15.0"}]
[null,null,"Actividad 1.7","Construcción del humedal arroyo de los sabinos","PORCENTAJE de avance en la construcción del humedal (P57-ACH)","Mide el avance en la costrucción del humedal","Eficacia","Gestión","(Cantidad de  actividades (15) desarrolladas para la Construcción del humedal arroyo de los sabinos / Total de  actividades (20) a desarrollar para la Construcción del humedal arroyo de los sabinos)*100",15,20,"Mensual","Porcentaje",{"v":0.75,"d":"75%"}," Portal Web del Municipio página de transparencia","Se dispone de personal y recursos",{"v":0,"d":"0.0"},{"v":0,"d":"0.0"},{"v":0,"d":"0.0"},{"v":200000,"d":"200,000.0"},{"v":0,"d":"0.0"},{"v":0,"d":"0.0"},{"v":0,"d":"0.0"},{"v":0,"d":"0.0"},{"v":0,"d":"0.0"},{"v":200000,"d":"$200,000.0"},{"v":10,"d":"$10.0"}]
[null,null,"Actividad 1.8","Rehabilitación de 4 plantas de tratamiento","PORCENTAJE de Plantas de tratamiento de aguas residuales en operación dentro de norma (P58-PPTARDN)","Mide el avance en la rehabilitación de plantas de tratamiento de aguas residuales y puestas en operación dentro de norma","Eficacia","Gestión","(Cantidad de plantas de tratamiento de aguas residuales (4) a las que se les dio mantenimiento y rehabilitación  / Total plantas de tratamiento de aguas residuales (6) existentes en el municipio)*100",4,6,"Mensual","Porcentaje",{"v":0.66,"d":"66%"},"10:10",null,{"v":0,"d":"0.0"},{"v":0,"d":"0.0"},{"v":0,"d":"0.0"},{"v":400000,"d":"400,000.0"},{"v":0,"d":"0.0"},{"v":0,"d":"0.0"},{"v":0,"d":"0.0"},{"v":0,"d":"0.0"},{"v":0,"d":"0.0"},{"v":400000,"d":"$400,000.0"},{"v":20,"d":"$20.0"}]
[null,"Alumbrado público","Componente 2","Cobertura de Alumbrado Público Ampliada","TASA de modernizacion y eficiencia en alumbrado público municipal (T2-CAP)","Mide la modernizacion y la eficiencia del alumbrado público municipal con el cambio de luminarias existentes a luminarias de LEDs","Eficacia","Gestión","(Tasa de modernizacion de luminarias a LEDs por cada 1000 de las existentes ",100,4513,"Bimestral","Tasa","22 . 1000"," Portal Web del Municipio página de transparencia","Se dispone de personal y recursos",{"v":722682,"d":"$722,682.0"},{"v":338000,"d":"$338,000.0"},{"v":18000,"d":"$18,000.0"},{"v":0,"d":"$0.0"},{"v":0,"d":"$0.0"},{"v":0,"d":"$0.0"},{"v":0,"d":"$0.0"},{"v":0,"d":"$0.0"},{"v":0,"d":"$0.0"},{"v":1078682,"d":"$1,078,682.0"}]
[null,null,"Actividad 2.1","Instalación de luminarias led","PORCENTAJE de luminarias led instaladas (P59-LLI)","Mide el avance en la instalacion de luminarias","Eficacia","Gestión","(Cantidad de luminarias de los circuitos de alumbrado publico municipales que se han sustituido (100) por luminarias de LEDs / Total de  luminarias de los circuitos de alumbrado publico municipales que se han programado (100) para ser sustituidas por luminarias de LEDs)*100",100,100,"Mensual","Porcentaje",{"v":1,"d":"100%"}," Portal Web del Municipio página de transparencia","Se dispone de personal y recursos",{"v":289072.8,"d":"289,072.8"},{"v":135200,"d":"135,200.0"},{"v":7200,"d":"7,200.0"},{"v":0,"d":"0.0"},{"v":0,"d":"0.0"},{"v":0,"d":"0.0"},{"v":0,"d":"0.0"},{"v":0,"d":"0.0"},{"v":0,"d":"0.0"},{"v":431472.8,"d":"$431,472.8"},{"v":40,"d":"$40.0"}]
[null,null,"Actividad 2.2","Instalación de equipos de medición en igual número de circuitos municipales","PORCENTAJE de instalación de equipos de medición por circuito (P60-IEMC)","Mide el avance en la instalacion de euipos de medicion","Eficacia","Gestión","(Cantidad de circuitos (54) de alumbrado público municipal a los que se instalo equipo de medicion / Total decircuitos (54) de alumbrado público municipal a los que se instalara equipo de medicion)*100",54,54,"Mensual","Porcentaje",{"v":1,"d":"100%"}," Portal Web del Municipio página de transparencia","Se dispone de personal y recursos",{"v":180670.5,"d":"180,670.5"},{"v":84500,"d":"84,500.0"},{"v":4500,"d":"4,500.0"},{"v":0,"d":"0.0"},{"v":0,"d":"0.0"},{"v":0,"d":"0.0"},{"v":0,"d":"0.0"},{"v":0,"d":"0.0"},{"v":0,"d":"0.0"},{"v":269670.5,"d":"$269,670.5"},{"v":25,"d":"$25.0"}]
[null,null,"Actividad 2.3","Mantenimiento y preservación de luminarias","PORCENTAJE de luminarias incluidas en el programa de mantenimiento y preservación (P61-LIPMP)","Mide el avance en el mantenimiento de luminarias","Eficacia","Gestión","(Cantidad de luminarias instaladas (4513)  con mantenimiento trimestral incluidas en el programa de mantenimiento municipal / Total de luminarias proyectadas al cierre de año (4600) para completar el programa de mantenimiento municipal)*100",4513,4600,"Mensual","Porcentaje",{"v":0.98,"d":"98%"}," Portal Web del Municipio página de transparencia","Se dispone de personal y recursos",{"v":252938.7,"d":"252,938.7"},{"v":118300,"d":"118,300.0"},{"v":6300,"d":"6,300.0"},{"v":0,"d":"0.0"},{"v":0,"d":"0.0"},{"v":0,"d":"0.0"},{"v":0,"d":"0.0"},{"v":0,"d":"0.0"},{"v":0,"d":"0.0"},{"v":377538.7,"d":"$377,538.7"},{"v":35,"d":"$35.0"}]
[null,"Parques y jardines","Componente 3","Cobertura de Áreas Verdes y Espacios Públicos Ampliada","TASA de cobertura de áreas verdes y espacios públicos (T3-CAVyEP)","Mide la ampliacion de la cobertura en atención a areas verdes y espcios públicos en 10 de cada diez","Eficacia","Gestión","(Tasa de metros cuadrados de área verde y plazas públicas por cada 1000 habitantes    ",20600,11,"Bimestral","Tasa","21 : 0.011"," Portal Web del Municipio página de transparencia","Se dispone de personal y recursos",{"v":1420995,"d":"$1,420,995.0"},{"v":448000,"d":"$448,000.0"},{"v":18000,"d":"$18,000.0"},{"v":0,"d":"$0.0"},{"v":0,"d":"$0.0"},{"v":0,"d":"$0.0"},{"v":0,"d":"$0.0"},{"v":0,"d":"$0.0"},{"v":0,"d":"$0.0"},{"v":1886995,"d":"$1,886,995.0"}]
[null,null,"Actividad 3.1","Programa de Arreglo, mantenimiento y preservación  de plazas publicas, Av. Principal de Cabecera municipal y de camellones.","PORCENTAJE cumplimiento del programa de arreglo, mantenimiento y preservación (P62-CPAMP)","Mide el cumplimiento del programa","Eficacia","Gestión","(Cantidad de  actividades (22) realizadas para ejecutar el  Programa de Arreglo, a 11 plazas públicas, mantenimiento a 20,600 m2 de camellon como área verde y plantación de 5000 arboles / Total de actividades (25) programadas para ejecutar el  Programa de Arreglo, a 11 plazas públicas, mantenimiento a 20,600 m2 de camellon y plantación de 5000 arboles)*100",22,25,"Mensual","Porcentaje",{"v":0.88,"d":"88%"}," Portal Web del Municipio página de transparencia","Se dispone de personal y recursos",{"v":1420995,"d":"1,420,995.0"},{"v":448000,"d":"448,000.0"},{"v":18000,"d":"18,000.0"},{"v":0,"d":"0.0"},{"v":0,"d":"0.0"},{"v":0,"d":"0.0"},{"v":0,"d":"0.0"},{"v":0,"d":"0.0"},{"v":0,"d":"0.0"},{"v":1886995,"d":"$1,886,995.0"},{"v":100,"d":"$100.0"}]
[null,"Aseo público","Componente 4","Cobertura de Servicio de Limpia y Aseo Público Ampliada","ÍNDICE de cobertura de servicio  de limpia y aseo público (T4-SLyAP)","Mide el mantenimiento y la  ampliacion en la cobertura de limpia y aseo público ","Eficacia","Gestión","(valor resultante de sumar los valores individuales  de  los cosientes entre sus denominadores por su ponderacion asignada, que miden las  variables de: gestion camión, mantenimiento a camiones y recolección basura con su correspondientes ponderaciones de .2, .4  y .4)",198,167.6,"Bimestral","Índice","1.18"," Portal Web del Municipio página de transparencia","Se dispone de personal y recursos",{"v":2648481,"d":"$2,648,481.0"},{"v":2365000,"d":"$2,365,000.0"},{"v":227000,"d":"$227,000.0"},{"v":0,"d":"$0.0"},{"v":0,"d":"$0.0"},{"v":0,"d":"$0.0"},{"v":0,"d":"$0.0"},{"v":0,"d":"$0.0"},{"v":0,"d":"$0.0"},{"v":5240481,"d":"$5,240,481.0"}]
[null,null,"Actividad 4.1","Gestión de la adquisición de equipo y vehículos de recolección","PORCENTAJE avance en la gestión de equipo para la recolección (P63-AGER)","Mide los avances en la gestion para adquirir equipo de recolección","Eficacia","Gestión","(Cantidad de  gestiones y actividades a realizar (10) para la gestión de un camion compactador para la recoleccion de basúra / Total de gestiones y actividades a realizar (10) para la gestión de un camion compactador para la recoleccion de basúra )*100",10,10,"Mensual","Porcentaje",{"v":1,"d":"100%"}," Portal Web del Municipio página de transparencia","Se dispone de personal y recursos",{"v":1456664.55,"d":"1,456,664.6"},{"v":1300750,"d":"1,300,750.0"},{"v":124850,"d":"124,850.0"},{"v":0,"d":"0.0"},{"v":0,"d":"0.0"},{"v":0,"d":"0.0"},{"v":0,"d":"0.0"},{"v":0,"d":"0.0"},{"v":0,"d":"0.0"},{"v":2882264.55,"d":"$2,882,264.6"},{"v":55,"d":"$55.0"}]
[null,null,"Actividad 4.2","Instalación de contenedores de basura en colonias, fraccionamientos y comunidades rurales y mantenimiento preventivo a camiones recolectores de basura","PORCENTAJE de avance en la instalación de contenedores para recolección de basura (P64-AICRB)","Mide el avance en la instalacion de contenedores y las toneladas recolectadas","Eficacia","Gestión","(Cantidad de contenedores instalados en el mes (0) y camiones con mantenimiento preventivo en el mes (12) / Total de contenedores instalados en colonias y fraccionamientos en el mes (0) y camiones recolectores con mantenimiento preventivo durante el mes (12)  como actividades del programa de limpia y recolección de basura )*100",144,144,"Mensual","Porcentaje",{"v":1,"d":"100%"}," Portal Web del Municipio página de transparencia","Se dispone de personal y recursos",{"v":926968.35,"d":"926,968.4"},{"v":827750,"d":"827,750.0"},{"v":79450,"d":"79,450.0"},{"v":0,"d":"0.0"},{"v":0,"d":"0.0"},{"v":0,"d":"0.0"},{"v":0,"d":"0.0"},{"v":0,"d":"0.0"},{"v":0,"d":"0.0"},{"v":1834168.35,"d":"$1,834,168.4"},{"v":35,"d":"$35.0"}]
[null,null,"Actividad 4.3","Creación de nuevas rutas de recolección de basura, impulsando la separación de basura ","PORCENTAJE de incremento en la recoleccion de basura (P65-ACNRRB)","Mide el incremento en la recolección de basura como consecuencia del crecimiento poblacional y la precaria cultura del reciclaje de desechos solidos ","Eficacia","Gestión","((Cantidad de  toneladas de basura proyectada a recolectar por crecimiento urbano  por mes (346) en las rutas municipales existentes / Total de toneladas de basura recolectada actualmente por mes (270) en las rutas municipales existentes)*100)-100",346,270,"Mensual","Porcentaje",{"v":0.28,"d":"28%"}," Portal Web del Municipio página de transparencia","Se dispone de personal y recursos",{"v":264848.1,"d":"264,848.1"},{"v":236500,"d":"236,500.0"},{"v":22700,"d":"22,700.0"},{"v":0,"d":"0.0"},{"v":0,"d":"0.0"},{"v":0,"d":"0.0"},{"v":0,"d":"0.0"},{"v":0,"d":"0.0"},{"v":0,"d":"0.0"},{"v":524048.1,"d":"$524,048.1"},{"v":10,"d":"$10.0"}]
[null,"Desarrollo social","Componente 5","Familias en Pobreza Disminuidas","PORCENTAJE de reducción de familias en situación de pobreza multidimensional extrema(T5-TSP)","Mide la reducción de familias en situación de pobreza multidimensional extrema","Eficacia","Gestión","(Cantidad de población (911)  que se mantiene en situación de pobreza multidimensional extrema en el municipio de acuerdo a INEGI, Censo de Población y Vivienda, 2010/ Total de Población en situación de pobreza multidimensional (15,133) INEGI, Censo de Población y Vivienda, 2010  que necesitanser incorporados a programas de apoyo que ayuden a superar esta condicion en el municipio )*100",911,15133,"Bimestral","Porcentaje","6% "," Portal Web del Municipio página de transparencia","Se dispone de personal y recursos",{"v":863363,"d":"$863,363.0"},{"v":41000,"d":"$41,000.0"},{"v":9000,"d":"$9,000.0"},{"v":1500000,"d":"$1,500,000.0"},{"v":0,"d":"$0.0"},{"v":0,"d":"$0.0"},{"v":0,"d":"$0.0"},{"v":0,"d":"$0.0"},{"v":0,"d":"$0.0"},{"v":2413363,"d":"$2,413,363.0"}]
[null,null,"Actividad 5.1","Desarrollar un plan estratégico de colaboración entre  Gobierno Federal, Estatal y Municipal, orientado  al empleo, capacitación, y desarrollo económico de la sociedad, familiar e individual.","PORCENTAJE de avance en el desarrollo del Plan económico estratégico (P66-ADPE)","Mide los avances en el cumplimiento del plan económico estratégico a traves de beneficiar a los adultos mayores","Eficacia","Gestión","(Cantidad de población (4,256)  que se mantiene como vulnerable por ingresos en el municipio de acuerdo a INEGI, Censo de Población y Vivienda, 2010/ Total de Población vulnerable por carencias sociales  (16,399) INEGI, Censo de Población y Vivienda, 2010  que necesitanser incorporados a programas de apoyo economico en el municipio )*100",4256,16399,"Mensual","Porcentaje",{"v":0.26,"d":"26%"}," Portal Web del Municipio página de transparencia","Se dispone de personal y recursos",{"v":129504.45,"d":"129,504.5"},{"v":6150,"d":"6,150.0"},{"v":1350,"d":"1,350.0"},{"v":225000,"d":"225,000.0"},{"v":0,"d":"0.0"},{"v":0,"d":"0.0"},{"v":0,"d":"0.0"},{"v":0,"d":"0.0"},{"v":0,"d":"0.0"},{"v":362004.45,"d":"$362,004.5"},{"v":15,"d":"$15.0"}]
[null,null,"Actividad 5.2","Promover  y difundir  la incorporación  de todos los beneficiarios de los diferentes Programas Federales, Estatales y Municipales al Seguro Popular, manteniendo activas sus pólizas de coberturas.","PORCENTAJE de ciudadanos apoyados en mantener activas sus pólizas de cobertura (P67-CAMAPC)","Mide el numero de ciudadanos que se mantienen como beneficiarios con cobertura de servicios de salud","Eficacia","Gestión","(Cantidad de población (2278) atendida que se mantiene con cobertura y poliza activa de  seguridad pública de salud en el municipio de acuerdo a INEGI, Censo de Población y Vivienda, 2010/ Total de población (9,847) INEGI, Censo de Población y Vivienda, 2010  que necesita incorporar a cobertura y poliza activa de  seguridad pública de salud en el municipio )*100",4500,12125,"Mensual","Porcentaje",{"v":0.3711,"d":"37.11%"}," Portal Web del Municipio página de transparencia","Se dispone de personal y recursos",{"v":215840.75,"d":"215,840.8"},{"v":10250,"d":"10,250.0"},{"v":2250,"d":"2,250.0"},{"v":375000,"d":"375,000.0"},{"v":0,"d":"0.0"},{"v":0,"d":"0.0"},{"v":0,"d":"0.0"},{"v":0,"d":"0.0"},{"v":0,"d":"0.0"},{"v":603340.75,"d":"$603,340.8"},{"v":25,"d":"$25.0"}]
[null,null,"Actividad 5.3","Atender las zonas de atención prioritaria, para que accedan a los servicios básicos","PORCENTAJE de cobertura en servicios básicos a Zonas Prioritarias con carencias sociales (P68-CSBZP)","Mide los habitante con carencias sociales que cuentan con servcios básicos dentro de los poligonos de zonas prioritarias","Eficacia","Gestión","(Cantidad de población (11,480) atendida que vive en las zonas de atencion prioritaria con carencias sociales en el municipio de acuerdo a CONAPOJ 2015/ Total de población (16,399) que vive en las zonas de atencion prioritaria con carencias sociales (Rezago educativo 8,669, Acceso a los servicios de salud 9,847, Acceso a la seguridad social 22,255, Calidad y espacios de la vivienda 5,400, Acceso a los servicios básicos en la vivienda 1,700  y Acceso a la alimentación 7,194) en el municipio)*100",11480,16399,"Mensual","Porcentaje",{"v":0.7,"d":"70%"}," Portal Web del Municipio página de transparencia","Se dispone de personal y recursos",{"v":518017.8,"d":"518,017.8"},{"v":24600,"d":"24,600.0"},{"v":5400,"d":"5,400.0"},{"v":900000,"d":"900,000.0"},{"v":0,"d":"0.0"},{"v":0,"d":"0.0"},{"v":0,"d":"0.0"},{"v":0,"d":"0.0"},{"v":0,"d":"0.0"},{"v":1448017.8,"d":"$1,448,017.8"},{"v":60,"d":"$60.0"}]
[null,"Instituto de la mujer","Componente 6","Maltrato y Desigualdad de Género Disminuidos","ÍNDICE de maltrato y desigualdad de género (T6-MyDG)","Mide la reducción del maltrato mediante la prevencion, ocupación y su reglamento","Eficacia","Gestión","(valor resultante de sumar los valores individuales  de  los cosientes entre sus denominadores por su ponderacion asignada, que miden las  variables de: prevención de violencia, femeninas ocupadas y actualizacion reglamento  con su correspondientes ponderaciones de .3, .3,  y .4)",20.1,21.9,"Bimestral","Índice","0.92"," Portal Web del Municipio página de transparencia","Se dispone de personal y recursos",{"v":0,"d":"$0.0"},{"v":0,"d":"$0.0"},{"v":0,"d":"$0.0"},{"v":480000,"d":"$480,000.0"},{"v":0,"d":"$0.0"},{"v":0,"d":"$0.0"},{"v":0,"d":"$0.0"},{"v":0,"d":"$0.0"},{"v":0,"d":"$0.0"},{"v":480000,"d":"$480,000.0"}]
[null,null,"Actividad 6.1","Desarrollar dos programas para prevenir y erradicar la violencia de genero.  1 .- Proyecto quiérete Mujer   2.-Proyecto Junto a ti","PORCENTAJE de avance del programa de prevención de la violencia de genero que disminuya la presencia de feminicidios (P69-APPVG)","Mide le disminución y denuncia del abuso de mujeres violentadas que pueden terminar en feminicidios","Eficacia","Gestión","(Cantidad de actividades  (27) concluidas para la implementación de los programas para prevenir y erradicar la violencia de genero.  1 .- Proyecto quiérete Mujer (12) y  2.-Proyecto Junto a ti (15)\".  / Total de actividades  (31) para la implementación de los programas para prevenir y erradicar la violencia de genero.  1 .- Proyecto quiérete Mujer (14) y  2.-Proyecto Junto a ti (17)\". )*100",27,31,"Mensual","Porcentaje",{"v":0.87,"d":"87%"}," Portal Web del Municipio página de transparencia","Se dispone de personal y recursos",{"v":0,"d":"0.0"},{"v":0,"d":"0.0"},{"v":0,"d":"0.0"},{"v":96000,"d":"96,000.0"},{"v":0,"d":"0.0"},{"v":0,"d":"0.0"},{"v":0,"d":"0.0"},{"v":0,"d":"0.0"},{"v":0,"d":"0.0"},{"v":96000,"d":"$96,000.0"},{"v":20,"d":"$20.0"}]
[null,null,"Actividad 6.2","Implementar dos programas  \"Mujer es poder\"  y \"Mujeres en acción\"  ","PORCENTAJE de implementación de los dos programas con población femenina ocupada (P70-IDP)","Mide el numero de población femenina ocupada y activas en el empoderamiento y activación de la mujer","Eficacia","Gestión","(Cantidad de actividades  (24) concluidas para la implementación de los programas  \"Mujer es poder (11)\"  y \"Mujeres en acción (13)\" manteniendo a poblacion femenina ocupada en ellos / Total de de actividades  (26) para la implementación de los programas  \"Mujer es poder (12)\"  y \"Mujeres en acción (14)\" manteniendo a poblacion femenina ocupada en ellos )*100",24,26,"Mensual","Porcentaje",{"v":0.923,"d":"92.30%"}," Portal Web del Municipio página de transparencia","Se dispone de personal y recursos",{"v":0,"d":"0.0"},{"v":0,"d":"0.0"},{"v":0,"d":"0.0"},{"v":312000,"d":"312,000.0"},{"v":0,"d":"0.0"},{"v":0,"d":"0.0"},{"v":0,"d":"0.0"},{"v":0,"d":"0.0"},{"v":0,"d":"0.0"},{"v":312000,"d":"$312,000.0"},{"v":65,"d":"$65.0"}]
[null,null,"Actividad 6.3","Actualizar Reglamento a Ley de Acceso a una Vida Libre de Violencia. Elaboración del Reglamento a la Ley de Igualdad  para Mujeres y Hombres. Ambos reglamentos adaptados  de  acuerdo a lo observado por la secretaria de igualdad sustantiva.","PORCENTAJE de actualización del reglamento (P71-ARLA)","Mide los avances en la elaboracion del reglamento ","Eficacia","Gestión","(Cantidad de actividades  (12) concluidas para la elaboración del reglamento  homologado a la  Ley de Acceso a una Vida Libre de Violencia y a la Ley de Igualdad  para Mujeres y Hombres / Total de  actividades  (12) para la elaboración del reglamento  homologado a la  Ley de Acceso a una Vida Libre de Violencia y a la Ley de Igualdad  para Mujeres y Hombres )*100",12,12,"Mensual","Porcentaje",{"v":1,"d":"100%"}," Portal Web del Municipio página de transparencia","Se dispone de personal y recursos",{"v":0,"d":"0.0"},{"v":0,"d":"0.0"},{"v":0,"d":"0.0"},{"v":72000,"d":"72,000.0"},{"v":0,"d":"0.0"},{"v":0,"d":"0.0"},{"v":0,"d":"0.0"},{"v":0,"d":"0.0"},{"v":0,"d":"0.0"},{"v":72000,"d":"$72,000.0"},{"v":15,"d":"$15.0"}]
[null,"Deportes","Componente 7","Actividad Física y Deportiva Incrementada","ÍNDICE de actividad física y deportiva  (T7-AFyD)","Mide la relación de ciudadanos que hacen ejercicio o actividad fisica respecto a los que no lo hacen","Eficacia","Gestión","(valor resultante de sumar los valores individuales  de  los cosientes entre sus denominadores por su ponderacion asignada, que miden las  variables de: mantenimiento áreas, torneos relampagos, ligas deportivas y talleres deportivos  con su correspondientes ponderaciones de .3, .2, .2 y .3)",1325.7,1472,"Bimestral","Índice","0.22"," Portal Web del Municipio página de transparencia","Se dispone de personal y recursos",{"v":671689,"d":"$671,689.0"},{"v":191000,"d":"$191,000.0"},{"v":15000,"d":"$15,000.0"},{"v":0,"d":"$0.0"},{"v":0,"d":"$0.0"},{"v":0,"d":"$0.0"},{"v":0,"d":"$0.0"},{"v":0,"d":"$0.0"},{"v":0,"d":"$0.0"},{"v":877689,"d":"$877,689.0"}]
[null,null,"Actividad 7.1","Programa de mantenimiento  preventivo de unidades y áreas deportivas","PORCENTAJE de cumplimiento al programa de mantenimiento de áreas deportivas (P72-CPMAD)","Mide los avances en la ejecución del programa de mantenimiento","Eficacia","Gestión","(Cantidad de áreas y espacios establecidos para la practica del deporte y la cultura física (15) con actividades y trabajos incluidos en el programa de mantenimiento / Total de áreas y espacios establecidos para la practica del deporte y la cultura física (20) con las actividades y trabajos establecidos en el programa de mantenimiento)*100",15,20,"Mensual","Porcentaje",{"v":0.75,"d":"75%"}," Portal Web del Municipio página de transparencia","Se dispone de personal y recursos",{"v":134337.8,"d":"134,337.8"},{"v":38200,"d":"38,200.0"},{"v":3000,"d":"3,000.0"},{"v":0,"d":"0.0"},{"v":0,"d":"0.0"},{"v":0,"d":"0.0"},{"v":0,"d":"0.0"},{"v":0,"d":"0.0"},{"v":0,"d":"0.0"},{"v":175537.8,"d":"$175,537.8"},{"v":20,"d":"$20.0"}]
[null,null,"Actividad 7.2","Realizar torneos relámpago en cada comité vecinal deportivo","PORCENTAJE de cumplimiento del programa de torneos relámpago (P73-CPTR)","Mide los avances en la ejecución del programa de torneos","Eficacia","Gestión","(Cantidad de población (3000) que participa en torneos relampago -10 equipos en 15 ligas deportivas- en el municipio / Total de población (3600) que participa en torneos relampago -10 equipos en 15 ligas deportivas- en el municipio)*100",3000,3600,"Mensual","Porcentaje",{"v":0.8333,"d":"83.33%"}," Portal Web del Municipio página de transparencia","Se dispone de personal y recursos",{"v":100753.35,"d":"100,753.4"},{"v":28650,"d":"28,650.0"},{"v":2250,"d":"2,250.0"},{"v":0,"d":"0.0"},{"v":0,"d":"0.0"},{"v":0,"d":"0.0"},{"v":0,"d":"0.0"},{"v":0,"d":"0.0"},{"v":0,"d":"0.0"},{"v":131653.35,"d":"$131,653.4"},{"v":15,"d":"$15.0"}]
[null,null,"Actividad 7.3","Organizar una liga deportiva en cada comité vecinal","PORCENTAJE de avance en la organización de  ligas deportivas (P74-AOLD)","Mide el avance en la organización y funcionamiento de las ligas deportivas que incorporan población que participa en los proyectos de cultura física en el  municipio (estado).","Eficacia","Gestión","(Cantidad de población (3600) que participa en proyectos de cultura fisica -100 jovenes- y deporte -15 ligas deportivas- en el municipio / Total de población (3700) que participa en proyectos de cultura fisica y deporte en el municipio)*100",3600,3700,"Mensual","Porcentaje",{"v":0.9727,"d":"97.27%"}," Portal Web del Municipio página de transparencia","Se dispone de personal y recursos",{"v":235091.15000000002,"d":"235,091.2"},{"v":66850.00000000001,"d":"66,850.0"},{"v":5250.000000000001,"d":"5,250.0"},{"v":0,"d":"0.0"},{"v":0,"d":"0.0"},{"v":0,"d":"0.0"},{"v":0,"d":"0.0"},{"v":0,"d":"0.0"},{"v":0,"d":"0.0"},{"v":307191.1500000001,"d":"$307,191.2"},{"v":35.00000000000001,"d":"$35.0"}]
[null,null,"Actividad 7.4","Desarrollar talleres de capacitación y entrenamiento para atletas a la olimpiada nacional","PORCENTAJE de cumplimiento de talleres deportivos a atletas (P75-ATDA)","Mide los avances de ejecución de los talleres deportivos con el número de atletas jaliscienses que se integran a la selección nacional.","Eficacia","Gestión","(Cantidad de atletas y deportistas (4) que calificaron en los talleres de capacitación y entrenamiento para competir en la olimpiada nacional / Total de atletas y deportistas (20) que participan en los talleres de capacitación y entrenamiento para competir en la olimpiada nacional)*100",4,20,"Mensual","Porcentaje",{"v":0.2,"d":"20%"}," Portal Web del Municipio página de transparencia","Se dispone de personal y recursos",{"v":201506.7,"d":"201,506.7"},{"v":57300,"d":"57,300.0"},{"v":4500,"d":"4,500.0"},{"v":0,"d":"0.0"},{"v":0,"d":"0.0"},{"v":0,"d":"0.0"},{"v":0,"d":"0.0"},{"v":0,"d":"0.0"},{"v":0,"d":"0.0"},{"v":263306.7,"d":"$263,306.7"},{"v":30,"d":"$30.0"}]
[null,"Educación","Componente 8","Cobertura Educativa Ampliada","TASA de Cobertura Educativa (T8-CE)","Mide la relación de coberura educativa reflejado en el grado municipal promedio de escolaridad","Eficacia","Gestión","(Tasa de cobertura educativa básica, media y superior municipal por cada uno de los 452 alumnos que se inscriben en educacion superior en los planteles educativos en el municipio   ",452,15262,"Bimestral","Tasa","30 : 1000"," Portal Web del Municipio página de transparencia","Se dispone de personal y recursos",{"v":503225,"d":"$503,225.0"},{"v":19000,"d":"$19,000.0"},{"v":4000,"d":"$4,000.0"},{"v":0,"d":"$0.0"},{"v":0,"d":"$0.0"},{"v":0,"d":"$0.0"},{"v":0,"d":"$0.0"},{"v":0,"d":"$0.0"},{"v":0,"d":"$0.0"},{"v":526225,"d":"$526,225.0"}]
[null,null,"Actividad 8.1","Tramitar a través de la Dirección de Atención a la Infraestructura Escolar, equipamiento de escuelas.","PORCENTAJE de planteles de educación básica que participaron en el programa de infraestructura escolar (P76-CTIE)","Mide el avance en los tramites para que los planteles de educación básica sean beneficiados  en el programa de infraestructura escolar","Eficacia","Gestión","(Cantidad de planteles de educación básica  (32) -Preescolar 15, escuelas primarias 17, escuela secundaria 0- beneficiadas  con el programa de infraestructura escolar / Total planteles de educación básica (68) -Preescolar 29, escuelas primarias 31, escuelas secundaria 8- que necesitan ser beneficiadas  con el programa de infraestructura escolar)*100",32,68,"Mensual","Porcentaje",{"v":0.4705,"d":"47.05%"}," Portal Web del Municipio página de transparencia","Se dispone de personal y recursos",{"v":125806.25,"d":"125,806.3"},{"v":4750,"d":"4,750.0"},{"v":1000,"d":"1,000.0"},{"v":0,"d":"0.0"},{"v":0,"d":"0.0"},{"v":0,"d":"0.0"},{"v":0,"d":"0.0"},{"v":0,"d":"0.0"},{"v":0,"d":"0.0"},{"v":131556.25,"d":"$131,556.3"},{"v":25,"d":"$25.0"}]
[null,null,"Actividad 8.2","Llevar a todas las escuelas de nivel Superior y medio superior, programas de valores y autoestima. SEP y ORG. Part. Programa de becas.  Llevar a cabo conferencias motivacionales. Caja de herramientas contra la deserción escolar, SEMS","PORCENTAJE de cumplimiento del programa de valores, becas y disminución de la deserción escolar (P77-CPVBDDE)","Mide el cumplimiento del programa y planteles participando","Eficacia","Gestión","(Cantidad de estudiantes (1200) que participaron en los 5 programas de capacitacion y seguimiento de las escuelas de nivel Superior (1) y medio superior (6), de afiliacion federal, estatal o particular.  / Total de estudiantes (1800) que participaron en los 5 programas de capacitacion y seguimiento de las escuelas de nivel Superior (3) y medio superior (3), 1-programas de valores y autoestima. 2-Programa de becas.  3-Llevar a cabo conferencias motivacionales. 4-Caja de herramientas contra la deserción escolar. 5- SEMS. de afiliacion federal, estatal o particular)*100",1000,1400,"Mensual","Porcentaje",{"v":0.7142,"d":"71.42%"}," Portal Web del Municipio página de transparencia","Se dispone de personal y recursos",{"v":377418.75,"d":"377,418.8"},{"v":14250,"d":"14,250.0"},{"v":3000,"d":"3,000.0"},{"v":0,"d":"0.0"},{"v":0,"d":"0.0"},{"v":0,"d":"0.0"},{"v":0,"d":"0.0"},{"v":0,"d":"0.0"},{"v":0,"d":"0.0"},{"v":394668.75,"d":"$394,668.8"},{"v":75,"d":"$75.0"}]
[null,"Cultura y recreación","Componente 9","Participación en Actividades Culturales y Recreativas Incrementada","TASA de participación ciudadana en actividades culturales, recreativas y festivales  (T9-PACyD)","Mide el aumento en la participación de la ciudadania en las actividades culturales y recreativas","Eficacia","Gestión","(Tasa de participación ciudadana en actividades culturales, recreativas y festivales  por cada 1000 habitantes    ",6800,75000,"Bimestral","Tasa","90 : 1000"," Portal Web del Municipio página de transparencia","Se dispone de personal y recursos",{"v":543539,"d":"$543,539.0"},{"v":45000,"d":"$45,000.0"},{"v":4000,"d":"$4,000.0"},{"v":0,"d":"$0.0"},{"v":0,"d":"$0.0"},{"v":0,"d":"$0.0"},{"v":0,"d":"$0.0"},{"v":0,"d":"$0.0"},{"v":0,"d":"$0.0"},{"v":592539,"d":"$592,539.0"}]
[null,null,"Actividad 9.1","Desarrollar talleres de arte y danza en plazas y espacios públicos","PORCENTAJE de cumplimiento de talleres culturales (P78-CTC)","Mide los avances en la ejecución de los talleres en plazas y espacios públicos","Eficacia","Gestión","(Cantidad de talleres (6) realizados dentro del programa de arte y danza en las diferentes plazas y espacios destinados para ello en el municipio con 25 participantes en cada uno / Total  talleres (6) realizados dentro del programa de arte y danza en las diferentes plazas y espacios destinados para ello en el municipio)*100",6,6,"Mensual","Porcentaje",{"v":1,"d":"100.00%"}," Portal Web del Municipio página de transparencia","Se dispone de personal y recursos",{"v":135884.75,"d":"135,884.8"},{"v":11250,"d":"11,250.0"},{"v":1000,"d":"1,000.0"},{"v":0,"d":"0.0"},{"v":0,"d":"0.0"},{"v":0,"d":"0.0"},{"v":0,"d":"0.0"},{"v":0,"d":"0.0"},{"v":0,"d":"0.0"},{"v":148134.75,"d":"$148,134.8"},{"v":25,"d":"$25.0"}]
[null,null,"Actividad 9.2","Impartir cursos en materia de canto, música, pintura, danza etc..","PORCENTAJE de cumplimiento de cursos culturales (P79-CCC)","Mide el cumplimiento de los cursos artisticos y el capital humano artístico ocupado y empleado","Eficacia","Gestión","(Cantidad de cursos  (6) realizados dentro del programa de canto, musica, pintura y danza  en las diferentes plazas y espacios destinados para ello en el municipio con 25 participantes en cada uno  / Total cursos  (6) programados dentro del programa de canto, musica, pintura y danza  en las diferentes plazas y espacios destinados para ello en el municipio)*100",6,6,"Mensual","Porcentaje",{"v":1,"d":"100%"}," Portal Web del Municipio página de transparencia","Se dispone de personal y recursos",{"v":163061.7,"d":"163,061.7"},{"v":13500,"d":"13,500.0"},{"v":1200,"d":"1,200.0"},{"v":0,"d":"0.0"},{"v":0,"d":"0.0"},{"v":0,"d":"0.0"},{"v":0,"d":"0.0"},{"v":0,"d":"0.0"},{"v":0,"d":"0.0"},{"v":177761.7,"d":"$177,761.7"},{"v":30,"d":"$30.0"}]
[null,null,"Actividad 9.3","Realizar festivales, eventos culturales y tradiciones","PORCENTAJE de cumplimiento del programa de festivales, eventos y tradiciones (P80-CPFET)","Mide la proporción de eventos y adiestramientos culturales dirigidos a grupos prioritarios","Eficacia","Gestión","(Cantidad de eventos (13) realizados dentro del programa de festivales, culturales y tradicionales en las diferentes plazas y espacios destinados para ello en el municipio con 500 participantes en cada uno  / Total de eventos (13) realizados dentro del programa de festivales, culturales y tradicionales en las diferentes plazas y espacios destinados para ello en el municipio)*100",13,13,"Mensual","Porcentaje",{"v":1,"d":"100.00%"}," Portal Web del Municipio página de transparencia","Se dispone de personal y recursos",{"v":244592.55,"d":"244,592.6"},{"v":20250,"d":"20,250.0"},{"v":1800,"d":"1,800.0"},{"v":0,"d":"0.0"},{"v":0,"d":"0.0"},{"v":0,"d":"0.0"},{"v":0,"d":"0.0"},{"v":0,"d":"0.0"},{"v":0,"d":"0.0"},{"v":266642.55,"d":"$266,642.6"},{"v":45,"d":"$45.0"}]
[null,"Servicios públicos","Componente 10","Tasa de Urbanización Incrementada","TASA de urbanización (T10-U)","Mide la relación de ideal minima de equipamiento en centros de población","Eficacia","Gestión","(Tasa de servicios e infraestructura atendidos en los fracionamientos por cada 10 esteblecidos en los respectivos programas   ",13,18,"Bimestral","Tasa","7 : 10"," Portal Web del Municipio página de transparencia","Se dispone de personal y recursos",{"v":1691200,"d":"$1,691,200.0"},{"v":1345993,"d":"$1,345,993.0"},{"v":173000,"d":"$173,000.0"},{"v":0,"d":"$0.0"},{"v":0,"d":"$0.0"},{"v":0,"d":"$0.0"},{"v":0,"d":"$0.0"},{"v":0,"d":"$0.0"},{"v":6000000,"d":"$6,000,000.0"},{"v":9210193,"d":"$9,210,193.0"}]
[null,null,"Actividad 10.1","Elaborar el programa de servicios básicos necesarios por fraccionamiento","PORCENTAJE de avance del programa de servicios básicos por fraccionamiento (P81-APSBF)","Mide el avance en el programa de servicios básicos necesarios en fraccionamientos","Eficacia","Gestión","(Cantidad de variables (5) a atendidas dentro del programa de servicios básicos necesarios en fraccionamientos / Total de variables (8) a considerar dentro del programa de servicios básicos necesarios en fraccionamientos)*100",5,8,"Mensual","Porcentaje",{"v":0.625,"d":"62.50%"}," Portal Web del Municipio página de transparencia","Se dispone de personal y recursos",{"v":1014720,"d":"1,014,720.0"},{"v":807595.8,"d":"807,595.8"},{"v":103800,"d":"103,800.0"},{"v":0,"d":"0.0"},{"v":0,"d":"0.0"},{"v":0,"d":"0.0"},{"v":0,"d":"0.0"},{"v":0,"d":"0.0"},{"v":3600000,"d":"3,600,000.0"},{"v":5526115.8,"d":"$5,526,115.8"},{"v":60,"d":"$60.0"}]
[null,null,"Actividad 10.2","Elaborar el programa de infraestructura necesaria por fraccionamiento","PORCENTAJE de avance del programa de infraestructura por fraccionamiento (P82-APIF)","Mide el avance en el programa de infraestructura básica necesaria en fraccionamientos","Eficacia","Gestión","(Cantidad de variables (8) a atendidas dentro del programa de infraestructura en fraccionamientos / Total de variables (10) a considerar dentro del programa de infraestructura en fraccionamientos)*100",8,10,"Mensual","Porcentaje",{"v":0.8,"d":"80%"}," Portal Web del Municipio página de transparencia","Se dispone de personal y recursos",{"v":676480,"d":"676,480.0"},{"v":538397.2,"d":"538,397.2"},{"v":69200,"d":"69,200.0"},{"v":0,"d":"0.0"},{"v":0,"d":"0.0"},{"v":0,"d":"0.0"},{"v":0,"d":"0.0"},{"v":0,"d":"0.0"},{"v":2400000,"d":"2,400,000.0"},{"v":3684077.2,"d":"$3,684,077.2"},{"v":40,"d":"$40.0"}]
[null,"Cementerios","Componente 11","Satisfacción en Servicios de Cementerios Incrementada","INDICE de satisfacción en el servicios de cementerios (V1-SSC)","Mide el nivel de satisfaccion de la ciudadania que acude a los cementerios ","Eficacia","Gestión","(valor resultante de sumar los valores individuales  de  los cosientes entre sus denominadores por su ponderacion asignada, que miden las  variables de: actividades y reorganización, ampliacion servicios y difusión reglamento con su correspondientes ponderaciones de .3, .4, y .3)",883,2813.6,"Bimestral","Índice",0.31," Portal Web del Municipio página de transparencia","Se dispone de personal y recursos",{"v":189494,"d":"$189,494.0"},{"v":32000,"d":"$32,000.0"},{"v":6000,"d":"$6,000.0"},{"v":0,"d":"$0.0"},{"v":0,"d":"$0.0"},{"v":0,"d":"$0.0"},{"v":0,"d":"$0.0"},{"v":0,"d":"$0.0"},{"v":0,"d":"$0.0"},{"v":227494,"d":"$227,494.0"}]
[null,null,"Actividad 11.1","Programa de actividades y reorganización administrativa de los cementerios","PORCENTAJE de avance del programa administrativo de cementerios (P83-APAC)","Mide el avance en el programa de actividades para el cementerio","Eficacia","Gestión","(Cantidad de actividades administrativas y organizacionales a desarrolladas dentro del programa anual de trabajo (8) / Total de actividades administrativas y organizacionales a desarrollar dentro del programa anual de trabajo (12) )*100",10,12,"Mensual","Porcentaje",{"v":0.8333,"d":"83.33%"}," Portal Web del Municipio página de transparencia","Se dispone de personal y recursos",{"v":37898.8,"d":"37,898.8"},{"v":6400.000000000001,"d":"6,400.0"},{"v":1200.0000000000002,"d":"1,200.0"},{"v":0,"d":"0.0"},{"v":0,"d":"0.0"},{"v":0,"d":"0.0"},{"v":0,"d":"0.0"},{"v":0,"d":"0.0"},{"v":0,"d":"0.0"},{"v":45498.80000000001,"d":"$45,498.8"},{"v":20.000000000000004,"d":"$20.0"}]
[null,null,"Actividad 11.2","Programa de ampliación de red de alumbrado y agua potable en los panteones municipales","PORCENTAJE de implementación del programa de alumbrado y agua potable en cementerios (P84-IPAAPC)","Mide el cumplimiento del programa de servicios en los cementerios","Eficacia","Gestión","(Cantidad de metros lineales ampliados en la red de alumbrado publico (300) y agua potable (400) dentro del programa de ampliación de las instalaciones de los panteones municipales  / Total de metros lineales necesarios de ampliar en la red de alumbrado publico (600) y agua potable (800) dentro de las instalaciones de los panteones municipales)*100",700,1400,"Mensual","Porcentaje",{"v":0.5,"d":"50%"}," Portal Web del Municipio página de transparencia","Se dispone de personal y recursos",{"v":132645.8,"d":"132,645.8"},{"v":22400,"d":"22,400.0"},{"v":4200,"d":"4,200.0"},{"v":0,"d":"0.0"},{"v":0,"d":"0.0"},{"v":0,"d":"0.0"},{"v":0,"d":"0.0"},{"v":0,"d":"0.0"},{"v":0,"d":"0.0"},{"v":159245.8,"d":"$159,245.8"},{"v":70,"d":"$70.0"}]
[null,null,"Actividad 11.3","Programa de difusión del reglamento municipal a los propietarios y ciudadanía en general.","PORCENTAJE de cumplimiento del programa de difusión del reglamento de cementerios (P85-CPDRC)","Mide el nivel de conocimiento por la ciudadania del reglamento de cementerios","Eficacia","Gestión","(Cantidad de familias (2000) que cuentan con espacios ocupados en los cementerios municipales y familias de la pobalcion municipal que pueden participar en el programa de difusion del reglamento de cementerios y que les  puede interesar conocer  el uso y aplicación / Total de familias (7500) que radican en el territorio municipal que pueden ocupar espcios en los cementerios municipales  que les puede interesar conocer el reglamento de cementerios municipal  sobre el uso y aplicación )*100",2000,7500,"Mensual","Porcentaje",{"v":0.2666,"d":"26.66%"}," Portal Web del Municipio página de transparencia","Se dispone de personal y recursos",{"v":18949.4,"d":"18,949.4"},{"v":3200.0000000000005,"d":"3,200.0"},{"v":600.0000000000001,"d":"600.0"},{"v":0,"d":"0.0"},{"v":0,"d":"0.0"},{"v":0,"d":"0.0"},{"v":0,"d":"0.0"},{"v":0,"d":"0.0"},{"v":0,"d":"0.0"},{"v":22749.400000000005,"d":"$22,749.4"},{"v":10.000000000000002,"d":"$10.0"}]
[null,"DIF","Componente 12","Atención en el Dif Incrementada","ÍNDICE de atención en el DIF municipal (T11-ADIFM)","Mide la relación en la atención a la ciudadania que solicita apoyo","Eficacia","Gestión","(valor resultante de sumar los valores individuales  de  los cosientes entre sus denominadores por su ponderacion asignada, que miden las  variables de: transparencia de información, ampliacion horario, atencion familiar y capacitación laboral con su correspondientes ponderaciones de .2, .2, .3,  y .3)",216.6,241,"Bimestral","Índice","0.898"," Portal Web del Municipio página de transparencia","Se dispone de personal y recursos",{"v":0,"d":"$0.0"},{"v":0,"d":"$0.0"},{"v":0,"d":"$0.0"},{"v":4520000,"d":"$4,520,000.0"},{"v":0,"d":"$0.0"},{"v":0,"d":"$0.0"},{"v":0,"d":"$0.0"},{"v":0,"d":"$0.0"},{"v":0,"d":"$0.0"},{"v":4520000,"d":"$4,520,000.0"}]
[null,null,"Actividad 12.1","Mantener y actualizado el portal web de transparencia con la información pública fundamental, Atender las solicitudes de información solicitadas por transparencia ","PORCENTAJE de actualización del portal Web de transparencia DIF (P86-APWTD)","Mide el cumplimiento en la actualizacion de la información en las plataformas de transparencia","Eficacia","Gestión","(Cantidad de solicitudes de informacion (432) que se reciben en la direccion municipal de transparencia a traves de los diferentes mecanismos para atender a la ciudadania y que se dictaminen positivamente/ Total de solicitudes de informacion (450) que se reciben en la direccion municipal de transparencia a traves de los diferentes mecanismos para atender a la ciudadania)*100",432,450,"Mensual","Porcentaje",{"v":0.96,"d":"96.00%"}," Portal Web del Municipio página de transparencia","Se dispone de personal y recursos",{"v":0,"d":"0.0"},{"v":0,"d":"0.0"},{"v":0,"d":"0.0"},{"v":452000,"d":"452,000.0"},{"v":0,"d":"0.0"},{"v":0,"d":"0.0"},{"v":0,"d":"0.0"},{"v":0,"d":"0.0"},{"v":0,"d":"0.0"},{"v":452000,"d":"$452,000.0"},{"v":10,"d":"$10.0"}]
[null,null,"Actividad 12.2","Mejorar la atención a las familias mediante la ampliación de horario de atención y talleres de prevención ","PORCENTAJE de ampliación de horario y talleres realizados (P87-AHTR)","Mide el incremento en la atención a las familias con el incremento de horario y talleres de capacitación","Eficacia","Gestión","(Cantidad de familias (444) que se han podido atender con las (56) horas adicionales mensuales para mejorar la atencion mediante la ampliación de horario de atención y capacitación / Total de  familias (500) que se espera atender con la ampliación de horario de atención y capacitación)*100",444,500,"Mensual","Porcentaje",{"v":0.888,"d":"88.80%"}," Portal Web del Municipio página de transparencia","Se dispone de personal y recursos",{"v":0,"d":"0.0"},{"v":0,"d":"0.0"},{"v":0,"d":"0.0"},{"v":678000,"d":"678,000.0"},{"v":0,"d":"0.0"},{"v":0,"d":"0.0"},{"v":0,"d":"0.0"},{"v":0,"d":"0.0"},{"v":0,"d":"0.0"},{"v":678000,"d":"$678,000.0"},{"v":15,"d":"$15.0"}]
[null,null,"Actividad 12.3","Programa de atención de solicitudes de apoyo a familias y personas con algún tipo de vulnerabilidad  relacionadas a la salud, discapacidad, medidas de protección, atención jurídica y/o psicológica, etc.","PORCENTAJE de atención a solicitudes recibidas (P88-ASR)","Mide el incremento en la atención a la ciudadania y familias en situacion  vulnerable","Eficacia","Gestión","(Cantidad de ciudadanos, familias y personas con algún tipo de vulnerabilidad  relacionadas a la salud, discapacidad, medidas de protección, atención jurídica y/o psicológica (130) que solicitan apoyo mensualmente y se les puede otorgar / Total de de ciudadanos, familias y personas con algún tipo de vulnerabilidad  relacionadas a la salud, discapacidad, medidas de protección, atención jurídica y/o psicológica (160) que solicitan apoyo mensualmente)*100",130,160,"Mensual","Porcentaje",{"v":0.8125,"d":"81.25%"}," Portal Web del Municipio página de transparencia","Se dispone de personal y recursos",{"v":0,"d":"0.0"},{"v":0,"d":"0.0"},{"v":0,"d":"0.0"},{"v":2486000,"d":"2,486,000.0"},{"v":0,"d":"0.0"},{"v":0,"d":"0.0"},{"v":0,"d":"0.0"},{"v":0,"d":"0.0"},{"v":0,"d":"0.0"},{"v":2486000,"d":"$2,486,000.0"},{"v":55,"d":"$55.0"}]
[null,null,"Actividad 12.4","Apoyo en la gestión de ofertas laborales, capacitación laboral, fomentar cultura de emprendimiento y procesos que les ayuden a mejorar su condición.","PORCENTAJE de gestiones exitosas (P89-GE)","Mide el incremento en la solicitud de apoyo para encontrar una actividad laboral","Eficacia","Gestión","(Cantidad de ciudadanos (8) que logra colocar el DIF mensualmente en un empleo despues de recibir una capacitacion para encontrar un empleo personal / Total de ciudadanos (10) que acuden mensualmente al DIF a solicitar apoyo para conseguir una capacitacion para encontrar un empleo personal)*100",8,10,"Mensual","Porcentaje",{"v":0.8,"d":"80%"}," Portal Web del Municipio página de transparencia","Se dispone de personal y recursos",{"v":0,"d":"0.0"},{"v":0,"d":"0.0"},{"v":0,"d":"0.0"},{"v":904000,"d":"904,000.0"},{"v":0,"d":"0.0"},{"v":0,"d":"0.0"},{"v":0,"d":"0.0"},{"v":0,"d":"0.0"},{"v":0,"d":"0.0"},{"v":904000,"d":"$904,000.0"},{"v":20,"d":"$20.0"}]
[null,"Atención ciudadana","Componente 13","Atención Ciudadana Incrementada","TASA de atención ciudadana (T12-AC)","Mide el aumento en la relación de solicitudes de atencion a la ciudadania","Eficacia","Gestión","(Tasa de solicitudes recibidas y dirigidas a la direccion que atienede el tema relacionado y resueltas satisfactoriamente por cada 100 solicitudes     ",144,180,"Bimestral","Tasa","80 : 100"," Portal Web del Municipio página de transparencia","Se dispone de personal y recursos",{"v":188295,"d":"$188,295.0"},{"v":26000,"d":"$26,000.0"},{"v":4000,"d":"$4,000.0"},{"v":0,"d":"$0.0"},{"v":0,"d":"$0.0"},{"v":0,"d":"$0.0"},{"v":0,"d":"$0.0"},{"v":0,"d":"$0.0"},{"v":0,"d":"$0.0"},{"v":218295,"d":"$218,295.0"}]
[null,null,"Actividad 13.1","Eficientizar el programa adaptado en la nube para la pronta atención de los reportes recibidos.","PORCENTAJE de atención concluida a reportes recibidos (P90-ACRR)","Mide el incremento en la conclusion exitosa de solicitudes de apoyo ","Eficacia","Gestión","(Cantidad de solicitudes y reportes de apoyo  (15) recibidas en la direccion de atencion a la ciudadania por mes y colocadas en el programa adaptado en la nube para su seguimiento y resolución por la direccion directamente involucrada en el transcurso de dicho mes / Total de solicitudes y reportes de apoyo  (15) recibidas en la direccion de atencion a la ciudadania por mes y que se a dado puntual seguimiento a su solución por la direccion directamente involucrada)*100",15,15,"Mensual","Porcentaje",{"v":1,"d":"100.00%"}," Portal Web del Municipio página de transparencia","Se dispone de personal y recursos",{"v":188295,"d":"188,295.0"},{"v":26000,"d":"26,000.0"},{"v":4000,"d":"4,000.0"},{"v":0,"d":"0.0"},{"v":0,"d":"0.0"},{"v":0,"d":"0.0"},{"v":0,"d":"0.0"},{"v":0,"d":"0.0"},{"v":0,"d":"0.0"},{"v":218295,"d":"$218,295.0"},{"v":100,"d":"$100.0"}]
[null,"Participación ciudadana","Componente 14","Participación Ciudadana Incrementada","TASA de participación ciudadana (T13-PC)","Mide la relacion de participación de la ciudadania en lo que se quiere comunicar","Eficacia","Gestión","(Tasa de ciudadanos que participan en las sesiones de los comites vecinales para atender el plan anual de sesiones  por cada consejero    ",300,35,"Bimestral","Tasa","8.5 : 1"," Portal Web del Municipio página de transparencia","Se dispone de personal y recursos",{"v":223412,"d":"$223,412.0"},{"v":14000,"d":"$14,000.0"},{"v":4000,"d":"$4,000.0"},{"v":0,"d":"$0.0"},{"v":0,"d":"$0.0"},{"v":0,"d":"$0.0"},{"v":0,"d":"$0.0"},{"v":0,"d":"$0.0"},{"v":0,"d":"$0.0"},{"v":241412,"d":"$241,412.0"}]
[null,null,"Actividad 14.1","Coordinar el programa anual de sesiones del Consejo de Participación Ciudadana.","PORCENTAJE de cumplimiento del programa anual de sesiones del CPC (P91-CPASC)","Mide la participación de los integrantes de los consejo de participación ciudadana en el programa anual de sesiones","Eficacia","Gestión","(Cantidad de sesiones (20) entre los (5) consejos vecinales ciudadanos en los que se aborda plan  anual de visitas trimestrales respecto a temas de importancia  y capacitación sobre los beneficios de la participación ciudadana / Total de sesiones (20) entre los (5) consejos vecinales ciudadanos en los que se aborda plan  anual de visitas bimestral respecto a temas de importancia  y capacitación sobre los beneficios de la participación ciudadana)*100",20,20,"Mensual","Porcentaje",{"v":1,"d":"100.00%"}," Portal Web del Municipio página de transparencia","Se dispone de personal y recursos",{"v":89364.8,"d":"89,364.8"},{"v":5600,"d":"5,600.0"},{"v":1600,"d":"1,600.0"},{"v":0,"d":"0.0"},{"v":0,"d":"0.0"},{"v":0,"d":"0.0"},{"v":0,"d":"0.0"},{"v":0,"d":"0.0"},{"v":0,"d":"0.0"},{"v":96564.8,"d":"$96,564.8"},{"v":40,"d":"$40.0"}]
[null,null,"Actividad 14.2","Plan de visitas a las localidades para impartir cursos de orientación y los beneficios de la participación ciudadana.","PORCENTAJE de cumplimiento del plan de visitas (P92-CPV)","Mide el nivel de participación en el plan de visitas","Eficacia","Gestión","(Cantidad de ciudadanos (270) del municipio que atienden el plan  anual de visitas trimestral en los 5  comites vecinales para capacitación sobre los beneficios de la participación ciudadana / Total de ciudadanos (300) del municipio que atienden el plan  anual de visitas bimestral para capacitación sobre los beneficios de la participación ciudadana)*100",270,300,"Mensual","Porcentaje",{"v":0.9,"d":"90%"}," Portal Web del Municipio página de transparencia","Se dispone de personal y recursos",{"v":134047.2,"d":"134,047.2"},{"v":8400.000000000002,"d":"8,400.0"},{"v":2400.0000000000005,"d":"2,400.0"},{"v":0,"d":"0.0"},{"v":0,"d":"0.0"},{"v":0,"d":"0.0"},{"v":0,"d":"0.0"},{"v":0,"d":"0.0"},{"v":0,"d":"0.0"},{"v":144847.2,"d":"$144,847.2"},{"v":60.00000000000001,"d":"$60.0"}]
[null,"Servicios médicos","Componente 15","Calidad en Servicios de Salud Incrementada","INDICE de atención y calidad en los servicios de salud (T14-ASS) (T14-ASS)","Mide el nivel de satisfacción en los servicios de salud ofrecidos en el municipio por los SS","Eficacia","Gestión","(valor resultante de sumar los valores individuales  de  los cosientes entre sus denominadores por su ponderacion asignada, que miden las  variables de: participacion trabajadores, gestiones médicas, satisfaccion beneficiarios, personal y paramédicos con su correspondientes ponderaciones de .2, .3, .2,  y .3)",98.7,143.6,"Bimestral","Índice",0.68," Portal Web del Municipio página de transparencia","Se dispone de personal y recursos",{"v":1909015,"d":"$1,909,015.0"},{"v":1488500,"d":"$1,488,500.0"},{"v":63000,"d":"$63,000.0"},{"v":0,"d":"$0.0"},{"v":0,"d":"$0.0"},{"v":0,"d":"$0.0"},{"v":0,"d":"$0.0"},{"v":0,"d":"$0.0"},{"v":0,"d":"$0.0"},{"v":3460515,"d":"$3,460,515.0"}]
[null,null,"Actividad 15.1","Coordinar la participación de los  trabajadores del Ayuntamiento en la seguridad social.","PORCENTAJE de participación de trabajadores en SS (P93-PTSS)","Mide la participación de los empleados de la administración municipal en los servicios de SS","Eficacia","Gestión","(Cantidad de emplados del ayuntamiento municipal (400) que hacen uso y participan de los servicios de seguridad social / Total de  emplados  (600) del ayuntamiento municipal que hacen uso y participan de los servicios de seguridad social)*100",400,600,"Mensual","Porcentaje",{"v":0.75,"d":"75.00%"}," Portal Web del Municipio página de transparencia","Se dispone de personal y recursos",{"v":763606,"d":"763,606.0"},{"v":595400,"d":"595,400.0"},{"v":25200,"d":"25,200.0"},{"v":0,"d":"0.0"},{"v":0,"d":"0.0"},{"v":0,"d":"0.0"},{"v":0,"d":"0.0"},{"v":0,"d":"0.0"},{"v":0,"d":"0.0"},{"v":1384206,"d":"$1,384,206.0"},{"v":40,"d":"$40.0"}]
[null,null,"Actividad 15.2","Gestionar la creación de área de hemodiálisis,  cubículo de choque y programa de capacitación  a 5 médicos y 5 enfermeras ","PORCENTAJE de cumplimiento de las gestiones médicas (P94-CGM)","Mide los avances en las gestiones para mejorar la atención médica municipal","Eficacia","Gestión","(Cantidad de gestiones (3) necesarias para mejorar la infraestructura de atención y capacidades del personal que labora en ellos / Total de proyectos (3) que nececitan gestiones y financiamiento para mejorar los servicios de salud )*100",3,3,"Mensual","Porcentaje",{"v":1,"d":"100%"}," Portal Web del Municipio página de transparencia","Se dispone de personal y recursos",{"v":477253.75,"d":"477,253.8"},{"v":372125,"d":"372,125.0"},{"v":15750,"d":"15,750.0"},{"v":0,"d":"0.0"},{"v":0,"d":"0.0"},{"v":0,"d":"0.0"},{"v":0,"d":"0.0"},{"v":0,"d":"0.0"},{"v":0,"d":"0.0"},{"v":865128.75,"d":"$865,128.8"},{"v":25,"d":"$25.0"}]
[null,null,"Actividad 15.3","Elaborar mecanismos que permitan medir la satisfacción de los beneficiarios y la proporción de la reducción de costos por el servicio","PORCENTAJE de desarrollo y medición de satisfacción de beneficiarios (P95-DMSB)","Mide la satisfaccion de los beneficiarios en los servicios de SS","Eficacia","Gestión","(Cantidad de ciudadanos encuestados (80) durante el mes y resueltos como satisfechos del servicio recibido / Total de  ciudadanos (100) que solicitaron los servicios de salud por mes )*100",80,100,"Mensual","Porcentaje",{"v":0.8,"d":"80.00%"}," Portal Web del Municipio página de transparencia","Se dispone de personal y recursos",{"v":286352.25,"d":"286,352.3"},{"v":223275,"d":"223,275.0"},{"v":9450,"d":"9,450.0"},{"v":0,"d":"0.0"},{"v":0,"d":"0.0"},{"v":0,"d":"0.0"},{"v":0,"d":"0.0"},{"v":0,"d":"0.0"},{"v":0,"d":"0.0"},{"v":519077.25,"d":"$519,077.3"},{"v":15,"d":"$15.0"}]
[null,null,"Actividad 15.4","Ampliar el personal y la atención de paramédicos en los centros de salud","PORCENTAJE de ampliación de personal en centros de salud (P96-APCS)","Mide el incremento de personal para la atencion a la ciudadania en los Centros de Salud","Eficacia","Gestión","(Cantidad de personal (6) nuevo que se integra para fortalecer los servicios municipales de salud  / Total de  personal (9) que ya labora en los  servicios municipales de salud)*100",6,9,"Mensual","Porcentaje",{"v":0.6666,"d":"66.66%"}," Portal Web del Municipio página de transparencia","Se dispone de personal y recursos",{"v":381803,"d":"381,803.0"},{"v":297700,"d":"297,700.0"},{"v":12600,"d":"12,600.0"},{"v":0,"d":"0.0"},{"v":0,"d":"0.0"},{"v":0,"d":"0.0"},{"v":0,"d":"0.0"},{"v":0,"d":"0.0"},{"v":0,"d":"0.0"},{"v":692103,"d":"$692,103.0"},{"v":20,"d":"$20.0"}]
[null,"Agencias municipales","Componente 16","Atención en Agencias Incrementada","TASA de atención en Agencias (T15-AA)","Mide el incremento en la atencion a la ciudadania en las agencias municipales","Eficacia","Gestión","(Tasa de ciudadanos atendidos y/o consultados respecto a los servicios en supervicion de los delegados municipales por  cada 100 habitantes    ",60,100,"Bimestral","Tasa","60:100"," Portal Web del Municipio página de transparencia","Se dispone de personal y recursos",{"v":2917484,"d":"$2,917,484.0"},{"v":43000,"d":"$43,000.0"},{"v":7702818,"d":"$7,702,818.0"},{"v":300000,"d":"$300,000.0"},{"v":0,"d":"$0.0"},{"v":0,"d":"$0.0"},{"v":0,"d":"$0.0"},{"v":0,"d":"$0.0"},{"v":0,"d":"$0.0"},{"v":10963302,"d":"$10,963,302.0"}]
[null,null,"Actividad 16.1","Programa de atención a la normatividad local y actividades asignadas en agencias.","PORCENTAJE de cumplimiento del programa de agencias (P97-CPA)","Mide el cumplimiento de las atribuciones de los agentes para atender a la ciudadania","Eficacia","Gestión","(Cantidad de articulos (6) del reglamento de gobierno y la administracion pública municipal que deberan atender los delegados municipales  / Total de  articulos (14) que deberan atender en el capitulo VII del raglamento de gobierno y la administración pública municipal)*100",6,14,"Mensual","Porcentaje",{"v":0.43,"d":"43.00%"}," Portal Web del Municipio página de transparencia","Se dispone de personal y recursos",{"v":2917484,"d":"2,917,484.0"},{"v":43000,"d":"43,000.0"},{"v":7702818,"d":"7,702,818.0"},{"v":300000,"d":"300,000.0"},{"v":0,"d":"0.0"},{"v":0,"d":"0.0"},{"v":0,"d":"0.0"},{"v":0,"d":"0.0"},{"v":0,"d":"0.0"},{"v":10963302,"d":"$10,963,302.0"},{"v":100,"d":"$100.0"}]
[null,"Delegaciones municipales","Componente 17","Atención en Delegaciones Incrementada","TASA de atención en Delegaciones (T16-AD)","Mide el incremento en la atencion a la ciudadania en las delegaciones municipales","Eficacia","Gestión","(Tasa de ciudadanos atendidos y/o consultados respecto a los servicios en supervicion de los delegados municipales por  cada 100 habitantes    ",60,100,"Bimestral","Tasa","60:100"," Portal Web del Municipio página de transparencia","Se dispone de personal y recursos",{"v":2023784,"d":"$2,023,784.0"},{"v":73000,"d":"$73,000.0"},{"v":7702827,"d":"$7,702,827.0"},{"v":200000,"d":"$200,000.0"},{"v":0,"d":"$0.0"},{"v":0,"d":"$0.0"},{"v":0,"d":"$0.0"},{"v":0,"d":"$0.0"},{"v":0,"d":"$0.0"},{"v":9999611,"d":"$9,999,611.0"}]
[null,null,"Actividad 17.1","Programa de atención a la normatividad local y actividades asignadas en delegaciones.","PORCENTAJE de cumplimiento del programa de delegaciones (P98-CPD)","Mide el cumplimiento de las atribuciones de los delegados para atender a la ciudadania","Eficacia","Gestión","(Cantidad de articulos (8) del reglamento de gobierno y la administracion pública municipal que deberan atender los delegados municipales  / Total de  articulos (14) que deberan atender en el capitulo VII del raglamento de gobierno y la administración pública municipal)*100",8,14,"Mensual","Porcentaje",{"v":0.57,"d":"57.00%"}," Portal Web del Municipio página de transparencia","Se dispone de personal y recursos",{"v":2023784,"d":"2,023,784.0"},{"v":73000,"d":"73,000.0"},{"v":7702827,"d":"7,702,827.0"},{"v":200000,"d":"200,000.0"},{"v":0,"d":"0.0"},{"v":0,"d":"0.0"},{"v":0,"d":"0.0"},{"v":0,"d":"0.0"},{"v":0,"d":"0.0"},{"v":9999611,"d":"$9,999,611.0"},{"v":100,"d":"$100.0"}]
[null,"Comunicación social","Componente 18","Cobertura en Comunicación Social Incrementada","TASA de cobertura en materia de comunicación social (T17-CMCS)","Mide la relacion de ciudadanos informados de los temas que el ayuntamiento quiere comunicar ","Eficacia","Gestión","(Tasa de ciudadanos informados de los diferentes eventos y acciones del gobierno municipal  como resultado del programa de estrategias de comunicación esteblecido por  cada 100 habitantes    ",225,250,"Bimestral","Tasa","90:100"," Portal Web del Municipio página de transparencia","Se dispone de personal y recursos",{"v":535459,"d":"$535,459.0"},{"v":210000,"d":"$210,000.0"},{"v":9000,"d":"$9,000.0"},{"v":0,"d":"$0.0"},{"v":0,"d":"$0.0"},{"v":0,"d":"$0.0"},{"v":0,"d":"$0.0"},{"v":0,"d":"$0.0"},{"v":0,"d":"$0.0"},{"v":754459,"d":"$754,459.0"}]
[null,null,"Actividad 17.1","Generar un programa de estrategias de comunicación masiva en diferentes canales informativos.","PORCENTAJE de cumplimiento del programa de comunicación social (P99-CPCS)","Mide los avances en la implementacion del programa de estrategias de comunicación masiva a la ciudadania","Eficacia","Gestión","(Cantidad de eventos (200) publicitados en las 5 estrategias (5, Periodico (25), periodico mural(50), Sítio Web del Municipio(25), Facebook(50), páguina de transparencia (50)) establecidas en el programa de comunicacion social / Total de  eventos (200) publicitados a traves de los diferentes espacios y estratgias de comunicación social)*100",200,200,"Mensual","Porcentaje",{"v":1,"d":"100.00%"}," Portal Web del Municipio página de transparencia","Se dispone de personal y recursos",{"v":321275.4,"d":"321,275.4"},{"v":126000,"d":"126,000.0"},{"v":5400,"d":"5,400.0"},{"v":0,"d":"0.0"},{"v":0,"d":"0.0"},{"v":0,"d":"0.0"},{"v":0,"d":"0.0"},{"v":0,"d":"0.0"},{"v":0,"d":"0.0"},{"v":452675.4,"d":"$452,675.4"},{"v":60,"d":"$60.0"}]
[null,null,"Actividad 17.2","Asistir y apoyar en cada uno de los eventos a realizar.","PORCENTAJE de cumplimiento del programa de eventos (P100-CPE)","Mide el nivel de participación de la direccion en los eventos realizados ","Eficacia","Gestión","(Cantidad de eventos (25) organizados con la participación de comunicacion social  / Total de  eventos (50) organizados por las diferentes direcciones de la administración municipal)*100",25,50,"Mensual","Porcentaje",{"v":0.5,"d":"50%"}," Portal Web del Municipio página de transparencia","Se dispone de personal y recursos",{"v":214183.59999999998,"d":"214,183.6"},{"v":83999.99999999999,"d":"84,000.0"},{"v":3599.9999999999995,"d":"3,600.0"},{"v":0,"d":"0.0"},{"v":0,"d":"0.0"},{"v":0,"d":"0.0"},{"v":0,"d":"0.0"},{"v":0,"d":"0.0"},{"v":0,"d":"0.0"},{"v":301783.6,"d":"$301,783.6"},{"v":39.99999999999999,"d":"$40.0"}]
[]
[null,"Economía (padrón y licencias)","Componente 1","Recaudación Municipal Incrementada","ÍNDICE de ingresos por licencias municipales (I1-IILM)","Mide el incremento en la recaudación municipal por contribuciones cumplidos por la expedixion de licencias ","Eficacia","Gestión","(valor resultante de sumar los valores individuales  de  los cosientes entre sus denominadores por su ponderacion asignada, que miden las  variables de: dictamen ejecutivo, deteccion de capacidades, organizacion de padron, plan de empadronamiento e impulso la economia  con su correspondientes ponderaciones de .2, .1, .2, .2,  y .3)",54.1,142.6,"Bimestral","Índice","0.38"," Portal Web del Municipio página de transparencia","Se dispone de personal y recursos",{"v":326061,"d":"$326,061.0"},{"v":36000,"d":"$36,000.0"},{"v":6000,"d":"$6,000.0"},{"v":0,"d":"$0.0"},{"v":0,"d":"$0.0"},{"v":0,"d":"$0.0"},{"v":0,"d":"$0.0"},{"v":0,"d":"$0.0"},{"v":0,"d":"$0.0"},{"v":368061,"d":"$368,061.0"}]
[null,null,"Actividad 1.1","Acelerar el análisis y dictamen para la expedición de licencias municipales que impulsen el empleo","PORCENTAJE de licencias municipales que impulsan el empleo (P101-LMIE)","Mide la cantidad de licencias municipales que fomentan el empleo permamente","Eficacia","Gestión","(Cantidad de actividades a desarrollar para establecer el procedimiento ejecutivo de revision, autorizacion o renovación de licencias municipales que fomentan el empleo formal  (10) y las que se encuentran en el empleo informal  (8) / Total de  actividades a desarrollar para establecer el procedimiento ejecutivo de revision, autorizacion o renovación de licencias municipales que fomentan el empleo formal  (10) y las que se encuentran en el empleo informal  (8) )*100",18,18,"Mensual","Porcentaje",1," Portal Web del Municipio página de transparencia","Se dispone de personal y recursos",{"v":65212.2,"d":"65,212.2"},{"v":7200,"d":"7,200.0"},{"v":1200,"d":"1,200.0"},{"v":0,"d":"0.0"},{"v":0,"d":"0.0"},{"v":0,"d":"0.0"},{"v":0,"d":"0.0"},{"v":0,"d":"0.0"},{"v":0,"d":"0.0"},{"v":73612.2,"d":"$73,612.2"},{"v":20,"d":"$20.0"}]
[null,null,"Actividad 1.2","Apoyar la detección de necesidades de capacidades desde la solicitud de licencias para enriquecer la gestión financiera del centro economico","PORCENTAJE de cumplimiento del programa de detección de necesidades (P102-CPDN)","Mide el avance en el diagnostico para detectar necesidades de capacitación","Eficacia","Gestión","(Cantidad de actividades (15) a desarrollar para detectar necesidades y elaborar  un programa de capacitacion desde la solicitud de licencia municipal por giro y de esta manera enriquecer la gestión financiera del centro economico/ Total de    actividades (15) a desarrollar para detectar necesidades de capacitacion desde la solicitud de licencia municipal por giro y de esta manera enriquecer la gestión financiera del centro economico )*100",15,15,"Mensual","Porcentaje",{"v":1,"d":"100%"}," Portal Web del Municipio página de transparencia","Se dispone de personal y recursos",{"v":48909.15,"d":"48,909.2"},{"v":5400,"d":"5,400.0"},{"v":900,"d":"900.0"},{"v":0,"d":"0.0"},{"v":0,"d":"0.0"},{"v":0,"d":"0.0"},{"v":0,"d":"0.0"},{"v":0,"d":"0.0"},{"v":0,"d":"0.0"},{"v":55209.15,"d":"$55,209.2"},{"v":15,"d":"$15.0"}]
[null,null,"Actividad 1.3","Organizar el padrón de licencias municipales otorgados por giro, calles y tipo de establecimiento ","PORCENTAJE de avance en el padrón de licencias (P103-APL)","Mide el avance en organizar el padron","Eficacia","Gestión","(Cantidad de actividades (10) a desarrollar para organizar el padrón de licencias municipales otorgados por giro, calles y tipo de establecimiento  / Total de   actividades (10) a desarrollar para organizar el padrón de licencias municipales otorgados por giro, calles y tipo de establecimiento )*100",10,10,"Mensual","Porcentaje",1," Portal Web del Municipio página de transparencia","Se dispone de personal y recursos",{"v":48909.15,"d":"48,909.2"},{"v":5400,"d":"5,400.0"},{"v":900,"d":"900.0"},{"v":0,"d":"0.0"},{"v":0,"d":"0.0"},{"v":0,"d":"0.0"},{"v":0,"d":"0.0"},{"v":0,"d":"0.0"},{"v":0,"d":"0.0"},{"v":55209.15,"d":"$55,209.2"},{"v":15,"d":"$15.0"}]
[null,null,"Actividad 1.4","Plan de empadronamiento, atención, seguimiento e impulso al comercio ambulante y locatario en mercados.","PORCENTAJE de avance en el plan de empadronamiento (104-APE)","Mide el avance en el empadronamiento ordenado y diferenciado","Eficacia","Gestión","(Cantidad de actividades (10) a desarrollar para elaborar plan de empadronamiento, atención, seguimiento e impulso al comercio ambulante y locatario en mercados / Total de   actividades (10) a desarrollar para elaborar plan de empadronamiento, atención, seguimiento e impulso al comercio ambulante y locatario en mercados )*100",10,10,"Mensual","Porcentaje",{"v":1,"d":"100%"}," Portal Web del Municipio página de transparencia","Se dispone de personal y recursos",{"v":65212.2,"d":"65,212.2"},{"v":7200,"d":"7,200.0"},{"v":1200,"d":"1,200.0"},{"v":0,"d":"0.0"},{"v":0,"d":"0.0"},{"v":0,"d":"0.0"},{"v":0,"d":"0.0"},{"v":0,"d":"0.0"},{"v":0,"d":"0.0"},{"v":73612.2,"d":"$73,612.2"},{"v":20,"d":"$20.0"}]
[null,null,"Actividad 1.5","Programa de actividades municipales que impulsen el comercio y la actividad económica en el municipio","PORCENTAJE de cumplimiento del programa para impulsar el comercio (P105-CPIC)","Mide el cumplimiento de actividades del programa que fomenten el comercio y la economía","Eficacia","Gestión","(Cantidad de centros económicos (150) que impulsan el comercio y la economia familiar en el municipio que pueden ser incorporados al programa de fortalecimiento economico / Total de  centros económicos (400) que impulsan el comercio y la economia familiar en el municipio )*100",150,400,"Mensual","Porcentaje",1," Portal Web del Municipio página de transparencia","Se dispone de personal y recursos",{"v":97818.3,"d":"97,818.3"},{"v":10800,"d":"10,800.0"},{"v":1800,"d":"1,800.0"},{"v":0,"d":"0.0"},{"v":0,"d":"0.0"},{"v":0,"d":"0.0"},{"v":0,"d":"0.0"},{"v":0,"d":"0.0"},{"v":0,"d":"0.0"},{"v":110418.3,"d":"$110,418.3"},{"v":30,"d":"$30.0"}]
[null,"Turismo","Componente 2","Turistas y Visitantes Incrementados","ÍNDICE de afluencia e incremento de turistas y visitantes al municipio (T2-ITyVM)","Mide la afluencia y el incremento de turistas y visitantes al municipio ","Eficacia","Gestión","(valor resultante de sumar los valores individuales  de  los cosientes entre sus denominadores por su ponderacion asignada, que miden las  variables de: Servicios, Convenio, Padron y Comité, con su correspondientes ponderaciones de .2, .2, .3,  y .3)",39,39,"Bimestral","Índice","1"," Portal Web del Municipio página de transparencia","Se dispone de personal y recursos",{"v":85327,"d":"$85,327.0"},{"v":11000,"d":"$11,000.0"},{"v":4000,"d":"$4,000.0"},{"v":0,"d":"$0.0"},{"v":0,"d":"$0.0"},{"v":0,"d":"$0.0"},{"v":0,"d":"$0.0"},{"v":0,"d":"$0.0"},{"v":0,"d":"$0.0"},{"v":100327,"d":"$100,327.0"}]
[null,null,"Actividad 2.1","Impulsar programas de apoyo a establecimientos y giros gastronómico, ecológico y culturales.","PORCENTAJE de elaboracion y gestión del programa de apoyo a giros económicos (P106-PAGE)","Mide la cantidad de establecimientos que son beneficiados con el programa","Eficacia","Gestión","(Cantidad de centros económicos con giro de atención y servicio al turismo (50) que pueden ser susceptibles de participar en el finaciamiento para mejorar y fortalecer los servicios que ofrecen al turismo / Total de centros económicos con giro de atención y servicio al turismo (50) que pueden ser susceptibles de participar en el finaciamiento para mejorar y fortalecer los servicios que ofrecen al turismo)*100",50,50,"Mensual","Porcentaje",1," Portal Web del Municipio página de transparencia","Se dispone de personal y recursos",{"v":25598.1,"d":"25,598.1"},{"v":3300,"d":"3,300.0"},{"v":1200,"d":"1,200.0"},{"v":0,"d":"0.0"},{"v":0,"d":"0.0"},{"v":0,"d":"0.0"},{"v":0,"d":"0.0"},{"v":0,"d":"0.0"},{"v":0,"d":"0.0"},{"v":30098.1,"d":"$30,098.1"},{"v":30,"d":"$30.0"}]
[null,null,"Actividad 2.2","Gestionar convenios y esquemas de servicios turísticos y de hospedaje en casas particulares","PORCENTAJE de cumplimiento del programa de servicios turísticos (P107-CPST)","Mide la cantidad de convenios de servicios turisticos ofertados por los habitantes del municipio ","Eficacia","Gestión","(Cantidad de ciudadanos (100) a los que se les ha ofertado la participación en servicios al turismo bajo un esquema de convenio y servicio de hospedaje, alimentación y trayectos turisticos  / Total de ciudadanos (100) a los que se les ha ofertado la participación en servicios al turismo bajo un esquema de convenio y servicio de hospedaje, alimentación y trayectos turisticos)*100",100,100,"Mensual","Porcentaje",{"v":1,"d":"100%"}," Portal Web del Municipio página de transparencia","Se dispone de personal y recursos",{"v":17065.4,"d":"17,065.4"},{"v":2200.0000000000005,"d":"2,200.0"},{"v":800.0000000000001,"d":"800.0"},{"v":0,"d":"0.0"},{"v":0,"d":"0.0"},{"v":0,"d":"0.0"},{"v":0,"d":"0.0"},{"v":0,"d":"0.0"},{"v":0,"d":"0.0"},{"v":20065.400000000005,"d":"$20,065.4"},{"v":20.000000000000004,"d":"$20.0"}]
[null,null,"Actividad 2.3","Elaborar el padrón de prestadores de servicios turísticos y gestionar la declaración de zonas de desarrollo turístico vinculadas a un programa de actividades","PORCENTAJE de avance en el padrón y declaratoria (P108-APD)","Mide el avance en la gestión de las etapas para integrar un padrón de prestadores de servicios turísticos y la gestion de la declaración de zonas de desarrollo turístico vinculadas a un programa de actividades","Eficacia","Gestión","(Cantidad de etapas (20) de trabajo para integrar un padrón de prestadores de servicios turísticos y la gestion de la declaración de zonas de desarrollo turístico vinculadas a un programa de actividades / Total de etapas (20) de trabajo para integrar un padrón de prestadores de servicios turísticos y la gestion de la declaración de zonas de desarrollo turístico vinculadas a un programa de actividades )*100",20,20,"Mensual","Porcentaje",1," Portal Web del Municipio página de transparencia","Se dispone de personal y recursos",{"v":21331.75,"d":"21,331.8"},{"v":2750,"d":"2,750.0"},{"v":1000,"d":"1,000.0"},{"v":0,"d":"0.0"},{"v":0,"d":"0.0"},{"v":0,"d":"0.0"},{"v":0,"d":"0.0"},{"v":0,"d":"0.0"},{"v":0,"d":"0.0"},{"v":25081.75,"d":"$25,081.8"},{"v":25,"d":"$25.0"}]
[null,null,"Actividad 2.4","Creación del comité de turismo y su programa de actividades para la promoción turística","PORCENTAJE de avance en la creación del comité de turismo y su programa (P109-ACCTP)","Mide los avances en las etapas para conformar el comité municipal y las actividades del programa de promocion turistica municipal","Eficacia","Gestión","(Cantidad de etapas (10) de trabajo para conformar el comité municipal y las actividades del programa de promocion turistica municipal  / Total de etapas (10) de trabajo para conformar el comité municipal y las actividades del programa de promocion turistica municipal )*100",10,10,"Mensual","Porcentaje",{"v":1,"d":"100%"}," Portal Web del Municipio página de transparencia","Se dispone de personal y recursos",{"v":21331.75,"d":"21,331.8"},{"v":2750,"d":"2,750.0"},{"v":1000,"d":"1,000.0"},{"v":0,"d":"0.0"},{"v":0,"d":"0.0"},{"v":0,"d":"0.0"},{"v":0,"d":"0.0"},{"v":0,"d":"0.0"},{"v":0,"d":"0.0"},{"v":25081.75,"d":"$25,081.8"},{"v":25,"d":"$25.0"}]
[null,"Desarrollo agropecuario","Componente 3","Productividad Agropecuaria Incrementada","ÍNDICE de incremento productividad agropecuaria (T3-IPA)","Mide la relación de ejidatarios que participan en los programas de fortalecimiento agropecuario","Eficacia","Gestión","(valor resultante de sumar los valores individuales  de  los cosientes entre sus denominadores por su ponderacion asignada, que miden las  variables de: paquetes económicos, paquetes tecnológicos, transferencia tecnología, área produccion organica, consumo abono, buenas prácticas  con su correspondientes ponderaciones de .1, .1, .2, .2, .2,  y .2)",130,130,"Bimestral","Índice","1"," Portal Web del Municipio página de transparencia","Se dispone de personal y recursos",{"v":260210,"d":"$260,210.0"},{"v":21000,"d":"$21,000.0"},{"v":4000,"d":"$4,000.0"},{"v":0,"d":"$0.0"},{"v":0,"d":"$0.0"},{"v":0,"d":"$0.0"},{"v":0,"d":"$0.0"},{"v":0,"d":"$0.0"},{"v":0,"d":"$0.0"},{"v":285210,"d":"$285,210.0"}]
[null,null,"Actividad 3.1","Gestionar 100 paquetes económicos a productos agrícolas","PORCENTAJE de avance en la gestión de paquetes económicos agrícolas (P110-AGPEA)","Mide los avances en la gestión de paquetes económicos que mejoren la productividad con su aplicación ","Eficacia","Gestión","(Cantidad de paquetes económicos agricolas (300) gestionados para mejorar la productividad  / Total de paquetes económicos agricolas (300) gestionados para mejorar la productividad  )*100",100,100,"Mensual","Porcentaje",1," Portal Web del Municipio página de transparencia","Se dispone de personal y recursos",{"v":39031.5,"d":"39,031.5"},{"v":3150,"d":"3,150.0"},{"v":600,"d":"600.0"},{"v":0,"d":"0.0"},{"v":0,"d":"0.0"},{"v":0,"d":"0.0"},{"v":0,"d":"0.0"},{"v":0,"d":"0.0"},{"v":0,"d":"0.0"},{"v":42781.5,"d":"$42,781.5"},{"v":15,"d":"$15.0"}]
[null,null,"Actividad 3.2","Gestionar 100 paquetes tecnológicos a productores agrícolas","PORCENTAJE de avance en la gestión de paquetes tecnológicos agrícolas (P111-AGPTA)","Mide los avances en la gestión, asignación y la aplicación de los paquetes tecnológicos","Eficacia","Gestión","(Cantidad de paquetes tecnólogicos (100) asignados a productores agricolas  / Total de  paquetes tecnólogicos (100) asignados a productores agricolas)*100",100,100,"Mensual","Porcentaje",{"v":1,"d":"100%"}," Portal Web del Municipio página de transparencia","Se dispone de personal y recursos",{"v":39031.5,"d":"39,031.5"},{"v":3150,"d":"3,150.0"},{"v":600,"d":"600.0"},{"v":0,"d":"0.0"},{"v":0,"d":"0.0"},{"v":0,"d":"0.0"},{"v":0,"d":"0.0"},{"v":0,"d":"0.0"},{"v":0,"d":"0.0"},{"v":42781.5,"d":"$42,781.5"},{"v":15,"d":"$15.0"}]
[null,null,"Actividad 3.3","Desarrollar 9 talleres de transferencia de tecnología, capacitación y extensión, de acuerdo a los diferentes modelos de producción, que permitan una mayor competitividad","PORCENTAJE de desarrollo de talleres de transferencia de tecnología y capacitación (P112-DTTTC)","Mide la participación de los ciudadanos en los talleres","Eficacia","Gestión","(Cantidad de productores (300) que participan en los 9 talleres de transferencia de tecnología / Total de productores (300) que participan en los 9 talleres de transferencia de tecnología )*100",300,300,"Mensual","Porcentaje",1," Portal Web del Municipio página de transparencia","Se dispone de personal y recursos",{"v":65052.5,"d":"65,052.5"},{"v":5250,"d":"5,250.0"},{"v":1000,"d":"1,000.0"},{"v":0,"d":"0.0"},{"v":0,"d":"0.0"},{"v":0,"d":"0.0"},{"v":0,"d":"0.0"},{"v":0,"d":"0.0"},{"v":0,"d":"0.0"},{"v":71302.5,"d":"$71,302.5"},{"v":25,"d":"$25.0"}]
[null,null,"Actividad 3.4","Incremento de áreas de producción orgánica.","PORCENTAJE de incremento de áreas de producción orgánica (P113-IAPO)","Mide el incremento de área destinada a producción orgánica","Eficacia","Gestión","(Cantidad de héctareas (50) incrementadas para la producción orgánica / Total de  héctareas (50) incrementadas para la producción orgánica)*100",50,50,"Mensual","Porcentaje",{"v":1,"d":"100%"}," Portal Web del Municipio página de transparencia","Se dispone de personal y recursos",{"v":52042,"d":"52,042.0"},{"v":4200,"d":"4,200.0"},{"v":800,"d":"800.0"},{"v":0,"d":"0.0"},{"v":0,"d":"0.0"},{"v":0,"d":"0.0"},{"v":0,"d":"0.0"},{"v":0,"d":"0.0"},{"v":0,"d":"0.0"},{"v":57042,"d":"$57,042.0"},{"v":20,"d":"$20.0"}]
[null,null,"Actividad 3.5","Promover uso de abonos orgánicos","PORCENTAJE de aumento del consumo de abonos orgánicos (P114-ACAO)","Mide el incremento del uso de abonos orgánicos","Eficacia","Gestión","(Cantidad de héctareas (100) que usan abono organico para enriquecer sus cultivos / Total de héctareas (100) que usan abono organico para enriquecer sus cultivos)*100",100,100,"Mensual","Porcentaje",1," Portal Web del Municipio página de transparencia","Se dispone de personal y recursos",{"v":39031.5,"d":"39,031.5"},{"v":3150,"d":"3,150.0"},{"v":600,"d":"600.0"},{"v":0,"d":"0.0"},{"v":0,"d":"0.0"},{"v":0,"d":"0.0"},{"v":0,"d":"0.0"},{"v":0,"d":"0.0"},{"v":0,"d":"0.0"},{"v":42781.5,"d":"$42,781.5"},{"v":15,"d":"$15.0"}]
[null,null,"Actividad 3.6","Productores (as) y jóvenes rurales desarrollando buenas prácticas productivas en sus sistemas productivos, que posicionen su inserción en los mercados.   ","PORCENTAJE de aumento de productores aplicando buenas prácticas productivas (P115-APABPP)","Mide el incremento de familias productoras rurales que tienen buenas prácticas productivas","Eficacia","Gestión","(Cantidad de familias de productores y jovenes (100) que desarrollan buenas prácticas productivas en sus sistemas de producción  / Total de familias de productores y jovenes (100) que desarrollan buenas prácticas productivas en sus sistemas de producción)*100",100,100,"Mensual","Porcentaje",{"v":1,"d":"100%"}," Portal Web del Municipio página de transparencia","Se dispone de personal y recursos",{"v":26021,"d":"26,021.0"},{"v":2100,"d":"2,100.0"},{"v":400,"d":"400.0"},{"v":0,"d":"0.0"},{"v":0,"d":"0.0"},{"v":0,"d":"0.0"},{"v":0,"d":"0.0"},{"v":0,"d":"0.0"},{"v":0,"d":"0.0"},{"v":28521,"d":"$28,521.0"},{"v":10,"d":"$10.0"}]
[null,"Inspección ganadera","Componente 4","Sacrificios Inspeccionados Incrementados","ÍNDICE de sacrificios inspeccionados (T4-SI)","Mide la relación de animales para sacrifico que son inspeccionados contra los que no lo son","Eficacia","Gestión","(valor resultante de sumar los valores individuales  de  los cosientes entre sus denominadores por su ponderacion asignada, que miden las  variables de: personal de inspección, inspecciónes con su correspondientes ponderaciones de .4,  y .6)",1042.4,1563.6,"Bimestral","Índice","0.66"," Portal Web del Municipio página de transparencia","Se dispone de personal y recursos",{"v":108029,"d":"$108,029.0"},{"v":30000,"d":"$30,000.0"},{"v":6000,"d":"$6,000.0"},{"v":0,"d":"$0.0"},{"v":0,"d":"$0.0"},{"v":0,"d":"$0.0"},{"v":0,"d":"$0.0"},{"v":0,"d":"$0.0"},{"v":0,"d":"$0.0"},{"v":144029,"d":"$144,029.0"}]
[null,null,"Actividad 4.1","Contar con un  MVZ capacitado para diagnosticar el estado físico y organoléptico de los productos cárnicos ","PORCENTAJE de avance en el programa de capacitación para dictamen organoléptico (P116-APCDO)","Mide el cumplimiento del programa de capacitación","Eficacia","Gestión","(Cantidad de gestiones realizadas (5) por la direccion de Rastro Municipal ante las instancias correspondientes para contar con un MVZ con la experiencia y capacidad de desempeñar las actividades  establecidas en el reglamento municipal de inpector de diagnostico para la autorizacion del sacrificio de ganado y (1) programa de capacitacion del MVZ / Total de gestiones y programa de capacitacion del MVZ (6) realizadas por la direccion de  Rastro Municipal)*100",6,6,"Mensual","Porcentaje",1," Portal Web del Municipio página de transparencia","Se dispone de personal y recursos",{"v":70218.85,"d":"70,218.9"},{"v":19500,"d":"19,500.0"},{"v":3900,"d":"3,900.0"},{"v":0,"d":"0.0"},{"v":0,"d":"0.0"},{"v":0,"d":"0.0"},{"v":0,"d":"0.0"},{"v":0,"d":"0.0"},{"v":0,"d":"0.0"},{"v":93618.85,"d":"$93,618.9"},{"v":65,"d":"$65.0"}]
[null,null,"Actividad 4.2","Inspectores con la capacidad de diagnosticar la carne que no es apta para el consumo Humano, y en su caso el decomiso ","PORCENTAJE diagnósticos positivos para consumo y MVZ capacitados (P117-DPCMC)","Mide la cantidad de diagnosticos documentados de carne para venta en el municipio","Eficacia","Gestión","(Cantidad de cabezas de ganado inspeccionadas en píe y en sacrificio mediante diagnostico (2600) por año en el rastro municipal / Total de cabezas de ganado registrado en el rastro municipal (2600) inspeccionado y sacrificado con diagnostico de visto bueno para venta al menudeo como carne en los establecimientos comerciales en territorio municipal)*100",2600,2600,"Mensual","Porcentaje",{"v":1,"d":"100%"}," Portal Web del Municipio página de transparencia","Se dispone de personal y recursos",{"v":37810.15,"d":"37,810.2"},{"v":10500,"d":"10,500.0"},{"v":2100,"d":"2,100.0"},{"v":0,"d":"0.0"},{"v":0,"d":"0.0"},{"v":0,"d":"0.0"},{"v":0,"d":"0.0"},{"v":0,"d":"0.0"},{"v":0,"d":"0.0"},{"v":50410.15,"d":"$50,410.2"},{"v":35,"d":"$35.0"}]
[null,"Rastro municipal","Componente 5","Proveeduría de Carnes Incrementada","ÍNDICE de mejora del servicio del rastro municipal para el aprovicionamiento de carne a la población de Ixtlahuacán de los Membrillos a traves de los tablajeros del municipio (T5-PRM)","Mide la relación de kilos de carne que se consumen en el municipio  de ixtlaHucán de procedencia de productores locales","Eficacia","Gestión","(valor resultante de sumar los valores individuales  de  los cosientes entre sus denominadores por su ponderacion asignada, que miden las  variables de: inspección, sacrificio  e instalaciones con su correspondientes ponderaciones de .3, .3,  y .4)",1567,1723,"Bimestral","Índice","0.90"," Portal Web del Municipio página de transparencia","Se dispone de personal y recursos",{"v":305058,"d":"$305,058.0"},{"v":44000,"d":"$44,000.0"},{"v":4000,"d":"$4,000.0"},{"v":0,"d":"$0.0"},{"v":0,"d":"$0.0"},{"v":0,"d":"$0.0"},{"v":0,"d":"$0.0"},{"v":0,"d":"$0.0"},{"v":0,"d":"$0.0"},{"v":353058,"d":"$353,058.0"}]
[null,null,"Actividad 5.1","Plan de inspección a los tablajeros la documentación de la legitima propiedad de los animales sacrificados y Contar con personal capacitado para la inspección en carnicerías  ","PORCENTAJE de cumplimiento del plan de inspección de propiedad y en carnicería (P118-CPIPC)","Mide el cumplimiento del plan de inspección en rastro y carnicerias","Eficacia","Gestión","(Cantidad de actividades contenidas en el plan de supervición (5) a realizar para inspeccionar a los tablajeros respecto a la propiedad de las cebazas de ganado a sacrificar y del cumplimiento de los requisitos (5) para tener canales de carne expuestas a la venta en los locales comerciales de atencion a la ciudadania / Total de actividades (10) de inspección y verificación contenidas en el reglamento de sacrificio y venta de ganado en espacios comerciales particulares dentro del territorio municipal)*100",10,10,"Mensual","Porcentaje",1," Portal Web del Municipio página de transparencia","Se dispone de personal y recursos",{"v":76264.5,"d":"76,264.5"},{"v":11000,"d":"11,000.0"},{"v":1000,"d":"1,000.0"},{"v":0,"d":"0.0"},{"v":0,"d":"0.0"},{"v":0,"d":"0.0"},{"v":0,"d":"0.0"},{"v":0,"d":"0.0"},{"v":0,"d":"0.0"},{"v":88264.5,"d":"$88,264.5"},{"v":25,"d":"$25.0"}]
[null,null,"Actividad 5.2","Fortalecer el sacrificio, producción y venta de ganado local","PORCENTAJE de sacrificio, producción y venta de ganado local (P119-VSGL)","Mide el incremento de consumo de ganado local","Eficacia","Gestión","(Cantidad de sacrificios (2600), producción de canal por trabajador (520) y venta de ganado de productores locales (2080) por año en el rastro municipal / Total de cabezas de ganado registrado en el rastro municipal (2600), producción de canal por trabajador (520) y venta de ganado de productores locales (2600) por año en el rastro municipal para venta al menudeo como carne en los establecimientos comerciales en territorio municipal)*100",5200,5720,"Mensual","Porcentaje",{"v":0.909,"d":"90.90%"}," Portal Web del Municipio página de transparencia","Se dispone de personal y recursos",{"v":106770.3,"d":"106,770.3"},{"v":15400,"d":"15,400.0"},{"v":1400,"d":"1,400.0"},{"v":0,"d":"0.0"},{"v":0,"d":"0.0"},{"v":0,"d":"0.0"},{"v":0,"d":"0.0"},{"v":0,"d":"0.0"},{"v":0,"d":"0.0"},{"v":123570.3,"d":"$123,570.3"},{"v":35,"d":"$35.0"}]
[null,null,"Actividad 5.3","Mejorar las instalaciones con equipamiento ","PORCENTAJE de avance en el diagnostico (P120-AD)","Mide el avance en el diagnóstico y su aplicación en mejorar las instalaciónes del rastro municipal","Eficacia","Gestión","(Cantidad de actividades (10) a realizar para mejorar las instalaciones y servicio con equipamiento del rastro municipal  / Total de actividades (10) concluidas para mejorar las instalaciones y servicio con equipamiento del rastro municipal )*100",10,10,"Mensual","Porcentaje",1," Portal Web del Municipio página de transparencia","Se dispone de personal y recursos",{"v":122023.20000000001,"d":"122,023.2"},{"v":17600.000000000004,"d":"17,600.0"},{"v":1600.0000000000002,"d":"1,600.0"},{"v":0,"d":"0.0"},{"v":0,"d":"0.0"},{"v":0,"d":"0.0"},{"v":0,"d":"0.0"},{"v":0,"d":"0.0"},{"v":0,"d":"0.0"},{"v":141223.2,"d":"$141,223.2"},{"v":40.00000000000001,"d":"$40.0"}]
[null,"Promoción económica","Componente 6","Promoción Económica Incrementada","ÍNDICE de atención a la promociona de la economía (T6-APE)","Mide la relación de centros económicos municipales que reciben orientacion o apoyo economico para su fortalecimiento","Eficacia","Gestión","(valor resultante de sumar los valores individuales  de  los cosientes entre sus denominadores por su ponderacion asignada, que miden las  variables de: espacio de atención, adecuacion de modulo y plan de vinculación con su correspondientes ponderaciones de .3, .4,  y .3)",15.9,17.7,"Bimestral","Índice","0.898"," Portal Web del Municipio página de transparencia","Se dispone de personal y recursos",{"v":328764,"d":"$328,764.0"},{"v":10000,"d":"$10,000.0"},{"v":4000,"d":"$4,000.0"},{"v":0,"d":"$0.0"},{"v":0,"d":"$0.0"},{"v":0,"d":"$0.0"},{"v":0,"d":"$0.0"},{"v":0,"d":"$0.0"},{"v":0,"d":"$0.0"},{"v":342764,"d":"$342,764.0"}]
[null,null,"Actividad 6.1","Establecer un espacio para la atención de los comerciantes y/o empresarios.","PORCENTAJE de avance en las gestiones para la atención de comerciantes y empresarios (P121-AGACE)","Mide el avance en las gestiones para tener instalaciones para la atencion de los comerciantes y empresarios","Eficacia","Gestión","(Cantidad de actividades (15) a realizar para gestionar un espacio para la atención de comerciantes y empresarios por parte de la Dirección de promoción Económica  / Total de actividades (15) concluidas para la para gestionar un espacio para la atención de comerciantes y empresarios por parte de la Dirección de promoción Económica)*100",15,15,"Mensual","Porcentaje",1," Portal Web del Municipio página de transparencia","Se dispone de personal y recursos",{"v":65752.8,"d":"65,752.8"},{"v":2000,"d":"2,000.0"},{"v":800,"d":"800.0"},{"v":0,"d":"0.0"},{"v":0,"d":"0.0"},{"v":0,"d":"0.0"},{"v":0,"d":"0.0"},{"v":0,"d":"0.0"},{"v":0,"d":"0.0"},{"v":68552.8,"d":"$68,552.8"},{"v":20,"d":"$20.0"}]
[null,null,"Actividad 6.2","Adecuación del módulo (SARE) sistema de apertura rápida de empresas, ante la Dirección de Mejora Regulatoria y ante la COFEMER Consejo Federal de Mejora Regulatoria.","PORCENTAJE de adecuación del módulo SARE ante la Dirección de Mejora Regulatoria y su inclusion en el índice de facilidad para abrir una empresa (P122-AMSDMR)","Mide los avances en la adecuación del SARE ante la dirección de mejora regulatoria y su inclusion en el índice de facilidad para abrir una empresa ","Eficacia","Gestión","(Cantidad de actividades (15) a realizar para adecuar el módulo SARE municipal ante la Dirección de Mejora Regulatoria y su inclusion en el índice de facilidad para abrir una empresa  / Total de actividades (15) concluidas para la adecuación del módulo SARE municipal ante la Dirección de Mejora Regulatoria y su inclusion en el índice de facilidad para abrir una empresa)*100",15,15,"Mensual","Porcentaje",{"v":1,"d":"100%"}," Portal Web del Municipio página de transparencia","Se dispone de personal y recursos",{"v":147943.8,"d":"147,943.8"},{"v":4499.999999999999,"d":"4,500.0"},{"v":1799.9999999999998,"d":"1,800.0"},{"v":0,"d":"0.0"},{"v":0,"d":"0.0"},{"v":0,"d":"0.0"},{"v":0,"d":"0.0"},{"v":0,"d":"0.0"},{"v":0,"d":"0.0"},{"v":154243.8,"d":"$154,243.8"},{"v":44.99999999999999,"d":"$45.0"}]
[null,null,"Actividad 6.3","Plan de vinculación ante  las cámaras industriales, sector empresarial de Jalisco y organismos empresariales para promover al Municipio en proyectos estratégicos.","PORCENTAJE de avance del plan de vinculación (P123-APV)","Mide los resultados del plan de vinculación del municipio y sus comerciantes y empresarios con las camaras de comercio y organismos empresariales","Eficacia","Gestión","(Cantidad de gestiones exitosas (18) realizadas por la direccion de promocion economica  establecidas en el Plan de vinculación ante  las cámaras industriales, sector empresarial de Jalisco y organismos empresariales  / Total de gestiones (24) realizadas por la direccion de promocion economica  dentro del Plan de vinculación ante  las cámaras industriales, sector empresarial de Jalisco y organismos empresariales  )*100",18,24,"Mensual","Porcentaje",0.75," Portal Web del Municipio página de transparencia","Se dispone de personal y recursos",{"v":115067.4,"d":"115,067.4"},{"v":3500,"d":"3,500.0"},{"v":1400,"d":"1,400.0"},{"v":0,"d":"0.0"},{"v":0,"d":"0.0"},{"v":0,"d":"0.0"},{"v":0,"d":"0.0"},{"v":0,"d":"0.0"},{"v":0,"d":"0.0"},{"v":119967.4,"d":"$119,967.4"},{"v":35,"d":"$35.0"}]
[null,"Informática","Componente 7","Calidad Informática Mejorada","INDICE de calidad informática (V1-CI)","Mide el nivel de atencion y solucion de los problemas a los usuarios de los equipos informaticos de la administración municipal","Eficacia","Gestión","(valor resultante de sumar los valores individuales  de  los cosientes entre sus denominadores por su ponderacion asignada, que miden las  variables de: acttualizacion de red, reglamento y mantenimiento con su correspondientes ponderaciones de .4, .2,  y .4)",38.8,39.4,"Bimestral","Índice",0.98," Portal Web del Municipio página de transparencia","Se dispone de personal y recursos",{"v":114780,"d":"$114,780.0"},{"v":17000,"d":"$17,000.0"},{"v":34000,"d":"$34,000.0"},{"v":0,"d":"$0.0"},{"v":0,"d":"$0.0"},{"v":0,"d":"$0.0"},{"v":0,"d":"$0.0"},{"v":0,"d":"$0.0"},{"v":0,"d":"$0.0"},{"v":165780,"d":"$165,780.0"}]
[null,null,"Actividad 7.1","Levantamiento del estado actual de la red y dados los resultados adquirir nuevo equipo que atienda las necesidades.","PORCENTAJE de actualización de la red, adquisición de nuevos equipos y colocacion de puntos de acceso a internet (P124-ARANE)","Mide el avance en la actualización de los equipos, licencias y redes, que permitan la instalacion de sitios de gobierno con servicio de acceso a internet","Eficacia","Gestión","(Cantidad de redes de  computacion actualizadas (3), de computadoras adquiridas nuevas (8) y mantenimiento o colocacion de puntos nuevos de acceso a internet  (33) /total de redes, computadoras y puntos de acceso a internet (44))*100",44,44,"Mensual","Porcentaje",1," Portal Web del Municipio página de transparencia","Se dispone de personal y recursos",{"v":17217,"d":"17,217.0"},{"v":2550,"d":"2,550.0"},{"v":5100,"d":"5,100.0"},{"v":0,"d":"0.0"},{"v":0,"d":"0.0"},{"v":0,"d":"0.0"},{"v":0,"d":"0.0"},{"v":0,"d":"0.0"},{"v":0,"d":"0.0"},{"v":24867,"d":"$24,867.0"},{"v":15,"d":"$15.0"}]
[null,null,"Actividad 7.2","Elaboración de un reglamento que se adecue a las nuevas necesidades de este ayuntamiento.","PORCENTAJE de elaboración del reglamento de informática (P125-ERI)","Mide el avance en la elaboración el reglamento de informatica y sistemas","Eficacia","Gestión","(Cantidad de articulos (20) desarrollados para el reglamento de resguardo, uso y manipulacion de equipos de computacion de la administracion municipal asignadas a las direcciones establecidas / Total de direcciones 23 con equipos de computacion de la administracion municipal asignadas y con aportaciones y conocimiento)*100",20,23,"Mensual","Porcentaje",{"v":0.8695,"d":"86.95%"}," Portal Web del Municipio página de transparencia","Se dispone de personal y recursos",{"v":22956,"d":"22,956.0"},{"v":3400,"d":"3,400.0"},{"v":6800,"d":"6,800.0"},{"v":0,"d":"0.0"},{"v":0,"d":"0.0"},{"v":0,"d":"0.0"},{"v":0,"d":"0.0"},{"v":0,"d":"0.0"},{"v":0,"d":"0.0"},{"v":33156,"d":"$33,156.0"},{"v":20,"d":"$20.0"}]
[null,null,"Actividad 7.3","Programa de mantenimiento, atención y solución de problemas que se presentes en las áreas de este ayuntamiento.","PORCENTAJE de avance del programa de mantenimiento y atención a sistemas computacionales (P126-APMASC)","Mide los avances en el cumplimiento del programa de mantenimiento y atención","Eficacia","Gestión","(Cantidad de computadoras (23) incluidas en el programa de mantenimiento y actividades relacionadas a las tecnologías de la informacion (20) que atiende el personal asignado a esta dirección administrativa del ayuntamiento  /total de computadoras y actividades por atender  en la dirección de Informática (43))*100",43,43,"Mensual","Porcentaje",1," Portal Web del Municipio página de transparencia","Se dispone de personal y recursos",{"v":74607,"d":"74,607.0"},{"v":11050,"d":"11,050.0"},{"v":22100,"d":"22,100.0"},{"v":0,"d":"0.0"},{"v":0,"d":"0.0"},{"v":0,"d":"0.0"},{"v":0,"d":"0.0"},{"v":0,"d":"0.0"},{"v":0,"d":"0.0"},{"v":107757,"d":"$107,757.0"},{"v":65,"d":"$65.0"}]
[]
[null,"Ordenamiento Territorial (sustentabilidad)","Componente 1","Instrumentos de Planeación y Ordenamiento Territorial Actualizados","ÍNDICE de actualización de instrumentos de planeación y ordenamiento territorial (T1-IPyOTa)","Mide el índice de actualización de los Instrumentos de Planeación y Ordenamiento Territorial","Eficacia","Gestión","(valor resultante de sumar los valores individuales  de  los cosientes entre sus denominadores por su ponderacion asignada, que miden las  variables de: diagnostico saneamiento rios, saneamiento presas, reforestación,  regularización, explotación, crecimiento y turismo con su correspondientes ponderaciones de .1, .1, .2, .1, .1, .2, y .2)",676.6,1726.6,"Bimestral","Índice",0.39," Portal Web del Municipio página de transparencia","Se dispone de personal y recursos ",{"v":333342,"d":"$333,342.00"},{"v":9000,"d":"$9,000.00"},{"v":4000,"d":"$4,000.00"},{"v":0,"d":"$0.00"},{"v":0,"d":"$0.00"},{"v":0,"d":"$0.00"},{"v":0,"d":"$0.00"},{"v":0,"d":"$0.00"},{"v":0,"d":"$0.00"},{"v":346342,"d":"$346,342.00"}]
[null,null,"Actividad 1.1","Diagnostico y Programa de Saneamiento Rio Los Sabinos, arroyos y riachuelos","PORCENTAJE de avance en el diagnóstico de saneamiento (P127-ADS)","Mide los avances en la elaboración del diagnostico y su programa de saneamiento","Eficacia","Gestión","(Cantidad de temas a desarrollar (10) dentro del Diagnostico y Programa de Saneamiento Rio Los Sabinos, arroyos y riachuelos / Total de temas (10) desarrollados dentro del  Diagnostico y Programa de Saneamiento Rio Los Sabinos, arroyos y riachuelos )*100",10,10,"Mensual","Porcentaje",{"v":1,"d":"1.00"}," Portal Web del Municipio página de transparencia","Se dispone de personal y recursos ",{"v":33334.2,"d":"33,334.2"},{"v":899.9999999999999,"d":"900.0"},{"v":399.99999999999994,"d":"400.0"},{"v":0,"d":"0.0"},{"v":0,"d":"0.0"},{"v":0,"d":"0.0"},{"v":0,"d":"0.0"},{"v":0,"d":"0.0"},{"v":0,"d":"0.0"},{"v":34634.2,"d":"$34,634.20"},{"v":9.999999999999998,"d":"$10.00"}]
[null,null,"Actividad 1.2","Diagnostico y Programa de Saneamiento de la Presa El Llano","PORCENTAJE de avance en el diagnóstico de saneamiento Presa el Llano (P128-ADSPL)","Mide los avances en la elaboración del diagnostico y su programa de saneamiento de la Presa","Eficacia","Gestión","(Cantidad de temas a desarrollar (10) dentro del Diagnostico y Programa de Saneamiento de la Presa El Llano / Total de temas (10) desarrollados dentro del  Diagnostico y Programa de Saneamiento de la Presa El Llano )*100",10,10,"Mensual","Porcentaje",{"v":1,"d":"100%"}," Portal Web del Municipio página de transparencia","Se dispone de personal y recursos ",{"v":33334.2,"d":"33,334.2"},{"v":899.9999999999999,"d":"900.0"},{"v":399.99999999999994,"d":"400.0"},{"v":0,"d":"0.0"},{"v":0,"d":"0.0"},{"v":0,"d":"0.0"},{"v":0,"d":"0.0"},{"v":0,"d":"0.0"},{"v":0,"d":"0.0"},{"v":34634.2,"d":"$34,634.20"},{"v":9.999999999999998,"d":"$10.00"}]
[null,null,"Actividad 1.3","Impartición de 12 talleres de promoción y fomento de reforestación y conservación del medio ambiente","PORCENTAJE de avance en programa de campañas de reforestación  (P129-APCR)","Mide los avances en la imparticion de los talleres  que integran las campañas","Eficacia","Gestión","(Cantidad de ciudadanos inscritos (350) para participar en el programa de 12 talleres de capacitacion sobre promoción, fomento y participación en 12 campañas de reforestación y conservación del medio ambiente/total de ciudadanos ejidatarios (5000) o pequeña propiedad (600) que participan en el programa)*100",350,5600,"Mensual","Porcentaje",{"v":1,"d":"1.00"}," Portal Web del Municipio página de transparencia","Se dispone de personal y recursos ",{"v":50001.3,"d":"50,001.3"},{"v":1350,"d":"1,350.0"},{"v":600,"d":"600.0"},{"v":0,"d":"0.0"},{"v":0,"d":"0.0"},{"v":0,"d":"0.0"},{"v":0,"d":"0.0"},{"v":0,"d":"0.0"},{"v":0,"d":"0.0"},{"v":51951.3,"d":"$51,951.30"},{"v":15,"d":"$15.00"}]
[null,null,"Actividad 1.4","Programa de regularización de predios en las localidades de Santa Rosa y Los Cedros","PORCENTAJE de avance en el programa de regularización de predios (P130-APRP)","Mide los avances en la implementación del programa de regularización","Eficacia","Gestión","(Cantidad de etapas (10) completas en la elaboracion de cada uno de los expedientes del programa de regularizacion de predios en Santa Rosa y Cedros  / total de etapas (6000) completadas en cada uno de los 600 predios por regularizar en  el programa de regularizacion de predios en Santa Rosa y Cedros)*100",6000,6000,"Mensual","Porcentaje",{"v":1,"d":"100%"}," Portal Web del Municipio página de transparencia","Se dispone de personal y recursos ",{"v":50001.3,"d":"50,001.3"},{"v":1350,"d":"1,350.0"},{"v":600,"d":"600.0"},{"v":0,"d":"0.0"},{"v":0,"d":"0.0"},{"v":0,"d":"0.0"},{"v":0,"d":"0.0"},{"v":0,"d":"0.0"},{"v":0,"d":"0.0"},{"v":51951.3,"d":"$51,951.30"},{"v":15,"d":"$15.00"}]
[null,null,"Actividad 1.5","Elaborar un diagnostico de los niveles de sobre explotación del territorio","PORCENTAJE de avance en el diagnóstico de explotación territorial (P131-ADET )l","Mide los avances en la elaboración del diagnostico sobre la explotación del territorio","Eficacia","Gestión","(Cantidad de temas a desarrollar (10) dentro del diagnóstico de explotación territorial / Total de temas (10) desarrollados dentro del  diagnóstico de explotación territorial )*100",10,10,"Mensual","Porcentaje",{"v":1,"d":"1.00"}," Portal Web del Municipio página de transparencia","Se dispone de personal y recursos ",{"v":66668.4,"d":"66,668.4"},{"v":1799.9999999999998,"d":"1,800.0"},{"v":799.9999999999999,"d":"800.0"},{"v":0,"d":"0.0"},{"v":0,"d":"0.0"},{"v":0,"d":"0.0"},{"v":0,"d":"0.0"},{"v":0,"d":"0.0"},{"v":0,"d":"0.0"},{"v":69268.4,"d":"$69,268.40"},{"v":19.999999999999996,"d":"$20.00"}]
[null,null,"Actividad 1.6","Alternativas de crecimiento urbano sin el cambio de uso de suelo agrícola a urbano","PORCENTAJE  de avance en el programa de alternativas de crecimiento urbano (P132-APACU)","Mide los avances en el programa de crecimiento urbano sin el cambio de uso de suelos","Eficacia","Gestión","(Cantidad de temas a desarrollar (9) dentro del Programa Municipal de alternativas de crecimiento urbano  sin el cambio de uso de suelos / Total de temas desarrollados dentro del  Programa Municipal de alternativas de crecimiento urbano  sin el cambio de uso de suelos (9) )*100",9,9,"Mensual","Porcentaje",{"v":1,"d":"100%"}," Portal Web del Municipio página de transparencia","Se dispone de personal y recursos ",{"v":50001.3,"d":"50,001.3"},{"v":1350,"d":"1,350.0"},{"v":600,"d":"600.0"},{"v":0,"d":"0.0"},{"v":0,"d":"0.0"},{"v":0,"d":"0.0"},{"v":0,"d":"0.0"},{"v":0,"d":"0.0"},{"v":0,"d":"0.0"},{"v":51951.3,"d":"$51,951.30"},{"v":15,"d":"$15.00"}]
[null,null,"Actividad 1.7","Desarrollar un programa de impulso al turismo ecológico y su ordenamiento","PORCENTAJE de avance del programa de impulso turístico ecológico (P133-APITE)","Mide el avance en la elaboración de programa de impulso al turismo ecológico","Eficacia","Gestión","(Cantidad de temas a desarrollar (9) dentro del programa de impulso al turismo ecológico a nivel municipal / Total de temas desarrollados dentro del  programa de impulso al turismo ecológico a nivel municipal (9) )*100",9,9,"Mensual","Porcentaje",{"v":1,"d":"1.00"}," Portal Web del Municipio página de transparencia","Se dispone de personal y recursos ",{"v":50001.3,"d":"50,001.3"},{"v":1350,"d":"1,350.0"},{"v":600,"d":"600.0"},{"v":0,"d":"0.0"},{"v":0,"d":"0.0"},{"v":0,"d":"0.0"},{"v":0,"d":"0.0"},{"v":0,"d":"0.0"},{"v":0,"d":"0.0"},{"v":51951.3,"d":"$51,951.30"},{"v":15,"d":"$15.00"}]
[null,"Desarrollo Urbano","Componente 2","Instrumentos de Planeación Urbana Actualizados","ÍNDICE de actualizacion de los instrumentos de planeación urbana. (Í2-IAIPU)","Mide el índice de adtualización de los Instrumentos de planeación urbana ","Eficacia","Gestión","(valor resultante de sumar los valores individuales  de  los cosientes entre sus denominadores por su ponderacion asignada, que miden las  variables de: consolidación habitacional en fraccionamientos, consolidacion urbana en localidades, planes de centros, desarrollo urbano, imagen urbana, equipamiento y regularización con su correspondientes ponderaciones de .1, .1, .1, .2, .2, .2, y .1)",655.5,671.5,"Bimestral","Índice",0.97," Portal Web del Municipio página de transparencia","Se dispone de personal y recursos ",{"v":282066,"d":"$282,066.00"},{"v":30000,"d":"$30,000.00"},{"v":88000,"d":"$88,000.00"},{"v":0,"d":"$0.00"},{"v":0,"d":"$0.00"},{"v":0,"d":"$0.00"},{"v":0,"d":"$0.00"},{"v":0,"d":"$0.00"},{"v":0,"d":"$0.00"},{"v":400066,"d":"$400,066.00"}]
[null,null,"Actividad 2.1","Consolidar los fraccionamientos existentes antes de abrir nuevas áreas de uso habitacional.","PORCENTAJE de consolidación urbana de fraccionamiento existentes (P134-CUFE)","Mide el porcentaje de consolidación habitacional de cada fraccionamiento","Eficacia","Gestión","(Cantidad de temas (5) que determinan la consolidación habitacional de los 10 fraccionamiento urbanos existentes  dentro del Programa Municipal de consolidación habitacional de fraccionamientos urbanos  / Total de temas 50 necesarios de cubrir para considararlos como consolidados dentro del Programa Municipal de consolidación habitacional )*100",50,50,"Mensual","Porcentaje",{"v":1,"d":"1.00"}," Portal Web del Municipio página de transparencia","Se dispone de personal y recursos ",{"v":28206.6,"d":"28,206.6"},{"v":3000,"d":"3,000.0"},{"v":8800,"d":"8,800.0"},{"v":0,"d":"0.0"},{"v":0,"d":"0.0"},{"v":0,"d":"0.0"},{"v":0,"d":"0.0"},{"v":0,"d":"0.0"},{"v":0,"d":"0.0"},{"v":40006.6,"d":"$40,006.60"},{"v":10,"d":"$10.00"}]
[null,null,"Actividad 2.2","Consolidar las localidades tradicionales que cuentan con suelo disponible dentro de sus límites","PORCENTAJE de consolidación urbana de localidades tradicionales (P135-CULT)","Mide el porcentaje de consolidación habitacional de las localidades tradicionales","Eficacia","Gestión","(Cantidad de temas que determinan la consolidación de las localidaes tradicionales (5) dentro del Programa Municipal de consolidación de localidades tradicionales (4) que cuentan con suelo disponible dentro de sus límites / Total de temas 20 necesarios de cubrir para considararlos como consolidados dentro del Programa Municipal de consolidación de localidades tradicionales (4) que cuentan con suelo disponible dentro de sus límites )*100",20,20,"Mensual","Porcentaje",{"v":1,"d":"100%"}," Portal Web del Municipio página de transparencia","Se dispone de personal y recursos ",{"v":28206.6,"d":"28,206.6"},{"v":3000,"d":"3,000.0"},{"v":8800,"d":"8,800.0"},{"v":0,"d":"0.0"},{"v":0,"d":"0.0"},{"v":0,"d":"0.0"},{"v":0,"d":"0.0"},{"v":0,"d":"0.0"},{"v":0,"d":"0.0"},{"v":40006.6,"d":"$40,006.60"},{"v":10,"d":"$10.00"}]
[null,null,"Actividad 2.3","Elaboración de Planes de Centro de Población. ","PORCENTAJE de avance de elaboración de planes de centros de población (P136-AEPCP)","Mide los avances en la elaboración de los planes de desarrollo urbano de centros de población municipal","Eficacia","Gestión","(Cantidad de planes (7) a desarrollar dentro del Programa de Planes de Centro de Población en el municipio / Total de planes (7) a desarrollar dentro del  Programa de Planes de Centro de Población en el municipio )*100",7,7,"Mensual","Porcentaje",{"v":1,"d":"1.00"}," Portal Web del Municipio página de transparencia","Se dispone de personal y recursos ",{"v":28206.6,"d":"28,206.6"},{"v":3000,"d":"3,000.0"},{"v":8800,"d":"8,800.0"},{"v":0,"d":"0.0"},{"v":0,"d":"0.0"},{"v":0,"d":"0.0"},{"v":0,"d":"0.0"},{"v":0,"d":"0.0"},{"v":0,"d":"0.0"},{"v":40006.6,"d":"$40,006.60"},{"v":10,"d":"$10.00"}]
[null,null,"Actividad 2.4","Elaboración del Programa Municipal de Desarrollo Urbano","PORCENTAJE de avance del programa de desarrollo urbano para ser considerado en los municipios que cuentan con instrumentos de planeación urbana, y ordenamiento ecológico y territorial congruentes con los instrumentos superiores (P137-APDU)","Mide el avance en la elaboración del programa de desarrollo urbano municipal","Eficacia","Gestión","(Cantidad de temas a desarrollar (9) dentro del Programa Municipal de Desarrollo Urbano a nivel municipal / Total de temas desarrollados dentro del  Programa Municipal de Desarrollo Urbano a nivel municipal (9) )*100",9,9,"Mensual","Porcentaje",{"v":1,"d":"100%"}," Portal Web del Municipio página de transparencia","Se dispone de personal y recursos ",{"v":28206.6,"d":"28,206.6"},{"v":3000,"d":"3,000.0"},{"v":8800,"d":"8,800.0"},{"v":0,"d":"0.0"},{"v":0,"d":"0.0"},{"v":0,"d":"0.0"},{"v":0,"d":"0.0"},{"v":0,"d":"0.0"},{"v":0,"d":"0.0"},{"v":40006.6,"d":"$40,006.60"},{"v":10,"d":"$10.00"}]
[null,null,"Actividad 2.5","Mejorar la imagen urbana en ingresos y primer cuadro de las localidades tradicionales","PORCENTAJE de avance del plan de imagen urbana (P138-APIU)","Mide los avances de los planes de mejora de imagen urbana ","Eficacia","Gestión","(Cantidad de puntos(10) a considerar como ingresos a la ciudad (6) y primer cuadro  en cabecera y localidades tradicionales (4) dentro del programa de imagen urbana considerando las variables (fachadas, estacionamiento en calles, banquetas, puestos ambualentes, letreros, colores, paradas de transporte público, señaletica vial y de calles, contenedores o tiradesros de basura, cableados de luz pública, arbotantes, areas verdes, carcamos y tapas de drenaje (16) / Total de puntos 160 a revisar dentro del programa de imagen urbana con las variable mencionadas)*100",130,160,"Mensual","Porcentaje",{"v":1,"d":"1.00"}," Portal Web del Municipio página de transparencia","Se dispone de personal y recursos ",{"v":70516.5,"d":"70,516.5"},{"v":7500,"d":"7,500.0"},{"v":22000,"d":"22,000.0"},{"v":0,"d":"0.0"},{"v":0,"d":"0.0"},{"v":0,"d":"0.0"},{"v":0,"d":"0.0"},{"v":0,"d":"0.0"},{"v":0,"d":"0.0"},{"v":100016.5,"d":"$100,016.50"},{"v":25,"d":"$25.00"}]
[null,null,"Actividad 2.6","Elaborar estudio de requerimiento en términos de equipamiento en localidades y fraccionamientos","PORCENTAJE de avance en el estudio de equipamiento urbano (P139-AEEU)","Mide los avances en la elaboracion del estudio de equipamiento en localidades y fraccionamientos","Eficacia","Gestión","(Cantidad de localidades  (10) y fraccionamientos (5) que se incluiran en el estudio de necesidades de equipamiento urbano respecto a (10) variables (Agua, luz, drenaje, pavimento, alumbrado público, transporte público, señaletica vial, banquetas, espacios deportivos, espacios culturales)  100 necesidades / Total de necesidades 150 consideradas como variable en el estudio de equipamiento )*100",100,150,"Mensual","Porcentaje",{"v":0.66,"d":"66%"}," Portal Web del Municipio página de transparencia","Se dispone de personal y recursos ",{"v":56413.2,"d":"56,413.2"},{"v":6000,"d":"6,000.0"},{"v":17600,"d":"17,600.0"},{"v":0,"d":"0.0"},{"v":0,"d":"0.0"},{"v":0,"d":"0.0"},{"v":0,"d":"0.0"},{"v":0,"d":"0.0"},{"v":0,"d":"0.0"},{"v":80013.2,"d":"$80,013.20"},{"v":20,"d":"$20.00"}]
[null,null,"Actividad 2.7","Regularizar predios en Santa Rosa y Cedros (expedición de títulos de propiedad)","PORCENTAJE de regularización de predios (P140-RP)","Mide los avances en la elaboración del programa de regularización de predios rusticos","Eficacia","Gestión","(Cantidad de etapas (10) completas en la elaboracion de cada uno de los expedientes del programa de regularizacion de predios en Santa Rosa y Cedros  / total de etapas (6000) completadas en cada uno de los 600 predios por regularizar en  el programa de regularizacion de predios en Santa Rosa y Cedros)*100",6000,6000,"Mensual","Porcentaje",{"v":1,"d":"1.00"}," Portal Web del Municipio página de transparencia","Se dispone de personal y recursos ",{"v":42309.9,"d":"42,309.9"},{"v":4500,"d":"4,500.0"},{"v":13200,"d":"13,200.0"},{"v":0,"d":"0.0"},{"v":0,"d":"0.0"},{"v":0,"d":"0.0"},{"v":0,"d":"0.0"},{"v":0,"d":"0.0"},{"v":0,"d":"0.0"},{"v":60009.9,"d":"$60,009.90"},{"v":15,"d":"$15.00"}]
[null,"Obras públicas","Componente 3","Cumplimiento en Obra Pública Incrementado","ÍNDICE de cumplimiento del Programa de Obra Pública Anual (Í3-CPOPA)","Mide la cantidad de Proyectos de obra concluidos exitosamente de los que integran el programa anual infraestructura municipal","Eficacia","Gestión","(valor resultante de sumar los valores individuales  de  los cosientes entre sus denominadores por su ponderacion asignada, que miden las  variables de: rezago de infraestructura, evaluacion normatividad y cumplimiento PAO con su correspondientes ponderaciones de .4, .4,  y .2)",266.4,294.4,"Bimestral","Índice",{"v":0.9,"d":"0.90"}," Portal Web del Municipio página de transparencia","Se dispone de personal y recursos ",{"v":2244472,"d":"$2,244,472.0"},{"v":3960000,"d":"$3,960,000.0"},{"v":1903000,"d":"$1,903,000.0"},{"v":0,"d":"$0.0"},{"v":550000,"d":"$550,000.0"},{"v":18604745,"d":"$18,604,745.0"},{"v":0,"d":"$0.0"},{"v":0,"d":"$0.0"},{"v":0,"d":"$0.0"},{"v":27262217,"d":"$27,262,217.0"}]
[null,null,"Actividad 3.1","Abatir en un alto porcentaje el rezago de infraestructura que presenta las localidades que conforma el Municipio de Ixtlahuacán de los Membrillos, Jalisco","PORCENTAJE de reduccion del rezago de infraestructura (P145-RRI)","Mide el avance en la disminución del rezago en infraestructura en localidades del municipio","Eficacia","Gestión","(Cantidad de obras concluidas ( 5 nuevas, 10 de manetnimiento y 8 rehabilitadas) como nuevas, de mantenimiento y rehabilitadas para dar cumplimiento al programa anual de obra en educacion, vialidades, agua potable, cultura y deporte/ Total de obras  (23) que integran el programa anual de obra)*100",64,64,"Mensual","Porcentaje",{"v":1,"d":"1.00"}," Portal Web del Municipio página de transparencia","Se dispone de personal y recursos ",{"v":1122236,"d":"1,122,236.0"},{"v":1980000,"d":"1,980,000.0"},{"v":951500,"d":"951,500.0"},{"v":0,"d":"0.0"},{"v":275000,"d":"275,000.0"},{"v":9302372.5,"d":"9,302,372.5"},{"v":0,"d":"0.0"},{"v":0,"d":"0.0"},{"v":0,"d":"0.0"},{"v":13631108.5,"d":"$13,631,108.50"},{"v":50,"d":"$50.0"}]
[null,null,"Actividad 3.2","Ejercer el recurso en tiempo con las modalidades establecidas en la Ley  de Obra Publica, de acuerdo al monto del recurso.","PORCENTAJE de ejercicio de recursos apegados a ley de obra pública y normatividad aplicable que cumpla con la evaluación de la calidad del marco jurídico estatal (P146-ERALOP)","Mide el cumplimiento del programa de obra separado por fuente de financiamiento y normatividad aplicable en cumplimiento de la evaluación de la calidad del marco jurídico estatal","Eficacia","Gestión","(Cantidad de etapas (10) completas en la elaboracion de cada uno de los expedientes del programa anual de obra pública  / total de etapas (640) completadas en cada uno de los 64 expedientes del programa anual de obra pública 2020)*100",570,640,"Mensual","Porcentaje",{"v":1,"d":"100%"}," Portal Web del Municipio página de transparencia","Se dispone de personal y recursos ",{"v":112223.59999999998,"d":"112,223.6"},{"v":197999.99999999997,"d":"198,000.0"},{"v":95149.99999999999,"d":"95,150.0"},{"v":0,"d":"0.0"},{"v":27499.999999999996,"d":"27,500.0"},{"v":930237.2499999999,"d":"930,237.3"},{"v":0,"d":"0.0"},{"v":0,"d":"0.0"},{"v":0,"d":"0.0"},{"v":1363110.8499999996,"d":"$1,363,110.85"},{"v":4.999999999999999,"d":"$5.0"}]
[null,null,"Actividad 3.3","Programas de mantenimiento e instalaciones en planteles de preescolares y primarias, mantenimiento y construcción de casa de la cultura y teatro, rehabilitación de pavimentos en vialidades, sustitución de líneas de agua potable y cajas de valvulas,perforacion de pozos para la extracción de agua potable y sustitución de lineas de drenaje y construcción de pozos de visita.  ","PORCENTAJE de cumplimiento y avance en el programa de obra anual, mantenimiento y rehabilitacion de infraestructura (P147-CAPOAMR)","Mide el cumplimiento y avance en el programa de obra anual, de mantenimiento y rehabilitación a escuelas, instalaciones deportivas, vialidades, instalaciones de agua potable y lineas de drenaje","Eficacia","Gestión","(Cantidad de obras concluidas ( 44 nuevas, 14 de manetnimiento y 10 rehabilitadas) como nuevas, de mantenimiento y rehabilitadas para dar cumplimiento al programa anual de obra en educacion, vialidades, agua potable, cultura y deporte/ Total de obras  (64) que integran el programa anual de obra)*100",64,64,"Mensual","Porcentaje",{"v":1,"d":"1.00"}," Portal Web del Municipio página de transparencia","Se dispone de personal y recursos ",{"v":1010012.4,"d":"1,010,012.4"},{"v":1782000,"d":"1,782,000.0"},{"v":856350,"d":"856,350.0"},{"v":0,"d":"0.0"},{"v":247500,"d":"247,500.0"},{"v":8372135.25,"d":"8,372,135.3"},{"v":0,"d":"0.0"},{"v":0,"d":"0.0"},{"v":0,"d":"0.0"},{"v":12267997.65,"d":"$12,267,997.65"},{"v":45,"d":"$45.0"}]
[null,"Ecología","Componente 4","Condiciones Ecológicas Mejoradas","ÍNDICE de  mejora en las condiciones ecológicas del territorio municipal (T4-MCEtm)","Mide la cantidad de Direcciones municipales que hacen actividades para mejorar las condiciones ecológicas","Eficacia","Gestión","(valor resultante de sumar los valores individuales  de  los cosientes entre sus denominadores por su ponderacion asignada, que miden las  variables de: regularizacion de empresas, diagnostico y programa capacitación con su correspondientes ponderaciones de .5, .2,  y .3)",46.4,185,"Bimestral","Índice","0.25"," Portal Web del Municipio página de transparencia","Se dispone de personal y recursos ",{"v":1157263,"d":"$1,157,263.0"},{"v":17000,"d":"$17,000.0"},{"v":46000,"d":"$46,000.0"},{"v":0,"d":"$0.0"},{"v":0,"d":"$0.0"},{"v":0,"d":"$0.0"},{"v":0,"d":"$0.0"},{"v":0,"d":"$0.0"},{"v":0,"d":"$0.0"},{"v":1220263,"d":"$1,220,263.0"}]
[null,null,"Actividad 4.1","Regular las empresas y establecimientos que operan en el territorio municipal que emiten algún tipo de contaminante que afecte al medio ambiente, así como reforzar en la población civil la concientización del cuidado del medio ambiente a través de talleres","PORCENTAJE de avance en el programas regularización de empresas y establecimientos en el territorio (P148-APREET)","Mide los avance de cumplimiento en los dictamenes y talleres ","Eficacia","Gestión","(Cantidad de actividades 6 (2 dictamines sobre contaminación y 4 talleres sobre medio ambientales) para mejorar la regulación de establecimientos que emiten algun tipo de contaminante al medioambiente / total de actividades (6) para mejorar la regulación de establecimientos que emiten algun tipo de contaminante al medioambiente)*100",6,6,"Mensual","Porcentaje",{"v":1,"d":"1.00"}," Portal Web del Municipio página de transparencia","Se dispone de personal y recursos ",{"v":347178.9,"d":"347,178.9"},{"v":5100,"d":"5,100.0"},{"v":13800,"d":"13,800.0"},{"v":0,"d":"0.0"},{"v":0,"d":"0.0"},{"v":0,"d":"0.0"},{"v":0,"d":"0.0"},{"v":0,"d":"0.0"},{"v":0,"d":"0.0"},{"v":366078.9,"d":"$366,078.90"},{"v":30,"d":"$30.0"}]
[null,null,"Actividad 4.2","Elaboración de Diagnostico para determinar la superficie de la Área Natural Protegida","PORCENTAJE de elaboración de diagnóstico de área natural protegida  municipal para sumar a la superficie estatal bajo esquemas de Área Natural Protegida  (P149-EDANP)","Mide los avances en la propuesta de área natural protegida","Eficacia","Gestión","(Cantidad de etapas (10) necesarias para terminar el diagnostico para determinar el área natural protegida municipal / Total de etapas cubiertas para  terminar el diagnostico para determinar el área natural protegida municipal (10))*100",10,10,"Mensual","Porcentaje",{"v":1,"d":"100%"}," Portal Web del Municipio página de transparencia","Se dispone de personal y recursos ",{"v":520768.35,"d":"520,768.4"},{"v":7650,"d":"7,650.0"},{"v":20700,"d":"20,700.0"},{"v":0,"d":"0.0"},{"v":0,"d":"0.0"},{"v":0,"d":"0.0"},{"v":0,"d":"0.0"},{"v":0,"d":"0.0"},{"v":0,"d":"0.0"},{"v":549118.35,"d":"$549,118.35"},{"v":45,"d":"$45.0"}]
[null,null,"Actividad 4.3","Impartir un taller sobre la Importancia del Medio Ambiente y del Cambio Climático, dirigido al personal del H. Ayuntamiento.","PORCENTAJE de cumplimiento del programa sobre medioambiente y cambio climático (P150-CPSMCC)","Mide el cumplimiento y participación en el programa de capacitacion ambiental","Eficacia","Gestión","(Cantidad de personal inscrito (3) para participar en el programa de capacitacion sobre  la Importancia del Medio Ambiente y del Cambio Climático por cada una de las (46) direcciones del Ayuntamiento/total de personal en el ayutamiento (600))*100",138,600,"Mensual","Porcentaje",0.23," Portal Web del Municipio página de transparencia","Se dispone de personal y recursos ",{"v":289315.75,"d":"289,315.8"},{"v":4250,"d":"4,250.0"},{"v":11500,"d":"11,500.0"},{"v":0,"d":"0.0"},{"v":0,"d":"0.0"},{"v":0,"d":"0.0"},{"v":0,"d":"0.0"},{"v":0,"d":"0.0"},{"v":0,"d":"0.0"},{"v":305065.75,"d":"$305,065.75"},{"v":25,"d":"$25.0"}]

{"sheet":"Pp1 MIR  EDSP","index":2,"n_rows":94,"n_cols":28,"rows_kept":94,"merged":[[2,2,2,3],[3,2,3,3],[4,2,4,3],[5,2,5,3],[6,2,6,3],[7,2,7,3],[8,2,8,3],[9,1,10,1],[9,2,9,3],[10,2,10,3],[11,1,12,1],[11,2,11,3],[12,2,12,3],[13,1,14,1],[13,2,13,3],[14,2,14,3],[16,4,16,16],[16,17,16,25],[20,1,26,1],[27,1,28,1],[29,1,31,1],[32,1,37,1],[38,1,42,1],[43,1,47,1],[48,1,54,1],[55,1,56,1],[57,1,59,1],[60,1,63,1],[64,1,67,1],[68,1,71,1],[72,1,75,1],[76,1,78,1],[79,1,82,1],[83,1,85,1],[86,1,89,1]]}
[]
[{"$nulls":11},"  MATRIZ DE INDICADORES PARA RESULTADOS POR PROGRAMA "]
[null,null,"Municipio",null,"Ixtlahuacán de los Membrillos"]
[null,null,"Denominación del Programa",null,"Estado de Derecho y Seguridad"]
[null,null,"Categoría programática",null,"Prestación de servicios públicos"]
[null,null,"Unidad Responsable/OPD",null,"Tesoreria Municipal"]
[null,null,"Finalidad",null,"Gobierno"]
[null,null,"Función",null,"Coordinación_Política_de_Gobierno"]
[null,null,"Sub-función",null,"1.3.4 Función Pública"]
[null,"Plan Nacional de Desarrollo","Alineación con objetivos superiores del PND",null,"IV.I  .- Justicia y Estado de Derecho : Objetivo: Garantizar la construcción de la paz, el pleno ejercicio de los derechos humanos, la gobernabilidad democrática y el fortalecimiento de las instituciones del Estado mexicano."]
[null,null,"Alineación con objetivos secundarios del PND",null,"Objetivo 1.2 Fortalecer la cultura democrática, abrir el gobierno a la participación social y escuchar de manera permanente a la sociedad, dando especial atención a las mujeres y los grupos históricamente discriminados y marginados."]
[null,"Plan Estatal de Desarrollo","Alineación con objetivos superiores del PED",null,"6.7   Gobierno efectivo e integridad pública"]
[null,null,"Alineación con objetivos secundarios del PED",null,"Hacienda Pública"]
[null,"Plan Municipal de Desarrollo","Alineación con objetivos superiores del PMD",null,"1  Estado de Derecho y Seguridad"]
[null,null,"Alineación con objetivos secundarios del PMD",null,"1.1  Incrementar el nivel de confianza y percepción de la seguridad y administración pública"]
[]
[{"$nulls":4},"I N D I C A D O R E S",{"$nulls":12},"P R E S U P U E S T O"]
[{"$nulls":4},"Resumen Narrativo","Nombre del indicador","Definición","Dimensión","Tipo","Método de cálculo","Valor programado 1 (Numerador)","Valor programado 2 (Denominador)","Frecuencia de medición","Unidad de medida","Metas","Medios de verificación","Supuestos","Capítulo 1000","Capítulo 2000","Capítulo 3000","Capítulo 4000","Capítulo 5000","Capítulo 6000","Capítulo 7000","Capítulo 8000","Capítulo 9000",null,"Ponderación"]
[null,null,"Fin",null,"La población que reside en Ixtlhuacán de los Membreillos disponen de un estado de bienestar en cuatro dimensiónes; Estado de Derecho, Desarrollo Social, Desarrollo Económico y Gestión del Territorio.","INDICE Integral de Cumplimiento del Plan Municipal de Desarrollo y Gobernanza 2018-2021 (IICPMDG 1821)","Mide en el cumplimiento en cada uno de los programas presupuestarios establecidos en cada eje del PMDyG para su segumiento al cumplimiento de las metas definidas para cada unidad administrativa municipal","Eficiencia","Estratégico","IIDMt = [(IIEDSmt + IIDSmt + IIDEmt + IAGTmt) /4]",2.21,4,"Anual","Índice",0.55," Portal Web del Municipio página de transparencia","Se dispone de personal y recursos",{"v":21838923,"d":"21,838,923.0"},{"v":7417188,"d":"7,417,188.0"},{"v":21957996,"d":"21,957,996.0"},{"v":100000,"d":"100,000.0"},{"v":1515000,"d":"1,515,000.0"},{"v":0,"d":"0.0"},{"v":0,"d":"0.0"},{"v":0,"d":"0.0"},{"v":6593052,"d":"6,593,052.0"},{"v":59422159,"d":"59,422,159.0"},{"v":0.4095,"d":"40.95%"}]
[null,null,"Propósito",null,"Fortalecer el estado de derecho, la seguridad pública y la proteccion civil mediante la modernizacion y eficacia de la administracion pública.","INDICE de Desarrollo Municipal (IDM)","Mide el progreso de un municipio en cuatro dimensiones del desarrollo: social, económica, ambiental e institucional","Eficiencia","Estratégico","(valor resultante de sumar los valores individuales  de  los cosientes entre sus denominadores por su ponderacion asignada, que miden las  variables de:  percepción  inseguridad, ampliación señaletica,  confianza Juzgado Municipal, riesgos desastres, administración municipal,  eficiencia municipal, eficiencia gasto público, contribuyetes incumplidos, cumplimiento servidores públicos, confianza cuerpo seguridad pública, ordenamientos actualizados,  cumplimiento normatividad, eficiencia Registro Civil, eficiencia Catastro,mantenimiento parque vehicular, satisfacción Gubernamental,  transparencia con su correspondientes ponderaciones de .1, .05, .05, .05, .1, .05, .1, .05, .05, .05, .05, .05, .05, .05, .05, .05 y .05)",1415.5900000000001,2133.9,"Semestral","Índice",0.66," Portal Web del Municipio página de transparencia","Se dispone de personal y recursos ",{"v":21838923,"d":"21,838,923.0"},{"v":7417188,"d":"7,417,188.0"},{"v":21957996,"d":"21,957,996.0"},{"v":100000,"d":"100,000.0"},{"v":1515000,"d":"1,515,000.0"},{"v":0,"d":"0.0"},{"v":0,"d":"0.0"},{"v":0,"d":"0.0"},{"v":6593052,"d":"6,593,052.0"},{"v":59422159,"d":"59,422,159.0"}]
[null,"Seguridad pública","Componente 1",null,"Percepción de Seguridad Pública Incrementada","INDICE de percepción de inseguridad por parte de la población (IPS)","Mide el cambio de percepción por la ciudadania en la seguridad personal y de sus cosas ","Eficacia","Gestión","(valor resultante de sumar los valores individuales  de  los cosientes entre sus denominadores por su ponderacion asignada, que miden las  variables de: prevalencia delictiva, elementos integrados, evaluados,  capacitados, vinculacion de delitos, derechos humanos,  con sus correspondientes ponderaciones de .2, .1, .2, .2, .2 y .1 / la suma de los valores del denominador de las mismas variables)",57,106.6,"Bimestral","Índice",0.53," Portal Web del Municipio página de transparencia","Se dispone de personal y recursos ",{"v":9569478,"d":"9,569,478.0"},{"v":5973004,"d":"5,973,004.0"},{"v":15992996,"d":"15,992,996.0"},{"v":0,"d":"0.0"},{"v":1500000,"d":"1,500,000.0"},{"v":0,"d":"0.0"},{"v":0,"d":"0.0"},{"v":0,"d":"0.0"},{"v":3216300,"d":"3,216,300.0"},{"v":36251778,"d":"36,251,778.0"}]
[null,null,"Actividad 1.1",null,"Trabajar con la ciudadanía en la prevención social","Tasa de prevalencia delictiva por cada diez habitantes denunciados por la ciudadania y resueltos. (P1-DDCR)","Mide la tasa de delitos que fueron denunciados por la ciudadania y resueltos como producto de trabajar conjuntamente","Eficacia","Gestión","(Tasa de delitos denunciados por la ciudadania y resueltos como resultado del trabajo conjunto entre el cuerpo de seguridad pública y la ciudadania  por cada 10 habitantes    ",2,10,"Mensual","Tasa",0.2," Portal Web del Municipio página de transparencia","Se dispone de personal y recursos ",{"v":1913895.6,"d":"1,913,895.6"},{"v":1194600.8,"d":"1,194,600.8"},{"v":3198599.2,"d":"3,198,599.2"},{"v":0,"d":"0.0"},{"v":300000,"d":"300,000.0"},{"v":0,"d":"0.0"},{"v":0,"d":"0.0"},{"v":0,"d":"0.0"},{"v":643260,"d":"643,260.0"},{"v":7250355.6,"d":"$7,250,355.60"},20]
[null,null,"Actividad 1.2",null,"Integrar, orientar y capacitar a los actuales y nuevos elementos de seguridad pública.","PORCENTAJE de elementos integrados y capacitados a Cuerpo de Seguridad Pública. (P2-EICCSP)","Mide el porcentaje de elementos del cuerpo de seguridad pública que transitaron por un proceso de integración, orientación y capacitacion y entonces salieron a atender a la ciudadania","Eficacia","Gestión","(Cantidad de ciudadanos (8) que se incorporan al cuerpo de seguridad pública y transitan por un proceso de integración, orientación y capacitacion antes de salir  a dar atención a la ciudadania al año / Total de  ciudadanos que se incorporan al cuerpo de seguridad pública y transitan por un proceso de integración al año (10))*100",8,10,"Mensual","Porcentaje",{"v":0.8,"d":"80%"}," Portal Web del Municipio página de transparencia","Se dispone de personal y recursos ",{"v":1913895.6,"d":"1,913,895.6"},{"v":1194600.8,"d":"1,194,600.8"},{"v":3198599.2,"d":"3,198,599.2"},{"v":0,"d":"0.0"},{"v":300000,"d":"300,000.0"},{"v":0,"d":"0.0"},{"v":0,"d":"0.0"},{"v":0,"d":"0.0"},{"v":643260,"d":"643,260.0"},{"v":7250355.6,"d":"$7,250,355.60"},20]
[null,null,"Actividad 1.3",null,"Definir en el corto plazo y capacitar a los integrantes del grupo especializado en reacción para atender las localidades más vulnerables del municipio.","PORCENTAJE de elementos evaluados y capacitados en cuerpo de reacción. (P3-EECCR)","Mide el tiempo transcurrido para que los elementos de seguridad se encuentren capacitados para participar en el grupo especializado","Eficacia","Gestión","(Cantidad de tiempo (6 meses) necesario para que los elementos de seguridad pública se encuentren capacitados para integrarse a cuerpos epecializados / Total de tiempo disponible en el año para que los elementos de seguridad pública se encuentren capacitados para integrarse a cuerpos epecializados)*100",6,12,"Mensual","Porcentaje",{"v":0.5,"d":"50%"}," Portal Web del Municipio página de transparencia","Se dispone de personal y recursos ",{"v":1435421.7,"d":"1,435,421.7"},{"v":895950.6,"d":"895,950.6"},{"v":2398949.4,"d":"2,398,949.4"},{"v":0,"d":"0.0"},{"v":225000,"d":"225,000.0"},{"v":0,"d":"0.0"},{"v":0,"d":"0.0"},{"v":0,"d":"0.0"},{"v":482445,"d":"482,445.0"},{"v":5437766.7,"d":"$5,437,766.70"},15]
[null,null,"Actividad 1.4",null,"Concientizar y capacitar a los choferes de las patrullas de seguridad publica en un mejor manejo del parque vehicular.","PORCENTAJE de elementos capacitados como choferes de patrulla y manejo de equipo. (P4-ECCPME)","Mide los beneficios de capacitar en el manejo de patrullas a los choferes en meyor tiempo en funcionamiento cada unidad","Eficacia","Gestión","(Cantidad de elementos de seguridad pública (25) capacitados como choferes de patrulla  y manejo de radio y videocamara / Total de elementos de seguridad pública (50) )*100",10,50,"Mensual","Porcentaje",{"v":0.5,"d":"50%"}," Portal Web del Municipio página de transparencia","Se dispone de personal y recursos ",{"v":478473.9,"d":"478,473.9"},{"v":298650.2,"d":"298,650.2"},{"v":799649.8,"d":"799,649.8"},{"v":0,"d":"0.0"},{"v":75000,"d":"75,000.0"},{"v":0,"d":"0.0"},{"v":0,"d":"0.0"},{"v":0,"d":"0.0"},{"v":160815,"d":"160,815.0"},{"v":1812588.9,"d":"$1,812,588.90"},5]
[null,null,"Actividad 1.5",null,"Instalación de cámaras de video vigilancia así como una base de datos sobre los registros de denuncias.  Establecer una instancia en el municipio que dé seguimiento a los asuntos ante la fiscalía","PORCENTAJE de vinculación de delitos entre denuncias, fiscalia y videocamaras. (T1-VDDFV)","Mide la vinculación de delitos denucnciados y registrados en medios electronicos y el tiempo de solucion por la fiscalia","Eficacia","Gestión","(Cantidad de delitos denunciados y registrados en videocamaras (26) durante el año  / Total de  delitos denunciados (156) durante el año)*100",109,156,"Mensual","Porcentaje",{"v":0.7,"d":"70%"}," Portal Web del Municipio página de transparencia","Se dispone de personal y recursos ",{"v":2870843.4,"d":"2,870,843.4"},{"v":1791901.2,"d":"1,791,901.2"},{"v":4797898.8,"d":"4,797,898.8"},{"v":0,"d":"0.0"},{"v":450000,"d":"450,000.0"},{"v":0,"d":"0.0"},{"v":0,"d":"0.0"},{"v":0,"d":"0.0"},{"v":964890,"d":"964,890.0"},{"v":10875533.4,"d":"$10,875,533.40"},30]
[null,null,"Actividad 1.6",null,"Conjuntamente con asuntos internos y oficialía mayor administrativa gestionar capacitaciones constantes y diversas sobre los derechos humanos.","PORCENTAJE de empledos municipales que se capacitan en derechos humanos. (P5-EMCDH)","Mide la participación y sencibilización de los empleados municipales al cuidado y respeto de los derechos humanos","Eficacia","Gestión","(Cantidad de emplados municipales (300) que reciben capacitacion sobre derechos humanos  / Total de emplados municipales (600) )*100",300,600,"Mensual","Porcentaje",{"v":0.5,"d":"50%"}," Portal Web del Municipio página de transparencia","Se dispone de personal y recursos ",{"v":956947.8,"d":"956,947.8"},{"v":597300.4,"d":"597,300.4"},{"v":1599299.6,"d":"1,599,299.6"},{"v":0,"d":"0.0"},{"v":150000,"d":"150,000.0"},{"v":0,"d":"0.0"},{"v":0,"d":"0.0"},{"v":0,"d":"0.0"},{"v":321630,"d":"321,630.0"},{"v":3625177.8,"d":"$3,625,177.80"},10]
[null,"Vialidad","Componente 2",null,"Señalética vial ampliada ","TASA de ampliación de la señaletica vial (TAS)","Mide la relación de señalamiento vial en buen estado","Eficacia","Gestión","Relacion de señaletica y vialidades con necesidad de mantenimiento o rehabilitacion por cada 24 vialidades con señaletica en buen estado",5,24,"Bimestral","Tasa",0.2," Portal Web del Municipio página de transparencia","Se dispone de personal y recursos ",{"v":116245,"d":"116,245.0"},{"v":10000,"d":"10,000.0"},{"v":8000,"d":"8,000.0"},{"v":0,"d":"0.0"},{"v":0,"d":"0.0"},{"v":0,"d":"0.0"},{"v":0,"d":"0.0"},{"v":0,"d":"0.0"},{"v":0,"d":"0.0"},{"v":134245,"d":"134,245.0"}]
[null,null,"Actividad 2.1",null,"Evaluación y reporte mensual sobre el deterioro vial y señalética, así como de la aplicación del reglamento","PORCENTAJE de vialidades y señaletica con deterioro. (P6-VSD)","Mide el porcentaje de vialidades con señaletica de apoyo al ciudadano y su nivel de deterioro","Eficacia","Gestión","(Cantidad de vialidades (6) municipales con señaletica de apoyo para el ciudadano que presentan algun tipo de deterioro de acuerdo al reglamento  / Total (24) de  vialidades municipales con señaletica de apoyo para el ciudadano de acuerdo al reglamento)*100",6,24,"Mensual","Porcentaje",{"v":0.25,"d":"25%"}," Portal Web del Municipio página de transparencia","Se dispone de personal y recursos ",{"v":116245,"d":"116,245.0"},{"v":10000,"d":"10,000.0"},{"v":8000,"d":"8,000.0"},{"v":0,"d":"0.0"},{"v":0,"d":"0.0"},{"v":0,"d":"0.0"},{"v":0,"d":"0.0"},{"v":0,"d":"0.0"},{"v":0,"d":"0.0"},{"v":134245,"d":"134,245.0"},{"v":100,"d":"100.0"}]
[null,"Juzgado Municipal","Componente 3",null,"Confianza en el juzgado municipal incrementada","INDICE de confianza en el Juzgado Municipal (V1-CJM)","Mide el nivel de confianza de la ciudadania en el trabajo de la Oficina del Juez Municipal","Eficacia","Gestión","(valor resultante de sumar los valores individuales  de  los cosientes entre sus denominadores por su ponderacion asignada, que miden las  variables de: mediación y reinsidencia,  con sus correspondientes ponderaciones de .4 y .6 / la suma de los valores del denominador de las mismas variables)",72.4,156,"Bimestral","Índice",0.46," Portal Web del Municipio página de transparencia","Se dispone de personal y recursos ",{"v":244593,"d":"244,593.0"},{"v":16000,"d":"16,000.0"},{"v":46000,"d":"46,000.0"},{"v":0,"d":"0.0"},{"v":0,"d":"0.0"},{"v":0,"d":"0.0"},{"v":0,"d":"0.0"},{"v":0,"d":"0.0"},{"v":0,"d":"0.0"},{"v":306593,"d":"306,593.0"}]
[null,null,"Actividad 3.1",null,"Certificación del personal en mediación y conciliaciones a través del juzgado municipal.","PORCENTAJE de conflictos resueltos en Juzgado Municipal por justicia alternativa. (P7-CRJMJA)","Mide el buen desempeño del personal especializado en mediacion y conciliación","Eficacia","Gestión","(Cantidad de delitos (106) resueltos aplicando la justicia alternativa por los Jueces Municipales durante el año  / Total de  delitos  (156) resuletos por los Jueces Municipales durante el año)*100",106,156,"Mensual","Porcentaje",{"v":0.6794,"d":"68%"}," Portal Web del Municipio página de transparencia","Se dispone de personal y recursos ",{"v":48918.6,"d":"48,918.6"},{"v":3200,"d":"3,200.0"},{"v":9200,"d":"9,200.0"},{"v":0,"d":"0.0"},{"v":0,"d":"0.0"},{"v":0,"d":"0.0"},{"v":0,"d":"0.0"},{"v":0,"d":"0.0"},{"v":0,"d":"0.0"},{"v":61318.6,"d":"61,318.6"},{"v":20,"d":"20.0"}]
[null,null,"Actividad 3.2",null,"Equipo interdisciplinario para mejorar el acercamiento a la población y reducir problemas sociales.","TASA de delitos calificados como administrativas y del fuero común. (T2-DCAFC)","Mide el desempeño de los inegrantes del equipo calificador para resolver problemas sociales reduciendo la reinsidencia","Eficacia","Gestión","(Cantidad de ciudadanos (50) infractores reinsidentes al cometer delitos administrativos o del fuero común durante el año  / Total de  ciudadanos (156) infractores al cometer delitos administrativos o del fuero común durante el año)*100",50,156,"Mensual","Tasa",{"v":0.3205,"d":"32%"}," Portal Web del Municipio página de transparencia","Se dispone de personal y recursos ",{"v":195674.4,"d":"195,674.4"},{"v":12800,"d":"12,800.0"},{"v":36800,"d":"36,800.0"},{"v":0,"d":"0.0"},{"v":0,"d":"0.0"},{"v":0,"d":"0.0"},{"v":0,"d":"0.0"},{"v":0,"d":"0.0"},{"v":0,"d":"0.0"},{"v":245274.4,"d":"245,274.4"},{"v":80,"d":"80.0"}]
[null,"Protección Civil","Componente 4",null,"Riesgos geológicos, hidrológicos, químicos, sanitarios, organizativos, astrológicos, por incendios y antropogénicos reducidos","Índice de reducción de riesgos por desastres geológicos, hirdrológicos, químicos, sanitario, organizativos, astro lógicos, por incendios y antropogénicos. (TRR)","Mide la reduccion en la relación de siniestros materiales y personales en eventos geologicos-administrativos-hidrológicos-sanitarios-quimicos-organizativos","Eficacia","Gestión","(valor resultante de sumar los valores individuales  de  los cosientes entre sus denominadores por su ponderacion asignada, que miden las  variables de:  ciudadanos capacitados, riezgos evitados, ejidatarios capacitados, denuncia de riezgos y actualizacion del atlas,  con sus correspondientes ponderaciones de .1, .2 .1, .2, y .3 / la suma de los valores del denominador de las mismas variables)",306.8,307.4,"Bimestral","Índice",0.99," Portal Web del Municipio página de transparencia","Se dispone de personal y recursos ",{"v":1131439,"d":"1,131,439.0"},{"v":163000,"d":"163,000.0"},{"v":48000,"d":"48,000.0"},{"v":0,"d":"0.0"},{"v":15000,"d":"15,000.0"},{"v":0,"d":"0.0"},{"v":0,"d":"0.0"},{"v":0,"d":"0.0"},{"v":0,"d":"0.0"},{"v":1357439,"d":"1,357,439.0"}]
[null,null,"Actividad 4.1",null,"Programa de capacitación ciudadana sobre Protección Civil y mejorar la prevención.","PORCENTAJE de ciudadanos capacitados en Proteccion Civil. (P8-CCPC)","Mide la participación de la ciudadania en temas de protección civil respecto a la poblacion total del municipio","Eficacia","Gestión","(Cantidad de ciudadanos (1200) que participan en el programa de capacitacion bimestrales sobre los diferentes riezgos y mecanismos de prevencion que se ofrece durante el año  / Total de ciudadanos en el municipio)*100",1200,59435,"Mensual","Porcentaje",{"v":0.0201,"d":"2%"}," Portal Web del Municipio página de transparencia","Se dispone de personal y recursos ",{"v":113143.9,"d":"113,143.9"},{"v":16300,"d":"16,300.0"},{"v":4800,"d":"4,800.0"},{"v":0,"d":"0.0"},{"v":1500,"d":"1,500.0"},{"v":0,"d":"0.0"},{"v":0,"d":"0.0"},{"v":0,"d":"0.0"},{"v":0,"d":"0.0"},{"v":135743.9,"d":"135,743.9"},10]
[null,null,"Actividad 4.2",null,"Instalación de dos unidades fijas de seguridad pública y protección civil que realicen evaluaciones trimestrales a los entes establecidos","PORCENTAJE de riesgos evitados por inspeccion preventiva. (T3-REIP)","Mide la reducción de riesgos en entes establecidos, moviles y transeuntes por inspeccion preventiva","Eficacia","Gestión","(Cantidad de eventos de emergencia y riezgo reducidos  o evitados  (25%) en entes establecidos, moviles y transeuntes por inspeccion preventiva / Total  de inspecciónes realizadas en los diferentes espacios de actividad social registradas en el atlas de riezgo municipal  (100))",25,100,"Mensual","Porcentaje",{"v":0.25,"d":"25%"}," Portal Web del Municipio página de transparencia","Se dispone de personal y recursos ",{"v":226287.8,"d":"226,287.8"},{"v":32600,"d":"32,600.0"},{"v":9600,"d":"9,600.0"},{"v":0,"d":"0.0"},{"v":3000,"d":"3,000.0"},{"v":0,"d":"0.0"},{"v":0,"d":"0.0"},{"v":0,"d":"0.0"},{"v":0,"d":"0.0"},{"v":271487.8,"d":"271,487.8"},20]
[null,null,"Actividad 4.3",null,"Revisar el reglamentos que incorpore la capacitación por parte de los cuerpos de seguridad pública y protección civil a los integrantes de los ejidos municipales y pequeña propiedad","PORCENTAJE de ejidatarios capacitados sobre reglamento municipal de proteccion civil. (P9-ECRM)","Mide la participación de los integrantes de los ejidos municipales y pequeños propietarios en temas de protección civil en consecuencia reduccion de fenomenos antropogénicos.","Eficacia","Gestión","(Cantidad de ejidatarios y pequeños propiestarios (600) que participan en las capacitaciones bimestrales sobre los diferentes riezgos y mecanismos de prevencion que se ofrezcan durante el año  / Total capacitaciones (6) sobre riezgos y mecanismos de prevencion)*100",600,6,"Mensual","Porcentaje",{"v":1,"d":"100%"}," Portal Web del Municipio página de transparencia","Se dispone de personal y recursos ",{"v":169715.85,"d":"169,715.9"},{"v":24450,"d":"24,450.0"},{"v":7200,"d":"7,200.0"},{"v":0,"d":"0.0"},{"v":2250,"d":"2,250.0"},{"v":0,"d":"0.0"},{"v":0,"d":"0.0"},{"v":0,"d":"0.0"},{"v":0,"d":"0.0"},{"v":203615.85,"d":"203,615.9"},15]
[null,null,"Actividad 4.4",null,"Establecer capacitación para protección civil y población en general sobre mecanismos de prevención y control de emergencias por fenomenos antropogénicos en el reglamentos.","PORCENTAJE de ciudadanos capacitados en emergencias causadas  por fenomenos antropogénicos. (P10-CCIF)","Mide la particpacion de la ciudadania en la reducción y denuncia de riezgos  antropogénicos  y sus causas","Eficacia","Gestión","(Cantidad de ciudadanos (600) que participan en las capacitaciones bimestrales sobre los diferentes riezgos y mecanismos de prevencion que se ofrezcan durante el año  / Total capacitaciones (6) sobre riezgos y mecanismos de prevencion)*100",600,6,"Mensual","Porcentaje",{"v":1,"d":"100%"}," Portal Web del Municipio página de transparencia","Se dispone de personal y recursos ",{"v":226287.8,"d":"226,287.8"},{"v":32600,"d":"32,600.0"},{"v":9600,"d":"9,600.0"},{"v":0,"d":"0.0"},{"v":3000,"d":"3,000.0"},{"v":0,"d":"0.0"},{"v":0,"d":"0.0"},{"v":0,"d":"0.0"},{"v":0,"d":"0.0"},{"v":271487.8,"d":"271,487.8"},20]
[null,null,"Actividad 4.5",null,"Actualizar el atlas de riesgo municipal y los mecanismos de vigilancia y prevención ","PORCENTAJE la cantidad de riezgos incluidos en los programas de prevencion y mecanismos de vigilancia en el atlas de riesgos actualizado. (P11-RIPAR)","Mide la cantidad de riezgos y mecanismos de emergencias actualizados en el atlas de riesgos municipal y difundidos a la ciudadania","Eficacia","Gestión","(Cantidad de riezgos y mecanismos de prevencion (6) actualizados  / Total de riezgos y mecanismos de prevencion (8))*100",6,8,"Mensual","Porcentaje",{"v":0.75,"d":"75%"}," Portal Web del Municipio página de transparencia","Se dispone de personal y recursos ",{"v":396003.65,"d":"396,003.7"},{"v":57050,"d":"57,050.0"},{"v":16800,"d":"16,800.0"},{"v":0,"d":"0.0"},{"v":5250,"d":"5,250.0"},{"v":0,"d":"0.0"},{"v":0,"d":"0.0"},{"v":0,"d":"0.0"},{"v":0,"d":"0.0"},{"v":475103.65,"d":"475,103.7"},35]
[null,"H Ayuntamiento (Regidores)","Componente 5",null,"Confianza en la administración municipal incrementada","ÍNDICE de confianza en la administración municipal. (V2-CAM )","Mide el nivel de confianza de la ciudadania en el trabajo de las diferentes comisiónes del ayuntamiento municipal","Eficacia","Gestión","(valor resultante de sumar los valores individuales  de  los cosientes entre sus denominadores por su ponderacion asignada, que miden las  variables de:  aplicacion de normatividad, contar con normatividad, comisiónes instaladas y asuntos dictaminados,  con sus correspondientes ponderaciones de .2, .4, .1, y .3 / la suma de los valores del denominador de las mismas variables)",297.9,260.7,"Bimestral","Índice",1.14," Portal Web del Municipio página de transparencia","Se dispone de personal y recursos ",{"v":3231045,"d":"3,231,045.0"},{"v":39000,"d":"39,000.0"},{"v":3000,"d":"3,000.0"},{"v":0,"d":"0.0"},{"v":0,"d":"0.0"},{"v":0,"d":"0.0"},{"v":0,"d":"0.0"},{"v":0,"d":"0.0"},{"v":0,"d":"0.0"},{"v":3273045,"d":"3,273,045.0"}]
[null,null,"Actividad 5.1",null,"Seguimiento a la aplicación y funcionamiento de la legislación local por comisiones, así como el desahogo de los asuntos propios del Ayuntamiento.","PORCENTAJE de actividades de las direcciones de la administracion municipal en seguimiento por comisiones para verificar su apego a la normatividad local. (P12-ADAMSCVA)","Mide el porcentaje de la aplicación de la normatividad local por las direcciones de la administracion municipal por las comisiones del ayuntamiento  ","Eficacia","Gestión","(Cantidad de actividades 25 realizadas durante el año en las 46  direcciónes apegadas a su reglamento municipal / Total de artciulos 1150 que integran las atribuciones y responsabilidades de las dirección de la administracion municipal en sus reglamentos locales)*100",1150,1150,"Mensual","Porcentaje",{"v":1,"d":"100%"}," Portal Web del Municipio página de transparencia","Se dispone de personal y recursos ",{"v":807761.25,"d":"807,761.3"},{"v":9750,"d":"9,750.0"},{"v":750,"d":"750.0"},{"v":0,"d":"0.0"},{"v":0,"d":"0.0"},{"v":0,"d":"0.0"},{"v":0,"d":"0.0"},{"v":0,"d":"0.0"},{"v":0,"d":"0.0"},{"v":818261.25,"d":"818,261.3"},{"v":25,"d":"25.0"}]
[null,null,"Actividad 5.2",null,"Actualizar y proponer los ordenamientos necesarios para las dependencias del Ayuntamiento que brindan servicios públicos.","PORCENTAJE de dependencias municipales con ordenamiento. (P13-DMO)","Mide el porcentaje de direcciones de la administración municipal que cuentan con una normatividad local","Eficacia","Gestión","(Cantidad de direcciones 46 que cuentan con su reglamento municipal / Total de direcciones 46 que tienen normada  en su reglamento sus atribuciones y responsabilidades)*100",46,46,"Mensual","Porcentaje",{"v":1,"d":"100%"}," Portal Web del Municipio página de transparencia","Se dispone de personal y recursos ",{"v":807761.25,"d":"807,761.3"},{"v":9750,"d":"9,750.0"},{"v":750,"d":"750.0"},{"v":0,"d":"0.0"},{"v":0,"d":"0.0"},{"v":0,"d":"0.0"},{"v":0,"d":"0.0"},{"v":0,"d":"0.0"},{"v":0,"d":"0.0"},{"v":818261.25,"d":"818,261.3"},{"v":25,"d":"25.0"}]
[null,null,"Actividad 5.3",null,"Presentar los dictámenes correspondientes para su análisis y en su caso solicitar su aprobación, y aplicación en el municipio.","PORCENTAJE de instalacion y operación de comisiones. (P14-IOC)","Mide el porcentaje de comisiones instaladas y en fucnionamiento para revisar los temas desahogados en Ayuntamiento","Eficacia","Gestión","(Cantidad de 30 comisiones que deberan ser instaladas para la dicatminación de los asuntos del ayuntamiento y  publicados en transparencia / Total  de 30 comisiones instaladas y en funcionamiento)*100",30,30,"Mensual","Porcentaje",{"v":1,"d":"100%"}," Portal Web del Municipio página de transparencia","Se dispone de personal y recursos ",{"v":807761.25,"d":"807,761.3"},{"v":9750,"d":"9,750.0"},{"v":750,"d":"750.0"},{"v":0,"d":"0.0"},{"v":0,"d":"0.0"},{"v":0,"d":"0.0"},{"v":0,"d":"0.0"},{"v":0,"d":"0.0"},{"v":0,"d":"0.0"},{"v":818261.25,"d":"818,261.3"},{"v":25,"d":"25.0"}]
[null,null,"Actividad 5.4",null,"Seguimiento y resguardo de expedientes de asuntos encomendados y propios de las comisiones y su incorporación en las páginas de transparencia del municipio.","Tasa de dictaminación por cada 5 asuntos asignados a comisiones su seguimiento y resguardo. (P15-EDSR)","Mide la Tasa de asuntos dictaminados por comisiones y posteriormente en ayuntamiento y publicados en transparencia","Eficacia","Gestión","(Cantidad de asuntos dictaminados de los 155 asuntos asignados por cada una de las 31 comisiones mismos que deberan ser posteriormente dicatminados en reunion de ayuntamiento y publicados en transparencia / Total  de comisiones instaladas y en funcionamiento (31))",155,31,"Mensual","Tasa ","5:31"," Portal Web del Municipio página de transparencia","Se dispone de personal y recursos ",{"v":807761.25,"d":"807,761.3"},{"v":9750,"d":"9,750.0"},{"v":750,"d":"750.0"},{"v":0,"d":"0.0"},{"v":0,"d":"0.0"},{"v":0,"d":"0.0"},{"v":0,"d":"0.0"},{"v":0,"d":"0.0"},{"v":0,"d":"0.0"},{"v":818261.25,"d":"818,261.3"},{"v":25,"d":"25.0"}]
[null,"Presidencia Municipal","Componente 6",null,"Eficiencia municipal incrementada","INDICE de eficiencia municipal. (V3-EM )","Mide los niveles de eficacia del titular de la administracion para desahogar los temas municipales y ciudadanos","Eficacia","Gestión","(valor resultante de sumar los valores individuales  de  los cosientes entre sus denominadores por su ponderacion asignada, que miden las  variables de sesiones de cabildo, eventos civicos, Ley de ingresos y gestion de recursos con las correspondientes ponderaciones de .3, .2, .2, y .3 / la suma de los valores del denominador de las mismas variables)",19.8,40.5,"Bimestral","Índice",0.48," Portal Web del Municipio página de transparencia","Se dispone de personal y recursos ",{"v":996009,"d":"996,009.0"},{"v":138000,"d":"138,000.0"},{"v":202000,"d":"202,000.0"},{"v":0,"d":"0.0"},{"v":0,"d":"0.0"},{"v":0,"d":"0.0"},{"v":0,"d":"0.0"},{"v":0,"d":"0.0"},{"v":0,"d":"0.0"},{"v":1336009,"d":"1,336,009.0"}]
[null,null,"Actividad 6.1",null,"Revisar y actualizar el reglamentos de sesiones en el que se incorpore la clasificación de los puntos de acuerdo así como el formato para su desahogo y publicación.","PORCENTAJE  desarrollo y aplicación del reglamento de sesiones de cabildo. (P16-DARSC)","Mide el porcentaje de sesiones realizadas con apego al reglamento municipal de sesiones","Eficacia","Gestión","(Cantidad de 15 sesiones de cabildo llevadas a cabo con apego al reglamento municipal aplicado con eficiencia dentro del programa 2020 de sesiones de cabildo ordinarias, especiales y plenarias/ Total  15 sesiones de cabildo llevadas a cabo con apego al reglamento municipal aplicado con eficiencia dentro del programa 2020 de sesiones de cabildo ordinarias, especiales y plenarias)*100",15,15,"Mensual","Porcentaje",{"v":1,"d":"100%"}," Portal Web del Municipio página de transparencia","Se dispone de personal y recursos ",{"v":249002.25,"d":"249,002.3"},{"v":34500,"d":"34,500.0"},{"v":50500,"d":"50,500.0"},{"v":0,"d":"0.0"},{"v":0,"d":"0.0"},{"v":0,"d":"0.0"},{"v":0,"d":"0.0"},{"v":0,"d":"0.0"},{"v":0,"d":"0.0"},{"v":334002.25,"d":"334,002.3"},{"v":25,"d":"25.0"}]
[null,null,"Actividad 6.2",null,"Programa de actividades Cívicas obligatorias en el año, día de la bandera, 5 de mayo batalla de puebla, grito de independencia y desfile del 16 de septiembre","PORCENTAJE  de reglamentacion y participación en eventos civicos y especiales. (P17-RPECE)","Mide el porcentaje de eficacia para desarrollar y aplicar el reglamento y programa de actividades civicas","Eficacia","Gestión","(Cantidad de 20 artículos del reglamento aplicados con eficiencia al organizar el programa 2020 de eventos civicos y especiales / Total  de 20 artículos del reglamento necesarios de revisar para organizar con eficiencia al organizar el programa 2020 de eventos civicos y especiales)*100",20,20,"Mensual","Porcentaje",{"v":1,"d":"100%"}," Portal Web del Municipio página de transparencia","Se dispone de personal y recursos ",{"v":149401.35,"d":"149,401.4"},{"v":20700,"d":"20,700.0"},{"v":30300,"d":"30,300.0"},{"v":0,"d":"0.0"},{"v":0,"d":"0.0"},{"v":0,"d":"0.0"},{"v":0,"d":"0.0"},{"v":0,"d":"0.0"},{"v":0,"d":"0.0"},{"v":200401.35,"d":"200,401.4"},{"v":15,"d":"15.0"}]
[null,null,"Actividad 6.3",null,"Programa de revisión, actualización y propuesta para su aprobación de ley de ingresos y egresos antes del 15 de diciembre ante cabildo","PORCENTAJE de aplicación de normatividad para elaborar Ley de ingresos y egresos. (P18-ANELIE)","Mide el porcentaje de aplicación de la normatividad estatal y federal para elaborar la ley de ingresos y egresos","Eficacia","Gestión","(Cantidad de leyes federales (1), estatales (1) y municipales (2) que se aplican en la elaboracion de la Ley de Ingresos Municipal 2020  / Total de (10)  leyes federales (5), estatales (3) y municipales (2) que se aplican en la elaboracion de la Ley de Ingresos Municipal 2020)*100",4,10,"Mensual","Porcentaje",{"v":0.4,"d":"40%"}," Portal Web del Municipio página de transparencia","Se dispone de personal y recursos ",{"v":298802.7,"d":"298,802.7"},{"v":41400,"d":"41,400.0"},{"v":60600,"d":"60,600.0"},{"v":0,"d":"0.0"},{"v":0,"d":"0.0"},{"v":0,"d":"0.0"},{"v":0,"d":"0.0"},{"v":0,"d":"0.0"},{"v":0,"d":"0.0"},{"v":400802.7,"d":"400,802.7"},{"v":30,"d":"30.0"}]
[null,null,"Actividad 6.4",null,"Programa de gestión de recursos ante el Estado como la Federación para el logro del programa de obra municipal.","PORCENTAJE de aplicación de proceso de gestion de recursos federales y estatales. (P19-APGRFE)","Mide el porcentaje de incremento de recursos gestionados ante el estado y la federación","Eficacia","Gestión","(Cantidad de recursos economicos gestionados 35% adicionalmente a lo programado en el presupuesto de egresos municipal 2020  / Total de recursos economicos programados en el presupuesto de egresos municipal 2020 (100%))*100",35,100,"Mensual","Porcentaje",{"v":0.35,"d":"35%"}," Portal Web del Municipio página de transparencia","Se dispone de personal y recursos ",{"v":298802.7,"d":"298,802.7"},{"v":41400,"d":"41,400.0"},{"v":60600,"d":"60,600.0"},{"v":0,"d":"0.0"},{"v":0,"d":"0.0"},{"v":0,"d":"0.0"},{"v":0,"d":"0.0"},{"v":0,"d":"0.0"},{"v":0,"d":"0.0"},{"v":400802.7,"d":"400,802.7"},{"v":30,"d":"30.0"}]
[null,"Hacienda Municipal (Tesorería)","Componente 7",null,"Gasto público eficientado","ÍNDICE de eficiencia del gasto público. (V4-EGM)","Mide el nivel de gasto programado en el municipio de acuerdo al ciclo presupuestrio para la implementacion del PbR/SED desde su asignacion por capitulo respecto a los años anteriores","Eficacia","Gestión","(valor resultante de sumar los valores individuales  de  los cosientes entre sus denominadores por su ponderacion asignada, que miden las  variables de sistemas de cobro, ampliacion de horario, morosidad en pagos, reduccion del gasto, modernizacion de equipos y cumplimiento de atribuciones con las correspondientes ponderaciones de .2, .2, .2, .2, .1 y .1 / la suma de los valores del denominador de las mismas variables)",155.9,151,"Bimestral","Índice",1.03," Portal Web del Municipio página de transparencia","Se dispone de personal y recursos ",{"v":1238434,"d":"1,238,434.0"},{"v":221000,"d":"221,000.0"},{"v":400000,"d":"400,000.0"},{"v":0,"d":"0.0"},{"v":0,"d":"0.0"},{"v":0,"d":"0.0"},{"v":0,"d":"0.0"},{"v":0,"d":"0.0"},{"v":3376752,"d":"3,376,752.0"},{"v":5236186,"d":"5,236,186.0"}]
[null,null,"Actividad 7.1",null,"Modernizar y actualizar los sistemas de cobro, asi como de capacitación constante del personal de caja","PORCENTAJE de sistemas de cobro actualizado y personal capacitado. (P20-SCAPC)","Mide el porcentaje de modernizacion de las computadoras, sistemas operativos y paqueteria especializada","Eficacia","Gestión","(Cantidad de equipos de computo 15 (50%) del total de las diferentes direcciones que son modernizados en sistemas operativos y paqueteria especializada / Total de 30 (100%) equipos de computo en las diferentes direcciones municipales)*100",15,30,"Mensual","Porcentaje",{"v":0.5,"d":"50%"}," Portal Web del Municipio página de transparencia","Se dispone de personal y recursos ",{"v":371530.2,"d":"371,530.2"},{"v":66300,"d":"66,300.0"},{"v":120000,"d":"120,000.0"},{"v":0,"d":"0.0"},{"v":0,"d":"0.0"},{"v":0,"d":"0.0"},{"v":0,"d":"0.0"},{"v":0,"d":"0.0"},{"v":1013025.6,"d":"1,013,025.6"},{"v":1570855.8,"d":"1,570,855.8"},30]
[null,null,"Actividad 7.2",null,"Programa de ampliación de horario de Servicio en los tres primeros meses del Ejercicio fiscal y tener red común con los demás departamentos.","PORCENTAJE de ampliación de horario de servicio en el año y de departamentos en red. (P21-AHSADR)","Mide el porcentaje de horas adicionales que se ofrecio el servicio y se mantuvo en red","Eficacia","Gestión","(Cantidad de horas adicionales (152 hrs mensuales) de servicio a las 160 normales para la atencion ciudadana para reducir en 50% el tiempo en realizar sus trámites en las oficinas del ayuntamiento / Total historico de horas disponibles para la atencion de la ciudadania por mes (160))*100",312,160,"Mensual","Porcentaje",{"v":1.95,"d":"195%"}," Portal Web del Municipio página de transparencia","Se dispone de personal y recursos ",{"v":61921.7,"d":"61,921.7"},{"v":11050,"d":"11,050.0"},{"v":20000,"d":"20,000.0"},{"v":0,"d":"0.0"},{"v":0,"d":"0.0"},{"v":0,"d":"0.0"},{"v":0,"d":"0.0"},{"v":0,"d":"0.0"},{"v":168837.6,"d":"168,837.6"},{"v":261809.3,"d":"261,809.3"},5]
[null,null,"Actividad 7.3",null,"Aprovechar las herramientas del Catastro Municipal y los padrones actualizados por dirección para elaborar el programa de apremios por vertiente ","PORCENTAJE de morosidad de contribuyentes en programa de apremios con las herramientas de catastro y padrones. (P22-MCPACP)","Mide el porcentaje de reduccion de contibuyentes morosos incluidos en los programas de apremio","Eficacia","Gestión","(Cantidad de aumento (20%) en los ingresos municipales que provienen de captacion directa al reducir en (20%) el porcentaje de contribuyentes en morosidad del 2019 / Total historico 2019 (100%) de ingresos municipales que provienen de captacion directa ))*100",120,100,"Mensual","Porcentaje",{"v":1.2,"d":"120%"}," Portal Web del Municipio página de transparencia","Se dispone de personal y recursos ",{"v":185765.1,"d":"185,765.1"},{"v":33150,"d":"33,150.0"},{"v":60000,"d":"60,000.0"},{"v":0,"d":"0.0"},{"v":0,"d":"0.0"},{"v":0,"d":"0.0"},{"v":0,"d":"0.0"},{"v":0,"d":"0.0"},{"v":506512.8,"d":"506,512.8"},{"v":785427.9,"d":"785,427.9"},15]
[null,null,"Actividad 7.4",null,"Establecer control individualizado por cada unidad de transporte para la gasolina, Cancelar todas la líneas telefónicas para funcionarios públicos, Se otorgaran los gastos para viáticos organizados y planeados bajo reglas estrictas con eventualidad solamente en caso necesario.","PORCENTAJE de reducción del gasto en gasolina, telefonía y viáticos. (P23-RGGTV)","Mide el porcentaje de reduccion de gasto por los conceptos señalados","Eficacia","Gestión","(Cantidad de gasto reducido en gasolina (20%), gasto reducido en telefonía (90%) y gasto reducido en víaticos (95%) / Total historico de gasto mensual en gasolina (100%), gasto mensual en telefonía (100%) y gasto mensual en víaticos (100%))*100",205,300,"Mensual","Porcentaje",{"v":0.6833,"d":"68.33%"}," Portal Web del Municipio página de transparencia","Se dispone de personal y recursos ",{"v":185765.1,"d":"185,765.1"},{"v":33150,"d":"33,150.0"},{"v":60000,"d":"60,000.0"},{"v":0,"d":"0.0"},{"v":0,"d":"0.0"},{"v":0,"d":"0.0"},{"v":0,"d":"0.0"},{"v":0,"d":"0.0"},{"v":506512.8,"d":"506,512.8"},{"v":785427.9,"d":"785,427.9"},15]
[null,null,"Actividad 7.5",null,"Adquisición de equipos de cómputos modernos y adecuados a las necesidades de las direcciones y departamentos.","PORCENTAJE de modernización del equipamiento de computo. (P24-MEC)","Mide el porcentaje de direcciones de la administracion municipal que fueron sujetas de renovacion de sus equipos de computo","Eficacia","Gestión","(Cantidad de equipos de computo (5) de las diferentes direcciones que son modernizados / Total de 30 equipos de computo en las diferentes direcciones municipales)*100",5,30,"Mensual","Porcentaje",{"v":0.166,"d":"17%"}," Portal Web del Municipio página de transparencia","Se dispone de personal y recursos ",{"v":247686.8,"d":"247,686.8"},{"v":44200,"d":"44,200.0"},{"v":80000,"d":"80,000.0"},{"v":0,"d":"0.0"},{"v":0,"d":"0.0"},{"v":0,"d":"0.0"},{"v":0,"d":"0.0"},{"v":0,"d":"0.0"},{"v":675350.4,"d":"675,350.4"},{"v":1047237.2,"d":"1,047,237.2"},20]
[null,null,"Actividad 7.6",null,"Programa de revisión y cumplimiento de las atribuciones y obligaciones del personal de cada dirección,  conjuntamente con la dirección de Oficialía Mayor Administrativa.","PORCENTAJE de cumplimiento de atribuciones y obligaciones en normatividad aplicable. (P25-CAONA)","Mide el porcentaje de actividades individuales de cada direccion apegadas al manual de organización","Eficacia","Gestión","(Cantidad de actividades 250 individuales ejecutadas como suma de las 46 direcciones de la administracion municipal / Total de actividades realizadas y evaluadas por las 46 direcciones municipales )*100",250,300,"Mensual","Porcentaje",{"v":0.8333,"d":"83.33%"}," Portal Web del Municipio página de transparencia","Se dispone de personal y recursos ",{"v":185765.1,"d":"185,765.1"},{"v":33150,"d":"33,150.0"},{"v":60000,"d":"60,000.0"},{"v":0,"d":"0.0"},{"v":0,"d":"0.0"},{"v":0,"d":"0.0"},{"v":0,"d":"0.0"},{"v":0,"d":"0.0"},{"v":506512.8,"d":"506,512.8"},{"v":785427.9,"d":"785,427.9"},15]
[null,"Apremios","Componente 8",null,"Tasa de contribuyentes incumplidos disminuida","TASA de contribuyetes incumplidos. (T1-CI )","Mide la reduccion de la relacion de contribuyentes incumplidos","Eficacia","Gestión","Tasa de contribuyentes  cumplidos por cada 990 licencias, permisos, concesiones o dictamenes municipales otorgados",750,990,"Bimestral","Tasa",{"v":75.75,"d":"76"}," Portal Web del Municipio página de transparencia","Se dispone de personal y recursos ",{"v":310712,"d":"310,712.0"},{"v":48000,"d":"48,000.0"},{"v":6000,"d":"6,000.0"},{"v":0,"d":"0.0"},{"v":0,"d":"0.0"},{"v":0,"d":"0.0"},{"v":0,"d":"0.0"},{"v":0,"d":"0.0"},{"v":0,"d":"0.0"},{"v":364712,"d":"364,712.0"}]
[null,null,"Actividad 8.1",null,"Programa de visitas y cumplimiento de las obligaciones ciudadanas con la hacienda municipal por tipo de permiso, licencia, concesión o servicios del ayuntamiento por padrón  y dirección.","PORCENTAJE de cumplimiento de obligaciones hacendarias por la ciudadania. (P26-COHC)","Mide el porcentaje de licencias vigentes y al corriente en su contribución","Eficacia","Gestión","(Cantidad de licencias 800, permisos 50, concesiones 40, y dictamenes 100 municipales renovados (990) / Total de  licencias 800, permisos 50, concesiones 40, y dictamenes 100 municipales renovados (990))*100",990,990,"Mensual","Porcentaje",{"v":1,"d":"100%"}," Portal Web del Municipio página de transparencia","Se dispone de personal y recursos ",{"v":310712,"d":"310,712.0"},{"v":48000,"d":"48,000.0"},{"v":6000,"d":"6,000.0"},{"v":0,"d":"0.0"},{"v":0,"d":"0.0"},{"v":0,"d":"0.0"},{"v":0,"d":"0.0"},{"v":0,"d":"0.0"},{"v":0,"d":"0.0"},{"v":364712,"d":"364,712.0"},{"v":100,"d":"100.0"}]
[null,"Oficial Mayor","Componente 9",null,"Cumplimiento de servidores públicos incrementado","RAZÓN de cumplimiento de servidores públicos. (T2-CSP)","Mide la relacion de cumplimiento de las obligaciones y atribuciones de cada direccion de acuerdo al manual de organización y su reglamento","Eficacia","Gestión","(Razón de 450 de los 600 empleados en las 46 direcciones municipales agrupadas en 4 programas presupuestarios para dar cumplimiento al Plan Municipal de Desarrollo y Gobernanza que han actualizado su reglamento y cumplen con sus obligaciones y atribuciones de acuerdo al manual de organización y reglamento)",450,600,"Bimestral","Razón",0.75," Portal Web del Municipio página de transparencia","Se dispone de personal y recursos ",{"v":1118484,"d":"1,118,484.0"},{"v":216334,"d":"216,334.0"},{"v":5095000,"d":"5,095,000.0"},{"v":100000,"d":"100,000.0"},{"v":0,"d":"0.0"},{"v":0,"d":"0.0"},{"v":0,"d":"0.0"},{"v":0,"d":"0.0"},{"v":0,"d":"0.0"},{"v":6529818,"d":"6,529,818.0"}]
[null,null,"Actividad 9.1",null,"Diagnóstico de necesidades y programa anual de capacitación por dirección.","PORCENTAJE de cumplimiento del programa municipal de capacitacion. (P27-CPMC)","Mide el porcentaje de servidores públicos que participan en el programa anual de capacitacion apegado al diagnostico de necesidades de las 46 direcciones de la administracion municipal","Eficacia","Gestión","(Cantidad de servidores públicos 300 que participan en el programa anual de capacitacion apegado al diagnostico de necesidades de las 46 direcciones de la administracion municipal / Total de servidores públicos 600 que integran las 46 direcciones de la administracion pública municipal)*100",300,600,"Mensual","Porcentaje",{"v":0.5,"d":"50%"}," Portal Web del Municipio página de transparencia","Se dispone de personal y recursos ",{"v":447393.6000000001,"d":"447,393.6"},{"v":86533.60000000002,"d":"86,533.6"},{"v":2038000.0000000002,"d":"2,038,000.0"},{"v":40000.00000000001,"d":"40,000.0"},{"v":0,"d":"0.0"},{"v":0,"d":"0.0"},{"v":0,"d":"0.0"},{"v":0,"d":"0.0"},{"v":0,"d":"0.0"},{"v":2611927.2000000007,"d":"2,611,927.2"},{"v":40.00000000000001,"d":"40.0"}]
[null,null,"Actividad 9.2",null,"Actualización del reglamento interno de trabajo para los empleados del ayuntamiento incorporando las adecuaciones a los reglamentos individuales de los servicios municipales","PORCENTAJE de actualización del reglamento interno por dirección. (P28-ARID)","Mide el porcentaje de actualizacion del reglamento interno cruzado con los reglamentos por direccion y vinculados al manual de organización","Eficacia","Gestión","(Cantidad de articulos del reglamento interior de trabajo de la administracion municipal actualizados 46 vinculados a las diferentes direcciones / Total de direcciones 46 con reglamento actualizado para vincular al reglamento interior de trabajo de la administracion pública municipal)*100",46,46,"Mensual","Porcentaje",{"v":1,"d":"100%"}," Portal Web del Municipio página de transparencia","Se dispone de personal y recursos ",{"v":671090.4,"d":"671,090.4"},{"v":129800.4,"d":"129,800.4"},{"v":3057000,"d":"3,057,000.0"},{"v":60000,"d":"60,000.0"},{"v":0,"d":"0.0"},{"v":0,"d":"0.0"},{"v":0,"d":"0.0"},{"v":0,"d":"0.0"},{"v":0,"d":"0.0"},{"v":3917890.8,"d":"3,917,890.8"},{"v":60,"d":"60.0"}]
[null,"Asuntos Internos","Componente 10",null,"Confianza en el cuerpo de seguridad pública incrementada","INDICE de confianza en el cuerpo de seguridad pública. (ICCSP)","Mide el nivel de confianza de la ciudadania en el actuar de los cuerpos de seguridad y sus integrantes","Eficacia","Gestión","(valor resultante de sumar los valores individuales  de  los cosientes entre sus denominadores por su ponderacion asignada, que miden las  variables de corrupción, practicas y capacitación con las correspondientes ponderaciones de .5, .2 y .3 / la suma de los valores del denominador de las mismas variables)",20.4,22.4,"Bimestral","Índice",0.91," Portal Web del Municipio página de transparencia","Se dispone de personal y recursos ",{"v":138877,"d":"138,877.0"},{"v":23000,"d":"23,000.0"},{"v":4000,"d":"4,000.0"},{"v":0,"d":"0.0"},{"v":0,"d":"0.0"},{"v":0,"d":"0.0"},{"v":0,"d":"0.0"},{"v":0,"d":"0.0"},{"v":0,"d":"0.0"},{"v":165877,"d":"165,877.0"}]
[null,null,"Actividad 10.1",null,"Exámenes de detección de actos de Corrupción.            ","PORCENTAJE de examenes y encuestas aplicados para prevenir actos y la percepción de corrupción. (P29-EAPAC)","Mide el porcentaje de examenes a que son sometidos los inetgrantes del cuerpo de seguridad pública municipal y encuestas que se aplican a la ciudadania sobre la percepción de ministerios públicos y procuradurias como corruptas.","Eficacia","Gestión","(Cantidad de 10 examenes de integridad para detectar actos de corrupción y 4 encuestas de percepción de corrupción de ministerios públicos y procuraduria, aplicados a la ciudadania / Total de examenes y encuestas aplicados)*100",14,14,"Mensual","Porcentaje",{"v":1,"d":"100%"}," Portal Web del Municipio página de transparencia","Se dispone de personal y recursos ",{"v":48606.95,"d":"48,607.0"},{"v":8050,"d":"8,050.0"},{"v":1400,"d":"1,400.0"},{"v":0,"d":"0.0"},{"v":0,"d":"0.0"},{"v":0,"d":"0.0"},{"v":0,"d":"0.0"},{"v":0,"d":"0.0"},{"v":0,"d":"0.0"},{"v":58056.95,"d":"58,057.0"},{"v":35,"d":"35.0"}]
[null,null,"Actividad 10.2",null,"Exámenes de detección de Malas Prácticas.","PORCENTAJE de examenes para prevenir malas prácticas. (P30-EPMP)","Mide el porcentaje de examenes realizados para detectar malas prácticas por los integrantes del cuerpo de seguridad","Eficacia","Gestión","(Cantidad de 10 examenes para detectar malas prácticas aplicados a los integrantes del cuerpo de seguridad / Total de integrantes 20 del cuerpo de seguridad)*100",10,20,"Mensual","Porcentaje",{"v":1,"d":"100%"}," Portal Web del Municipio página de transparencia","Se dispone de personal y recursos ",{"v":34719.25,"d":"34,719.3"},{"v":5750,"d":"5,750.0"},{"v":1000,"d":"1,000.0"},{"v":0,"d":"0.0"},{"v":0,"d":"0.0"},{"v":0,"d":"0.0"},{"v":0,"d":"0.0"},{"v":0,"d":"0.0"},{"v":0,"d":"0.0"},{"v":41469.25,"d":"41,469.3"},{"v":25,"d":"25.0"}]
[null,null,"Actividad 10.3",null,"Programa anual de capacitación en temas relacionados a la función como derechos humanos, llenado de IPH. faltas administrativas y delitos cometidos por policías municipales.","PORCENTAJE de cumplimieto del programa de capacitacion sobre derechos humanos. (P31-CPCDH)","Mide el porcentaje de participacion y cumplimiento del programa anual de capacitacion en respeto a derechos humanos por los integrantes de seguridad pública","Eficacia","Gestión","(Cantidad de criterios 4 (derechos humanos, llenado de IPH. faltas administrativas y delitos cometidos por  20 policías municipales) a verificar y capacitar en su aplicacion correcta / Total de criterios verificados con correcta aplicación)*100",38,38,"Mensual","Porcentaje",{"v":1,"d":"100%"}," Portal Web del Municipio página de transparencia","Se dispone de personal y recursos ",{"v":55550.8,"d":"55,550.8"},{"v":9200,"d":"9,200.0"},{"v":1600,"d":"1,600.0"},{"v":0,"d":"0.0"},{"v":0,"d":"0.0"},{"v":0,"d":"0.0"},{"v":0,"d":"0.0"},{"v":0,"d":"0.0"},{"v":0,"d":"0.0"},{"v":66350.8,"d":"66,350.8"},{"v":40,"d":"40.0"}]
[null,"Sindicatura","Componente 11",null,"Ordenamientos y lineamientos actualizados","Razón de ordenamientos y lineamientos actualizados. (T3-OLA)","Mide la relacion de actualizacion de la normatividad local respecto a la estatal y federal incluyendo la imcorporación del PbR/SED","Eficacia","Gestión","(Razón de las 16 de 46 direcciones municipales agrupadas en 4 programas presupuestarios para dar cumplimiento al Plan Municipal de Desarrollo y Gobernanza que cuentan con su  reglamento actualizado incorporando el PbR/SED )",16,46,"Bimestral","Razón",0.34," Portal Web del Municipio página de transparencia","Se dispone de personal y recursos ",{"v":946129,"d":"946,129.0"},{"v":38000,"d":"38,000.0"},{"v":8000,"d":"8,000.0"},{"v":0,"d":"0.0"},{"v":0,"d":"0.0"},{"v":0,"d":"0.0"},{"v":0,"d":"0.0"},{"v":0,"d":"0.0"},{"v":0,"d":"0.0"},{"v":992129,"d":"992,129.0"}]
[null,null,"Actividad 11.1",null,"Programa de actualización de la normatividad local, encaminado a mejorar y regular la función administrativa; dando cumplimiento a las leyes estatales y federales","PORCENTAJE de actualización de la normatividad local a la federal y estatal. (P32-PANLFE)","Mide el porcentaje de apego de las actualizaciones de la normatividad local a las disposiciones federales y estatales","Eficacia","Gestión","(Cantidad de reglamentos por actualizar 46 el correspondiente a cada dirección / Total de direcciones 46)*100",30,46,"Mensual","Porcentaje",{"v":1,"d":"100%"}," Portal Web del Municipio página de transparencia","Se dispone de personal y recursos ",{"v":283838.7,"d":"283,838.7"},{"v":11400,"d":"11,400.0"},{"v":2400,"d":"2,400.0"},{"v":0,"d":"0.0"},{"v":0,"d":"0.0"},{"v":0,"d":"0.0"},{"v":0,"d":"0.0"},{"v":0,"d":"0.0"},{"v":0,"d":"0.0"},{"v":297638.7,"d":"297,638.7"},{"v":30,"d":"30.0"}]
[null,null,"Actividad 11.2",null,"Programa de revisión,  aplicación y capacitación sobre la reglamentación municipal que le aplica en la responsabilidad de cada dirección.","PORCENTAJE de revision y capacitacion sobre aplicación de reglamentos municipales. (P33-RCARM)","Mide el porcentaje de entendimiento y aplicación correcta de la normatividad local en cada direccion municipal","Eficacia","Gestión","(Cantidad de criterios 4 (conocimiento del reglamento, correcta aplicación, actualizacion y resultados en la dirección e incorporacion del PbR/SED en su reglamento de la dirección) a verificar y capacitar en su aplicacion correcta / Total de criterios verificados con correcta aplicación)*100",4,4,"Mensual","Porcentaje",{"v":1,"d":"100%"}," Portal Web del Municipio página de transparencia","Se dispone de personal y recursos ",{"v":236532.25,"d":"236,532.3"},{"v":9500,"d":"9,500.0"},{"v":2000,"d":"2,000.0"},{"v":0,"d":"0.0"},{"v":0,"d":"0.0"},{"v":0,"d":"0.0"},{"v":0,"d":"0.0"},{"v":0,"d":"0.0"},{"v":0,"d":"0.0"},{"v":248032.25,"d":"248,032.3"},{"v":25,"d":"25.0"}]
[null,null,"Actividad 11.3",null,"Programa de evaluación y seguimiento al desempeño de las direcciones para el cumplimiento del presupuesto base resultados, asi como de la hacienda municipal. ","PORCENTAJE de cumplimiento de actividades para la incorporacion del PbR/SED a las actividades de cada dirección municipal. (P34-CAPbR)","Mide el porcentaje de cumplimiento de actualizacion de datos, indicadores y metas para cumplir con el PbR/SED","Eficacia","Gestión","(Cantidad de actividades  desarrolladas (4 POA, PAC, Indicadores y Actualizar reglamento) para incorporar el PbR/SED a la evaluación y seguimiento de resultados de la dirección / total de  actividades  desarrolladas (4 POA, PAC, Indicadores y Actualizar reglamento) para incorporar el PbR/SED a la evaluación y seguimiento de resultados de la dirección)*100",4,4,"Mensual","Porcentaje",{"v":1,"d":"100%"}," Portal Web del Municipio página de transparencia","Se dispone de personal y recursos ",{"v":425758.05,"d":"425,758.1"},{"v":17100,"d":"17,100.0"},{"v":3600,"d":"3,600.0"},{"v":0,"d":"0.0"},{"v":0,"d":"0.0"},{"v":0,"d":"0.0"},{"v":0,"d":"0.0"},{"v":0,"d":"0.0"},{"v":0,"d":"0.0"},{"v":446458.05,"d":"446,458.1"},{"v":45,"d":"45.0"}]
[null,"Contraloria","Componente 12",null,"Apego a la normatividad para el ejercicio de recursos públicos","Índice de cumplimiento a la normatividad para el ejercicio de recursos públicos municipales. (T4-ANERP)","Mide la relación de recursos programados y ejercidos evitando la reasignación de recursos de una actividad a otra","Eficacia","Gestión","(valor resultante de sumar los valores individuales  de  los cosientes entre sus denominadores por su ponderacion asignada, que miden las  variables de auditorias, inspecciones y seguimiento con su respectivas ponderaciones de .6, .3 y .1 / la suma de los valores del denominador de las mismas variables)",12.7,23.5,"Bimestral","Índice",0.54," Portal Web del Municipio página de transparencia","Se dispone de personal y recursos ",{"v":446303,"d":"446,303.0"},{"v":16000,"d":"16,000.0"},{"v":4000,"d":"4,000.0"},{"v":0,"d":"0.0"},{"v":0,"d":"0.0"},{"v":0,"d":"0.0"},{"v":0,"d":"0.0"},{"v":0,"d":"0.0"},{"v":0,"d":"0.0"},{"v":466303,"d":"466,303.0"}]
[null,null,"Actividad 12.1",null,"Programa para auditar la cuenta pública de hacienda municipal en tiempo y forma","PORCENTAJE de cumplimiento del programa de auditoria a cuenta pública municipal. (P35-CPACP)","Mide el porcentaje de cumplimiento del programa de auditorias internas a cuenta publica municipal","Eficacia","Gestión","(Cantidad de revisiones a cuenta publica ejecutadas de las 12 programadas dentro del Programa de auditoria interna a la cuenta pública municipal / total de auditorias 12 ejecutadas y programadas dentro de auditoria interna municipal)*100",12,12,"Mensual","Porcentaje",{"v":1,"d":"100%"}," Portal Web del Municipio página de transparencia","Se dispone de personal y recursos ",{"v":133890.9,"d":"133,890.9"},{"v":4800,"d":"4,800.0"},{"v":1200,"d":"1,200.0"},{"v":0,"d":"0.0"},{"v":0,"d":"0.0"},{"v":0,"d":"0.0"},{"v":0,"d":"0.0"},{"v":0,"d":"0.0"},{"v":0,"d":"0.0"},{"v":139890.9,"d":"139,890.9"},{"v":30,"d":"30.0"}]
[null,null,"Actividad 12.2",null,"Programa de visitas de inspección a las diferentes dependencias del ayuntamiento","PORCENTAJE de cumplimiento del programa de visitas e inspección. (P36-CPVI)","Mide el porcentaje de cumplimiento del programa de visitas para verificar el cumplimiento de sus actividades","Eficacia","Gestión","(Cantidad de visitas 10 programadas dentro del Programa de inspección a las diferentes dependencias del ayuntamiento / total de visitas 10 programadas dentro del Programa de inspección a las 46 diferentes dependencias del ayuntamiento)*100",10,46,"Mensual","Porcentaje",{"v":0.2173,"d":"21.73%"}," Portal Web del Municipio página de transparencia","Se dispone de personal y recursos ",{"v":200836.35,"d":"200,836.4"},{"v":7200,"d":"7,200.0"},{"v":1800,"d":"1,800.0"},{"v":0,"d":"0.0"},{"v":0,"d":"0.0"},{"v":0,"d":"0.0"},{"v":0,"d":"0.0"},{"v":0,"d":"0.0"},{"v":0,"d":"0.0"},{"v":209836.35,"d":"209,836.4"},{"v":45,"d":"45.0"}]
[null,null,"Actividad 12.3",null,"Programa de seguimiento al manual de organización y obligaciones con el Estado.","PORCENTAJE de cumplimiento al manual de organización y obligaciones con el estado. (P37-CMOOE)","Mide el porcentaje de cumplimiento del manual de organización y que este apegado a la normatividad estatal","Eficacia","Gestión","(Cantidad de 25 articulos del manual de organización y obligaciones con el estado  a los que es obligatorio dar seguimiento  y cumplimiento por parte de la direccion municipal de contraloria/ total de 25 articulos del manual de organización y obligaciones con el estado  a los que es obligatorio dar seguimiento  y cumplimiento por parte de la direccion municipal de contraloria)*100",25,25,"Mensual","Porcentaje",{"v":1,"d":"100%"}," Portal Web del Municipio página de transparencia","Se dispone de personal y recursos ",{"v":111575.75,"d":"111,575.8"},{"v":4000,"d":"4,000.0"},{"v":1000,"d":"1,000.0"},{"v":0,"d":"0.0"},{"v":0,"d":"0.0"},{"v":0,"d":"0.0"},{"v":0,"d":"0.0"},{"v":0,"d":"0.0"},{"v":0,"d":"0.0"},{"v":116575.75,"d":"116,575.8"},{"v":25,"d":"25.0"}]
[null,"Registro Civil","Componente 13",null,"Registro civil eficientado","ÍNDICE de eficiencia en Registro Civil. (V5-ERC)","Mide el nivel de cumplimiento y satisfacción de la ciudadania","Eficacia","Gestión","(valor resultante de sumar los valores individuales  de  los cosientes entre sus denominadores por su ponderacion asignada, que miden las  variables de informes, apoyos y capacitación con sus respectivas ponderaciones de .4, .4 y .2 / la suma de los valores del denominador de las mismas variables)",17.2,17.6,"Bimestral","Índice",0.97," Portal Web del Municipio página de transparencia","Se dispone de personal y recursos ",{"v":318146,"d":"318,146.0"},{"v":93000,"d":"93,000.0"},{"v":5000,"d":"5,000.0"},{"v":0,"d":"0.0"},{"v":0,"d":"0.0"},{"v":0,"d":"0.0"},{"v":0,"d":"0.0"},{"v":0,"d":"0.0"},{"v":0,"d":"0.0"},{"v":416146,"d":"416,146.0"}]
[null,null,"Actividad 13.1",null,"Informe digital mensual  a la Dirección General del Registro Civil del Estado y al Sistema Nacional de Registro.","PORCENTAJE de cumplimiento de informes a DGRCE. (P38-CIRCE)","Mide el porcentaje de cumplimiento de los informes mensuales ","Eficacia","Gestión","(Cantidad de informes acumulados enviados a la direccion general del registro civil del estado 12 y al sistema nacional de registros  12 responsabilidad delRegistro Civil/total acumulado mensual de informes enviados a la DGRCE  12 y al SNR 12 responsabilidad del registro Civil)*100",24,24,"Mensual","Porcentaje",{"v":1,"d":"100%"}," Portal Web del Municipio página de transparencia","Se dispone de personal y recursos ",{"v":111351.1,"d":"111,351.1"},{"v":32550,"d":"32,550.0"},{"v":1750,"d":"1,750.0"},{"v":0,"d":"0.0"},{"v":0,"d":"0.0"},{"v":0,"d":"0.0"},{"v":0,"d":"0.0"},{"v":0,"d":"0.0"},{"v":0,"d":"0.0"},{"v":145651.1,"d":"145,651.1"},{"v":35,"d":"35.0"}]
[null,null,"Actividad 13.2",null,"Programa de registro y seguimiento de solicitudes de actos para el apoyo de la población de inicio a la culminación del caso.","PORCENTAJE de conclusion de solicitudes de apoyo. (P39-CSA)","Mide el porcentaje de conclusion de las solicitudes de apoyo de la ciudadania ","Eficacia","Gestión","(Cantidad de solicitudes de apoyo 15 para resolver actos relativos al Registro Civil/total de solicitudes recibidas 15 registradas y dado seguimiento hasta su solucion en registro Civil)*100",15,15,"Mensual","Porcentaje",{"v":1,"d":"100%"}," Portal Web del Municipio página de transparencia","Se dispone de personal y recursos ",{"v":127258.4,"d":"127,258.4"},{"v":37200,"d":"37,200.0"},{"v":2000,"d":"2,000.0"},{"v":0,"d":"0.0"},{"v":0,"d":"0.0"},{"v":0,"d":"0.0"},{"v":0,"d":"0.0"},{"v":0,"d":"0.0"},{"v":0,"d":"0.0"},{"v":166458.4,"d":"166,458.4"},{"v":40,"d":"40.0"}]
[null,null,"Actividad 13.3",null,"Programa cuatrimestral de capacitación o actualización al personal","PORCENTAJE de cumplimiento del programa de capacitación y actualización. (P40-CPCA)","Mide el porcentaje de cumplimiento y registro de asistentes al programa de capacitación","Eficacia","Gestión","(Cantidad de personal inscrito 8 para participar en el programa de capacitacion sobre Registro Civil/total de personal 10 de registro Civil)*100",8,10,"Mensual","Porcentaje",{"v":0.8,"d":"80%"}," Portal Web del Municipio página de transparencia","Se dispone de personal y recursos ",{"v":79536.5,"d":"79,536.5"},{"v":23250,"d":"23,250.0"},{"v":1250,"d":"1,250.0"},{"v":0,"d":"0.0"},{"v":0,"d":"0.0"},{"v":0,"d":"0.0"},{"v":0,"d":"0.0"},{"v":0,"d":"0.0"},{"v":0,"d":"0.0"},{"v":104036.5,"d":"104,036.5"},{"v":25,"d":"25.0"}]
[null,"Catastro","Componente 14",null,"Catastro eficientado","ÍNDICE de eficiencia en Catastro. (V6-EC)","Mide el nivel de eficiencia del personal del catastro en el cobro del impuesto predial apoyados en todas sus actividades buscando su incremento sostenido anual","Eficacia","Gestión","(valor resultante de sumar los valores individuales  de  los cosientes entre sus denominadores por su ponderacion asignada, que miden las  variables dedigitalización y emplados capacitados  con la correspondiente ponderacion de .4 y .6)",12004.2,36004.2,"Bimestral","Índice",0.33," Portal Web del Municipio página de transparencia","Se dispone de personal y recursos ",{"v":672388,"d":"672,388.0"},{"v":138000,"d":"138,000.0"},{"v":88000,"d":"88,000.0"},{"v":0,"d":"0.0"},{"v":0,"d":"0.0"},{"v":0,"d":"0.0"},{"v":0,"d":"0.0"},{"v":0,"d":"0.0"},{"v":0,"d":"0.0"},{"v":898388,"d":"898,388.0"}]
[null,null,"Actividad 14.1",null,"Programa de digitalización de actas y capacitación del personal 4 empleados.","PORCENTAJE de digitalización y programa de capacitación. (P41-DPC)","Mide el porcentaje de digitalización de actas apartir del programa de capacitación","Eficacia","Gestión","(Cantidad de actas de catastro digitalizadas (30000) / total de actas por digitalizar en direccion de Catastro (90000) )*100",30000,90000,"Mensual","Porcentaje",33.33," Portal Web del Municipio página de transparencia","Se dispone de personal y recursos ",{"v":437052.19999999995,"d":"437,052.2"},{"v":89699.99999999999,"d":"89,700.0"},{"v":57199.99999999999,"d":"57,200.0"},{"v":0,"d":"0.0"},{"v":0,"d":"0.0"},{"v":0,"d":"0.0"},{"v":0,"d":"0.0"},{"v":0,"d":"0.0"},{"v":0,"d":"0.0"},{"v":583952.1999999998,"d":"583,952.2"},{"v":64.99999999999999,"d":"65.0"}]
[null,null,"Actividad 14.2",null,"Atención y mejora continua en los servicios al ciudadano, manteniendo la capacitación a 7 empleados del catastro.","PORCENTAJE de servicios mejorados en atención y capacitación. (P42-SMAC)","Mide el porcentaje de emplados capacitados de los diferentes servicios de catastro","Eficacia","Gestión","(Cantidad de personal inscrito para participar en el programa de capacitacion sobre servicios en catastro 7 / total de personal en direccion de Catastro 7 )*100",7,7,"Mensual","Porcentaje",100," Portal Web del Municipio página de transparencia","Se dispone de personal y recursos ",{"v":111351.1,"d":"111,351.1"},{"v":32550,"d":"32,550.0"},{"v":1750,"d":"1,750.0"},{"v":0,"d":"0.0"},{"v":0,"d":"0.0"},{"v":0,"d":"0.0"},{"v":0,"d":"0.0"},{"v":0,"d":"0.0"},{"v":0,"d":"0.0"},{"v":145651.1,"d":"145,651.1"},{"v":35,"d":"35.0"}]
[null,"Parque Vehícular","Componente 15",null,"Vehículos en operación incrementados","ÍNDICE de eficiencia del mantenimiento preventivo al parque vehicular. (T5-IEMPV)","Mide la reduccion del monto de inverion en mantenimiento preventivo por vehiculo que se mantiene en operación","Eficacia","Gestión","(valor resultante de sumar los valores individuales  de  los cosientes entre sus denominadores por su ponderacion asignada, que miden las  variables de kilometros por litro, inversion por vehiculo con mantenimiento y vehiculos con mantenimiento preventivo en operación  con la correspondiente ponderacion de .2, .5 y .3)",13324,2961.4,"Bimestral","Índice",4.49," Portal Web del Municipio página de transparencia","Se dispone de personal y recursos ",{"v":222359,"d":"222,359.0"},{"v":163850,"d":"163,850.0"},{"v":33000,"d":"33,000.0"},{"v":0,"d":"0.0"},{"v":0,"d":"0.0"},{"v":0,"d":"0.0"},{"v":0,"d":"0.0"},{"v":0,"d":"0.0"},{"v":0,"d":"0.0"},{"v":419209,"d":"419,209.0"}]
[null,null,"Actividad 15.1",null,"Programa de revisión diaria a los vehículos en operación asignados a diferentes direcciones del ayuntamiento.","PORCENTAJE de vehiculos en operación revisados. (P43-VOR)","Mide el porcentaje de vehiculos revisados y en operación por semana","Eficacia","Gestión","(Cantidad de vehiculos con mantenimiento preventivo por semana y en operación (10)) / Total de vehiculos con mantenimiento preventivo por semana (12))*100",10,12,"Mensual","Porcentaje",{"v":0.83,"d":"83%"}," Portal Web del Municipio página de transparencia","Se dispone de personal y recursos ",{"v":133415.4,"d":"133,415.4"},{"v":98310,"d":"98,310.0"},{"v":19800,"d":"19,800.0"},{"v":0,"d":"0.0"},{"v":0,"d":"0.0"},{"v":0,"d":"0.0"},{"v":0,"d":"0.0"},{"v":0,"d":"0.0"},{"v":0,"d":"0.0"},{"v":251525.4,"d":"251,525.4"},{"v":60,"d":"60.0"}]
[null,null,"Actividad 15.2",null,"Generar programa de mantenimiento preventivo con bitácora  de gastos por vehículo","Tasa de inversión al programa de mantenimiento. (P44-TIPM)","Mide la Tasa de inversion mensual por vehiculo incorporado al programa de mantenimiento preventivo orientado a reducir el monto mensual","Eficacia","Gestión","(Monto de recursos economicos en pesos  invertido mensualmente en el programa de mantenimiento preventivo al parque vehicular municipal (10000 pesos) por el total de vehiculos del servicio municipal incorporados al programa de mantenimiento preventivo (14) )",10000,14,"Mensual","Tasa",714," Portal Web del Municipio página de transparencia","Se dispone de personal y recursos ",{"v":33353.85,"d":"33,353.9"},{"v":24577.5,"d":"24,577.5"},{"v":4950,"d":"4,950.0"},{"v":0,"d":"0.0"},{"v":0,"d":"0.0"},{"v":0,"d":"0.0"},{"v":0,"d":"0.0"},{"v":0,"d":"0.0"},{"v":0,"d":"0.0"},{"v":62881.35,"d":"62,881.4"},{"v":25,"d":"25.0"}]
[null,null,"Actividad 15.3",null,"Elaborar una bitácora de seguimiento paralelo al consumo de gasolina y kilometraje por vehículo","Tasa de registro en bitacoras por vehiculo, de kilometros recorrdios por litro de Gasolina y/o diesel cargado (P45-RBV)","Mide la tasa de kilometros recorridos por litro de gasolina o diesel consumido ","Eficacia","Gestión","( Total de kilometros recorridos por los vehiculos oficiales (2800), camiones de basura (2240) y patrullas ( 22400) a las que se les cargo gasolina y diesel)) por  la (Cantidad de litros de gasolina y disel cargados  a los vehiculos (4 camiones de basura  2240 litros disesel por mes) y patrullas municipales (5 patrullas 5600 litros de gasolina por mes) (5 vehiculos oficiales  2000 litros gasolina al mes)",27740,9840,"Mensual","Tasa",2.81," Portal Web del Municipio página de transparencia","Se dispone de personal y recursos ",{"v":20012.31,"d":"20,012.3"},{"v":14746.5,"d":"14,746.5"},{"v":2970,"d":"2,970.0"},{"v":0,"d":"0.0"},{"v":0,"d":"0.0"},{"v":0,"d":"0.0"},{"v":0,"d":"0.0"},{"v":0,"d":"0.0"},{"v":0,"d":"0.0"},{"v":37728.81,"d":"37,728.8"},{"v":15,"d":"15.0"}]
[null,"Secretaría General","Componente 16",null,"Satisfacción gubernamental incrementada","INDICE de satisfacción Gubernamental. (V7-SG)","Mide el nivel de satisfaccion de la ciudadania por la atencion recibida","Eficacia","Gestión","(valor resultante de sumar los valores individuales  de  los cosientes entre sus denominadores por su ponderacion asignada, que miden las  variables de instrucciones cumplidas y colaboraciones legales  correspondientes ponderaciones de .7  y .3)",65.1,95.4,"Bimestral","Índice",0.68," Portal Web del Municipio página de transparencia","Se dispone de personal y recursos ",{"v":724675,"d":"724,675.0"},{"v":80000,"d":"80,000.0"},{"v":8000,"d":"8,000.0"},{"v":0,"d":"0.0"},{"v":0,"d":"0.0"},{"v":0,"d":"0.0"},{"v":0,"d":"0.0"},{"v":0,"d":"0.0"},{"v":0,"d":"0.0"},{"v":812675,"d":"812,675.0"}]
[null,null,"Actividad 16.1",null,"Coordinar, supervisar y evaluar a las direcciones y dependencias del Ayuntamiento, para garantizar el adecuado servicio a la ciudadanía","PORCENTAJE de instrucciones cumplidas para mejorar  el servicio a la ciudadania. (P46-ICMSC)","Mide el porcentaje de cumplimiento de las instrucciones de coordinación,  supervision y evaluación","Eficacia","Gestión","(Cantidad de instrucciones dadas a las diferentes direcciones municipales 48 / Total de quejas, solicitudes recibidas en atencion ciudadana y participacion social y seguimiento a actividades propias de las direcciones 72 ) * 100",48,72,"Mensual","Porcentaje",{"v":0.67,"d":"67%"}," Portal Web del Municipio página de transparencia","Se dispone de personal y recursos ",{"v":507272.5,"d":"507,272.5"},{"v":56000,"d":"56,000.0"},{"v":5600,"d":"5,600.0"},{"v":0,"d":"0.0"},{"v":0,"d":"0.0"},{"v":0,"d":"0.0"},{"v":0,"d":"0.0"},{"v":0,"d":"0.0"},{"v":0,"d":"0.0"},{"v":568872.5,"d":"568,872.5"},70]
[null,null,"Actividad 16.2",null,"Colaborar en las acciones y funciones relativas al aspecto legal y jurídico del municipio.","PORCENTAJE de colaboraciones legales y juridicas. (P47-CLJ)","Mide el porcentaje de colaboraciones para resolver temas legales y juridicos","Eficacia","Gestión","(Cantidad de convenios 15, obras 40 y solicitudes 50 necesarias de respaldar con el aspecto legal y juridico / total de documentos firmados con la fe publica del secretario general ) * 100",105,150,"Mensual","Porcentaje",{"v":0.7,"d":"70%"}," Portal Web del Municipio página de transparencia","Se dispone de personal y recursos ",{"v":217402.5,"d":"217,402.5"},{"v":24000,"d":"24,000.0"},{"v":2400,"d":"2,400.0"},{"v":0,"d":"0.0"},{"v":0,"d":"0.0"},{"v":0,"d":"0.0"},{"v":0,"d":"0.0"},{"v":0,"d":"0.0"},{"v":0,"d":"0.0"},{"v":243802.5,"d":"243,802.5"},30]
[null,"Transparencia ","Componente 17",null,"Transparencia municipal incrementada","ÍNDICE de transparencia. (T6-TT)","Mide la relación de participacion, atencion y cumplimiento de los involucrados en atender las obligaciones de transparencia ","Eficacia","Gestión","(valor resultante de sumar los valores individuales  de  los cosientes entre sus denominadores por su ponderacion asignada, que miden las  variables de servidores públicos, recurrencia y participacion con las correspondientes ponderaciones de .5, .3 y .2)",226.6,353,"Bimestral","Índice",0.65," Portal Web del Municipio página de transparencia","Se dispone de personal y recursos ",{"v":413607,"d":"413,607.0"},{"v":41000,"d":"41,000.0"},{"v":7000,"d":"7,000.0"},{"v":0,"d":"0.0"},{"v":0,"d":"0.0"},{"v":0,"d":"0.0"},{"v":0,"d":"0.0"},{"v":0,"d":"0.0"},{"v":0,"d":"0.0"},{"v":461607,"d":"461,607.0"}]
[null,null,"Actividad 17.1",null,"Programa de actualización, seguimiento y verificación de información pública disponible en los formatos de PNT. Y en la LTAIPJ en los art. 8 y 15","PORCENTAJE de servidores públicos que cumplen con sus obligaciones de rendición de cuentas en tiempo y forma, cumplimiento a la PNT y LTAIPEJ. (P48-CTNE)","Mide el porcentaje de cumplimiento de las obligaciones de publicar información en la PNT y LTAIPEJM","Eficacia","Gestión","(Cantidad de incisos con informacion actualizada en los articulos 8 y 15 de la LTAIPEJ mas los formatos de la PNT asignados y actualizados subidos a las plataformas/Total de insicios que solicitan informacion en los articulos 8 y 15 de la LTAIPJ mas el total de formatos de la PNT asignados)*100        (98 de LTAIPEJ + 270 Fts de la PNT = 368)  (102 de LTAIPEJ + 319 Fts de la PNT = 421)",368,421,"Mensual","Porcentaje",{"v":0.87,"d":"87%"}," Portal Web del Municipio página de transparencia","Se dispone de personal y recursos ",{"v":206803.5,"d":"206,803.5"},{"v":20500,"d":"20,500.0"},{"v":3500,"d":"3,500.0"},{"v":0,"d":"0.0"},{"v":0,"d":"0.0"},{"v":0,"d":"0.0"},{"v":0,"d":"0.0"},{"v":0,"d":"0.0"},{"v":0,"d":"0.0"},{"v":230803.5,"d":"230,803.5"},{"v":50,"d":"50.0"}]
[null,null,"Actividad 17.2",null,"Revisar la plataforma INFOMEX y el correo municipal de transparencia para atender solicitudes que recibe el ayuntamiento, darles respuesta y con ello mantener actualizado el portal del SIRES.","PORCENTAJE de recurrencia  en materia de acceso a la información del poder Ejecutivo Municipal. (P49-RMAIEM)","Mide el porcentaje de atención y respuesta positiva a las solicitudes de información recibidas por los diferentes medios de solicitud","Eficacia","Gestión","(Cantidad de solicitudes de informacion recibidas y atendidas positivamente/ Total de solicitudes recibidas)*100",50,75,"Mensual","Porcentaje",{"v":0.8,"d":"80%"}," Portal Web del Municipio página de transparencia","Se dispone de personal y recursos ",{"v":82721.4,"d":"82,721.4"},{"v":8200,"d":"8,200.0"},{"v":1400,"d":"1,400.0"},{"v":0,"d":"0.0"},{"v":0,"d":"0.0"},{"v":0,"d":"0.0"},{"v":0,"d":"0.0"},{"v":0,"d":"0.0"},{"v":0,"d":"0.0"},{"v":92321.4,"d":"92,321.4"},{"v":20,"d":"20.0"}]
[null,null,"Actividad 17.3",null,"Programa de capacitación en materia de transparencia, formatos y reportes de actividades.","PORCENTAJE de participación en el cumplimiento del programa de capacitacion en transparencia. (P50-CPCT)","Mide el porcentaje de participación en el cumplimiento del programa de capacitacion en transparencia","Eficacia","Gestión","(Cantidad de personal inscrito para participar en el programa de capacitacion sobre transparencia/total de personal en el ayutamiento)*100",138,600,"Mensual","Porcentaje",{"v":0.25,"d":"25%"}," Portal Web del Municipio página de transparencia","Se dispone de personal y recursos ",{"v":124082.1,"d":"124,082.1"},{"v":12300,"d":"12,300.0"},{"v":2100,"d":"2,100.0"},{"v":0,"d":"0.0"},{"v":0,"d":"0.0"},{"v":0,"d":"0.0"},{"v":0,"d":"0.0"},{"v":0,"d":"0.0"},{"v":0,"d":"0.0"},{"v":138482.1,"d":"138,482.1"},{"v":30,"d":"30.0"}]
[]
[]
[]
[{"$nulls":17},{"$f":"AD$87*$AC$90/$AD$18","v":{"$error":"#DIV/0!"}},{"$f":"AE$87*$AC$90/$AD$18","v":{"$error":"#DIV/0!"}},{"$error":"#DIV/0!"},{"$error":"#DIV/0!"},{"$error":"#DIV/0!"},{"$error":"#DIV/0!"},{"$error":"#DIV/0!"},{"$error":"#DIV/0!"},{"$error":"#DIV/0!"}]

{"sheet":"Listas","index":3,"n_rows":174,"n_cols":33,"rows_kept":174,"hidden":true}
[]
[null,"Municipio","Denominación del Programa","Categoría programática","Unidad responsable","Fin","Función","Sub-función","Alineación con objetivos superiores del PND","Alineación con objetivos secundarios del PND","Alineación con objetivos superiores del PED","Alineación con objetivos secundarios del PED","Alineación con objetivos superior del PMD","Alineación con objetivos secundario del PMD","Nivel MIR","Resumen del nivel MIR","Resumen Narrativo (objetivos)","Cantidad de Gasto","Nombre","Definición","Dimensión","Tipo","Variables","Método de Cálculo","Frecuencia de Medición","Unidad de Medida","Valores Programados","Metas","Medios de Verificación","Supuestos"]
[null,"Acatic",null,"Subsidios sujetos a reglas de operación",null,"Gobierno","Legislación","1.1.1 Legislación","México_en_Paz","1.1. Promover y fortalecer la gobernabilidad democrática","O1_Incrementar_la_sostenibilidad_del_medio_ambiente_y_la_vulnerabilidad_del_cambio_climático","O1E1 Detener y revertir la degradación del medio ambiente",null,null,"Fin","F",{"$nulls":4},"Eficacia","Estratégico",null,null,"Mensual",{"$nulls":7},"Primer semestre"]
[null,"Acatlán de Juárez",null,"Otros subsidios",null,"Desarrollo_Social","Justicia","1.1.2 Fiscalización","México_Incluyente","1.2. Garantizar la seguridad nacional","O2_Impulsar_el_desarrollo_sostenible_de_las_regiones_del_estado","O1E2 Efectuar una ordenación y manejo sostenible de los bosques",null,null,"Propósito","P",{"$nulls":4},"Eficiencia","Gestión",null,null,"Bimestral",{"$nulls":7},"Segundo semestre"]
[null,"Ahualulco de Mercado",null,"Prestación de servicios públicos",null,"Desarrollo_Económico","Coordinación_Política_de_Gobierno","1.2.1 Impartición de Justicia","México_con_Educación_de_Calidad","1.3. Mejorar las condiciones de seguridad pública","O3_Promover_un_desarrollo_urbano_sostenible_equitativo_y_ordenado","O1E3 Frenar la pérdida de diversidad biológica",null,null,"Componentes","C1",{"$nulls":4},"Economía",{"$nulls":3},"Trimestral"]
[null,"Amacueca",null,"Provisión de bienes públicos",null,"Otros","Relaciones_Exteriores","1.2.2 Procuración de Justicia","México_Próspero","1.4. Garantizar un sistema de Justicia Penal eficaz, expedito, imparcial y transparente","O4_Garantizar_el_suministro_del_agua_para_población_y_actividades_productivas","O1E4 Incrementar el manejo sustentable de los residuos",null,null,"Actividades","C2",{"$nulls":4},"Calidad",{"$nulls":3},"Semestral"]
[null,"Amatitán",null,"Planeación, Seguimiento y Evaluación de políticas Públicas",null,null,"Asuntos_Financieros_y_Hacendarios","1.2.3 Reclusión y Readaptación Social","México_Con_Responsabilidad_Global","1.5. Garantizar el respeto y protección de los derechos humanos y la erradicación de la discriminación","O5_Mejorar_la_calidad_seguridad_y_sostenibilidad_de_la_movilidad_urbana","O1E5 Incrementar la producción y uso de fuentes de energía limpias",{"$nulls":3},"C3",{"$nulls":8},"Anual"]
[null,"Ameca",null,"Promoción y fomento",null,null,"Asuntos_de_Orden_Público_y_Seguridad_Interior","1.2.4 Derechos Humanos",null,"1.6. Salvaguardar a la población, a sus bienes y a su entorno ante un desastre de origen natural o humano","O6_Disminuir_los_factores_de_riesgo_y_mejorar_la_atención_ante_desastres","O1E6 Mitigar las emisiones de gases de efecto invernadero",{"$nulls":3},"C1A1",{"$nulls":8},"Bianual"]
[null,"San Juanito de Escobedo",null,"Regulación y Supervisión",null,null,"Otros_Servicios_Generales","1.3.1 Presidencia / Gubernatura",null,"2.1. Garantizar el ejercicio efectivo de los derechos sociales para toda la población","O7_Incrementar_la_formalidad_del_empleo_la_seguridad_social_y_estabilidad_laboral","O1E7 Ordenar y proteger de manera sostenible los ecosistemas lacustres y costeros",{"$nulls":3},"C1A2",{"$nulls":8},"Bienal"]
[null,"Arandas",null,"Específicos",null,null,"Protección_Ambiental","1.3.2 Política Interior",null,"2.2. Transitar hacia una sociedad equitativa e incluyente","O8_Mejorar_la_competitividad_y_el_crecimiento_inclusivo_y_sostenible_de_los_sectores_económicos","O1E8 Reducir la contaminación de acuíferos y aguas superficiales",{"$nulls":3},"C1A3",{"$nulls":8},"Periodo"]
[null,"El Arenal",null,"Proyectos de Inversión",null,null,"Vivienda_y_Servicios_a_la_Comunidad","1.3.3 Preservación y Cuidado del Patrimonio Público",null,"2.3. Asegurar el acceso a los servicios de salud","O9_Incrementar_de_forma_sostenible_la_productividad_y_rentabilidad_de_las_actividades_del_sector_primario","O1E9 Reducir la vulnerabilidad y aumentar la resiliencia de la sociedad, las cuencas hidrológicas y los ecosistemas naturales, urbanos y agropecuarios frente a los efectos adversos del cambio climático",{"$nulls":3},"C1A4"]
[null,"Atemajac de Brizuela",null,"Apoyo al Proceso Presupuestario y para Mejorar la Eficiencia Institucional",null,null,"Salud","1.3.4 Función Pública",null,"2.4. Ampliar el acceso a la seguridad social","O10_Incrementar_la_afluencia_y_la_derrama_económica_proveniente_del_turismo","O1E10 Revertir el deterioro de la calidad del aire",{"$nulls":3},"C2A1"]
[null,"Atengo",null,"Apoyo a la Función Pública y al Mejoramiento de la Gestión",null,null,"Recreación_Cultura_y_Otras_Manifestaciones_Sociales","1.3.5 Asuntos Jurídicos",null,"2.5. Proveer un entorno adecuado para el desarrollo de una vida digna","O11_Mejorar_la_conectividad_de_Jalisco_sus_regiones_y_municipios","O2E1 Actualizar los ordenamientos ecológicos territoriales y su aplicación efectiva",{"$nulls":3},"C2A2"]
[null,"Atenguillo",null,"Operaciones Ajenas",null,null,"Educación","1.3.6 Organización de Procesos Electorales",null,"3.1. Desarrollar el potencial humano de los mexicanos con educación de calidad","O12_Reducir_la_pobreza_y_la_desigualdad","O2E2 Desarrollar el potencial humano de las regiones con acceso a una educación de calidad",{"$nulls":3},"C2A3"]
[null,"Atotonilco el Alto",null,"Obligaciones de Cumplimiento de Resolución Jurisdiccional",null,null,"Protección_Social","1.3.7 Población",null,"3.2. Garantizar la inclusión y la equidad en el Sistema Educativo","O13_Proteger_los_derechos_y_ampliar_las_oportunidades_de_desarrollo_de_los_grupos_prioritarios","O2E3 Generar oportunidades de empleos dignos aprovechando de forma sustentable las potencialidades regionales",{"$nulls":3},"C2A4"]
[null,"Atoyac",null,"Desastres Naturales",null,null,"Otros_Asuntos_Sociales","1.3.8 Territorio",null,"3.3. Ampliar el acceso a la cultura como un medio para la formación integral\n de los ciudadanos","O14_Mejorar_la_salud_de_la_población","O2E4 Incrementar y mejorar la infraestructura productiva  y social",{"$nulls":3},"C3A1"]
[null,"Autlán de Navarro",null,"Pensiones y Jubilaciones.",null,null,"Asuntos_Económicos_Comerciales_y_Laborales_Generales","1.3.9 Otros Asuntos de Orden Público y Seguridad Interior",null,"3.4. Promover el deporte de manera incluyente para fomentar una cultura\n de salud","O15_Aumentar_el_acceso_de_la_población_a_una_vivienda_digna","O2E5 Mejorar la capacidad de gestión de los funcionarios y autoridades municipales",{"$nulls":3},"C3A2"]
[null,"Ayotlán",null,"Aportaciones a la Seguiridad Social",null,null,"Agropecuaria_Silvicultura_Pesca_y_Caza","1.4.1 Relaciones Exteriores",null,"3.5.Hacer del desarrollo científico, tecnológico y la innovación pilares para el progreso económico y social sostenible","O16_Incrementar_el_acceso_la_equidad_y_la_calidad_de_la_educación","O2E6 Reducir la pobreza y la desigualdad",{"$nulls":3},"C3A3"]
[null,"Ayutla",{"$nulls":4},"Combustibles_y_Energía","1.5.1 Asuntos Financieros",null,"4.1. Mantener la estabilidad macroeconómica del país","O17_Incrementar_el_desarrollo_tecnológico_la_investigación_científica_y_la_innovación","O3E1 Conservar los suelos, incrementar las áreas verdes y las reservas territoriales",{"$nulls":3},"C4A4"]
[null,"La Barca",{"$nulls":4},"Minería_Manufacturas_y_Construcción","1.5.2 Asuntos Hacendarios",null,"4.2. Democratizar el acceso al financiamiento de proyectos con potencial de crecimiento","O18_Garantizar_el_acceso_de_toda_la_población_a_la_cultura_y_las_diferentes_expresiones_artísticas","O3E2 Impulsar un desarrollo urbano orientado al transporte sustentable"]
[null,"Bolaños",{"$nulls":4},"Transporte","1.7.1 Policía",null,"4.3. Promover el empleo de calidad","O19_Aumentar_la_práctica_del_deporte_y_actividades_físicas_de_la_población","O3E3 Incrementar y mejorar los servicios y espacios públicos"]
[null,"Cabo Corrientes",{"$nulls":4},"Comunicaciones","1.7.2 Protección Civil",null,"4.4. Impulsar y orientar un crecimiento verde incluyente y facilitador que preserve nuestro atrimonio natural al mismo tiempo que genere riqueza, competitividad y empleo","O20_Reducir_la_incidencia_delictiva_y_mejorar_la_percepción_de_seguridad","O3E4 Mejorar la conectividad y articulación de las principales ciudades con una perspectiva regional e interestatal"]
[null,"Casimiro Castillo",{"$nulls":4},"Turismo","1.7.3 Otros Asuntos de Orden Público y Seguridad",null,"4.5. Democratizar el acceso a servicios de telecomunicaciones","O21_Mejorar_la_impartición_de_justicia_con_un_sistema_eficaz_expedito_imparcial_y_transparente","O3E5 Ordenar el crecimiento de las áreas urbanas y asegurar el cumplimiento de la normatividad inherente"]
[null,"Cihuatlán",{"$nulls":4},"Ciencia_Tecnología_e_Innovación","1.7.4 Sistema Nacional de Seguridad Pública",null,"4.6. Abastecer de energía al país con precios competitivos, calidad y eficiencia a lo largo de la cadena productiva","O22_Reducir_la_impunidad_mejorando_la_imparcialidad_transparencia_y_eficiencia_en_la_procuración_de_justicia","O3E6 Promover un crecimiento urbano equitativo mediante la oferta de suelo accesible y de calidad a los sectores de menores ingresos"]
[null,"Zapotlán el Grande",{"$nulls":4},"Otras_Industrias_y_Otros_Asuntos_Económicos","1.8.1 Servicios Registrales, Administrativos y Patrimoniales",null,"4.7. Garantizar reglas claras que incentiven el desarrollo de un mercado interno competitivo","O23_Garantizar_el_respeto_y_la_protección_de_los_derechos_humanos_y_eliminar_la_discriminación","O3E7 Reducir la contaminación del agua y aire, así como la visual y auditiva"]
[null,"Cocula",{"$nulls":4},"Transacciones_de_la_Deuda_Financiera_y_Costo_Financiero_Deuda","1.8.2 Servicios Estadísticos",null,"4.8. Desarrollar los sectores estratégicos del país","O24_Mejorar_la_estabilidad_y_funcionalidad_del_sistema_democrático","O3E8 Reducir la fragmentación territorial y política en las áreas metropolitanas mediante la aplicación de un modelo de gobernanza metropolitana"]
[null,"Colotlán",{"$nulls":4},"Transferencias_Participaciones_y_Aportaciones","1.8.3 Servicios de Comunicación y Medios",null,"4.9. Contar con una infraestructura de transporte que se refleje en menores costos para realizar la actividad económica","O25_Mejorar_la_efectividad_de_las_instituciones_públicas_y_gubernamentales","O4E1 Fortalecer el desarrollo y la capacidad técnica y financiera de los organismos operadores del agua"]
[null,"Concepción de Buenos Aires",{"$nulls":4},"Saneamiento_del_Sistema_Financiero","1.8.4 Acceso a la Información Pública Gubernamental",null,"4.10. Construir un sector agropecuario y pesquero productivo que garantice la seguridad alimentaria del país","O26_Mejorar_la_igualdad_entre_los_géneros_y_empoderar_a_las_mujeres","O4E2 Incrementar los niveles de tratamiento de aguas residuales y su reutilización"]
[null,"Cuautitlán de García Barragán",{"$nulls":4},"Adeudos_Anteriores","1.8.5 Otros",null,"4.11. Aprovechar el potencial turístico de México para generar una mayor derrama económica en el país","O27_Incrementar_la_capacidad_innovadora_en_los_sectores_social_privado_y_público","O4E3 Incrementar y diversificar las fuentes de abastecimiento y captación de agua"]
[null,"Cuautla",{"$nulls":5},"2.1.1 Ordenación de Desechos",null,"5.1. Ampliar y fortalecer la presencia de México en el mundo",null,"O4E4 Mejorar la potabilización de las aguas para el consumo humano"]
[null,"Cuquío",{"$nulls":5},"2.1.2 Administración del Agua",null,"5.2. Promover el valor de México en el mundo mediante la difusión económica, turística y cultural",null,"O4E5 Modernizar y ampliar la infraestructura hidroagrícola"]
[null,"Chapala",{"$nulls":5},"2.1.3 Ordenación de Aguas Residuales, Drenaje y Alcantarillado",null,"5.3. Reafirmar el compromiso del país con el libre comercio, la movilidad de capitales y la integración productiva",null,"O4E6 Ordenar el uso y aprovechamiento del agua en cuencas y acuíferos"]
[null,"Chimaltitán",{"$nulls":5},"2.1.4 Reducción de la Contaminación",null,"5.4. Velar por los intereses de los mexicanos en el extranjero y proteger los derechos de los extranjeros en el territorio nacional",null,"O4E7 Proteger y recuperar los bosques, humedales y ríos"]
[null,"Chiquilistlán",{"$nulls":5},"2.1.5 Protección de la Diversidad Biológica y del Paisaje",{"$nulls":3},"O4E8 Reducir el desperdicio del agua y racionalizar su uso"]
[null,"Degollado",{"$nulls":5},"2.1.6 Otros de Protección Ambiental",{"$nulls":3},"O5E1 Ampliar y articular la red de transporte público masivo incentivando la multimodalidad"]
[null,"Ejutla",{"$nulls":5},"2.2.1 Urbanización",{"$nulls":3},"O5E2 Incrementar el uso de medios alternativos de traslado, desincentivando el uso del automóvil"]
[null,"Encarnación de Díaz",{"$nulls":5},"2.2.2 Desarrollo Comunitario",{"$nulls":3},"O5E3 Mejorar la infraestructura y equipamiento para la movilidad motorizada y no motorizada"]
[null,"Etzatlán",{"$nulls":5},"2.2.3 Abastecimiento de Agua",{"$nulls":3},"O5E4 Mejorar la seguridad y la cultura vial"]
[null,"El Grullo",{"$nulls":5},"2.2.4 Alumbrado Público",{"$nulls":3},"O5E5 Modernizar los sistemas de transporte público en las ciudades"]
[null,"Guachinango",{"$nulls":5},"2.2.5 Vivienda",{"$nulls":3},"O6E1 Incrementar la capacitación y profesionalización del personal de protección civil"]
[null,"Guadalajara",{"$nulls":5},"2.2.6 Servicios Comunales",{"$nulls":3},"O6E2 Incrementar la cultura de protección civil en la sociedad, el gobierno y la empresa"]
[null,"Hostotipaquillo",{"$nulls":5},"2.2.7 Desarrollo Regional",{"$nulls":3},"O6E3 Mejorar los procedimientos para disminuir los riesgos y la atención de emergencias"]
[null,"Huejúcar",{"$nulls":5},"2.3.1 Prestación de Servicios de Salud a la Comunidad",{"$nulls":3},"O6E4 Mejorar los sistemas de información de los riesgos a los que está expuesta la población y su entorno"]
[null,"Huejuquilla el Alto",{"$nulls":5},"2.3.2 Prestación de Servicios de Salud a la Persona",{"$nulls":3},"O6E5 Mejorar y establecer sistemas de alerta temprana multirriesgos"]
[null,"La Huerta",{"$nulls":5},"2.3.3 Generación de Recursos para la Salud",{"$nulls":3},"O7E1 Aumentar la disponibilidad de capital humano mejor calificado adecuado a la demanda del mercado laboral"]
[null,"Ixtlahuacán de los Membrillos",{"$nulls":5},"2.3.4 Rectoría del Sistema de Salud",{"$nulls":3},"O7E2 Erradicar el trabajo infantil"]
[null,"Ixtlahuacán del Río",{"$nulls":5},"2.3.5 Protección Social en Salud",{"$nulls":3},"O7E3 Incrementar la certificación de competencias laborales y profesionales"]
[null,"Jalostotitlán",{"$nulls":5},"2.4.1 Deporte y Recreación",{"$nulls":3},"O7E4 Incrementar la cultura empresarial de la responsabilidad social"]
[null,"Jamay",{"$nulls":5},"2.4.2 Cultura",{"$nulls":3},"O7E5 Incrementar la productividad con beneficios compartidos, la empleabilidad y la capacitación en el trabajo"]
[null,"Jesús María",{"$nulls":5},"2.4.3 Radio, Televisión y Editoriales",{"$nulls":3},"O7E6 Mejorar la protección de los derechos del trabajador"]
[null,"Jilotlán de los Dolores",{"$nulls":5},"2.4.4 Asuntos Religiosos y Otras Manifestaciones Sociales",{"$nulls":3},"O7E7 Mejorar la remuneración y las condiciones laborales de la población ocupada"]
[null,"Jocotepec",{"$nulls":5},"2.5.1 Educación Básica",{"$nulls":3},"O7E8 Propiciar el equilibrio entre empleadores y trabajadores para preservar la paz laboral"]
[null,"Juanacatlán",{"$nulls":5},"2.5.2 Educación Media Superior",{"$nulls":3},"O8E1 Aumentar las exportaciones de las unidades productivas"]
[null,"Juchitlán",{"$nulls":5},"2.5.3 Educación Superior",{"$nulls":3},"O8E2 Aumentar los niveles de innovación tecnológica, empresarial y social"]
[null,"Lagos de Moreno",{"$nulls":5},"2.5.4 Posgrado",{"$nulls":3},"O8E3 Estimular el espíritu empresarial y el desarrollo de emprendedores"]
[null,"El Limón",{"$nulls":5},"2.5.5 Educación para Adultos",{"$nulls":3},"O8E4 Facilitar el acceso al financiamiento y la asistencia técnica, especialmente a la micro y pequeña empresa"]
[null,"Magdalena",{"$nulls":5},"2.5.6 Otros Servicios Educativos y Actividades Inherentes",{"$nulls":3},"O8E5 Incrementar el desarrollo y la integración de las cadenas productivas, de proveeduría y los clústeres"]
[null,"Santa María del Oro",{"$nulls":5},"2.6.1 Enfermedad e Incapacidad",{"$nulls":3},"O8E6 Incrementar la inversión extranjera directa"]
[null,"La Manzanilla de la Paz",{"$nulls":5},"2.6.2 Edad Avanzada",{"$nulls":3},"O8E7 Mejorar e incrementar la infraestructura productiva"]
[null,"Mascota",{"$nulls":5},"2.6.3 Familia e Hijos",{"$nulls":3},"O8E8 Mejorar la calidad y la productividad de las unidades económicas"]
[null,"Mazamitla",{"$nulls":5},"2.6.4 Desempleo",{"$nulls":3},"O8E9 Simplificar los trámites y agilizar los procesos de apertura de empresas"]
[null,"Mexticacán",{"$nulls":5},"2.6.5 Alimentación y Nutrición",{"$nulls":3},"O9E1 Ampliar y modernizar la infraestructura rural productiva"]
[null,"Mezquitic",{"$nulls":5},"2.6.6 Apoyo Social para la Vivienda",{"$nulls":3},"O9E2 Aumentar la comercialización de los productos del sector primario dentro y fuera del país"]
[null,"Mixtlán",{"$nulls":5},"2.6.7 Indígenas",{"$nulls":3},"O9E3 Aumentar la industrialización y el valor agregado a la producción del sector primario"]
[null,"Ocotlán",{"$nulls":5},"2.6.8 Otros Grupos Vulnerables",{"$nulls":3},"O9E4 Incrementar el financiamiento, la capacitación y asistencia técnica a los productores rurales"]
[null,"Ojuelos de Jalisco",{"$nulls":5},"2.6.9 Otros de Seguridad Social y Asistencia Social",{"$nulls":3},"O9E5 Incrementar la producción sustentable y comercialización de la madera y sus derivados"]
[null,"Pihuamo",{"$nulls":5},"2.7.1 Otros Asuntos Sociales",{"$nulls":3},"O9E6 Mejorar la sanidad e inocuidad de los productos agropecuarios"]
[null,"Poncitlán",{"$nulls":5},"3.1.1 Asuntos Económicos y Comerciales en General",{"$nulls":3},"O10E1 Aumentar la atracción y captación de inversión en el sector"]
[null,"Puerto Vallarta",{"$nulls":5},"3.1.2 Asuntos Laborales Generales",{"$nulls":3},"O10E2 Incrementar la promoción integral de destinos y rutas turísticas"]
[null,"Villa Purificación",{"$nulls":5},"3.2.1 Agropecuaria",{"$nulls":3},"O10E3 Innovar y diversificar la oferta turística por región y destino de forma sostenible"]
[null,"Quitupan",{"$nulls":5},"3.2.2 Silvicultura",{"$nulls":3},"O10E4 Mejorar el entorno, la infraestructura y equipamiento en centros turísticos"]
[null,"El Salto",{"$nulls":5},"3.2.3 Acuacultura, Pesca y Caza",{"$nulls":3},"O10E5 Mejorar las capacidades turísticas locales y promover el emprendurismo en el sector"]
[null,"San Cristóbal de la Barranca",{"$nulls":5},"3.2.4 Agroindustrial",{"$nulls":3},"O11E1 Ampliar y modernizar la red de ferrocarriles"]
[null,"San Diego de Alejandría",{"$nulls":5},"3.2.5 Hidroagrícola",{"$nulls":3},"O11E2 Incrementar la accesibilidad a las telecomunicaciones"]
[null,"San Juan de los Lagos",{"$nulls":5},"3.2.6 Apoyo Financiero a la Banca y Seguro Agropecuario",{"$nulls":3},"O11E3 Incrementar y modernizar la red de carreteras"]
[null,"San Julián",{"$nulls":5},"3.3.1 Carbón y Otros Combustibles Minerales Sólidos",{"$nulls":3},"O11E4 Modernizar y ampliar la infraestructura aérea y la marítima"]
[null,"San Marcos",{"$nulls":5},"3.3.2 Petróleo y Gas Natural (Hidrocarburos)",{"$nulls":3},"O11E5 Propiciar la ampliación de servicios logísticos estratégicos para el desarrollo social y económico"]
[null,"San Martín de Bolaños",{"$nulls":5},"3.3.3 Combustibles Nucleares",{"$nulls":3},"O12E1 Ampliar las capacidades productivas de la población en condiciones de vulnerabilidad"]
[null,"San Martín Hidalgo",{"$nulls":5},"3.3.4 Otros Combustibles",{"$nulls":3},"O12E2 Incrementar la disponibilidad y el acceso a una adecuada alimentación de la población en condiciones de pobreza"]
[null,"San Miguel el Alto",{"$nulls":5},"3.3.5 Electricidad",{"$nulls":3},"O12E3 Mejorar el pago de impuestos y servicios públicos acorde con el nivel de vida e ingresos de la población"]
[null,"Gómez Farías",{"$nulls":5},"3.3.6 Energía no Eléctrica",{"$nulls":3},"O12E4 Mejorar la calidad y espacios en las viviendas de la población en situación de pobreza"]
[null,"San Sebastián del Oeste",{"$nulls":5},"3.4.1 Extracción de Recursos Minerales excepto los Combustibles Minerales",{"$nulls":3},"O12E5 Promover la cohesión social desde los espacios de deliberación pública, fortaleciendo las organizaciones sociales y la participación comunitaria"]
[null,"Santa María de los Ángeles",{"$nulls":5},"3.4.2 Manufacturas",{"$nulls":3},"O12E6 Reducir el rezago educativo"]
[null,"Sayula",{"$nulls":5},"3.4.3 Construcción",{"$nulls":3},"O13E1 Ampliar las capacidades productivas de los grupos prioritarios"]
[null,"Tala",{"$nulls":5},"3.5.1 Transporte por Carretera",{"$nulls":3},"O13E2 Brindar atención y acompañamiento a la población migrante"]
[null,"Talpa de Allende",{"$nulls":5},"3.5.2 Transporte por Agua y Puertos",{"$nulls":3},"O13E3 Garantizar la accesibilidad y la inclusión de las personas con discapacidad; y reducir el riego de adquirirla"]
[null,"Tamazula de Gordiano",{"$nulls":5},"3.5.3 Transporte por Ferrocarril",{"$nulls":3},"O13E4 Garantizar los derechos de los adultos mayores, incrementar su autonomía y promover el envejecimiento activo"]
[null,"Tapalpa",{"$nulls":5},"3.5.4 Transporte Aéreo",{"$nulls":3},"O13E5 Garantizar y restituir los derechos de las niñas, niños y adolescentes"]
[null,"Tecalitlán",{"$nulls":5},"3.5.5 Transporte por Oleoductos y Gasoductos y Otros Sistemas de Transporte",{"$nulls":3},"O13E6 Incrementar el ingreso, permanencia y conclusión de la formación educativa de estudiantes indígenas"]
[null,"Tecolotlán",{"$nulls":5},"3.5.6 Otros Relacionados con Transporte",{"$nulls":3},"O13E7 Mejorar la dotación de servicios públicos en las localidades con población indígena"]
[null,"Techaluta de Montenegro",{"$nulls":5},"3.6.1 Comunicaciones",{"$nulls":3},"O13E8 Reducir la violencia intrafamiliar y comunitaria"]
[null,"Tenamaxtlán",{"$nulls":5},"3.7.1 Turismo",{"$nulls":3},"O13E9 Reducir los principales riesgos sociales y de salud a los que está expuesta la población joven (alcoholismo y drogadicción, embarazos adolescente, abandono escolar)"]
[null,"Teocaltiche",{"$nulls":5},"3.7.2 Hoteles y Restaurantes",{"$nulls":3},"O14E1 Impulsar la integración y universalidad de los servicios de salud"]
[null,"Teocuitatlán de Corona",{"$nulls":5},"3.8.1 Investigación Científica",{"$nulls":3},"O14E2 Incrementar el acceso efectivo a los servicios de salud, en especial la población en condiciones de vulnerabilidad y pobreza"]
[null,"Tepatitlán de Morelos",{"$nulls":5},"3.8.2 Desarrollo Tecnológico",{"$nulls":3},"O14E3 Mejorar la calidad en la prestación de los servicios de salud"]
[null,"Tequila",{"$nulls":5},"3.8.3 Servicios Científicos y Tecnológicos",{"$nulls":3},"O14E4 Reducir el sobrepeso y la obesidad de la población"]
[null,"Teuchitlán",{"$nulls":5},"3.8.4 Innovación",{"$nulls":3},"O14E5 Reducir y controlar los factores de riesgo para la salud con enfoque preventivo a la comunidad"]
[null,"Tizapán el Alto",{"$nulls":5},"3.9.1 Comercio, Distribución, Almacenamiento y Depósito",{"$nulls":3},"O15E1 Facilitar el acceso al financiamiento para adquirir una vivienda propia a la población más vulnerable"]
[null,"Tlajomulco de Zúñiga",{"$nulls":5},"3.9.2 Otras Industrias",{"$nulls":3},"O15E2 Garantizar la aplicación de los instrumentos de planeación urbana en la construcción de fraccionamientos y para evitar asentamiento irregulares"]
[null,"Tlaquepaque",{"$nulls":5},"3.9.3 Otros Asuntos Económicos",{"$nulls":3},"O15E3 Garantizar reservas territoriales suficientes para la construcción de viviendas"]
[null,"Tolimán",{"$nulls":5},"4.1.1 Deuda Pública Interna",{"$nulls":3},"O15E4 Incrementar la efectividad de los programas sociales dirigidos a la adquisición, autoconstrucción y mejora de la vivienda"]
[null,"Tomatlán",{"$nulls":5},"4.1.2 Deuda Pública Externa",{"$nulls":3},"O15E5 Mejorar el entorno y servicios en las viviendas en zonas urbanas y rurales marginadas"]
[null,"Tonalá",{"$nulls":5},"4.2.1 Transferencias entre Diferentes Niveles y Ordenes de Gobierno",{"$nulls":3},"O15E6 Mejorar los procesos de certificación de la propiedad de la vivienda en asentamientos irregulares"]
[null,"Tonaya",{"$nulls":5},"4.2.2 Participaciones entre Diferentes Niveles y Ordenes de Gobierno",{"$nulls":3},"O16E1 Ampliar la oferta, la calidad y el acceso para realizar estudios de posgrado y de educación continua"]
[null,"Tonila",{"$nulls":5},"4.2.3 Aportaciones entre Diferentes Niveles y Ordenes de Gobierno",{"$nulls":3},"O16E2 Ampliar las oportunidades educativas, en especial la población en condiciones de vulnerabilidad y pobreza"]
[null,"Totatiche",{"$nulls":5},"4.3.1 Saneamiento del Sistema Financiero",{"$nulls":3},"O16E3 Ampliar y mejorar la enseñanza de la ciencia y la tecnología en la educación básica"]
[null,"Tototlán",{"$nulls":5},"4.3.2 Apoyos IPAB",{"$nulls":3},"O16E4 Diversificar la oferta de programas de educación superior y sus modalidades"]
[null,"Tuxcacuesco",{"$nulls":5},"4.3.3 Banca de Desarrollo",{"$nulls":3},"O16E5 Incrementar en la educación superior la movilidad de estudiantes y académicos a nivel estatal, nacional e internacional"]
[null,"Tuxcueca",{"$nulls":5},"4.3.4 Apoyo a los programas de reestructura en unidades de inversión (UDIS)",{"$nulls":3},"O16E6 Incrementar espacios educativos comunes que permitan la conjunción de esfuerzos de instituciones para mejorar la calidad y consolidar el clúster de la educación superior en el estado"]
[null,"Tuxpan",{"$nulls":5},"4.4.1 Adeudos de Ejercicios Fiscales Anteriores",{"$nulls":3},"O16E7 Incrementar la cobertura de la educación media superior y superior"]
[null,"Unión de San Antonio",{"$nulls":9},"O16E8 Mejorar el aprendizaje de un segundo idioma por parte de los estudiantes en todos los niveles educativos, particularmente el básico"]
[null,"Unión de Tula",{"$nulls":9},"O16E9 Mejorar la capacitación y actualización de docente y directivos del sistema educativo"]
[null,"Valle de Guadalupe",{"$nulls":9},"O16E10 Reducir el rezago educativo"]
[null,"Valle de Juárez",{"$nulls":9},"O16E11 Reducir la violencia en los planteles educativos"]
[null,"San Gabriel",{"$nulls":9},"O17E1 Ampliar y mejorar los instrumentos de transferencia y difusión tecnológica"]
[null,"Villa Corona",{"$nulls":9},"O17E2 Aumentar las fuentes de financiamiento para actividades de ciencia y tecnología"]
[null,"Villa Guerrero",{"$nulls":9},"O17E3 Aumentar las instituciones y empresas que realizan actividades de investigación y desarrollo tecnológico"]
[null,"Villa Hidalgo",{"$nulls":9},"O17E4 Incrementar el desarrollo de proyectos científicos tecnológicos entre los sectores académicos y las empresas"]
[null,"Cañadas de Obregón",{"$nulls":9},"O17E5 Incrementar la I+D en las empresas que exportan productos de alta tecnología"]
[null,"Yahualica de González Gallo",{"$nulls":9},"O17E6 Incrementar la investigación y el desarrollo tecnológico en las instituciones educativas"]
[null,"Zacoalco de Torres",{"$nulls":9},"O17E7 Mejorar y ampliar la formación de recursos humanos calificados en el campo de la investigación y desarrollo"]
[null,"Zapopan",{"$nulls":9},"O18E1 Diversificar y ampliar las alternativas de recreación cultural en regiones y municipios"]
[null,"Zapotiltic",{"$nulls":9},"O18E2 Garantizar la disponibilidad, seguridad y conservación de los espacios y sitios culturales"]
[null,"Zapotitlán de Vadillo",{"$nulls":9},"O18E3 Incrementar la disponibilidad de recursos humanos en el ámbito artístico"]
[null,"Zapotlán del Rey",{"$nulls":9},"O18E4 Incrementar las capacidades creativas y de producción artística de la población"]
[null,"Zapotlanejo",{"$nulls":9},"O18E5 Mejorar las condiciones materiales, humanas e institucionales vinculadas a la cultura"]
[null,"San Ignacio Cerro Gordo",{"$nulls":9},"O19E1 Acrecentar la capacitación y formación de instructores y entrenadores en actividades físicas y deportivas"]
[{"$nulls":11},"O19E2 Incrementar la práctica de actividades físicas y deportivas en todos los niveles educativos, y la población en general"]
[{"$nulls":11},"O19E3 Incrementar y mejorar los espacios para la práctica de actividades físicas y deportivas"]
[{"$nulls":11},"O19E4 Mejorar y ampliar el sistema estatal del deporte de alto rendimiento"]
[{"$nulls":11},"O19E5 Promover la práctica del deporte competitivo en el ámbito local, regional y estatal"]
[{"$nulls":11},"O20E1 Fortalecer las capacidades y equipamiento de los cuerpos de seguridad pública"]
[{"$nulls":11},"O20E2 Garantizar la honestidad, confianza y el profesionalismo del personal que labora en las instituciones de seguridad pública y privada a través de un sistema adecuado de evaluación"]
[{"$nulls":11},"O20E3 Incrementar el acceso de la población a las actividades culturales, deportivas y recreativas"]
[{"$nulls":11},"O20E4 Incrementar el nivel de denuncia ciudadana y su correcta atención"]
[{"$nulls":11},"O20E5 Incrementar la participación ciudadana en la prevención del delito"]
[{"$nulls":11},"O20E6 Intensificar y mejorar la comunicación en materia de prevención del delito y combate a la inseguridad"]
[{"$nulls":11},"O21E1 Concluir y consolidar el nuevo sistema penal acusatorio"]
[{"$nulls":11},"O21E2 Disminuir la incidencia de los actos de corrupción"]
[{"$nulls":11},"O21E3 Facilitar el acceso de la justicia a nivel local y regional"]
[{"$nulls":11},"O21E4 Incrementar el uso de métodos alternativos de solución de conflictos"]
[{"$nulls":11},"O21E5 Mejorar el sistema penal con el propósito de reducir la sobrepoblación penitenciaria"]
[{"$nulls":11},"O21E6 Mejorar la capacitación y formación de los recursos humanos del poder judicial"]
[{"$nulls":11},"O21E7 Proporcionar asistencia y representación eficaz a las víctimas con perspectiva de derechos humanos"]
[{"$nulls":11},"O22E1 Aumentar la probabilidad de captura y condena por delitos cometidos"]
[{"$nulls":11},"O22E2 Disminuir la incidencia de los actos de corrupción"]
[{"$nulls":11},"O22E3 Investigar y perseguir el delito con mayor eficacia"]
[{"$nulls":11},"O22E4 Mejorar la calidad de los servicios que prestan los ministerios públicos"]
[{"$nulls":11},"O22E5 Mejorar la capacitación y formación de los recursos humanos para la procuración de justicia"]
[{"$nulls":11},"O22E6 Mejorar la percepción ciudadana sobre el quehacer del sistema de procuración de justicia"]
[{"$nulls":11},"O23E1 Disminuir la incidencia de las violaciones a los Derechos Humanos"]
[{"$nulls":11},"O23E2 Mejorar la atención a las víctimas de violaciones a los derechos humanos"]
[{"$nulls":11},"O23E3 Reducir la violencia y discriminación, particularmente aquella ejercida en contra de grupos en situación de vulnerabilidad"]
[{"$nulls":11},"O24E1 Contribuir al desarrollo democrático social y político"]
[{"$nulls":11},"O24E2 Incrementar la participación ciudadana en asuntos públicos y en organizaciones civiles y comunitarias"]
[{"$nulls":11},"O24E3 Mejorar la coordinación de los tres órdenes y niveles de gobierno"]
[{"$nulls":11},"O24E4 Prevenir y gestionar conflictos sociales a través del diálogo constructivo"]
[{"$nulls":11},"O25E1 Disminuir la incidencia de los actos de corrupción"]
[{"$nulls":11},"O25E2 Impulsar un gobierno abierto, promotor de la transparencia, la rendición de cuentas, la participación ciudadana y del uso de las tecnologías de información y comunicación"]
[{"$nulls":11},"O25E3 Incrementar la disponibilidad de recursos financieros y mejorar su uso y asignación"]
[{"$nulls":11},"O25E4 Mejorar la calidad y disponibilidad de información para la toma de decisiones de la sociedad y el gobierno"]
[{"$nulls":11},"O25E5 Mejorar la calidad y la prestación de servicios públicos"]
[{"$nulls":11},"O25E6 Mejorar la capacitación y profesionalización de los funcionarios y servidores públicos"]
[{"$nulls":11},"O25E7 Mejorar la planeación, programación, el seguimiento y la evaluación para una gestión pública eficiente orientada a resultados"]
[{"$nulls":11},"O26E1 Asegurar el acceso igualitario a la justicia"]
[{"$nulls":11},"O26E2 Garantizar el acceso universal a la salud reproductiva y sexual"]
[{"$nulls":11},"O26E3 Incrementar el acceso a la educación de niñas y mujeres"]
[{"$nulls":11},"O26E4 Incrementar la participación de las mujeres en cargos públicos y en puestos de elección popular"]
[{"$nulls":11},"O26E5 Incrementar las oportunidades laborales dignas para las mujeres, en particular las mujeres jefas de familia"]
[{"$nulls":11},"O26E6 Reducir la violencia contra las mujeres"]
[{"$nulls":11},"O27E1 Crear espacios físicos y virtuales, y otros mecanismos de diálogo y reflexión para generar soluciones innovadoras a problemas públicos y sociales"]
[{"$nulls":11},"O27E2 Desarrollar alianzas y redes entre empresas, gobierno, grupos sociales y universidades para impulsar la innovación, el emprendurismo y la creatividad que genere la creación de valor público y económico"]
[{"$nulls":11},"O27E3 Incrementar las actividades de investigación y desarrollo, principalmente en el sector agropecuario, la industria alimentaria, la industria creativa y la biotecnológica"]
[{"$nulls":11},"O27E4 Promover la innovación en el sector gubernamental en todos los órdenes y niveles de gobierno"]

{"sheet":"Base","index":4,"n_rows":1,"n_cols":60,"rows_kept":1,"hidden":true}
["ID","Ente auditable","Denominación del Programa","Categoría programática","Unidad Responsable","Finalidad","Función","Sub-función","Alineación con objetivos superiores del PND","Alineación con objetivos secundarios del PND","Alineación con objetivos superiores del PED","Alineación con objetivos secundarios del PED","Alineación con objetivos superiores del PMD","Alineación con objetivos secundarios del PMD","Nivel MIR","Código del nivel MIR","Resumen Narrativo (objetivos)","Nombre del indicador","Definición del indicador","Dimensión del indicador","Tipo de indicador","Método de Cálculo del indicador","Valor programado 1 (Numerador)","Valor programado 2 (Denominador)","Frecuencia de Medición del indicador","Unidad de Medida del indicador","Metas del indicador","Medios de Verificación del indicador","Supuestos del indicador","Capítulo 1000","Capítulo 2000","Capítulo 3000","Capítulo 4000","Capítulo 5000","Capítulo 6000","Capítulo 7000","Capítulo 8000","Capítulo 9000","Avance 1er Semestre del Valor programado 1 (Numerador)","Avance 1er Semestre del Valor programado 2 (Denominador)","Avance Anual del Valor programado 1 (Numerador)","Avance Anual del Valor programado 2 (Denominador)","Avance 1er Semestre del Capítulo 1000","Avance 1er Semestre del Capítulo 2000","Avance 1er Semestre del Capítulo 3000","Avance 1er Semestre del Capítulo 4000","Avance 1er Semestre del Capítulo 5000","Avance 1er Semestre del Capítulo 6000","Avance 1er Semestre del Capítulo 7000","Avance 1er Semestre del Capítulo 8000","Avance 1er Semestre del Capítulo 9000","Avance Anual del Capítulo 1000","Avance Anual del Capítulo 2000","Avance Anual del Capítulo 3000","Avance Anual del Capítulo 4000","Avance Anual del Capítulo 5000","Avance Anual del Capítulo 6000","Avance Anual del Capítulo 7000","Avance Anual del Capítulo 8000","Avance Anual del Capítulo 9000"]

{"sheet":"SUSTENTO INDICADOR","index":5,"n_rows":352,"n_cols":20,"rows_kept":352,"merged":[[1,1,1,15],[3,5,3,15],[5,2,6,3],[5,5,6,15],[8,2,9,3],[8,5,9,15],[13,2,13,9],[13,11,13,15],[15,11,15,15],[16,11,18,15],[25,2,25,4],[25,5,25,6],[25,7,25,8],[25,9,25,11],[25,12,25,13],[25,15,25,16],[25,18,25,19],[26,1,30,1],[26,2,29,4],[26,5,29,6],[26,7,29,8],[26,9,29,11],[26,12,27,13],[26,14,27,14],[26,15,29,16],[26,17,27,17],[28,12,29,13],[28,14,29,14],[28,17,29,17],[31,1,34,1],[31,2,34,4],[31,5,34,6],[31,7,34,8],[31,9,34,11],[31,12,32,13],[31,14,32,14],[31,15,34,16],[31,17,32,17],[33,12,34,13],[33,14,34,14],[33,17,34,17],[35,1,36,1],[35,2,36,3],[37,1,38,1],[37,2,38,3],[39,1,41,1],[39,2,40,3],[42,1,43,1],[42,2,43,3],[44,1,45,1],[44,2,45,3],[46,1,47,1],[46,2,47,3],[48,1,49,1],[48,2,49,3],[50,1,51,1],[50,2,51,3],[52,1,53,1],[52,2,53,3],[54,1,55,1],[54,2,55,3],[56,1,57,1],[56,2,57,3],[58,1,59,1],[58,2,59,3],[60,1,61,1],[60,2,61,3],[62,1,63,1],[62,2,63,3],[64,1,65,1],[64,2,65,3],[66,1,67,1],[66,2,67,3],[68,1,69,1],[68,2,69,3],[70,1,71,1],[70,2,71,3],[72,1,73,1],[72,2,73,3],[74,1,75,1],[74,2,75,3],[77,1,80,1],[77,2,80,4],[77,5,80,6],[77,7,80,8],[77,9,80,11],[77,12,78,13],[77,14,78,14],[77,15,80,16],[77,17,78,17],[79,12,80,13],[79,14,80,14],[79,17,80,17],[81,1,82,1],[81,2,82,3],[83,1,84,1],[83,2,84,3],[85,1,86,1],[85,2,86,3],[87,1,88,1],[87,2,88,3],[89,1,90,1],[89,2,90,3],[91,1,92,1],[91,2,92,3],[93,1,94,1],[93,2,94,3],[95,1,96,1],[95,2,96,3],[97,1,98,1],[97,2,98,3],[99,1,100,1],[99,2,100,3],[101,1,102,1],[101,2,102,3],[103,1,104,1],[103,2,104,3],[105,1,106,1],[105,2,106,3],[107,1,108,1],[107,2,108,3],[109,1,110,1],[109,2,110,3],[111,1,112,1],[111,2,112,3],[113,1,114,1],[113,2,114,3],[115,1,116,1],[115,2,116,3],[117,1,118,1],[117,2,118,3],[119,1,120,1],[119,2,120,3],[121,1,122,1],[121,2,122,3],[123,1,124,1],[123,2,124,3],[125,1,126,1],[125,2,126,3],[127,1,128,1],[127,2,128,3],[129,1,130,1],[129,2,130,3],[131,1,132,1],[131,2,132,3],[133,1,134,1],[133,2,134,3],[135,1,136,1],[135,2,136,3],[137,1,138,1],[137,2,138,3],[139,1,140,1],[139,2,140,3],[141,1,142,1],[141,2,142,3],[143,1,144,1],[143,2,144,3],[145,1,146,1],[145,2,146,3],[147,1,148,1],[147,2,148,3],[149,1,150,1],[149,2,150,3],[151,1,152,1],[151,2,152,3],[153,1,154,1],[153,2,154,3],[155,1,156,1],[155,2,156,3],[157,1,158,1],[157,2,158,3],[159,1,160,1],[159,2,160,3],[161,1,162,1],[161,2,162,3],[163,1,164,1],[163,2,164,3],[165,1,166,1],[165,2,166,3],[167,1,168,1],[167,2,168,3],[169,1,170,1],[169,2,170,3],[171,1,172,1],[171,2,172,3],[173,1,174,1],[173,2,174,3],[175,1,178,1],[175,2,178,4],[175,5,178,6],[175,7,178,8],[175,9,178,11],[175,12,176,13],[175,14,176,14],[175,15,178,16],[175,17,176,17],[177,12,178,13],[177,14,178,14],[177,17,178,17],[179,1,180,1],[179,2,180,3],[181,1,182,1],[181,2,182,3],[183,1,184,1],[183,2,184,3],[185,1,186,1],[185,2,186,3],[187,1,188,1],[187,2,188,3],[189,1,190,1],[189,2,190,3],[191,1,192,1],[191,2,192,3],[193,1,194,1],[193,2,194,3],[195,1,196,1],[195,2,196,3],[197,1,198,1],[197,2,198,3],[199,1,200,1],[199,2,200,3],[201,1,202,1],[201,2,202,3],[203,1,204,1],[203,2,204,3],[205,1,206,1],[205,2,206,3],[207,1,208,1],[207,2,208,3],[209,1,210,1],[209,2,210,3],[211,1,212,1],[211,2,212,3],[213,1,214,1],[213,2,214,3],[215,1,216,1],[215,2,216,3],[217,1,218,1],[217,2,218,3],[219,1,220,1],[219,2,220,3],[221,1,222,1],[221,2,222,3],[223,1,224,1],[223,2,224,3],[225,1,228,1],[225,2,228,4],[225,5,228,6],[225,7,228,8],[225,9,228,11],[225,12,226,13],[225,14,226,14],[225,15,228,16],[225,17,226,17],[227,12,228,13],[227,14,228,14],[227,17,228,17],[229,1,230,1],[229,2,230,3],[231,1,232,1],[231,2,232,3],[233,1,234,1],[233,2,234,3],[235,1,236,1],[235,2,236,3],[237,1,238,1],[237,2,238,3],[239,1,240,1],[239,2,240,3],[241,1,242,1],[241,2,242,3],[243,1,244,1],[243,2,244,3],[245,1,246,1],[245,2,246,3],[247,1,248,1],[247,2,248,3],[249,1,250,1],[249,2,250,3],[251,1,252,1],[251,2,252,3],[253,1,254,1],[253,2,254,3],[255,1,256,1],[255,2,256,3],[257,1,258,1],[257,2,258,3],[259,1,260,1],[259,2,260,3],[261,1,262,1],[261,2,262,3],[263,1,264,1],[263,2,264,3],[265,1,266,1],[265,2,266,3],[267,1,268,1],[267,2,268,3],[269,1,270,1],[269,2,270,3],[271,1,272,1],[271,2,272,3],[273,1,274,1],[273,2,274,3],[275,1,276,1],[275,2,276,3],[277,1,278,1],[277,2,278,3],[279,1,280,1],[279,2,280,3],[281,1,282,1],[281,2,282,3],[283,1,284,1],[283,2,284,3],[285,1,288,1],[285,2,288,4],[285,5,288,6],[285,7,288,8],[285,9,288,11],[285,12,286,13],[285,14,286,14],[285,15,288,16],[285,17,286,17],[287,12,288,13],[287,14,288,14],[287,17,288,17],[289,1,290,1],[289,2,290,3],[291,1,292,1],[291,2,292,3],[293,1,294,1],[293,2,294,3],[295,1,296,1],[295,2,296,3],[297,1,298,1],[297,2,298,3],[299,1,300,1],[299,2,300,3],[301,1,302,1],[301,2,302,3],[303,1,304,1],[303,2,304,3],[305,1,306,1],[305,2,306,3],[307,1,308,1],[307,2,308,3],[309,1,310,1],[309,2,310,3],[311,1,312,1],[311,2,312,3],[313,1,316,1],[313,2,316,4],[313,5,316,6],[313,7,316,8],[313,9,316,11],[313,12,314,13],[313,14,314,14],[313,15,316,16],[313,17,314,17],[315,12,316,13],[315,14,316,14],[315,17,316,17],[317,1,318,1],[317,2,318,3],[319,1,320,1],[319,2,320,3],[321,1,322,1],[321,2,322,3],[323,1,324,1],[323,2,324,3],[325,1,326,1],[325,2,326,3],[327,1,328,1],[327,2,328,3],[329,1,330,1],[329,2,330,3],[331,1,332,1],[331,2,332,3],[333,1,334,1],[333,2,334,3],[335,1,336,1],[335,2,336,3],[337,1,338,1],[337,2,338,3],[339,1,340,1],[339,2,340,3],[341,1,342,1],[341,2,342,3],[343,1,344,1],[343,2,344,3],[345,1,346,1],[345,2,346,3],[347,1,348,1],[347,2,348,3],[350,2,350,6],[351,4,351,6]]}
[]
[null,"Municipio de Ixtlahuacán de los Membrillos, Jal."]
[]
[null,null,"DIRECCION MUNICIPAL:",null,null,"SEGURIDAD PUBLICA"]
[]
[null,null,"NOMBRE DEL PROGRAMA PRESUPUESTARIO:",null,null,"Estado de Derecho y Seguridad"]
[]
[]
[null,null,"NOMBRE DEL INDICADOR ESTRATEGICO:",null,null,"INDICE de Desarrollo Municipal (IDM)"]
[]
[]
[{"$nulls":5},"AÑO: ",2018,2019,2020,2021]
[]
[null,null,"AVANCE ANUAL"]
[null,null,"Proyectos a desarrollar",null,"1ro.","2do.","3ro.","4to.","5to.","6to."]
[null,null,"Percepción de Seguridad Pública Incrementada","INDICE de percepción de inseguridad por parte de la población (IPS)",{"v":0.11,"d":"0.110"},{"v":27,"d":"27.000"},{"v":0.38,"d":"0.380"},{"$nulls":4},"Criterios para determinar avance de porcentaje de metas"]
[null,1.1,"Trabajar con la ciudadanía en la prevención social","Tasa de prevalencia delictiva por cada diez habitantes denunciados por la ciudadania y resueltos. (P1-DDCR)",{"v":0.05,"d":"5%"},{"v":0.15,"d":"15%"},{"v":0.2,"d":"20%"},{"$nulls":4},"En la MIR se establecen los proyectos que ha programado la dirección para cumplir con el indicador estrategico  durante la administración, con el cumplimiento al 100% de ellos y sus 16 variables dara cumplimiento a las meta individuales y de la dirección que constituyen el indicador estrategico o de evaluacion del exito ejercico el presupuesto asignado a la direccion y a cada proyecto y sus actividades, los informes bimensuales seran la suma de los valores relativos de cada bimestre que se va acumulando, hasta llegar al último bimestre de trabajo para su cumplimiento."]
[null,1.2,"Integrar, orientar y capacitar a los actuales y nuevos elementos de seguridad pública.","PORCENTAJE de elementos integrados y capacitados a Cuerpo de Seguridad Pública. (P2-EICCSP)",{"v":0.16,"d":"16%"},{"v":0.3,"d":"30%"},{"v":0.48,"d":"48%"}]
[null,1.3,"Definir en el corto plazo y capacitar a los integrantes del grupo especializado en reacción para atender las localidades más vulnerables del municipio.","PORCENTAJE de elementos evaluados y capacitados en cuerpo de reacción. (P3-EECCR)",{"v":0.25,"d":"25%"},{"v":0.47,"d":"47%"},{"v":0.8,"d":"80%"}]
[null,1.4,"Concientizar y capacitar a los choferes de las patrullas de seguridad publica en un mejor manejo del parque vehicular.","PORCENTAJE de elementos capacitados como choferes de patrulla y manejo de equipo. (P4-ECCPME)",{"v":0.16,"d":"16%"},{"v":0.32,"d":"32%"},{"v":0.45,"d":"45%"}]
[null,1.5,"Instalación de cámaras de video vigilancia así como una base de datos sobre los registros de denuncias.  Establecer una instancia en el municipio que dé seguimiento a los asuntos ante la fiscalía","PORCENTAJE de vinculación de delitos entre denuncias, fiscalia y videocamaras. (T1-VDDFV)",{"v":0.17,"d":"17%"},{"v":0.3,"d":"30%"},{"v":0.4,"d":"40%"}]
[null,1.6,"Conjuntamente con asuntos internos y oficialía mayor administrativa gestionar capacitaciones constantes y diversas sobre los derechos humanos.","PORCENTAJE de empledos municipales que se capacitan en derechos humanos. (P5-EMCDH)",{"v":0,"d":"0%"},{"v":0,"d":"0%"},{"v":0,"d":"0%"}]
[null,null,"VALOR BIMESTRAL DEL INDICADOR",null,{"$f":"SUM(E17:E22)/6","v":{"v":0.13166666666666668,"d":"13.2%"}},{"v":0.25666666666666665,"d":"25.7%"},{"v":0.38833333333333336,"d":"38.8%"},{"v":0,"d":"0.0%"},{"v":0,"d":"0.0%"},{"v":0,"d":"0.0%"}]
[]
[{"$nulls":13},57,106.6]
[null,null,"Proyectos a Desarrollar",null,null,"Nombre del indicador",null,"Definición",null,"Método de cálculo",null,null,"Valor programado 1 (Numerador)",null,"Valor programado 2 (Denominador)","Frecuencia de medición",null,"Meta","Caracteristicas del Indicador"]
[null,"Propósito","Percepción de Seguridad Pública Incrementada",null,null,"INDICE de percepción de inseguridad por parte de la población (I1-PIP)",null,"Mide el cambio de percepción por la ciudadania en la seguridad personal y de sus cosas ",null,"(valor resultante de sumar los valores individuales  de  los cosientes entre sus denominadores por su ponderacion asignada, que miden las  variables de: prevalencia delictiva, elementos integrados, evaluados,  capacitados, vinculacion de delitos, derechos humanos,  con sus correspondientes ponderaciones de .2, .1, .2, .2, .2 y .1 / la suma de los valores del denominador de las mismas variables)",null,null,{"$f":"0.2*(M32)+0.1*(M78)+0.2*(M176)+0.2*(M226)+0.2*(M286)+0.1*(M314)","v":0},null,{"$f":"0.2*(O32)+0.1*(O78)+0.2*(O176)+0.2*(O226)+0.2*(O286)+0.1*(O314)","v":5041.3},"Bimestral",null,{"$f":"M27/O27","v":{"v":0,"d":"0.000"}},"Eficacia","Dimensión"]
[{"$nulls":18},"Estratégico","Tipo"]
[{"$nulls":12},{"$f":"(M34+M80+M178+M228+M288+M316)/6","v":{"v":0.4611111111111112,"d":"0.46"}},null,{"$f":"(O34+O80+O178+O228+O288+O316)/6","v":{"v":1.1944444444444444,"d":"1.19"}},null,null,{"$f":"M29/O29","v":{"v":0.38604651162790704,"d":"0.386"}},"Bimestral","Frecuencia de medición"]
[{"$nulls":18},"Índice","Unidad de medida"]
[null,null,"Calendario de ejecución",null,null,"Nov","Dic","Ene","feb","Mar","Abr","May","Jun","Jul","Ags","Sep","Oct"]
[null,"Componente 1","Trabajar con la ciudadanía en la prevención social",null,null,"Tasa de prevalencia delictiva por cada diez habitantes denunciados por la ciudadania y resueltos. (P1-DDCR)",null,"Mide la tasa de delitos que fueron denunciados por la ciudadania y resueltos como producto de trabajar conjuntamente",null,"(Tasa de CONSEJOS 25 INTEGRADOS DE VECINOS VIGILANTES  en trabajo conjunto entre el cuerpo de seguridad pública y la ciudadania  25000 por cada 1000 habitantes    ",null,null,0,null,25000,"Mensual",null,{"$f":"M32/O32","v":{"v":0,"d":"0%"}},"Eficacia","Dimensión"]
[{"$nulls":18},"Gestión","Tipo"]
[{"$nulls":12},{"$f":"R37+R39+R41","v":{"v":0.6000000000000001,"d":"0.60"}},null,{"$f":"R36+R38+R40","v":3},null,null,{"$f":"M34/O34","v":{"v":0.20000000000000004,"d":"20%"}},"Bimestral","Frecuencia de medición"]
[{"$nulls":18},"Porcentaje","Unidad de medida"]
[null,"Actividad 1.1","Se agendaran 40 platicas y talleres informativos para niñoss y adolscentes con el objetivo de prevenir problemas de adcciones",null,"P",10,10,10,10,10,10,10,10,10,10,0,0,{"$f":"SUM($F36:$Q36)/100","v":1}]
[{"$nulls":4},"E",10,0,0,0,0,0,0,0,0,0,0,0,0.1]
[null,"Actividad 1.2","Recibir las denuncias ciudadanas  y dar numero de Carpeta de Investigacion a la victima.( Se recibieron 48 formatos de denuncia de IPH octubre 2020 a Enero 2021.)",null,"P",10,10,10,10,10,10,10,10,10,10,0,0,1]
[{"$nulls":4},"E",0,20,0,0,0,0,0,0,0,0,0,0,0.2]
[null,"Actividad 1.3","Relizar tres capacitacionesa grupos de adultos mayores  trabajando en conjunto con el DIF, Desarrollo Siocial, ",null,"P",10,10,10,10,10,10,10,10,10,10,0,0,1]
[{"$nulls":4},"E",0,0,25,5,0,0,0,0,0,0,0,0,0.3]
[null,null,"identificar  las 5 colonias mayormente vulnerables ",null,"E",3,2,0,0,0,0,0,0,0,0,0,0]
[null,"Actividad 1.2","Definir si la charla sera por personal del Estado o con personal del municipio",null,"P",10,10,10,10,10,10,0,10,10,10,10,0]
[{"$nulls":4},"E",3,2,0,0,0,0,0,0,0,0,0,0]
[null,"Actividad 1.3","Solicitar a los delegados municipales que inviten a la ciudadania a las charlas porparte SPE",null,"P",10,10,10,10,10,10,0,10,10,10,10,0]
[{"$nulls":4},"E",4,4,0,0,0,0,0,0,0,0,0,0]
[null,"Actividad 1.4","Incluir cinco tallers diagnostico por parte de la ciudadania sobre la problemática mayor existente",null,"P",10,0,10,10,10,10,10,10,10,10,10,0]
[{"$nulls":4},"E",10,5,5,6,0,0,0,0,0,0,0,0]
[null,"Actividad 1.5","Definir los 5 temas a desarrollar en las platicas sobre prevencion social",null,"P",10,0,10,10,10,10,10,10,10,10,10,0]
[{"$nulls":4},"E",8,2,5,6,0,0,0,0,0,0,0,0]
[null,"Actividad 1.2","Calendario para impartir los 25 talleres de prevencion",null,"P",10,10,10,10,10,10,0,10,10,10,10,0]
[{"$nulls":4},"E",3,2,0,8,0,0,0,0,0,0,0,0]
[null,"Actividad 1.2","Evaluar la Instalación de  4 casetas de atencion ciudadana",null,"P",10,10,10,10,10,10,0,10,10,10,10,0]
[{"$nulls":4},"E",3,2,0,0,0,0,0,0,0,0,0,0]
[null,"Actividad 1.2","Evaluar la Instalación de 2 modulos de atencion ciudadana",null,"P",10,10,10,10,10,10,0,10,10,10,10,0]
[{"$nulls":4},"E",3,2,0,0,0,0,0,0,0,0,0,0]
[null,"Actividad 1.2","Definir personal para que levante estadisticas de denuncias ciudadanas ",null,"P",10,10,10,10,10,10,0,10,10,10,10,0]
[{"$nulls":4},"E",3,2,0,0,7,0,0,0,0,0,0,0]
[null,"Actividad 1.2","Medir el comportamiento estadistico de la reinsidencia de delitos y denuncias",null,"P",10,10,10,10,10,10,0,10,10,10,10,0]
[{"$nulls":4},"E",3,2,0,0,0,0,0,0,0,0,0,0]
[null,"Actividad 1.2","Identificacion de los delitos mayormente reincidentes y definir estrategicas de atención ",null,"P",10,10,10,10,10,10,0,10,10,10,10,0]
[{"$nulls":4},"E",3,2,3,0,0,0,0,0,0,0,0,0]
[null,"Actividad 1.2","Comprara la eficiencia de las estrategias y analizar la continuidad de las mismas",null,"P",10,10,10,10,10,10,0,10,10,10,10,0]
[{"$nulls":4},"E",3,2,0,0,0,0,0,0,0,0,0,0]
[null,"Actividad 1.3","I.- Organizar, establecer y ejecutar las medidas de seguridad pública que garanticen el bienestar de los habitantes del Municipio;  (pág 12 RPPM)",null,"P",10,10,10,10,10,10,0,10,10,10,10,0]
[{"$nulls":4},"E",4,4,0,0,0,0,0,0,0,0,0,0]
[null,"Actividad 1.4","se atendieron 10 escuelas de los niveles preescolar, rpimaria, secundaria, preparatoria, con los temas de prevencion de aprediendo a cuidarme, prevencion de adiciones.",null,"P",10,10,10,10,10,10,10,10,10,10,0,0]
[{"$nulls":4},"E",10,10,10,10,10,10,10,10,10,10,0,0]
[null,"Actividad 1.5","II.- Planear, organizar, programar, presupuestar y dirigir todas las actividades correspondientes a la Dirección General;",null,"P",10,0,10,10,10,10,10,10,10,10,10,0]
[{"$nulls":4},"E",8,2,5,6,0,0,0,0,0,0,0,0]
[null,"Actividad 1.2","se eleboro un plan de trabajo por el area de prevencion social (APRENDIENDO A CUIDARME Y PREVENCION EN ADICIONES) para atender los Fraccionaimento con mas problemática sociales como lo son Sabinos, Olivos, Huerta Vieja, Real de lago.",null,"P",10,10,10,10,10,10,10,10,10,10,0,0]
[{"$nulls":4},"E",3,2,0,0,0,0,0,0,0,0,0,0]
[null,"Actividad 1.3","III.- Mantener el orden público y tranquilidad en el Municipio",null,"P",10,10,10,10,10,10,0,10,10,10,10,0]
[{"$nulls":4},"E",4,4,0,0,0,0,0,0,0,0,0,0]
[null,"Actividad 1.4","se realizaron 8 platicas con lideres  vecinales en los Fraccionamiento Sabinos I, II, III,IV, , Olivos I, II, Huerta Vieja, Real de laho.",null,"P",10,10,10,10,10,10,10,10,10,10,0,0]
[{"$nulls":4},"E",10,10,10,10,10,10,10,10,10,10,0,0]
[{"$nulls":4},"E",1,0,0,0,0,0,0,0,0,0,0,0,{"$f":"SUM($F77:$Q77)/100","v":0.01}]
[null,"Componente 2","Integrar, orientar y capacitar a los actuales y nuevos elementos de seguridad pública.",null,null,"PORCENTAJE de elementos integrados y capacitados a Cuerpo de Seguridad Pública. (P2-EICCSP)",null,"Mide el porcentaje de elementos del cuerpo de seguridad pública que transitaron por un proceso de integración, orientación y capacitacion y entonces salieron a atender a la ciudadania",null,"(Cantidad de ciudadanos (20) que se incorporan al cuerpo de seguridad pública y transitan por un proceso de integración, orientación y capacitacion antes de salir  a dar atención a la ciudadania al año / Total de  ciudadanos que se incorporan al cuerpo de seguridad pública y transitan por un proceso de integración al año (20))*100",null,null,0,null,20,"Mensual",null,{"$f":"M78/O78","v":{"v":0,"d":"0%"}},"Eficacia","Dimensión"]
[{"$nulls":18},"Gestión","Tipo"]
[{"$nulls":12},{"$f":"R83+R85","v":{"v":0.7916666666666667,"d":"0.79"}},null,{"$f":"R82+R84","v":{"v":1.6666666666666667,"d":"1.67"}},null,null,{"$f":"M80/O80","v":{"v":0.47500000000000003,"d":"48%"}},"Bimestral","Frecuencia de medición"]
[{"$nulls":18},"Índice","Unidad de medida"]
[null,"Actividad 2.1","Realizar 12 capacitaciones de procesos e integracion, capacitacion e orientacion antes de salir a dar la atencion a la ciudadania ( Estan actualmente en capacitacion de formacion incial  10 elementos de la comisaria municipal. )",null,"P",10,10,10,10,10,10,10,10,10,10,0,0,{"$f":"SUM($F82:$Q82)/120","v":{"v":0.8333333333333334,"d":"0.83"}}]
[{"$nulls":4},"E",10,0,10,0,10,10,10,0,0,0,0,0,{"$f":"SUM($F83:$Q83)/120","v":{"v":0.4166666666666667,"d":"0.42"}}]
[null,"Actividad 2.2","Capitar 07 elementos para la creacion de la unidad especializada en atencion a mujeres victimas de violencia de genero ",null,"P",10,10,10,10,10,10,10,10,10,10,0,0,{"$f":"SUM($F84:$Q84)/120","v":{"v":0.8333333333333334,"d":"0.83"}}]
[{"$nulls":4},"E",0,15,0,20,5,5,0,0,0,0,0,0,{"$f":"SUM($F85:$Q85)/120","v":{"v":0.375,"d":"0.38"}}]
[null,"Actividad 2.1","Definir el mecanismo de evaluación a los solicitantes para integrarse al cuerpo de seguridad pública Municipal",null,"P",1,1,0,1,0,1,0,1,0,1,0,1]
[{"$nulls":4},"E",1,0,0,0,0,0,0,0,0,0,0,0]
[null,"Actividad 2.1","Orientar y especificar los riezgos, beneficios y prestaciones",null,"P",1,1,0,1,0,1,0,1,0,1,0,1]
[{"$nulls":4},"E",1,0,0,0,0,0,0,0,0,0,0,0]
[null,"Actividad 2.1","Realizar examen  de confianza (psicometricos, toxicologicos, psicologicos, fisicos y socioeconomico)",null,"P",1,1,0,1,0,1,0,1,0,1,0,1]
[{"$nulls":4},"E",1,0,0,0,0,0,0,0,0,0,0,0]
[null,"Actividad 2.1","Quienes resultaro aptos se integran a la academia (por periodo de seis meses) para formación inicial para cuerpo de seguridad pública",null,"P",1,1,0,1,0,1,0,1,0,1,0,1]
[{"$nulls":4},"E",1,0,0,0,0,0,0,0,0,0,0,0]
[null,"Actividad 2.1","Establecer programa de capacitacion a todos los elementos del CSPM (tiro, 1er respondiente, Derechos Humanos, Conducion de Vehiculos de emergencia, etc)",null,"P",1,1,0,1,0,1,0,1,0,1,0,1]
[{"$nulls":4},"E",1,0,0,0,0,0,0,0,0,0,0,0]
[null,"Actividad 2.1","Establecer programa de asistencia a las capacitaciones",null,"P",1,1,0,1,0,1,0,1,0,1,0,1]
[{"$nulls":4},"E",1,0,0,0,0,0,0,0,0,0,0,0]
[null,"Actividad 2.1","Entregar constancias de capacidades a los asistentes a las capacitaciones avalados por una instancia Certificada para ello",null,"P",1,1,0,1,0,1,0,1,0,1,0,1]
[{"$nulls":4},"E",1,0,0,0,0,0,0,0,0,0,0,0]
[null,"Actividad 2.1","Registrar en expediente personal de cada elemento sus evaluaciones externas e internas ",null,"P",1,1,0,1,0,1,0,1,0,1,0,1]
[{"$nulls":4},"E",1,0,0,0,0,0,0,0,0,0,0,0]
[null,"Actividad 2.1","XVI.- Promover y desarrollar la profesionalización del personal policial",null,"P",1,1,0,1,0,1,0,1,0,1,0,1]
[{"$nulls":4},"E",1,0,0,0,0,0,0,0,0,0,0,0]
[null,"Actividad 2.1","Con los antecedentes del expediente profesional se analisa la incoporancion a promocion de ascenso, por parte de la Direccion de Seguridad publica municipal se gestiona ante  la Secretaria de Seguridad Publica del Estado lugares para el curso basico de carrera policial.",null,"P",1,1,0,1,0,1,0,1,0,1,0,1]
[{"$nulls":4},"E",1,0,0,0,0,0,0,0,0,0,0,0]
[null,"Actividad 2.1","Gestionar mediante oficio capacitaciones para el cuepro policial al consejo estatal de seguridada publica y asuntos internos.",null,"P",1,1,0,1,0,1,0,1,0,1,0,1]
[{"$nulls":4},"E",1,0,0,0,0,0,0,0,0,0,0,0]
[null,"Actividad 2.2","Analizar las posibilidades de desarrollar e implementar la Normatividad que rige la Comisión de Carrera Policial u órgano homólogo",null,"P",0,0,0,0,0,0,0,{"$nulls":3},0,0]
[{"$nulls":4},"E",0,0,0,0,0,0,0,0,0,0,0]
[null,"Actividad 2.3","Desarrollo y capacitacion en el Programa anual de capacitación inicial encaminado a la profesionalización de los integrantes de segridad pública",null,"P",0,0,0,0,0,0,0,{"$nulls":3},0,0]
[{"$nulls":4},"E",0,0,0,0,0,0,0,0,0,0,0,0]
[null,"Actividad 2.4",null,null,"P",0,0,0,0,0,0,0,{"$nulls":3},0,0]
[{"$nulls":4},"E",0,0,0,0,0,0,0,0,0,0,0]
[null,"Actividad 2.4","Desarrollar el programa de evaluaciones de desempeño anual en el que se establezcan metas sobre el personal a evaluar a fin de lograr la Certificacion Oficial",null,"P",0,0,0,0,0,0,0,0,0,0,0,0]
[{"$nulls":4},"E",0,0,0,0,0,0,0,0,0,0,0,0]
[null,"Actividad 2.5","Revisar, actualizar o desarrollar la Normatividad que rige la Comisión de Honor y Justicia con sus manuales y procedimientos",null,"P",0,0,0,0,0,0,0,0,0,0,0,0]
[{"$nulls":4},"E",0,0,0,0,0,0,0,0,0,0,0,0]
[null,"Actividad 2.6","Desarrollar un Programa de Acompañamiento Ciudadano al Desarrollo Policial  respecto a los protocolos de actuación por parte de los integrantes del curpo de seguridad pública ante la ciudadania, en los siguientes protocolos:",null,"P",0,0,0,0,0,0,0,0,0,0,0,0]
[{"$nulls":4},"E",0,0,0,0,0,0,0,0,0,0,0,0]
[null,"Actividad 2.7","Protocolo de uso de la fuerza",null,"P",0,0,0,0,0,0,0,{"$nulls":3},0,0]
[{"$nulls":4},"E",0,0,0,0,0,0,0,0,0,0,0,0]
[null,"Actividad 2.12",null,null,"P",0,0,0,0,0,0,0,{"$nulls":3},0,0]
[{"$nulls":4},"E",0,0,0,0,0,0,0,0,0,0,0]
[null,"Actividad 2.13",null,null,"P",0,0,0,0,0,0,0,{"$nulls":3},0,0]
[{"$nulls":4},"E",0,0,0,0,0,0,0,0,0,0,0]
[null,"Actividad 2.8","Protocolo de atención de emergencias y toma de llamadas",null,"P",0,0,0,0,0,0,0,0,0,0,0,0]
[{"$nulls":4},"E",0,0,0,0,0,0,0,0,0,0,0,0]
[null,"Actividad 2.9","Protocolo de detención de presuntos delincuentes",null,"P",0,0,0,0,0,0,0,0,0,0,0,0]
[{"$nulls":4},"E",0,0,0,0,0,0,0,0,0,0,0,0]
[null,"Actividad 2.10","Protocolo de primer respondiente",null,"P",0,0,0,0,0,0,0,0,0,0,0,0]
[{"$nulls":4},"E",0,0,0,0,0,0,0,0,0,0,0,0]
[null,"Actividad 2.11","Protocolo de cadena de custodia",null,"P",0,0,0,0,0,0,0,{"$nulls":3},0,0]
[{"$nulls":4},"E",0,0,0,0,0,0,0,0,0,0,0,0]
[null,"Actividad 2.20",null,null,"P",0,0,0,0,0,0,0,{"$nulls":3},0,0]
[{"$nulls":4},"E",0,0,0,0,0,0,0,0,0,0,0]
[null,"Actividad 2.21",null,null,"P",0,0,0,0,0,0,0,{"$nulls":3},0,0]
[{"$nulls":4},"E",0,0,0,0,0,0,0,0,0,0,0]
[null,"Actividad 2.12","Protocolo de investigación policial: Homicidios. Sexuales. Robo",null,"P",0,0,0,0,0,0,0,0,0,0,0,0]
[{"$nulls":4},"E",0,0,0,0,0,0,0,0,0,0,0,0]
[null,"Actividad 2.13","Protocolo de aviso a la Policía con capacidades para procesar",null,"P",0,0,0,0,0,0,0,0,0,0,0,0]
[{"$nulls":4},"E",0,0,0,0,0,0,0,0,0,0,0,0]
[null,"Actividad 2.14","Protocolo de planeación del traslado",null,"P",0,0,0,0,0,0,0,0,0,0,0,0]
[{"$nulls":4},"E",0,0,0,0,0,0,0,0,0,0,0,0]
[null,"Actividad 2.15","Protocolo de órdenes de protección",null,"P",0,0,0,0,0,0,0,{"$nulls":3},0,0]
[{"$nulls":4},"E",0,0,0,0,0,0,0,0,0,0,0,0]
[null,"Actividad 2.28",null,null,"P",0,0,0,0,0,0,0,{"$nulls":3},0,0]
[{"$nulls":4},"E",0,0,0,0,0,0,0,0,0,0,0]
[null,"Actividad 2.29",null,null,"P",0,0,0,0,0,0,0,{"$nulls":3},0,0]
[{"$nulls":4},"E",0,0,0,0,0,0,0,0,0,0,0]
[null,"Actividad 2.16","Protocolo de evaluación de actuación policial",null,"P",0,0,0,0,0,0,0,0,0,0,0,0]
[{"$nulls":4},"E",0,0,0,0,0,0,0,0,0,0,0,0]
[null,"Actividad 2.17","Protocolo de procesamiento de información estadística",null,"P",0,0,0,0,0,0,0,0,0,0,0,0]
[{"$nulls":4},"E",0,0,0,0,0,0,0,0,0,0,0,0]
[null,"Actividad 2.18","Desarllar actividades y procesos de capacitacion encaminados a conocer y aplicar el Sistema Penal Acusatorio",null,"P",0,0,0,0,0,0,0,0,0,0,0,0]
[{"$nulls":4},"E",0,0,0,0,0,0,0,0,0,0,0,0]
[null,"Actividad 2.12",null,null,"P",0,0,0,0,0,0,0,{"$nulls":3},0,0]
[{"$nulls":4},"E",0,0,0,0,0,0,0,0,0,0,0]
[null,"Actividad 2.13",null,null,"P",0,0,0,0,0,0,0,{"$nulls":3},0,0]
[{"$nulls":4},"E",0,0,0,0,0,0,0,0,0,0,0]
[null,"Actividad 2.8","VI.- Expedir las directrices e instrucciones a todas las unidades de la Dirección General; para el óptimo desempeño de las funciones de cada una de ellas;",null,"P",0,0,0,0,0,0,0,0,0,0,0,0]
[{"$nulls":4},"E",0,0,0,0,0,0,0,0,0,0,0,0]
[null,"Actividad 2.9","Por parte del Director de Seguridad Publica se le entrego una copia de los protocolos (art. 20)  de actuacion a los comandantes.  Regresar y rendir un parte de novedades",null,"P",10,10,10,10,10,10,10,10,10,10,0,0]
[{"$nulls":4},"E",10,10,10,10,10,10,10,10,10,10,0,0]
[null,"Actividad 2.10","VII.- Prevenir y evitar actos que constituyan delitos o infracciones a los Reglamentos;",null,"P",0,0,0,0,0,0,0,0,0,0,0,0]
[{"$nulls":4},"E",0,0,0,0,0,0,0,0,0,0,0,0]
[null,"Actividad 2.11","Se realizo 4 platicas informativas por parte Director de Seguridad publica y asuntos internos.  Para prevenir acto de infraccion al reglameto se define un protocolo de policia y buen gobierno ",null,"P",10,10,10,10,10,10,10,10,10,10,0,0]
[{"$nulls":4},"E",10,10,10,10,10,10,10,10,10,10,0,0]
[null,"Actividad 2.20",null,null,"P",0,0,0,0,0,0,0,{"$nulls":3},0,0]
[{"$nulls":4},"E",0,0,0,0,0,0,0,0,0,0,0]
[null,"Actividad 2.21",null,null,"P",0,0,0,0,0,0,0,{"$nulls":3},0,0]
[{"$nulls":4},"E",0,0,0,0,0,0,0,0,0,0,0]
[null,"Actividad 2.12","XVII.- Fomentar los valores del honor y la disciplina en la corporación policial y reconocer el mérito de sus mejores elementos",null,"P",0,0,0,0,0,0,0,0,0,0,0,0]
[{"$nulls":4},"E",0,0,0,0,0,0,0,0,0,0,0,0]
[null,"Actividad 2.13","establecer un catalogo de reconocimientos en funcion de los logros obtenidos por los integrantes de cada unidad,   durante el 2019 no se recibio ninguna convocatoria para reconocer el algun elemento en el ambito publico.",null,"P",10,10,10,10,10,10,10,10,10,10,0,0]
[{"$nulls":4},"E",10,10,10,10,10,10,10,10,10,10,0,0]
[null,"Componente 3","Definir en el corto plazo y capacitar a los integrantes del grupo especializado en reacción para atender las localidades más vulnerables del municipio.",null,null,"PORCENTAJE de elementos evaluados y capacitados en cuerpo de reacción. (P3-EECCR)",null,"Mide el tiempo transcurrido para que los elementos de seguridad se encuentren capacitados para participar en el grupo especializado",null,"(Cantidad de elementos de seguridad pública (15) que se encuentren capacitados para integrarse a cuerpos epecializados / Total de elementos de seguridad pública (60) para integrar al cuerpo de seguridad publica municipal epecializado)*100",null,null,0,null,60,"Mensual",null,{"$f":"M176/O176","v":{"v":0,"d":"0%"}},"Eficacia","Dimensión"]
[{"$nulls":18},"Gestión","Tipo"]
[{"$nulls":12},{"$f":"R181","v":{"v":0.6666666666666666,"d":"0.67"}},null,{"$f":"R180","v":{"v":0.8333333333333334,"d":"0.83"}},null,null,{"$f":"M178/O178","v":{"v":0.7999999999999999,"d":"80%"}},"Bimestral","Frecuencia de medición"]
[{"$nulls":18},"Porcentaje","Unidad de medida"]
[null,"Actividad 3.1","Realizar 12 reporte donde se encuentren capacitados los elementos para integrarse a cuerpos epecializados                  ( actualmnte en el mes de enero 2021 a la fecha se eleboro un informe de lña capácitacon de elementos en la academia del munciipio de Chapala)",null,"P",10,10,10,10,10,10,10,10,10,10,0,0,{"$f":"SUM($F180:$Q180)/120","v":{"v":0.8333333333333334,"d":"0.83"}}]
[{"$nulls":4},"E",10,15,15,10,10,10,10,0,0,0,0,0,{"$f":"SUM($F181:$Q181)/120","v":{"v":0.6666666666666666,"d":"0.67"}}]
[null,"Actividad 3.1","Definir los criterios de reaccion a localidades vulnerables ",null,"P",10,10,10,10,10,10,10,10,10,10,0,0]
[{"$nulls":4},"E",3,3,3,3,3,3,3,3,3,3,3,3]
[null,"Actividad 3.2","Definir los tipos de reaccion especial municipal y para los que se solicita apoyo ",null,"P",10,10,10,10,10,10,10,10,10,10,0,0]
[{"$nulls":4},"E",0,0,0,0,0,0,0,0,0,0,0,0]
[null,"Actividad 3.3","Definir los tipos de reaccion especial: DARE-Escuelas; UPEC (Unidad Especializada en Crisis)-Atencion tempara a sociedad; ",null,"P",10,10,10,10,10,10,10,10,10,10,0,0]
[{"$nulls":4},"E",0,0,0,0,0,0,0,0,0,0,0,0]
[null,"Actividad 3.1","Integrar los grupos de reaccion de proximidad a localidades vulnerables respecto a temas DARE y UPEC",null,"P",10,10,10,10,10,10,10,10,10,10,0,0]
[{"$nulls":4},"E",3,3,3,3,3,3,3,3,3,3,3,3]
[null,"Actividad 3.2","Integrar los grupos de reaccion operativa a los eventos del orden público",null,"P",10,10,10,10,10,10,10,10,10,10,0,0]
[{"$nulls":4},"E",0,0,0,0,0,0,0,0,0,0,0,0]
[null,"Actividad 3.3","Establecer el equipamiento general de las unidadades y el personal definido para atender las localidades clasificadas como vulenerables ",null,"P",10,10,10,10,10,10,10,10,10,10,0,0]
[{"$nulls":4},"E",0,0,0,0,0,0,0,0,0,0,0,0]
[null,"Actividad 3.1","Designar el personal que formara el grupo especialializado de reacción",null,"P",10,10,10,10,10,10,10,10,10,10,0,0]
[{"$nulls":4},"E",3,3,3,3,3,3,3,3,3,3,3,3]
[null,"Actividad 3.2","Desarrollar los protocolos de atencion a localidades vulnerables del municipio",null,"P",10,10,10,10,10,10,10,10,10,10,0,0]
[{"$nulls":4},"E",0,0,0,0,0,0,0,0,0,0,0,0]
[null,"Actividad 3.3","Definir  los criterios para clasificar las localidades como vulnerables y no vulnerables, incluyendo las que presentan mayor número de reportes",null,"P",10,10,10,10,10,10,10,10,10,10,0,0]
[{"$nulls":4},"E",0,0,0,0,0,0,0,0,0,0,0,0]
[null,"Actividad 3.4","Atendiendo a los fracionamiento con mas indice de reportes",null,"P",0,0,0,0,0,0,0,0,0,0,0,0]
[{"$nulls":4},"E",0,0,0,0,0,0,0,0,0,0,0,0]
[null,"Actividad 3.5",null,null,"P",0,0,0,0,0,0,0,0,0,0,0,0]
[{"$nulls":4},"E",0,0,0,0,0,0,0,0,0,0,0,0]
[null,"Actividad 3.6",null,null,"P",0,0,0,0,0,0,0,0,0,0,0,0]
[{"$nulls":4},"E",0,0,0,0,0,0,0,0,0,0,0,0]
[null,"Actividad 3.7",null,null,"P",0,0,0,0,0,0,0,0,0,0,0,0]
[{"$nulls":4},"E",0,0,0,0,0,0,0,0,0,0,0,0]
[null,"Actividad 3.4","Establecer el programa de capacitacion en la aplicación del protocolo de atencion a localidades vulnerables ",null,"P",10,10,10,10,10,10,10,10,10,10,0,0]
[{"$nulls":4},"E",0,0,0,0,0,0,0,0,0,0,0,0]
[null,"Actividad 3.5","Establecer el equipamiento general de las unidadades y el personal definido para atender las localidades clasificadas como vulenerables ",null,"P",10,10,10,10,10,10,10,10,10,10,0,0]
[{"$nulls":4},"E",0,0,0,0,0,0,0,0,0,0,0,0]
[null,"Actividad 3.6","Verificar las bitacoras de actuacion esteblecidas en los protocolos de actuación debidamente llenadas en cada turno durante la atencion a las localidades clasificadas como vulnerables.",null,"P",10,10,10,10,10,10,10,10,10,10,0,0,{"$f":"SUM($F212:$Q212)/100","v":1}]
[{"$nulls":4},"E",0,0,0,0,0,0,0,0,0,0,0,0,0]
[null,"Actividad 3.2","VIII.- Actuar en forma inmediata en la aprehensión de los delincuentes o de infractores en flagrancia",null,"P",10,10,10,10,10,10,10,10,10,10,0,0,1]
[{"$nulls":4},"E",0,0,0,0,0,0,0,0,0,0,0,0,0]
[null,"Actividad 3.3","se contemplo  un promedio de 10 minutos  para acudir al reporte, aspirando a bajar a 5 minutos. Elaborando los respectivos registros de atencion.",null,"P",10,10,10,10,10,10,10,10,10,10,0,0,1]
[{"$nulls":4},"E",10,10,10,10,10,10,10,10,10,10,0,0,1]
[null,"Actividad 3.4",null,null,"P",0,0,0,0,0,0,0,0,0,0,0,0,0]
[{"$nulls":4},"E",0,0,0,0,0,0,0,0,0,0,0,0,0]
[null,"Actividad 3.5",null,null,"P",0,0,0,0,0,0,0,0,0,0,0,0,0]
[{"$nulls":4},"E",0,0,0,0,0,0,0,0,0,0,0,0,0]
[null,"Actividad 3.6",null,null,"P",0,0,0,0,0,0,0,0,0,0,0,0,0]
[{"$nulls":4},"E",0,0,0,0,0,0,0,0,0,0,0,0,0]
[null,"Actividad 3.7",null,null,"P",0,0,0,0,0,0,0,0,0,0,0,0,0]
[{"$nulls":4},"E",0,0,0,0,0,0,0,0,0,0,0,0,0]
[null,"Componente 4","Concientizar y capacitar a los choferes de las patrullas de seguridad publica en un mejor manejo del parque vehicular.",null,null,"PORCENTAJE de elementos capacitados como choferes de patrulla y manejo de equipo. (P4-ECCPME)",null,"Mide los beneficios de capacitar en el manejo de patrullas a los choferes en meyor tiempo en funcionamiento cada unidad",null,"(Cantidad de elementos de seguridad pública (25) capacitados como choferes de patrulla  y manejo de radio y videocamara / Total de elementos de seguridad pública (60) )*100",null,null,0,null,60,"Mensual",null,{"$f":"M226/O226","v":{"v":0,"d":"0%"}},"Eficacia","Dimensión"]
[{"$nulls":18},"Gestión","Tipo"]
[{"$nulls":12},{"$f":"R231","v":{"v":0.375,"d":"0.38"}},null,{"$f":"R230","v":{"v":0.8333333333333334,"d":"0.83"}},null,null,{"$f":"M228/O228","v":{"v":0.44999999999999996,"d":"45.00%"}},"Bimestral","Frecuencia de medición"]
[{"$nulls":18},"Porcentaje","Unidad de medida"]
[null,"Actividad 4.1","Capacitar 12 elementos de seguridad pública como choferes de patrulla  y manejo de radio y videocamara",null,"P",0,0,0,10,20,20,10,10,10,10,10,0,{"$f":"SUM($F230:$Q230)/120","v":{"v":0.8333333333333334,"d":"0.83"}}]
[{"$nulls":4},"E",10,10,0,0,10,10,5,0,0,0,0,0,{"$f":"SUM($F231:$Q231)/120","v":{"v":0.375,"d":"0.38"}}]
[null,"Actividad 4.1","recibir capacitacion especializada en conduccion de vehiculos de emergencia, asi como en manejo de radio de acuerdo a criterios ubicados abajo",null,"P",0,0,0,10,20,20,10,10,10,10,10,0]
[{"$nulls":4},"E",1,1,0,0,1,0,1,0,0,1,0,1]
[null,"Actividad 4.2","Elaborar ficha de regstro vehicular de recepion y entrega de vehiculo en turno",null,"P",0,0,0,10,20,20,10,10,10,10,10,0]
[{"$nulls":4},"E",0,0,0,0,0,0,0,0,0,0,0,0]
[null,"Actividad 4.3","Asignar personal a la funcion de control vehicular en la direccion de seguridad públiica que sea responsable de mantener en funcionamiento el parque vehicular ",null,"P",0,0,0,10,10,20,20,10,10,10,10,0]
[{"$nulls":4},"E",0,0,0,0,0,0,0,0,0,0,0,0]
[null,"Actividad 4.4","Desarrollar el protocolo de  siniestro vehicular para informar a personal de control vehicular.",null,"P",0,0,0,10,10,20,20,10,10,10,10,0]
[{"$nulls":4},"E",0,0,0,0,0,0,0,0,0,0,0,0]
[null,"Actividad 4.1","Desarrollar el Manual para la conducción de vehiculos Policiales",null,"P",0,0,0,10,20,20,10,10,10,10,10,0]
[{"$nulls":4},"E",1,1,0,0,1,0,1,0,0,1,0,1]
[null,"Actividad 4.2","Contenidos mínimos a desarrollar en dichas capacitaciones:",null,"P",0,0,0,10,20,20,10,10,10,10,10,0]
[{"$nulls":4},"E",0,0,0,0,0,0,0,0,0,0,0,0]
[null,"Actividad 4.3","Conceptualización del conductor sobre la conduccion vehicular y el factor humano",null,"P",0,0,0,10,10,20,20,10,10,10,10,0]
[{"$nulls":4},"E",0,0,0,0,0,0,0,0,0,0,0,0]
[null,"Actividad 4.4","Analisis, funcionamiento y mejor rendimiento del vehiculo",null,"P",0,0,0,10,10,20,20,10,10,10,10,0]
[{"$nulls":4},"E",0,0,0,0,0,0,0,0,0,0,0,0]
[null,"Actividad 4.5","Tipos y estrategias para evaluar los caminos",null,"P",0,0,0,10,10,10,20,20,10,10,10,0]
[{"$nulls":4},"E",0,0,0,0,0,0,0,0,0,0,0,0]
[null,"Actividad 4.4",null,null,"P",0,0,0,0,0,0,0,0,0,0,0,0]
[{"$nulls":4},"E",0,0,0,0,0,0,0,0,0,0,0,0]
[null,"Actividad 4.5",null,null,"P",0,0,0,0,0,0,0,0,0,0,0,0]
[{"$nulls":4},"E",0,0,0,0,0,0,0,0,0,0,0]
[null,"Actividad 4.6",null,null,"P",0,0,0,0,0,0,0,0,0,0,0,0]
[{"$nulls":4},"E",0,0,0,0,0,0,0,0,0,0,0]
[null,"Actividad 4.10","Que se entiende por los Estacionamientos",null,"P",0,0,0,10,10,10,10,10,20,20,10,0]
[{"$nulls":4},"E",0,0,0,0,0,0,0,0,0,0,0,0]
[null,"Actividad 4.11","Que se entiende por las Maniobras de adelantamiento y rebase",null,"P",0,0,0,10,10,10,10,10,20,20,10,0]
[{"$nulls":4},"E",0,0,0,0,0,0,0,0,0,0,0,0]
[null,"Actividad 4.12","Que se entiende por la Conducción defensiva",null,"P",0,0,0,10,10,10,10,10,10,20,20,0]
[{"$nulls":4},"E",0,0,0,0,0,0,0,0,0,0,0,0]
[null,"Actividad 4.13","Que se entiende por la Conducción táctica y técnica para el seguimiento de vehiculos",null,"P",0,0,0,10,10,10,10,10,10,20,20,0]
[{"$nulls":4},"E",0,0,0,0,0,0,0,0,0,0,0,0]
[null,"Actividad 4.14","Que se entiende por la Velocidad de proyecto, velocidad de operación",null,"P",0,0,0,0,10,10,10,10,10,10,20,20]
[{"$nulls":4},"E",0,0,0,0,0,0,0,0,0,0,0,0]
[null,"Actividad 4.1","Conjuntamente con PFP se capacito a 60 integrantes del cuerpo de seguridad en conduccion de vehiculos de traslado y emergencia y maniobras de  auxilio vial",null,"P",0,0,0,10,20,20,10,10,10,10,10,0]
[{"$nulls":4},"E",1,1,0,0,1,0,1,0,0,1,0,1]
[null,"Actividad 4.2","XV.- Proponer al Presidente Municipal, para que éste a su vez lo haga al Ayuntamiento, los proyectos de reglamentos aplicables a la seguridad pública así como las modificaciones pertinentes",null,"P",0,0,0,10,20,20,10,10,10,10,10,0]
[{"$nulls":4},"E",0,0,0,0,0,0,0,0,0,0,0,0]
[null,"Actividad 4.3","Promover una actualizacion del reglamento para la linea de propuesta ",null,"P",0,0,0,10,10,20,20,10,10,10,10,0]
[{"$nulls":4},"E",0,0,0,0,0,0,0,0,0,0,0,0]
[null,"Actividad 4.4","XVIII.- Intervenir en la adquisición de equipo y material destinados a la Dirección General, proporcionando sus características técnicas",null,"P",0,0,0,10,10,20,20,10,10,10,10,0]
[{"$nulls":4},"E",0,0,0,0,0,0,0,0,0,0,0,0]
[null,"Actividad 4.5","Los mecanismos de intervencion para adquisisicones son a traves del POA",null,"P",0,0,0,10,10,10,20,20,10,10,10,0]
[{"$nulls":4},"E",0,0,0,0,0,0,0,0,0,0,0,0]
[null,"Actividad 4.4",null,null,"P",0,0,0,0,0,0,0,0,0,0,0,0]
[{"$nulls":4},"E",0,0,0,0,0,0,0,0,0,0,0,0]
[null,"Actividad 4.5",null,null,"P",0,0,0,0,0,0,0,0,0,0,0,0]
[{"$nulls":4},"E",0,0,0,0,0,0,0,0,0,0,0]
[null,"Actividad 4.6",null,null,"P",0,0,0,0,0,0,0,0,0,0,0,0]
[{"$nulls":4},"E",0,0,0,0,0,0,0,0,0,0,0]
[null,"Actividad 4.6","XIX.- Supervisar y controlar la adecuada administración y aprovechamiento de los recursos asignados a la Dirección General",null,"P",0,0,0,10,10,10,20,20,10,10,10,0]
[{"$nulls":4},"E",0,0,0,0,0,0,0,0,0,0,0,0]
[null,"Actividad 4.7","Desarrollar protocolos de supervicion vehicular, armamento y uniforme",null,"P",0,0,0,10,10,10,10,20,20,10,10,0]
[{"$nulls":4},"E",0,0,0,0,0,0,0,0,0,0,0,0]
[null,"Componente 5","Instalación de cámaras de video vigilancia así como una base de datos sobre los registros de denuncias.  Establecer una instancia en el municipio que dé seguimiento a los asuntos ante la fiscalía",null,null,"PORCENTAJE de vinculación de delitos entre denuncias, fiscalia y videocamaras. (T1-VDDFV)",null,"Mide la vinculación de delitos denucnciados y registrados en medios electronicos y el tiempo de solucion por la fiscalia",null,"(Cantidad de delitos denunciados y registrados en videocamaras (0) durante el año  / Total de  delitos denunciados (26) durante el año)*100",null,null,0,null,26,"Mensual",null,{"$f":"M286/O286","v":{"v":0,"d":"0%"}},"Eficacia","Dimensión"]
[{"$nulls":18},"Gestión","Tipo"]
[{"$nulls":12},{"$f":"R291","v":{"v":0.3333333333333333,"d":"0.33"}},null,{"$f":"R290","v":{"v":0.8333333333333334,"d":"0.83"}},null,null,{"$f":"M288/O288","v":{"v":0.39999999999999997,"d":"40.00%"}},"Bimestral","Frecuencia de medición"]
[{"$nulls":18},"Porcentaje","Unidad de medida"]
[null,"Actividad 5.1","Vigilar el cumplimeinto de los dos reglamentos uno del Reglamento de policia y Buen Gobierno y reglamento de la policia preventiva (Actualmente se encuentra a cargo la seguridad del munciipio de la polciia estatal  28 elementos.)",null,"P",0,0,0,10,20,20,10,10,10,10,10,0,{"$f":"SUM($F290:$Q290)/120","v":{"v":0.8333333333333334,"d":"0.83"}}]
[{"$nulls":4},"E",10,10,0,0,10,5,5,0,0,0,0,0,{"$f":"SUM($F291:$Q291)/120","v":{"v":0.3333333333333333,"d":"0.33"}}]
[null,"Actividad 4.1","Estudiar y analizar los lugares mas tacticos para la instalación de las camaras de vigilancia",null,"P",0,0,0,10,20,20,10,10,10,10,10,0]
[{"$nulls":4},"E",1,1,0,0,1,0,1,0,0,1,0,1]
[null,"Actividad 4.2","Estudiar y analizar la estructura mas adecuada para desarrollar una base de datos con los registros de las denuncias realizadas por la ciudadania y las acciones para su resolucion, que nos permita dar seguimiento a aquellas que lleguen a la fiscalia y su proceso y etapas en esta.",null,"P",0,0,0,10,20,20,10,10,10,10,10,0]
[{"$nulls":4},"E",0,0,0,0,0,0,0,0,0,0,0,0]
[null,"Actividad 4.3","Gestionar los recursos economicos para la compra de las camaras en su primera etapa",null,"P",0,0,0,10,10,20,20,10,10,10,10,0]
[{"$nulls":4},"E",0,0,0,0,0,0,0,0,0,0,0,0]
[null,"Actividad 4.1","Gestionar los recursos economicos o el personal técnico con la capacidad para hacer el estudio y diseño del tipo y estructura de base de datos para cumplir con el proyecto",null,"P",0,0,0,10,20,20,10,10,10,10,10,0]
[{"$nulls":4},"E",1,1,0,0,1,0,1,0,0,1,0,1]
[null,"Actividad 4.2","Realizar la compra e instalación de las videocamaras estebleciendo el personal y el mecanismo para dar seguimiento y analisis de acontecimientos",null,"P",0,0,0,10,20,20,10,10,10,10,10,0]
[{"$nulls":4},"E",0,0,0,0,0,0,0,0,0,0,0,0]
[null,"Actividad 4.3","Realizar la contratación o definir al personal que desarrollara la base de datos y su puesta en operación proyectando sus primeros resultados para el beneficio de la ciudadania",null,"P",0,0,0,10,10,20,20,10,10,10,10,0]
[{"$nulls":4},"E",0,0,0,0,0,0,0,0,0,0,0,0]
[null,"Actividad 4.2","XIV.- Actualizar los sistemas y procedimientos de la Dirección General, en base a los avances tecnológicos y a las necesidades de la población en materia de seguridad pública",null,"P",0,0,0,10,20,20,10,10,10,10,10,0]
[{"$nulls":4},"E",0,0,0,0,0,0,0,0,0,0,0,0]
[null,"Actividad 4.3","se intalaron por parte del C5  17 camaras de vigilancia",null,"P",10,10,10,10,10,10,10,10,10,10,0,0]
[{"$nulls":4},"E",10,10,10,10,10,10,10,10,10,10,null,0]
[null,"Actividad 4.1","XX.- Controlar y evaluar los programas de la Dirección General",null,"P",0,0,0,10,20,20,10,10,10,10,10,0]
[{"$nulls":4},"E",1,1,0,0,1,0,1,0,0,1,0,1]
[null,"Actividad 4.2","se llevo acabo una ficha electronica de registros de detenidos por falta admnsitrativas, 1436 fichas electronicas",null,"P",10,10,10,10,10,10,10,10,10,10,0,0]
[{"$nulls":4},"E",10,10,10,10,10,10,10,10,10,10,0,0]
[null,"Actividad 4.3","XXI.- Dirigir el intercambio con otras dependencias municipales, estatales y federales u organismos similares del país o del extranjero, con el objeto de conocer y aplicar, en su caso, las innovaciones en aspectos de seguridad pública",null,"P",0,0,0,10,10,20,20,10,10,10,10,0]
[{"$nulls":4},"E",0,0,0,0,0,0,0,0,0,0,0,0]
[null,"Componente 6","Conjuntamente con asuntos internos y oficialía mayor administrativa gestionar capacitaciones constantes y diversas sobre los derechos humanos.",null,null,"PORCENTAJE de empledos municipales que se capacitan en derechos humanos. (P5-EMCDH)",null,"Mide la participación y sencibilización de los empleados municipales al cuidado y respeto de los derechos humanos",null,"(Cantidad de emplados municipales (157) que han reciben capacitacion sobre derechos humanos  / 25 % del total de emplados municipales (630) )*100",null,null,0,null,101,"Mensual",null,{"$f":"M314/O314","v":{"v":0,"d":"0%"}},"Eficacia","Dimensión"]
[{"$nulls":18},"Gestión","Tipo"]
[{"$nulls":12},{"$f":"R321+R323+R325","v":0},null,{"$f":"R320+R322+R324","v":0},null,null,{"$f":"M316/O316","v":{"$error":"#DIV/0!"}},"Bimestral","Frecuencia de medición"]
[{"$nulls":18},"Porcentaje","Unidad de medida"]
[null,"Actividad 6.1",null,null,"P",10,10,10,10,10,10,10,10,10,10,0,0]
[{"$nulls":4},"E",0,0,0,0,0,0,0,0,0,0,0,0]
[null,"Actividad 5.1","Capacitar y dar a conocer a los integrantes del cuerpo de seguridad pública sus derechos como ciudadanos y como oficiales de la seguridad pública municipal",null,"P",10,10,10,10,10,10,10,10,10,10,0,0]
[{"$nulls":4},"E",0,0,0,0,0,0,0,0,0,0,0,0]
[null,"Actividad 5.2","Capacitar y dar a conocer a los integrantes del cuerpo de seguridad pública sus obligaciones como cuerpo de seguridad pública, cuidando el desempeño de sus funciones bajo los principios de legalidad, disciplina, eficiencia, profesionalismo, honradez, lealtad y respeto a los derechos humanos.",null,"P",10,10,10,10,10,10,10,10,10,10,0,0]
[{"$nulls":4},"E",0,0,0,0,0,0,0,0,0,0,0,0]
[null,"Actividad 5.3","Gestionar ante la Comisión de Derechos Humanos del Estado de Jalisco (CEDHJ) para solicitar los talleres y platicas para la prevencion de futuras quejas.",null,"P",10,10,10,10,10,10,10,10,10,10,0,0]
[{"$nulls":4},"E",0,0,0,0,0,0,0,0,0,0,0,0]
[null,"Actividad 5.2","IV.- Promover una política de respeto a la ciudadanía y a sus garantías individuales;",null,"P",10,10,10,10,10,10,10,10,10,10,0,0]
[{"$nulls":4},"E",0,0,0,0,0,0,0,0,0,0,0,0]
[null,"Actividad 5.3","se llevaron a cabo 2 curso impartidos por la CEDHJ asistiendo un total de 60 elementos opererativos de los cuales 8 son mujeres.",null,"P",10,10,10,10,10,10,10,10,10,10,0,0]
[{"$nulls":4},"E",10,10,10,10,10,10,10,10,10,10,0,0]
[null,"Actividad 5.2","X.- Informar y asesorar al Presidente Municipal de y en todo lo relativo a la seguridad pública",null,"P",10,10,10,10,10,10,10,10,10,10,0,0]
[{"$nulls":4},"E",0,0,0,0,0,0,0,0,0,0,0,0]
[null,"Actividad 5.3","365 informes anuales  y 12 informes mesuales de los cuales se le informan reportes de vehiculos con reporte de robo, vehiculos recuperados, denuncias por robo a casa habitacion, a traseuntes, negocio, motocicletas recuperadas, personas occisa, reportes de violencia intrfamiliar o conflitos vecinales.",null,"P",10,10,10,10,10,10,10,10,10,10,0,0]
[{"$nulls":4},"E",10,10,10,10,10,10,10,10,10,10,0,0]
[null,"Actividad 5.2","XI.- Elaborar los programas de seguridad y el anteproyecto de presupuesto de la Dirección",null,"P",10,10,10,10,10,10,10,10,10,10,0,0]
[{"$nulls":4},"E",0,0,0,0,0,0,0,0,0,0,0,0]
[null,"Actividad 5.2","XII.- Elaborar y tramitar el presupuesto anual de egresos de la Dirección General, ante la Tesorería Municipal y el Ayuntamiento",null,"P",10,10,10,10,10,10,10,10,10,10,0,0]
[{"$nulls":4},"E",0,0,0,0,0,0,0,0,0,0,0,0]
[null,"Actividad 5.3","se elaboro presupuesto para el area de Tesoreria ",null,"P",10,10,10,10,10,10,10,10,10,10,0,0]
[{"$nulls":4},"E",10,10,10,10,10,10,10,10,10,10,0,0]
[null,"Actividad 4.3","XIII.- Coordinar las acciones de la Dirección General con las dependencias y organismos federales, estatales y municipales, para un desempeño eficiente",null,"P",0,0,0,10,10,20,20,10,10,10,10,0]
[{"$nulls":4},"E",0,0,0,0,0,0,8,0,0,0,0,0]
[null,"Actividad 4.1","05 operativos en el Municipio con el objetivo de localizar vehiculos con reporte de robo ",null,"P",10,10,10,10,10,10,10,10,10,10,0,0]
[{"$nulls":4},"E",10,10,10,10,10,10,10,10,10,10,0,0]
[null,"Actividad 4.2","XXII.- Resolver en el ámbito de su competencia las dudas que se susciten con motivo de la interpretación o aplicación de este Reglamento, así como los casos no previstos en el mismo",null,"P",0,0,0,0,0,0,0,0,0,0,0,0]
[{"$nulls":4},"E",0,0,0,0,0,0,0,0,0,0,0,0]
[null,"Actividad 4.1","XXIII.- Vigilar el estricto cumplimiento de lo dispuesto en el presente Reglamento;",null,"P",0,0,0,0,0,0,0,0,0,0,0,0]
[{"$nulls":4},"E",0,0,0,0,0,0,0,0,0,0,0,0]
[null,"Actividad 4.3","XXV.- Las demás que le señalen como de su competencia las leyes y ordenamientos de la materia, así como las que acuerden el Ayuntamiento y el Presidente Municipal",null,"P",0,0,0,0,0,0,0,0,0,0,0,0]
[{"$nulls":4},"E",0,0,0,0,0,0,0,0,0,0,0,0]
[null,null,"P : Programado  /  E: Ejecutado"]
[null,null,"SEMAFORO DE CUMPLIMIENTO DE LOS PROYECTOS  y DE LA DIRECCION"]
[null,null,"Avance en tiempo","Avance  relativo","Avances limitado"]

{"sheet":"Hoja1","index":6,"n_rows":0,"n_cols":0,"rows_kept":0}

{"sheet":"Hoja2","index":7,"n_rows":0,"n_cols":0,"rows_kept":0}

{"sheet":"Hoja3","index":8,"n_rows":0,"n_cols":0,"rows_kept":0}

{"sheet":"Hoja4","index":9,"n_rows":0,"n_cols":0,"rows_kept":0}

{"sheet":"Hoja6","index":10,"n_rows":0,"n_cols":0,"rows_kept":0}

{"sheet":"Hoja7","index":11,"n_rows":0,"n_cols":0,"rows_kept":0}

{"sheet":"Hoja8","index":12,"n_rows":0,"n_cols":0,"rows_kept":0}

{"sheet":"Hoja9","index":13,"n_rows":0,"n_cols":0,"rows_kept":0}

{"sheet":"Hoja5","index":14,"n_rows":0,"n_cols":0,"rows_kept":0}